Workbook

Sheet NOVO
B3: Novidades da Versão
A6: V3.00
B7: GERAL
C8: =IF(D8<>"","▪","") -> ▪ | D8: Lançamento: Adequação à Portaria 424/2016. Acompanhamento por Eventos.
C9: =IF(D9<>"","▪","") -> 
A10: V3.01
B11: GERAL
C12: =IF(D12<>"","▪","") -> ▪ | D12: Ajustes de formatações.
B13: PO
C14: =IF(D14<>"","▪","") -> ▪ | D14: Correção da aplicação do BDI não desonerado.
C15: =IF(D15<>"","▪","") -> ▪ | D15: Inclusão de coluna exclusiva "Preço Unitário Edital", para o Modo 'Orçamento Licitado'.
A17: V3.02
B18: GERAL
C19: =IF(D19<>"","▪","") -> ▪ | D19: Ajustes de formatações.
C20: =IF(D20<>"","▪","") -> ▪ | D20: Correção do Problema de Guias ocultas no BROFFICE.
B21: ORÇAMENTO
C22: =IF(D22<>"","▪","") -> ▪ | D22: Ampliada obtenção de dados da Planilha Referência de 20.000 para 65.536 linhas.
B23: CRONOGRAMA
C24: =IF(D24<>"","▪","") -> ▪ | D24: Correção na formulação do total acumulado por Repasse, CP e Outros
B25: QCI
C26: =IF(D26<>"","▪","") -> ▪ | D26: Correção na formulação do arredondamento no rateio dos valores do QCI.
B27: RRE
C28: =IF(D28<>"","▪","") -> ▪ | D28: Correção na formulação do total por Repasse, CP e Outros.
A30: V3.03
B31: GERAL
C32: =IF(D32<>"","▪","") -> ▪ | D32: Correção do Problema de Guias ocultas no BROFFICE.
B33: CÁLCULO
C34: =IF(D34<>"","▪","") -> ▪ | D34: Corrigida lentidão e travamento ao incluir e excluir frentes.
A37: V3.04
B38: BDI
C39: =IF(D39<>"","▪","") -> ▪ | D39: Correção da CPRB que exibia 4,5% mesmo quando não desonerado.
B40: CRONOGRAMA
C41: =IF(D41<>"","▪","") -> ▪ | D41: Correção da distribuição de Repasse, CP e Outros para as metas manuais.
B42: QCI
C43: =IF(D43<>"","▪","") -> ▪ | D43: Adicionado botão para adotar a CP do QCI como CP do contrato (zera saldo a reprogramar de CP).
A45: V3.05
B46: GERAL
C47: =IF(D47<>"","▪","") -> ▪ | D47: Corrigido modo de Cálculo da Planilha para Automático.
A49: V3.06
B50: GERAL
C51: =IF(D51<>"","▪","") -> ▪ | D51: Adicionado modo de arredondamento para compatibilidade com o TransfereGOV, altera na aba DADOS
C52: =IF(D52<>"","▪","") -> ▪ | D52: A planilha passará a ser disponibilizada com o formato .xlsm. Deve ser usado arquivo referência 1.9 ou superior, também no formato .xlsm
A54: V3.07
B55: GERAL
C56: =IF(D56<>"","▪","") -> ▪ | D56: Alterada a posição da aba NOVO para antes da aba MENU.
C57: =IF(D57<>"","▪","") -> ▪ | D57: Alterada a posição da aba CÁLCULO para depois da aba EVENTOS. Pois, no caso de acompanhamento por PLE, a lista supensa na coluna "Nº Agrupador de Eventos" na aba CÁLCULO depende do preenchimento prévio da aba EVENTOS.
C58: ▪ | D58: Alterada a posição da aba CRONO para depois da aba CRONOPLE. Pois, no caso de acompanhamento por PLE, a aba CRONO tem o preenchimento automático a partir da aba CRONOPLE.
C59: ▪ | D59: Alterada a posição da aba PLE para depois da aba QCI. Com a finalidade de deixar agrupadas todas as abas de acompanhamento (PLE, BM, RRE, OFÍCIO).
C60: ▪ | D60: Acrescentados botões de navegação (cor azul claro) em várias abas. Em relação a esses botões, também foram ajustados os links, nomes e formatação.
C61: ▪ | D61: Criada macro para exibir apenas as abas pertinentes (exemplo: caso o acompanhamento seja por PLE, a aba BM fica oculta).
C62: ▪ | D62: Ajuste na macro para correção automática do Nº AGRUPADOR DE EVENTOS na aba CÁLCULO, quando se ADCIONAR ou EXCLUIR LINHAS na aba EVENTOS.
B63: MENU
C64: =IF(D64<>"","▪","") -> ▪ | D64: Acrescentado o botão "IMPORTAR DE OUTROS MODELOS CAIXA": PO (MO27476); PLE (MO27477); e QCI (MO41211).
C65: =IF(D65<>"","▪","") -> ▪ | D65: Acrescentado o botão de seleção "Importar Fórmulas para o Custo Unitário (aba ORÇAMENTO)".
D66: Caso selecionada, será importada a fórmula (se houver) do custo unitário; Caso desmarcada, será importado somente o valor.
C67: =IF(D67<>"","▪","") -> ▪ | D67: Acrescentado o botão de seleção "Importar Fórmulas para as Quantidades da PLQ (aba CÁLCULO)".
D68: Caso selecionada, será importada a fórmula (se houver) do quantitativo; Caso desmarcada, será importado somente o valor.
C69: =IF(D69<>"","▪","") -> ▪ | D69: Atualizada a macro de Importação para incluir a importar da coluna "Nº Agrupador de Eventos" da aba CÁLCULO.
C70: =IF(D70<>"","▪","") -> ▪ | D70: Atualizada a macro de Imprimir Documentos (para englobar as abas EVENTOS e CRONOPLE).
B71: BDI
C72: =IF(D72<>"","▪","") -> ▪ | D72: Ajuste automático do valor da CPRB em função da data base do orçamento (para atendimento do Art. 9-A da Lei 12.546 de 14/12/2011).
B73: EVENTOS
C74: =IF(D74<>"","▪","") -> ▪ | D74: Acrescentados os dados de identificação do Contrato de Repasse.
C75: =IF(D75<>"","▪","") -> ▪ | D75: Acrescentadas as colunas dos totais dos Eventos por Frentes de Obra.
C76: =IF(D76<>"","▪","") -> ▪ | D76: Acrescentados os dados de Local, Data e Responsável Técnico.
C77: =IF(D77<>"","▪","") -> ▪ | D77: Acrescentado FILTRO para exibir apenas as linhas preenchidas.
B78: CRONOPLE
C79: =IF(D79<>"","▪","") -> ▪ | D79: Acrescentados os dados de identificação do Contrato de Repasse.
C80: =IF(D80<>"","▪","") -> ▪ | D80: Acrescentado o quadro "Cronograma" com percentual e valor da parcela e percentual e valor acumulado.
C81: =IF(D81<>"","▪","") -> ▪ | D81: Acrescentados os dados de Local, Data e Responsável Técnico.
C82: =IF(D82<>"","▪","") -> ▪ | D82: Acrescentado FILTRO para exibir apenas as linhas preenchidas.
B83: RRE
C84: =IF(D84<>"","▪","") -> ▪ | D84: Correção na fórmula da data, para replicar a “Data de fechamento do RRE” na aba DADOS.
B85: OFÍCIO
C86: =IF(D86<>"","▪","") -> ▪ | D86: Exclusão do quadro "Resumo de Valores por CTEF".
A88: V3.08
B89: GERAL
C90: =IF(D90<>"","▪","") -> ▪ | D90: Incluídos alertas de erro de preenchimento em todas as abas.
B91: MENU
C92: =IF(D92<>"","▪","") -> ▪ | D92: Incluído botão de macro para gerar arquivo (em xlsx) para upload da PO e CFF no TransfereGOV.
C93: =IF(D93<>"","▪","") -> ▪ | D93: Ajustada a macro "Importar de outra Planilha Múltipla" para importar o Cronograma da aba CRONO. Também foram incluídas as importações dos campos: Data do preenchimento (DADOS), Data de fechamento do RRE (DADOS); nº da 1ª Parcela do Cronograma (CRONO), mês da 1ª Parcela do Cronograma (CRONO), nº da Medição (BM) e nº da Medição (PLE).
C94: =IF(D94<>"","▪","") -> ▪ | D94: Incluída a informação do progresso na macro "Importar de outra Planilha Múltipla", por meio de uma barra de progresso (janela que será exibida na tela) e da indicação das etapas de importação na barra de status do Excel (canto inferior esquerdo da janela do Excel).
B95: BDI
C96: =IF(D96<>"","▪","") -> ▪ | D96: Incluídos botões de navegação para os formulários de BDI (BDI 1, BDI 2, BDI 3).
B97: ORÇAMENTO
C98: =IF(D98<>"","▪","") -> ▪ | D98: Incluído botão de macro para padronizar as siglas de unidades, conforme lista de siglas válidas no TransfereGOV.
B99: EVENTOS
C100: =IF(D100<>"","▪","") -> ▪ | D100: O Título de Evento "Administração Local" com preenchimento automático proporcional agora é exibido apenas no modo Arredondamento de Frentes "Tradicional" e para a opção Agrupadores de Eventos "Definir Manualmente".
C101: =IF(D101<>"","▪","") -> ▪ | D101: Não é mais possível deixar Eventos em branco (sem nome ou sem valor).
B102: CÁLCULO
C103: =IF(D103<>"","▪","") -> ▪ | D103: Não é mais possível deixar Frentes de Obra em branco (sem nome ou sem quantidades).
B104: CRONOPLE
C105: =IF(D105<>"","▪","") -> ▪ | D105: Incluído campo para selecionar o Título do Evento referente à Administração Local (acompanhamento por PLE).
C106: =IF(D106<>"","▪","") -> ▪ | D106: Incluída linha com o percentual acumulado da Administração Local em cada período.
B107: CRONO
C108: =IF(D108<>"","▪","") -> ▪ | D108: Ajustada a fórmula do % acumulado a partir da parcela 13 (para manter o padrão da fórmula das parcelas 1 a 12).
C109: =IF(D109<>"","▪","") -> ▪ | D109: Incluído campo para selecionar o Macrosserviço referente à Administração Local (acompanhamento por BM).
C110: =IF(D110<>"","▪","") -> ▪ | D110: Incluída linha com o percentual acumulado da Administração Local em cada parcela.
B111: RRE
C112: =IF(D112<>"","▪","") -> ▪ | D112: Corrigida a fórmula do % no quadro "Percentual previsto em:". Que estava limitada a buscar o % previsto até a parcela 12.
B113: PLE
C114: =IF(D114<>"","▪","") -> ▪ | D114: Incluída linha com o percentual acumulado da Administração Local em cada medição.
B115: BM
C116: =IF(D116<>"","▪","") -> ▪ | D116: Incluído campo com o percentual medido acumulado da Administração Local.
A118: V3.09
B119: MENU
C120: =IF(D120<>"","▪","") -> ▪ | D120: Atualizada a macro "Gerar arquivo para upload no TransfereGOV" para ajustar os códigos de composições SINAPI (acrescentar zeros a esquerda até completar dez dígitos) para Data base igual ou superior a JAN/2025.
B121: ORÇAMENTO
C122: =IF(D122<>"","▪","") -> ▪ | D122: Acrescentada formatação condicional na coluna "Descrição" para exibir os textos de alerta de erro, textos que começam com "(", na cor vermelha.
B123: BDI
C124: =IF(D124<>"","▪","") -> ▪ | D124: Corrigida a macro dos botões de navegação para os formulários do BDI.
A126: V3.10
B127: GERAL
C128: =IF(D128<>"","▪","") -> ▪ | D128: Corrigidas as fórmulas da v3.08 / v3.09 que eram incompatíveis com as versões do Excel anteriores ao Office 365.
A130: V3.11
B131: MENU
C132: =IF(D132<>"","▪","") -> ▪ | D132: Ajuste na macro "Importar de outra Planilha Múltipla" para tratar o erro "tipos incompatíveis".
C133: =IF(D133<>"","▪","") -> ▪ | D133: Ajuste na macro "Gerar arquivo para upload no TransfereGOV" para informar no status o número da linha que está sendo mesclada.
B134: CRONO
C135: =IF(D135<>"","▪","") -> ▪ | D135: Correção nas fórmulas dos valores no período da 13ª parcela do cronograma.
B136: RRE
C137: =IF(D137<>"","▪","") -> ▪ | D137: Correção nas fórmulas dos valores acumulados no caso de Administração Local de preenchimento manual.
A139: V3.12
B140: MENU
C141: =IF(D141<>"","▪","") -> ▪ | D141: Atualização na macro "Gerar arquivo para upload no TransfereGOV" em virtude de alteração no upload no TransfereGOV (código sem zeros a esquerda).
B142: BDI
C143: =IF(D143<>"","▪","") -> ▪ | D143: Revisão nos alertas de erro de preenchimento.
B144: ORÇAMENTO
C145: =IF(D145<>"","▪","") -> ▪ | D145: Revisão nos alertas de erro de preenchimento.
B146: EVENTOS
C147: =IF(D147<>"","▪","") -> ▪ | D147: Revisão na lista suspensa de opções da forma de definição dos agrupadores de eventos.
B148: CÁLCULO
C149: =IF(D149<>"","▪","") -> ▪ | D149: Revisão nos alertas de erro de preenchimento.
B150: CRONOPLE
C151: =IF(D151<>"","▪","") -> ▪ | D151: Correção na macro "Atualizar Linhas".
B152: CRONO
C153: =IF(D153<>"","▪","") -> ▪ | D153: Correção na fórmula dos porcentuais de Administração Local, no caso de agrupadores de eventos automáticos.
A155: V3.13
B156: GERAL
C157: =IF(D157<>"","▪","") -> ▪ | D157: Ajuste em todas as listas suspensas (substituindo valores ou textos por um intervalo com os dados).
B158: MENU
C159: =IF(D159<>"","▪","") -> ▪ | D159: Correção do valor total na macro "Gerar arquivo para upload no TransfereGOV". No arquivo para upload o valor total era preenchido apenas com o valor da meta 1.
C160: =IF(D160<>"","▪","") -> ▪ | D160: Correção nos arredondamentos na macro "Gerar arquivo para upload no TransfereGOV". No caso de preenchimento das quantidades com mais de duas casas decimais na PLQ, os valores calculados no Tgov ficavam diferentes dos valores calculados na Múltipla.
C161: =IF(D161<>"","▪","") -> ▪ | D161: Atualização na macro "Gerar arquivo para upload no TransfereGOV". No caso de alertas de erro de preenchimento nas abas BDI e ORÇAMENTO a caixa de mensagem informa o erro encontrado e pergunta ao usuário se quer "Corrigir o erro agora?", caso o usuário responda "Não" a macro continua os procedimentos e gera o arquivo com o erro de preenchimento.
B162: ORÇAMENTO
C163: =IF(D163<>"","▪","") -> ▪ | D163: Atualização no preenchimento da coluna BDI. Possibilidade de preencher diretamente um percentual na célula.
C164: =IF(D164<>"","▪","") -> ▪ | D164: Ajuste no alerta de erro "Acima Ref.", dispensado caso a Fonte de Recursos seja diferente de "OGU".
C165: =IF(D165<>"","▪","") -> ▪ | D165: Incluído alerta de erro caso a data base do arquivo referência seja diferente da indicada no nome do mesmo arquivo.
C166: =IF(D166<>"","▪","") -> ▪ | D166: Incluído alerta de erro caso os arredondamentos de todos os valores não estejam selecionados (para contratos no transferegov).
C167: =IF(D167<>"","▪","") -> ▪ | D167: Incluído alerta de erro "Justificar BDI", caso não seja adotado um BDI da lista suspensa.
B168: CÁLCULO
C169: =IF(D169<>"","▪","") -> ▪ | D169: Incluído alerta de erro "Verificar as quantidades preenchidas na linha...", caso a soma das quantidades preenchidas seja diferente da soma das quantidades arredondadas com duas casas decimais.
C170: =IF(D170<>"","▪","") -> ▪ | D170: Incluído alerta de erro "Preencha as quantidades com no máximo duas casas decimais", caso o alerta de erro acima aparece em alguma linha.
C171: ▪ | D171: Incluída formatação condicional para indicar as quantidades na PLQ com mais de duas casas decimais (o texto ficará na cor vermelha).
B172: CRONOPLE
C173: =IF(D173<>"","▪","") -> ▪ | D173: Correção na macro "Atualizar Linhas".
B174: PLE
C175: =IF(D175<>"","▪","") -> ▪ | D175: Correção na fórmula na coluna Filtro.
B176: RRE
C177: =IF(D177<>"","▪","") -> ▪ | D177: Correção nas fórmulas dos valores acumulados (o valor da administração local era duplicado em alguns casos).
A179: V3.14
B180: GERAL
C181: =IF(D181<>"","▪","") -> ▪ | D181: Ajustes em algumas fórmulas que eram incompatíveis com as versões do Excel anteriores ao Office 365.
B182: MENU
C183: =IF(D183<>"","▪","") -> ▪ | D183: Ajuste na macro "Gerar arquivo para upload no TransfereGOV". Excluído o procedimento de mesclagem de células, visando a eficiência da macro.
C184: =IF(D184<>"","▪","") -> ▪ | D184: Inclusão do botão [RESET]. Para resetar a Planilha Múltipla (apagar todos os dados preenchidos e restaurar o padrão inicial).
A186: V3.15
B187: ORÇAMENTO
C188: =IF(D188<>"","▪","") -> ▪ | D188: Ajuste na fórmula da coluna "Descrição" para corrigir incompatibilidade com as versões do Excel anteriores ao Office 365.

Sheet MENU
J1: PM | K1: TRUE
E2: =CHOOSE(MATCH(Objeto,{"PM","PO"}),"PLANILHA MÚLTIPLA ","PLANILHA ORÇAMENTÁRIA ")& Versao -> PLANILHA MÚLTIPLA v3.15 | J2: v3.15 | K2: TRUE
O3: 1
J4: =IF(VALUE(MENU!$O$4)=2,"BM","PLE") -> PLE | O4: 1
J5: Proposto
E6: DADOS DO CONTRATO | G6: NOVIDADES DA VERSÃO | J6: Licitado
J7: PLE
B8: =IF($O$3<>2,"DOCUMENTAÇÃO DA PROPOSTA","PROPOSTA: Para visualizar/preencher esta seção, altere o TIPO DE ORÇAMENTO para 'Proposto'") -> DOCUMENTAÇÃO DA PROPOSTA | J8: BM | L8: LEGENDA:
L9: Cores das células:
C10: =IF(TIPOORCAMENTO<>"Proposto",""," BDI ") -> BDI | E10: =IF(TIPOORCAMENTO<>"Proposto",""," ORÇAMENTO ") -> ORÇAMENTO | G10: =IF(TIPOORCAMENTO<>"Proposto","","MEMÓRIA DE CÁLCULO / PLQ") -> MEMÓRIA DE CÁLCULO / PLQ | N10: Fundo amarelo: células para preencher
C12: =IF(TIPOORCAMENTO<>"Proposto",""," QCI ") -> QCI | E12: =IF(TIPOORCAMENTO<>"Proposto","","CRONOGRAMA FÍSICO-FINANCEIRO") -> CRONOGRAMA FÍSICO-FINANCEIRO | N12: Fundo azul: células para seleção de opções
C14: =IF(TIPOORCAMENTO<>"Proposto","","Obs: Composições e Cotações devem ser preenchidas diretamente no arquivo Referência "&IF(ISBLANK(Import.DataBase),"mm-aaaa",TEXT(Import.DataBase,"mm-aaaa"))&".xlsm.") -> Obs: Composições e Cotações devem ser preenchidas diretamente no arquivo Referência 06-2025.xlsm.
L15: Cores dos botões:
B16: =IF($O$3<>2,"PÓS-LICITADO: Para visualizar/preencher esta seção, altere o TIPO DE ORÇAMENTO para 'Licitado'","RESULTADO DO PROCESSO LICITATÓRIO") -> PÓS-LICITADO: Para visualizar/preencher esta seção, altere o TIPO DE ORÇAMENTO para 'Licitado' | N16: Fundo azul claro: navegação entre abas
C18: =IF(TIPOORCAMENTO<>"Licitado",""," ORÇAMENTO ") ->  | E18: =IF(TIPOORCAMENTO<>"Licitado",""," QCI ") ->  | G18: =IF(TIPOORCAMENTO<>"Licitado","","CRONOGRAMA FÍSICO-FINANCEIRO") ->  | N18: Fundo laranja: execução de macro
B20: =IF($O$3<>2,"ACOMPANHAMENTO: Para visualizar/preencher esta seção, altere o TIPO DE ORÇAMENTO para 'Licitado'","ACOMPANHAMENTO DO EMPREENDIMENTO") -> ACOMPANHAMENTO: Para visualizar/preencher esta seção, altere o TIPO DE ORÇAMENTO para 'Licitado'
C22: =IF(OR(TIPOORCAMENTO<>"Licitado",ACOMPANHAMENTO<>"PLE"),"","PLAN. DE LEVANT. DE EVENTOS - PLE") ->  | E22: =IF(TIPOORCAMENTO<>"Licitado",""," RRE ") ->  | G22: =IF(OR(TIPOORCAMENTO<>"Licitado",ACOMPANHAMENTO<>"BM"),""," BOLETIM DE MEDIÇÃO - BM ") -> 
E24: =IF(TIPOORCAMENTO<>"Licitado","","OF. DE SOLICITAÇÃO DE DESBLOQUEIO") -> 

Sheet DADOS
B1: A. DOCUMENTAÇÃO DA PROPOSTA | D1: =IF(D3<>"","Falta preencher os Dados do Contrato",IF(D15<>"","Falta preencher os Dados do Empreendimento",IF(D21<>"","Falta preencher os Dados do Responsável pelo Orçamento",IF(D27<>"","Falta preencher os Dados do Responsável pelo Tomador",IF(D31<>"","Falta definir o método de arredondamento das frentes de obra",IF(D35<>"","Falta preencher os Dados da Licitação",IF(D46<>"","Falta preencher os Dados da Obra",IF(D50<>"","Falta preencher os Dados do Responsável pela Fiscalização","")))))))) ->  | G1: Fonte de recursos: | H1: Regime previdenciário | I1: Regime de Execução | J1: Arredondamento | N1: Sub-Itens de Investimento | AV1: Unidades válidas no Tgov
G2: (SELECIONAR) | H2: (SELECIONAR) | I2: (SELECIONAR) | J2: Tradicional | L2: Itens de Investimento | M2: Unidades habitacionais | N2: =COUNTA(M:M)-1 -> 3 | O2: Equipamentos comunitários | P2: =COUNTA(O:O)-1 -> 6 | Q2: Pavimentação | R2: =COUNTA(Q:Q)-1 -> 6 | S2: Drenagem | T2: =COUNTA(S:S)-1 -> 6 | U2: Abastecimento de água | V2: =COUNTA(U:U)-1 -> 11 | W2: Esgotamento sanitário | X2: =COUNTA(W:W)-1 -> 8 | Y2: Energia elétrica e iluminação pública | Z2: =COUNTA(Y:Y)-1 -> 4 | AA2: Coleta e tratamento de resíduos sólidos | AB2: =COUNTA(AA:AA)-1 -> 6 | AC2: Contenção e estabilização de encostas | AD2: =COUNTA(AC:AC)-1 -> 2 | AE2: Regularização fundiária | AF2: =COUNTA(AE:AE)-1 -> 2 | AG2: Aquisição de terreno | AH2: =COUNTA(AG:AG)-1 -> 2 | AI2: Aquisição de equipamentos e insumos | AJ2: =COUNTA(AI:AI)-1 -> 1 | AK2: Elaboração de estudos e projetos | AL2: =COUNTA(AK:AK)-1 -> 1 | AM2: Instrumentos e ações em planejamento e gestão pública | AN2: =COUNTA(AM:AM)-1 -> 1 | AO2: Ações complementares às obras | AP2: =COUNTA(AO:AO)-1 -> 3 | AQ2: Gerenciamento | AR2: =COUNTA(AQ:AQ)-1 -> 1 | AS2: Trabalho social | AT2: =COUNTA(AS:AS)-1 -> 4 | AV2: Sigla | AW2: Descrição
B3: Dados do Contrato (Inicial) | D3: =IF(COUNTIF(D4:D13,"◄")=0,"","Falta preencher a linha "&MATCH("◄",D4:D13,0)+ROW(D3)) ->  | G3: OGU | H3: NÃO SE APLICA | I3: INDEFINIDO / NÃO SE APLICA | J3: TransfereGOV | L3: Unidades habitacionais | M3: Aquisição | N3: un | O3: Convivência comunitária, assistência social e/ou comunitária | P3: m² | Q3: Capeamento de vias | R3: m² | S3: Obras de microdrenagem | T3: m | U3: Captação subterrânea | V3: m³/s | W3: Ligações domiciliares e/ou intradomiciliares | X3: un | Y3: Iluminação pública - luminárias | Z3: un | AA3: Acondicionamento | AB3: un | AC3: Estabilização de taludes | AD3: m² | AE3: Desapropriacões/Indenizações | AF3: m² | AG3: Aquisição de terreno | AH3: m² | AI3: Aquisição de equipamentos e insumos | AJ3: un | AK3: Elaboração de estudos e projetos | AL3: un | AM3: Instrumentos e ações em planejamento e gestão pública | AN3: un | AO3: Avaliação pós intervenção | AP3: un | AQ3: Gerenciamento | AR3: %CT | AS3: Projeto de Trabalho Social Preliminar | AT3: nº fam | AV3: %CT | AW3: %CT
B4: Fonte de recursos: | C4: OGU | D4: =IF(OR(OFFSET(D4,0,-1)="",OFFSET(D4,0,-1)="(SELECIONAR)"),"◄","") ->  | G4: FGTS | H4: DESONERADO | I4: EMPREITADA POR PREÇO GLOBAL | L4: Equipamentos comunitários | M4: Construção | N4: un | O4: Educação e cultura | P4: m² | Q4: Recapeamento de vias | R4: m² | S4: Desassoreamento de cursos de água | T4: m | U4: Captação superficial | V4: m³/s | W4: Rede coletora e/ou condominial | X4: m | Y4: Ligações domiciliares | Z4: un | AA4: Aterro sanitário e/ou disposição final | AB4: m³ | AC4: Obras complementares a ações de redução de risco e/ou contenções | AD4: m² | AE4: Projeto de Regularização Fundiária | AF4: m² | AG4: Benfeitorias | AH4: m² | AO4: Demolições | AP4: un | AS4: Projeto de Trabalho Social | AT4: nº fam | AV4: °C | AW4: GRAU CELSIUS
B5: Proponente/Tomador: | C5: Prefeitura de Itatinga | D5: =IF(OFFSET(D5,0,-1)="","◄","") ->  | H5: NÃO DESONERADO | I5: EMPREITADA POR PREÇO UNITÁRIO | L5: Pavimentação | M5: Reforma e/ou melhoria | N5: un | O5: Esportes | P5: m² | Q5: Obras de artes especiais | R5: m | S5: Canalização de cursos de água | T5: m | U5: Estação de bombeamento de água bruta | V5: m³/s | W5: Coletor tronco e/ou interceptores | X5: m | Y5: Linhas de distribuição - baixa tensão | Z5: m | AA5: Erradicação de lixões | AB5: m³ | AO5: Plano de Reassentamento e medidas compensatórias | AP5: un | AS5: Plano de Desenvolvimento Socioterritorial | AT5: nº fam | AV5: °F | AW5: GRAU FAHRENHEIT
B6: Município/UF: | C6: Itatinga/SP | I6: EMPREITADA INTEGRAL | L6: Drenagem | O6: Lazer e turismo | P6: m² | Q6: Pavimentação de calçadas | R6: m² | S6: Recomposição de vegetação ciliar, renaturalização de cursos de água ou restauração de margens | T6: m² | U6: Adução | V6: m | W6: Emissário | X6: m | Y6: Linhas de transmissão - alta tensão | Z6: m | AA6: Sistema de coleta seletiva tradicional, transporte e/ou equipamentos | AB6: un | AS6: Plano de Gestão Condominial | AT6: nº fam | AV6: 100M | AW6: 100 METROS
B7: Nº da Operação (0000000-00): | C7: 1100656-87 | I7: TAREFA | L7: Abastecimento de água | O7: Saúde | P7: m² | Q7: Pavimentação de vias | R7: m² | S7: Reservatório de amortecimento de cheias | T7: m³ | U7: Estação de Tratamento de Água (ETA) | V7: m³/s | W7: Estação Elevatória | X7: m³/s | AA7: Tratamento local | AB7: un | AV7: 18L | AW7: 18 LITROS
B8: Nº do TransfereGOV (000000): | C8: 9744498 | D8: =IF(AND(Import.TipoArredondamento="TransfereGOV",OFFSET(D8,0,-1)=""),"◄","") ->  | I8: CONTRATAÇÃO INTEGRADA | L8: Esgotamento sanitário | O8: Segurança pública | P8: m² | Q8: Sinalização | R8: m² | S8: Estação de Bombeamento | T8: m³/s | U8: Estação de bombeamento de água tratada | V8: m³/s | W8: Estação de Tratamento de Esgoto (ETE) | X8: m³/s | AA8: Usinas de reciclagem | AB8: m² | AV8: 200KG | AW8: 200 QUILOS
B9: =IF(C4="FGTS","Valor de Financiamento Contratado (R$):","Valor do Repasse Contratado (R$):") -> Valor do Repasse Contratado (R$): | C9: 3250000 | I9: ADM. DIRETA | L9: Energia elétrica e iluminação pública | U9: Linha de recalque | V9: m | W9: Sistema simplificado de tratamento | X9: m³/s | AV9: 250G | AW9: 250 GRAMAS
B10: Valor de Contrapartida Contratada (R$): | C10: 81250 | L10: Coleta e tratamento de resíduos sólidos | U10: Reservação | V10: m³ | W10: Unidades sanitárias | X10: un | AV10: 310ML | AW10: 310 MILILITROS
B11: % mínimo de Contrapartida: | C11: 0.001 | L11: Contenção e estabilização de encostas | U11: Rede de distribuição | V11: m | AV11: 50KG | AW11: 50 QUILOS
B12: R$ mínimo de Contrapartida (se houver): | L12: Regularização fundiária | U12: Ligações domiciliares e/ou intradomiciliares | V12: un | AV12: A | AW12: AMPÈRE
B13: % máximo de Contrapartida: | L13: Aquisição de terreno | U13: Sistema simplificado de abastecimento | V13: m | AV13: ACA/ACC | AW13: A.CORR.ALTERN/CONT.
L14: Aquisição de equipamentos e insumos | AV14: AH | AW14: AMPÈRE HORA
B15: Dados do Empreendimento e Orçamento | D15: =IF(COUNTIF(D16:D19,"◄")=0,"","Falta preencher a linha "&MATCH("◄",D16:D19,0)+ROW(D15)) ->  | L15: Elaboração de estudos e projetos | AV15: AH/H/V | AW15: AMPÉRE-H/H/VOLT
B16: Nome/apelido: | C16: Construção de unidades habitacionais no programa MCMV FNHIS sub 50. | D16: =IF(OFFSET(D16,0,-1)="","◄","") ->  | L16: Instrumentos e ações em planejamento e gestão pública | AV16: AM | AW16: AMPOLA
B17: Descrição do Objeto do Lote / CTEF: | C17: Construção de unidades habitacionais | L17: Ações complementares às obras | AV17: AM0/4ML | AW17: AMPOLA COM 0,4 Ml
B18: Regime previdenciário previsto para a obra: | C18: DESONERADO | D18: =IF(OR(OFFSET(D18,0,-1)="",OFFSET(D18,0,-1)="(SELECIONAR)"),"◄","") ->  | L18: Gerenciamento | AV18: AM0/5ML | AW18: AMPOLA COM 0,5 mL
B19: Data base do Orçamento: | C19: 2025-06-01 | L19: Trabalho social | AV19: AM1/5ML | AW19: AMPOLA COM 1,5 mL
AV20: AM10ML | AW20: AMPOLA COM 10 mL
B21: Responsável pelo Orçamento | D21: =IF(COUNTIF(D22:D25,"◄")=0,"","Falta preencher a linha "&MATCH("◄",D22:D25,0)+ROW(D21)) ->  | AV21: AM1ML | AW21: AMPOLA COM 1 mL
B22: Nome: | C22: Bianca Oliveira da Silva | D22: =IF(OFFSET(D22,0,-1)="","◄","") ->  | AV22: AM2/5ML | AW22: AMPOLA COM 2,5 mL
B23: CREA/CAU: | C23: 5070438158-SP | AV23: AM2ML | AW23: AMPOLA COM 2 mL
B24: ART/RRT: | C24: 2620251184146 | AV24: AM3ML | AW24: AMPOLA COM 3 mL
B25: Data do preenchimento: | C25: =TODAY() -> 2025-11-07 | AV25: AM4ML | AW25: AMPOLA COM 4 mL
AV26: AM5ML | AW26: AMPOLA COM 5 mL
B27: Responsável pelo Tomador (Prefeito, no caso de Municípios) | D27: =IF(COUNTIF(D28:D29,"◄")=0,"","Falta preencher a linha "&MATCH("◄",D28:D29,0)+ROW(D27)) ->  | AV27: AM6ML | AW27: AMPOLA COM 6 mL
B28: Nome: | C28: Paulo Henrique de Oliveira Roque | D28: =IF(OFFSET(D28,0,-1)="","◄","") ->  | AV28: AM7ML | AW28: AMPOLA COM 7 mL
B29: Cargo: | C29: Prefeito | AV29: ANO | AW29: ANO/ANOS
AV30: ANOS | AW30: ANO/ANOS
B31: Arredondamento das frentes: | C31: TransfereGOV | D31: =IF(OFFSET(D31,0,-1)="","◄ Falta definir o método de arredondamento.","") ->  | AV31: ARR | AW31: ARROBA
AV32: AWG | AW32: AMERICAN WIRE GAUGE
B33: B. RESULTADO DO PROCESSO LICITATÓRIO | AV33: BAR | AW33: BARRIL
AV34: BAR. | AW34: BAR
B35: Licitação | D35: =IF(COUNTIF(D36:D39,"◄")=0,"","Falta preencher a linha "&MATCH("◄",D36:D39,0)+ROW(D35)) ->  | AV35: BD | AW35: BALDE
B36: Data de emissão dos documentos de licitação: | D36: =IF(AND(TIPOORCAMENTO="Licitado",OFFSET(D36,0,-1)=""),"◄","") ->  | AV36: BIS | AW36: BISNAGA
B37: Nº do CTEF (contrato com empresa): | D37: =IF(AND(TIPOORCAMENTO="Licitado",OFFSET(D37,0,-1)=""),"◄","") ->  | AV37: BIS/GL | AW37: BISNAGA POR GALÃO
B38: Nome da empresa: | D38: =IF(AND(TIPOORCAMENTO="Licitado",OFFSET(D38,0,-1)=""),"◄","") ->  | AV38: BIS1/65G | AW38: BISNAGA COM 1,65 g
B39: CNPJ da empresa: | D39: =IF(AND(TIPOORCAMENTO="Licitado",OFFSET(D39,0,-1)=""),"◄","") ->  | AV39: BIS1/8G | AW39: BISNAGA COM 1,8 g
B40: Regime de execução do CTEF: | C40: (SELECIONAR) | D40: =IF(AND(TIPOORCAMENTO="Licitado",OR(OFFSET(D40,0,-1)="",OFFSET(D40,0,-1)="(SELECIONAR)")),"◄","") ->  | AV40: BIS100G | AW40: BISNAGA COM 100 g
B41: Data base do CTEF: | D41: =IF(AND(TIPOORCAMENTO="Licitado",OFFSET(D41,0,-1)=""),"◄","") ->  | AV41: BIS10G | AW41: BISNAGA COM 10 g
AV42: BIS135G | AW42: BISNAGA COM 135 g
AV43: BIS13G | AW43: BISNAGA COM 13 g
B44: C. ACOMPANHAMENTO DO EMPREENDIMENTO | AV44: BIS14G | AW44: BISNAGA COM 14 g
AV45: BIS15G | AW45: BISNAGA COM 15 g
B46: Dados da obra | D46: =IF(COUNTIF(D47:D48,"◄")=0,"","Falta preencher a linha "&MATCH("◄",D47:D48,0)+ROW(D46)) ->  | AV46: BIS1G | AW46: BISNAGA COM 1 g
B47: Data do Início da Obra: | D47: =IF(AND(TIPOORCAMENTO="Licitado",OFFSET(D47,0,-1)="",IFERROR(RRE!$O$28,0)>0),"◄","") ->  | AV47: BIS20G | AW47: BISNAGA COM 20 g
B48: Data de fechamento do RRE: | D48: =IF(AND(TIPOORCAMENTO="Licitado",OFFSET(D48,0,-1)="",IFERROR(RRE!$O$28,0)>0),"◄","") ->  | AV48: BIS25G | AW48: BISNAGA COM 25 g
AV49: BIS28/8G | AW49: BISNAGA COM 28,8 g
B50: Responsável pela Fiscalização | D50: =IF(COUNTIF(D51:D54,"◄")=0,"","Falta preencher a linha "&MATCH("◄",D51:D54,0)+ROW(D50)) ->  | AV50: BIS28G | AW50: BISNAGA COM 28 g
B51: Nome: | D51: =IF(AND(TIPOORCAMENTO="Licitado",OFFSET(D51,0,-1)="",IFERROR(RRE!$O$28,0)>0),"◄","") ->  | AV51: BIS2G | AW51: BISNAGA COM 2 g
B52: Profissão: | D52: =IF(AND(TIPOORCAMENTO="Licitado",OFFSET(D52,0,-1)="",IFERROR(RRE!$O$28,0)>0),"◄","") ->  | AV52: BIS3/5G | AW52: BISNAGA COM 3,5 g
B53: CREA/CAU (para obras/projetos): | D53: =IF(AND(TIPOORCAMENTO="Licitado",OFFSET(D53,0,-1)="",IFERROR(RRE!$O$28,0)>0),"◄","") ->  | AV53: BIS30G | AW53: BISNAGA COM 30 g
B54: ART/RRT (para obras/projetos): | D54: =IF(AND(TIPOORCAMENTO="Licitado",OFFSET(D54,0,-1)="",IFERROR(RRE!$O$28,0)>0),"◄","") ->  | AV54: BIS30ML | AW54: BISNAGA COM 30 mL
AV55: BIS40G | AW55: BISNAGA COM 40 g
AV56: BIS43G | AW56: BISNAGA COM 43 g
B57: D. ACOMPANHAMENTO CAIXA | AV57: BIS45G | AW57: BISNAGA COM 45 g
AV58: BIS47G | AW58: BISNAGA COM 47 g
B59: Responsável Gerencial | AV59: BIS4G | AW59: BISNAGA COM 4 g
B60: Nome: | AV60: BIS50G | AW60: BISNAGA COM 50 g
B61: Função: | AV61: BIS55G | AW61: BISNAGA COM 55 g
AV62: BIS56G | AW62: BISNAGA COM 56 g
AV63: BIS5G | AW63: BISNAGA COM 5 g
AV64: BIS60G | AW64: BISNAGA COM 60 g
AV65: BIS6G | AW65: BISNAGA COM 6 g
AV66: BIS7/5G | AW66: BISNAGA COM 7,5 g
AV67: BIS70G | AW67: BISNAGA COM 70 g
AV68: BIS80G | AW68: BISNAGA COM 80 g
AV69: BIS90G | AW69: BISNAGA COM 90 g
AV70: BIT | AW70: BITS
AV71: BL | AW71: BLOCO
AV72: BLIS | AW72: BLISTER
AV73: BLIS21CP | AW73: BLISTER COM 21 COMPRIMIDOS
AV74: BLIS35CP | AW74: BLISTER COM 35 COMPRIMIDOS
AV75: BOB | AW75: BOBINA
AV76: BOL | AW76: BOLSA
AV77: BOM | AW77: BOMBONA
AV78: BPM | AW78: BATIDA POR MINUTO
AV79: BPS | AW79: BYTE POR SEGUNDO
AV80: BR | AW80: BARRA
AV81: BRI | AW81: BARRICA
AV82: BTJ | AW82: BOTIJÃO
AV83: BTU | AW83: BRITISH THERMAL UNIT
AV84: BTU/H | AW84: BTU POR HORA
AV85: BWG | AW85: FIEIRA DE BIRMINGHAN
AV86: C | AW86: CENTENA
AV87: CA | AW87: CARTUCHO
AV88: CAD | AW88: CADERNO
AV89: CAL/G | AW89: CALORIA/GRAMA
AV90: CAPS | AW90: CÁPSULA
AV91: CAR | AW91: CARACTER
AV92: CC | AW92: CILINDRADA
AV93: CD | AW93: CANDELA
AV94: CD/M2 | AW94: CANDELA/METRO 2
AV95: CENTO | AW95: CENTO
AV96: CG | AW96: CENTIGRAMA
AV97: CH | AW97: CHAPA
AV98: CHI | AW98: CHI
AV99: CHP | AW99: CHP
AV100: CHP | AW100: CHP
AV101: CI | AW101: CURIE
AV102: CIL | AW102: CILINDRO
AV103: CIN | AW103: CINQUENTA
AV104: CJ | AW104: CONJUNTO
AV105: CL | AW105: CENTILITRO
AV106: CM | AW106: CENTÍMETRO
AV107: CM/POL | AW107: CENTÍMETRO/POLEGADA
AV108: CM2 | AW108: CENTIMETRO QUADRADO
AV109: CM2/H | AW109: CENT.QUAD/HORA
AV110: CM2/M | AW110: CENT.QUADRADO/METRO
AV111: CM3 | AW111: CENTÍMETRO CÚBICO
AV112: CM³/H | AW112: CENT.CÚBICO POR HORA
AV113: CM³/MIN | AW113: CM³/MINUTO
AV114: CNT | AW114: RECIPIENTE
AV115: CO | AW115: CONTEINER
AV116: COL | AW116: COLEÇÃO
AV117: COMP | AW117: COMPRIMENTO
AV118: COMPR | AW118: COMPRIMIDO
AV119: CÓPIA | AW119: CÓPIA
AV120: COPO | AW120: COPO
AV121: CP | AW121: CENTIPOISE
AV122: CPL | AW122: CARACTERES POR LINHA
AV123: CPM | AW123: CÓPIA POR MINUTO
AV124: CPS | AW124: CARACTER POR SEGUNDO
AV125: CRT | AW125: CARRETEL
AV126: CS | AW126: GRADEADO DE JAULA
AV127: CST | AW127: CENTISTOCKS
AV128: CT | AW128: CARTAO
AV129: CTE | AW129: CARTELA
AV130: CV | AW130: CAVALO VAPOR
AV131: CX | AW131: CAIXA
AV132: CX100UN | AW132: CAIXA COM 100 UNIDADES
AV133: CX40UN | AW133: CAIXA COM 40 UNIDADES
AV134: D | AW134: DIA
AV135: DAG | AW135: DECAGRAMA
AV136: DAL | AW136: DECALITRO
AV137: DAM | AW137: DECAMETRO
AV138: DAN | AW138: DECANEWTON
AV139: DB | AW139: DECIBEL
AV140: DBM | AW140: DECIBEL MILIWATT
AV141: DG | AW141: DECIGRAMA
AV142: DGT | AW142: DÍGITO
AV143: DIA | AW143: DIA
AV144: DIAS | AW144: DIAS
AV145: DISCO | AW145: DISCO
AV146: DL | AW146: DECALITRO
AV147: DM | AW147: DECIMETRO
AV148: DM2 | AW148: DECIMETRO QUADRADO
AV149: DM3 | AW149: DECIMETRO CUBICO
AV150: DM3 | AW150: DECIMETRO CUBICO
AV151: DOSES | AW151: DOSES
AV152: DPI | AW152: PONTOS DE DEFINIÇÃO
AV153: DPT | AW153: DIOPTRIA
AV154: DRAG | AW154: DRÁGEA
AV155: DZ | AW155: DUZIA
AV156: EMB | AW156: EMBALAGEM
AV157: EMB/H | AW157: EMBALAGEM POR HORA
AV158: EMP | AW158: EMPLASTRO
AV159: ENV | AW159: ENVELOPE
AV160: ENV27/9G | AW160: ENVELOPE COM 27,9 g
AV161: ENV30G | AW161: ENVELOPE COM 30 g
AV162: EQP | AW162: EQUIPAMENTO
AV163: EST | AW163: ESTUDANTE
AV164: EV | AW164: ELÉTRON-VOLT
AV165: F | AW165: FARAD
AV166: FCK | AW166: FCK
AV167: FD | AW167: FARDO
AV168: FL | AW168: FOLHA
AV169: FLAC | AW169: FLACONETE
AV170: FLS/H | AW170: FOLHAS POR HORA
AV171: FPM | AW171: FLASH POR MINUTO
AV172: FPS | AW172: FOTOS P/SEGUNDO
AV173: FR | AW173: FRASCO
AV174: FR1000ML | AW174: FRASCO COM 1000 mL
AV175: FR100DS | AW175: FRASCO COM 100 DOSES
AV176: FR100ML | AW176: FRASCO COM 100 mL
AV177: FR105ML | AW177: FRASCO COM 105 mL
AV178: FR10ML | AW178: FRASCO COM 10 mL
AV179: FR110ML | AW179: FRASCO COM 110 mL
AV180: FR1200MG | AW180: FRASCO COM 1200 MG
AV181: FR120DS | AW181: FRASCO COM 120 DOSES
AV182: FR120ML | AW182: FRASCO COM 120 mL
AV183: FR125ML | AW183: FRASCO COM 125 mL
AV184: FR130DS | AW184: FRASCO COM 130 DOSES
AV185: FR1500MG | AW185: FRASCO COM 1500 MG
AV186: FR150DS | AW186: FRASCO COM 150 DOSES
AV187: FR150ML | AW187: FRASCO COM 150 mL
AV188: FR15ML | AW188: FRASCO COM 15 mL
AV189: FR160ML | AW189: FRASCO COM 160 mL
AV190: FR200DS | AW190: FRASCO COM 200 DOSES
AV191: FR200ML | AW191: FRASCO COM 200 mL
AV192: FR20ML | AW192: FRASCO COM 20 mL
AV193: FR240ML | AW193: FRASCO COM 240 mL
AV194: FR250ML | AW194: FRASCO COM 250 mL
AV195: FR300DS | AW195: FRASCO COM 300 DOSES
AV196: FR300ML | AW196: FRASCO COM 300 mL
AV197: FR30DS | AW197: FRASCO COM 30 DOSES
AV198: FR30G | AW198: FRASCO COM 30 g
AV199: FR30ML | AW199: FRASCO COM 30 mL
AV200: FR340ML | AW200: FRASCO COM 340 mL
... 20 more rows

Sheet BDI
E1: MIN | F1: MED | G1: MAX | O1: ="Quadro de Composição do BDI" -> Quadro de Composição do BDI | R1: Grau de Sigilo
A2: Construção e Reforma de Edifícios | B2: AC | C2: =CONCATENATE(A2,"-",B2) -> Construção e Reforma de Edifícios-AC | E2: 0.03 | F2: 0.04 | G2: 0.055 | R2: #PUBLICO
A3: =A2 -> Construção e Reforma de Edifícios | B3: SG | C3: Construção e Reforma de Edifícios-SG | E3: 0.008 | F3: 0.008 | G3: 0.01
A4: =A3 -> Construção e Reforma de Edifícios | B4: R | C4: Construção e Reforma de Edifícios-R | E4: 0.0097 | F4: 0.0127 | G4: 0.0127 | J4: Nº OPERAÇÃO | L4: Nº TRANSFEREGOV | N4: PROPONENTE / TOMADOR
A5: =A4 -> Construção e Reforma de Edifícios | B5: DF | C5: Construção e Reforma de Edifícios-DF | E5: 0.0059 | F5: 0.0123 | G5: 0.0139 | J5: =Import.CR -> 1100656-87 | L5: =Import.TransfereGOV -> 9744498 | N5: =Import.Proponente -> Prefeitura de Itatinga
A6: =A5 -> Construção e Reforma de Edifícios | B6: L | C6: Construção e Reforma de Edifícios-L | E6: 0.0616 | F6: 0.074 | G6: 0.0896 | I6: FILTRO
A7: =A6 -> Construção e Reforma de Edifícios | B7: BDI PAD | C7: Construção e Reforma de Edifícios-BDI PAD | E7: 0.2034 | F7: 0.2212 | G7: 0.25 | J7: APELIDO DO EMPREENDIMENTO / DESCRIÇÃO DO LOTE | U7: =IF(OR(U10<>"",U11<>""),"Falta preencher os percentuais do ISS",IF(U14<>"","Falta preencher o BDI 1",IF(U54<>"","Falta preencher o BDI 2",IF(U94<>"","Falta preencher o BDI 3","")))) -> 
A8: Construção de Praças Urbanas, Rodovias, Ferrovias e recapeamento e pavimentação de vias urbanas | B8: AC | C8: Construção de Praças Urbanas, Rodovias, Ferrovias e recapeamento e pavimentação de vias urbanas-AC | E8: 0.038 | F8: 0.0401 | G8: 0.0467 | J8: =Import.Apelido&" / "&Import.DescLote -> Construção de unidades habitacionais no programa MCMV FNHIS sub 50. / Construção de unidades habitacionais | U8: =IF(U29="FORA DO INTERVALO","BDI 1 fora do intervalo",IF(U69="FORA DO INTERVALO","BDI 2 fora do intervalo",IF(U109="FORA DO INTERVALO","BDI 3 fora do intervalo",""))) -> 
A9: Construção de Praças Urbanas, Rodovias, Ferrovias e recapeamento e pavimentação de vias urbanas | B9: SG | C9: Construção de Praças Urbanas, Rodovias, Ferrovias e recapeamento e pavimentação de vias urbanas-SG | E9: 0.0032 | F9: 0.004 | G9: 0.0074
A10: Construção de Praças Urbanas, Rodovias, Ferrovias e recapeamento e pavimentação de vias urbanas | B10: R | C10: Construção de Praças Urbanas, Rodovias, Ferrovias e recapeamento e pavimentação de vias urbanas-R | E10: 0.005 | F10: 0.0056 | G10: 0.0097 | J10: Conforme legislação tributária municipal, definir estimativa de percentual da base de cálculo para o ISS: | R10: 1 | U10: =IF(R10="","Falta definir a base de cálculo para o ISS","") -> 
A11: Construção de Praças Urbanas, Rodovias, Ferrovias e recapeamento e pavimentação de vias urbanas | B11: DF | C11: Construção de Praças Urbanas, Rodovias, Ferrovias e recapeamento e pavimentação de vias urbanas-DF | E11: 0.0102 | F11: 0.0111 | G11: 0.0121 | I11: ↓ | J11: Sobre a base de cálculo, definir a respectiva alíquota do ISS (entre 2% e 5%): | R11: 0.05 | U11: =IF(R11="","Falta definir a alíquota do ISS","") -> 
A12: Construção de Praças Urbanas, Rodovias, Ferrovias e recapeamento e pavimentação de vias urbanas | B12: L | C12: Construção de Praças Urbanas, Rodovias, Ferrovias e recapeamento e pavimentação de vias urbanas-L | E12: 0.0664 | F12: 0.073 | G12: 0.0869 | I12: F
A13: Construção de Praças Urbanas, Rodovias, Ferrovias e recapeamento e pavimentação de vias urbanas | B13: BDI PAD | C13: Construção de Praças Urbanas, Rodovias, Ferrovias e recapeamento e pavimentação de vias urbanas-BDI PAD | E13: 0.196 | F13: 0.2097 | G13: 0.2423 | I13: F
A14: Construção de Redes de Abastecimento de Água, Coleta de Esgoto | B14: AC | C14: Construção de Redes de Abastecimento de Água, Coleta de Esgoto-AC | E14: 0.0343 | F14: 0.0493 | G14: 0.0671 | I14: F | J14: BDI 1 | U14: =IF(COUNTIF(ORÇAMENTO!$V$15:$V$37,BDI_1.Título)=0,"",IF(OR(Import.BDI.Tipo1="(SELECIONAR)",Import.BDI.Tipo1="",U17<>"",AND($J17<>$A$145,OR(S21="",S22="",AND($J17<>$A$146,OR(S23="",S24="")),S25="",S26=""))),"Falta preencher o BDI 1","")) -> 
A15: =A14 -> Construção de Redes de Abastecimento de Água, Coleta de Esgoto | B15: SG | C15: Construção de Redes de Abastecimento de Água, Coleta de Esgoto-SG | E15: 0.0028 | F15: 0.0049 | G15: 0.0075 | I15: F
A16: =A15 -> Construção de Redes de Abastecimento de Água, Coleta de Esgoto | B16: R | C16: Construção de Redes de Abastecimento de Água, Coleta de Esgoto-R | E16: 0.01 | F16: 0.0139 | G16: 0.0174 | I16: F | J16: TIPO DE OBRA
A17: =A16 -> Construção de Redes de Abastecimento de Água, Coleta de Esgoto | B17: DF | C17: Construção de Redes de Abastecimento de Água, Coleta de Esgoto-DF | E17: 0.0094 | F17: 0.0099 | G17: 0.0117 | I17: F | J17: Construção e Reforma de Edifícios | T17: =IF(U17="","","◄") ->  | U17: =IF(AND(OR(S29>0,COUNTIF(ORÇAMENTO!$V$15:$V$37,BDI_1.Título)>0),OR(Import.BDI.Tipo1="(SELECIONAR)",Import.BDI.Tipo1="")),"Selecione o Tipo de obra","") -> 
A18: =A17 -> Construção de Redes de Abastecimento de Água, Coleta de Esgoto | B18: L | C18: Construção de Redes de Abastecimento de Água, Coleta de Esgoto-L | E18: 0.0674 | F18: 0.0804 | G18: 0.094 | I18: F
A19: =A18 -> Construção de Redes de Abastecimento de Água, Coleta de Esgoto | B19: BDI PAD | C19: Construção de Redes de Abastecimento de Água, Coleta de Esgoto-BDI PAD | E19: 0.2076 | F19: 0.2418 | G19: 0.2644 | I19: F | J19: Itens | R19: Siglas | S19: % Adotado | U19: Situação | X19: 1º Quartil | Y19: Médio | Z19: 3º Quartil
A20: Construção e Manutenção de Estações e Redes de Distribuição de Energia Elétrica | B20: AC | C20: Construção e Manutenção de Estações e Redes de Distribuição de Energia Elétrica-AC | E20: 0.0529 | F20: 0.0592 | G20: 0.0793 | I20: F
A21: =A20 -> Construção e Manutenção de Estações e Redes de Distribuição de Energia Elétrica | B21: SG | C21: Construção e Manutenção de Estações e Redes de Distribuição de Energia Elétrica-SG | E21: 0.0025 | F21: 0.0051 | G21: 0.0056 | I21: F | J21: =IF($J$17=$A$146,"Encargos Sociais incidentes sobre a mão de obra","Administração Central") -> Administração Central | R21: =IF($J17=$A$146,"K1","AC") -> AC | S21: 0.03 | T21: =IF(AND($U$14<>"",$U$17="",R21<>"",S21=""),"◄","") ->  | U21: =IFERROR(IF(T21="◄","FALTA PREENCHER",IF(AND(OR(S21>=X21,X21="-"),OR(S21<=Z21,Z21="-")),"OK","FORA DO INTERVALO")),"-") -> OK | X21: =VLOOKUP(CONCATENATE(J17,"-",R21),$C$2:$G$136,3,FALSE) -> 0.03 | Y21: =VLOOKUP(CONCATENATE(J17,"-",R21),$C$2:$G$136,4,FALSE) -> 0.04 | Z21: =VLOOKUP(CONCATENATE(J17,"-",R21),$C$2:$G$136,5,FALSE) -> 0.055
A22: =A21 -> Construção e Manutenção de Estações e Redes de Distribuição de Energia Elétrica | B22: R | C22: Construção e Manutenção de Estações e Redes de Distribuição de Energia Elétrica-R | E22: 0.01 | F22: 0.0148 | G22: 0.0197 | I22: F | J22: =IF($J$17=$A$146,"Administração Central da empresa ou consultoria - overhead","Seguro e Garantia") -> Seguro e Garantia | R22: =IF($J17=$A$146,"K2","SG") -> SG | S22: 0.008 | T22: =IF(AND($U$14<>"",$U$17="",R22<>"",S22=""),"◄","") ->  | U22: =IFERROR(IF(T22="◄","FALTA PREENCHER",IF(AND(OR(S22>=X22,X22="-"),OR(S22<=Z22,Z22="-")),"OK","FORA DO INTERVALO")),"-") -> OK | X22: =VLOOKUP(CONCATENATE(J17,"-",R22),$C$2:$G$136,3,FALSE) -> 0.008 | Y22: =VLOOKUP(CONCATENATE(J17,"-",R22),$C$2:$G$136,4,FALSE) -> 0.008 | Z22: =VLOOKUP(CONCATENATE(J17,"-",R22),$C$2:$G$136,5,FALSE) -> 0.01
A23: =A22 -> Construção e Manutenção de Estações e Redes de Distribuição de Energia Elétrica | B23: DF | C23: Construção e Manutenção de Estações e Redes de Distribuição de Energia Elétrica-DF | E23: 0.0101 | F23: 0.0107 | G23: 0.0111 | I23: F | J23: Risco | R23: =IF($J17=$A$146,"","R") -> R | S23: 0.0097 | U23: OK | X23: =VLOOKUP(CONCATENATE(J17,"-",R23),$C$2:$G$136,3,FALSE) -> 0.0097 | Y23: =VLOOKUP(CONCATENATE(J17,"-",R23),$C$2:$G$136,4,FALSE) -> 0.0127 | Z23: =VLOOKUP(CONCATENATE(J17,"-",R23),$C$2:$G$136,5,FALSE) -> 0.0127
A24: =A23 -> Construção e Manutenção de Estações e Redes de Distribuição de Energia Elétrica | B24: L | C24: Construção e Manutenção de Estações e Redes de Distribuição de Energia Elétrica-L | E24: 0.08 | F24: 0.0831 | G24: 0.0951 | I24: F | J24: Despesas Financeiras | R24: =IF($J17=$A$146,"","DF") -> DF | S24: 0.0059 | U24: OK | X24: =VLOOKUP(CONCATENATE(J17,"-",R24),$C$2:$G$136,3,FALSE) -> 0.0059 | Y24: =VLOOKUP(CONCATENATE(J17,"-",R24),$C$2:$G$136,4,FALSE) -> 0.0123 | Z24: =VLOOKUP(CONCATENATE(J17,"-",R24),$C$2:$G$136,5,FALSE) -> 0.0139
A25: =A24 -> Construção e Manutenção de Estações e Redes de Distribuição de Energia Elétrica | B25: BDI PAD | C25: Construção e Manutenção de Estações e Redes de Distribuição de Energia Elétrica-BDI PAD | E25: 0.24 | F25: 0.2584 | G25: 0.2786 | I25: F | J25: =IF($J$17=$A$146,"Margem bruta da empresa de consultoria","Lucro") -> Lucro | R25: =IF($J17=$A$146,"K3","L") -> L | S25: 0.0616 | U25: OK | X25: =VLOOKUP(CONCATENATE(J17,"-",R25),$C$2:$G$136,3,FALSE) -> 0.0616 | Y25: =VLOOKUP(CONCATENATE(J17,"-",R25),$C$2:$G$136,4,FALSE) -> 0.074 | Z25: =VLOOKUP(CONCATENATE(J17,"-",R25),$C$2:$G$136,5,FALSE) -> 0.0896
A26: Obras Portuárias, Marítimas e Fluviais | B26: AC | C26: Obras Portuárias, Marítimas e Fluviais-AC | E26: 0.04 | F26: 0.0552 | G26: 0.0785 | I26: F | J26: Tributos (impostos COFINS 3%, e PIS 0,65%) | R26: CP | S26: 0.0365 | U26: OK | X26: =Y26 -> 0.0365 | Y26: =IF($J17=$A$145,"-",3.65%) -> 0.0365 | Z26: =Y26 -> 0.0365
A27: =A26 -> Obras Portuárias, Marítimas e Fluviais | B27: SG | C27: Obras Portuárias, Marítimas e Fluviais-SG | E27: 0.0081 | F27: 0.0122 | G27: 0.0199 | I27: F | J27: Tributos (ISS, variável de acordo com o município) | R27: ISS | S27: =IF(AND($J17<>$A$145,COUNTA(OFFSET(S20,1,0,6))>0),$R$11*$R$10,0) -> 0.05 | U27: OK | X27: 0 | Y27: 0.025 | Z27: 0.05
A28: =A27 -> Obras Portuárias, Marítimas e Fluviais | B28: R | C28: Obras Portuárias, Marítimas e Fluviais-R | E28: 0.0146 | F28: 0.0232 | G28: 0.0316 | I28: F | J28: Tributos (Contribuição Previdenciária sobre a Receita Bruta - Lei 12.546 de 14/12/2011 - Desoneração) | R28: CPRB | S28: =IF(BDI.Opcao<>"Desonerado",0,IF(AND($J17<>$A$145,COUNTA(OFFSET(S20,1,0,6))>0),IF(YEAR(Import.DataBase)<2025,4.5%,IF(YEAR(Import.DataBase)=2025,3.6%,IF(YEAR(Import.DataBase)=2026,2.7%,IF(YEAR(Import.DataBase)=2027,1.8%,0%)))),0%)) -> 0.036 | U28: OK | X28: =$S28 -> 0.036 | Y28: =$S28 -> 0.036 | Z28: =$S28 -> 0.036
A29: =A28 -> Obras Portuárias, Marítimas e Fluviais | B29: DF | C29: Obras Portuárias, Marítimas e Fluviais-DF | E29: 0.0094 | F29: 0.0102 | G29: 0.0133 | I29: F | J29: BDI SEM desoneração (Fórmula Acórdão TCU) | R29: BDI PAD | S29: =IF($J17=$A$145,0,ROUND((((1+S21+S22+S23)*(1+S24)*(1+S25)/(1-(S26+S27)))-1),4)) -> 0.2247 | U29: =IFERROR(IF(AND(OR(S29>=X29,X29="-"),OR(S29<=Z29,Z29="-")),"OK","FORA DO INTERVALO"),IF(S29=0,"OK","Selecione o Tipo de obra")) -> OK | X29: =IF($J17=$A$145,0,VLOOKUP(CONCATENATE($J17,"-",$R29),$C$2:$G$136,3,FALSE)) -> 0.2034 | Y29: =IF($J17=$A$145,0,VLOOKUP(CONCATENATE($J17,"-",$R29),$C$2:$G$136,4,FALSE)) -> 0.2212 | Z29: =IF($J17=$A$145,0,VLOOKUP(CONCATENATE($J17,"-",$R29),$C$2:$G$136,5,FALSE)) -> 0.25
A30: =A29 -> Obras Portuárias, Marítimas e Fluviais | B30: L | C30: Obras Portuárias, Marítimas e Fluviais-L | E30: 0.0714 | F30: 0.084 | G30: 0.1043 | I30: F | J30: BDI COM desoneração | R30: BDI DES | S30: =IF($J17=$A$145,0,ROUND((((1+S21+S22+S23)*(1+S24)*(1+S25)/(1-(S26+S27+S28)))-1),4)) -> 0.275
A31: =A30 -> Obras Portuárias, Marítimas e Fluviais | B31: BDI PAD | C31: Obras Portuárias, Marítimas e Fluviais-BDI PAD | E31: 0.228 | F31: 0.2748 | G31: 0.3095 | I31: F
A32: Fornecimento de Materiais e Equipamentos (aquisição indireta - em conjunto com licitação de obras) | B32: AC | C32: Fornecimento de Materiais e Equipamentos (aquisição indireta - em conjunto com licitação de obras)-AC | E32: 0.015 | F32: 0.0345 | G32: 0.0449 | I32: F | J32: =IF(U29<>"ok","X","") ->  | K32: =IF(U29<>"ok","Anexo: Relatório Técnico Circunstanciado justificando a adoção do percentual de cada parcela do BDI.","") -> 
A33: =A32 -> Fornecimento de Materiais e Equipamentos (aquisição indireta - em conjunto com licitação de obras) | B33: SG | C33: Fornecimento de Materiais e Equipamentos (aquisição indireta - em conjunto com licitação de obras)-SG | E33: 0.003 | F33: 0.0048 | G33: 0.0082 | I33: F
A34: =A33 -> Fornecimento de Materiais e Equipamentos (aquisição indireta - em conjunto com licitação de obras) | B34: R | C34: Fornecimento de Materiais e Equipamentos (aquisição indireta - em conjunto com licitação de obras)-R | E34: 0.0056 | F34: 0.0085 | G34: 0.0089 | I34: F | J34: Os valores de BDI foram calculados com o emprego da fórmula:
A35: =A34 -> Fornecimento de Materiais e Equipamentos (aquisição indireta - em conjunto com licitação de obras) | B35: DF | C35: Fornecimento de Materiais e Equipamentos (aquisição indireta - em conjunto com licitação de obras)-DF | E35: 0.0085 | F35: 0.0085 | G35: 0.0111 | I35: F | M35: BDI = | N35: =IF($J17=$A$146,"(1+K1+K2)*(1+K3)","(1+AC + S + R + G)*(1 + DF)*(1+L)") -> (1+AC + S + R + G)*(1 + DF)*(1+L) | Q35: - 1
A36: =A35 -> Fornecimento de Materiais e Equipamentos (aquisição indireta - em conjunto com licitação de obras) | B36: L | C36: Fornecimento de Materiais e Equipamentos (aquisição indireta - em conjunto com licitação de obras)-L | E36: 0.035 | F36: 0.0511 | G36: 0.0622 | I36: F | N36: (1-CP-ISS-CRPB)
A37: =A36 -> Fornecimento de Materiais e Equipamentos (aquisição indireta - em conjunto com licitação de obras) | B37: BDI PAD | C37: Fornecimento de Materiais e Equipamentos (aquisição indireta - em conjunto com licitação de obras)-BDI PAD | E37: 0.111 | F37: 0.1402 | G37: 0.168 | I37: F
A38: Fornecimento de Materiais e Equipamentos (aquisição direta) | B38: AC | C38: Fornecimento de Materiais e Equipamentos (aquisição direta)-AC | E38: - | F38: - | G38: - | I38: F | J38: =CONCATENATE("Declaro para os devidos fins que, conforme legislação tributária municipal, a base de cálculo deste tipo de obra corresponde à ",$R$10*100,"%, com a respectiva alíquota de ",$R$11*100,"%.") -> Declaro para os devidos fins que, conforme legislação tributária municipal, a base de cálculo deste tipo de obra corresponde à 100%, com a respectiva alíquota de 5%.
A39: Fornecimento de Materiais e Equipamentos (aquisição direta) | B39: SG | C39: Fornecimento de Materiais e Equipamentos (aquisição direta)-SG | E39: - | F39: - | G39: - | I39: F
A40: Fornecimento de Materiais e Equipamentos (aquisição direta) | B40: R | C40: Fornecimento de Materiais e Equipamentos (aquisição direta)-R | E40: - | F40: - | G40: - | I40: F | J40: =CONCATENATE("Declaro para os devidos fins que o regime de Contribuição Previdenciária sobre a Receita Bruta adotado para elaboração do orçamento foi ",IF(DESONERACAO="Sim","COM","SEM")," Desoneração, e que esta é a alternativa mais adequada para a Administração Pública.") -> Declaro para os devidos fins que o regime de Contribuição Previdenciária sobre a Receita Bruta adotado para elaboração do orçamento foi COM Desoneração, e que esta é a alternativa mais adequada para a Administração Pública.
A41: Fornecimento de Materiais e Equipamentos (aquisição direta) | B41: DF | C41: Fornecimento de Materiais e Equipamentos (aquisição direta)-DF | E41: - | F41: - | G41: - | I41: F
A42: Fornecimento de Materiais e Equipamentos (aquisição direta) | B42: L | C42: Fornecimento de Materiais e Equipamentos (aquisição direta)-L | E42: - | F42: - | G42: - | I42: F | J42: Observações:
A43: Fornecimento de Materiais e Equipamentos (aquisição direta) | B43: BDI PAD | C43: Fornecimento de Materiais e Equipamentos (aquisição direta)-BDI PAD | E43: - | F43: - | G43: - | I43: F
A44: Estudos e Projetos, Planos e Gerenciamento e outros correlatos | B44: K1 | C44: Estudos e Projetos, Planos e Gerenciamento e outros correlatos-K1 | E44: - | F44: - | G44: - | I44: F
A45: =A44 -> Estudos e Projetos, Planos e Gerenciamento e outros correlatos | B45: K2 | C45: Estudos e Projetos, Planos e Gerenciamento e outros correlatos-K2 | E45: - | F45: 0.2 | G45: - | I45: F | J45: =Import.Município -> Itatinga/SP | P45: =DADOS!$C$25 -> 2025-11-07
A46: =A45 -> Estudos e Projetos, Planos e Gerenciamento e outros correlatos | C46: Estudos e Projetos, Planos e Gerenciamento e outros correlatos- | E46: - | F46: - | G46: - | I46: F | J46: Local | P46: Data
A47: =A46 -> Estudos e Projetos, Planos e Gerenciamento e outros correlatos | C47: Estudos e Projetos, Planos e Gerenciamento e outros correlatos- | E47: - | F47: - | G47: - | I47: F
A48: =A47 -> Estudos e Projetos, Planos e Gerenciamento e outros correlatos | B48: K3 | C48: Estudos e Projetos, Planos e Gerenciamento e outros correlatos-K3 | E48: - | F48: 0.12 | G48: - | I48: F
A49: =A48 -> Estudos e Projetos, Planos e Gerenciamento e outros correlatos | B49: BDI PAD | C49: Estudos e Projetos, Planos e Gerenciamento e outros correlatos-BDI PAD | E49: - | F49: - | G49: - | I49: F | J49: Responsável Técnico
I50: F | J50: Nome: | K50: =Import.RespOrçamento -> Bianca Oliveira da Silva
I51: F | J51: CREA/CAU: | K51: 5070438158-SP
I52: F | J52: ART/RRT: | K52: 2620251184146
I53: F
I54: =IF($S$69=0,"","F") ->  | J54: BDI 2 | U54: =IF(COUNTIF(ORÇAMENTO!$V$15:$V$37,BDI_2.Título)=0,"",IF(OR(Import.BDI.Tipo2="(SELECIONAR)",Import.BDI.Tipo2="",U57<>"",AND($J57<>$A$145,OR(S61="",S62="",AND($J57<>$A$146,OR(S63="",S64="")),S65="",S66=""))),"Falta preencher o BDI 2","")) -> 
I55: =IF($S$69=0,"","F") -> 
J56: TIPO DE OBRA
J57: (SELECIONAR) | T57: =IF(U57="","","◄") ->  | U57: =IF(AND(OR(S69>0,COUNTIF(ORÇAMENTO!$V$15:$V$37,BDI_2.Título)>0),OR(Import.BDI.Tipo2="(SELECIONAR)",Import.BDI.Tipo2="")),"Selecione o Tipo de obra","") -> 
J59: Itens | R59: Siglas | S59: % Adotado | U59: Situação | X59: 1º Quartil | Y59: Médio | Z59: 3º Quartil
J61: =IF($J$17=$A$146,"Encargos Sociais incidentes sobre a mão de obra","Administração Central") -> Administração Central | R61: =IF($J57=$A$146,"K1","AC") -> AC | T61: =IF(AND($U$54<>"",$U$57="",R61<>"",S61=""),"◄","") ->  | U61: =IFERROR(IF(T61="◄","FALTA PREENCHER",IF(AND(OR(S61>=X61,X61="-"),OR(S61<=Z61,Z61="-")),"OK","FORA DO INTERVALO")),"-") -> - | X61: =VLOOKUP(CONCATENATE(J57,"-",R61),$C$2:$G$136,3,FALSE) ->  | Y61: =VLOOKUP(CONCATENATE(J57,"-",R61),$C$2:$G$136,4,FALSE) ->  | Z61: =VLOOKUP(CONCATENATE(J57,"-",R61),$C$2:$G$136,5,FALSE) -> 
J62: =IF($J$17=$A$146,"Administração Central da empresa ou consultoria - overhead","Seguro e Garantia") -> Seguro e Garantia | R62: =IF($J57=$A$146,"K2","SG") -> SG | T62: =IF(AND($U$54<>"",$U$57="",R62<>"",S62=""),"◄","") ->  | U62: =IFERROR(IF(T62="◄","FALTA PREENCHER",IF(AND(OR(S62>=X62,X62="-"),OR(S62<=Z62,Z62="-")),"OK","FORA DO INTERVALO")),"-") -> - | X62: =VLOOKUP(CONCATENATE(J57,"-",R62),$C$2:$G$136,3,FALSE) ->  | Y62: =VLOOKUP(CONCATENATE(J57,"-",R62),$C$2:$G$136,4,FALSE) ->  | Z62: =VLOOKUP(CONCATENATE(J57,"-",R62),$C$2:$G$136,5,FALSE) -> 
J63: Risco | R63: =IF($J57=$A$146,"","R") -> R | U63: - | X63: =VLOOKUP(CONCATENATE(J57,"-",R63),$C$2:$G$136,3,FALSE) ->  | Y63: =VLOOKUP(CONCATENATE(J57,"-",R63),$C$2:$G$136,4,FALSE) ->  | Z63: =VLOOKUP(CONCATENATE(J57,"-",R63),$C$2:$G$136,5,FALSE) -> 
J64: Despesas Financeiras | R64: =IF($J57=$A$146,"","DF") -> DF | U64: - | X64: =VLOOKUP(CONCATENATE(J57,"-",R64),$C$2:$G$136,3,FALSE) ->  | Y64: =VLOOKUP(CONCATENATE(J57,"-",R64),$C$2:$G$136,4,FALSE) ->  | Z64: =VLOOKUP(CONCATENATE(J57,"-",R64),$C$2:$G$136,5,FALSE) -> 
J65: =IF($J$17=$A$146,"Margem bruta da empresa de consultoria","Lucro") -> Lucro | R65: =IF($J57=$A$146,"K3","L") -> L | U65: - | X65: =VLOOKUP(CONCATENATE(J57,"-",R65),$C$2:$G$136,3,FALSE) ->  | Y65: =VLOOKUP(CONCATENATE(J57,"-",R65),$C$2:$G$136,4,FALSE) ->  | Z65: =VLOOKUP(CONCATENATE(J57,"-",R65),$C$2:$G$136,5,FALSE) -> 
J66: Tributos (impostos COFINS 3%, e PIS 0,65%) | R66: CP | U66: FORA DO INTERVALO | X66: =Y66 -> 0.0365 | Y66: =IF($J57=$A$145,"-",3.65%) -> 0.0365 | Z66: =Y66 -> 0.0365
J67: Tributos (ISS, variável de acordo com o município) | R67: ISS | S67: =IF(AND($J57<>$A$145,COUNTA(OFFSET(S60,1,0,6))>0),$R$11*$R$10,0) -> 0 | U67: OK | X67: 0 | Y67: 0.025 | Z67: 0.05
J68: Tributos (Contribuição Previdenciária sobre a Receita Bruta - Lei 12.546 de 14/12/2011 - Desoneração) | R68: CPRB | S68: =IF(BDI.Opcao<>"Desonerado",0,IF(AND($J57<>$A$145,COUNTA(OFFSET(S60,1,0,6))>0),IF(YEAR(Import.DataBase)<2025,4.5%,IF(YEAR(Import.DataBase)=2025,3.6%,IF(YEAR(Import.DataBase)=2026,2.7%,IF(YEAR(Import.DataBase)=2027,1.8%,0%)))),0%)) -> 0 | U68: OK | X68: =$S68 -> 0 | Y68: =$S68 -> 0 | Z68: =$S68 -> 0
J69: BDI SEM desoneração (Fórmula Acórdão TCU) | R69: BDI PAD | S69: =IF($J57=$A$145,0,ROUND((((1+S61+S62+S63)*(1+S64)*(1+S65)/(1-(S66+S67)))-1),4)) -> 0 | U69: =IFERROR(IF(AND(OR(S69>=X69,X69="-"),OR(S69<=Z69,Z69="-")),"OK","FORA DO INTERVALO"),IF(S69=0,"OK","Selecione o Tipo de obra")) -> OK | X69: =IF($J57=$A$145,0,VLOOKUP(CONCATENATE($J57,"-",$R69),$C$2:$G$136,3,FALSE)) ->  | Y69: =IF($J57=$A$145,0,VLOOKUP(CONCATENATE($J57,"-",$R69),$C$2:$G$136,4,FALSE)) ->  | Z69: =IF($J57=$A$145,0,VLOOKUP(CONCATENATE($J57,"-",$R69),$C$2:$G$136,5,FALSE)) -> 
J70: BDI COM desoneração | R70: BDI DES | S70: =IF($J57=$A$145,0,ROUND((((1+S61+S62+S63)*(1+S64)*(1+S65)/(1-(S66+S67+S68)))-1),4)) -> 0
J72: =IF(U69<>"ok","X","") ->  | K72: =IF(U69<>"ok","Anexo: Relatório Técnico Circunstanciado justificando a adoção do percentual de cada parcela do BDI.","") -> 
J74: Os valores de BDI foram calculados com o emprego da fórmula:
M75: BDI = | N75: =IF($J57=$A$146,"(1+K1+K2)*(1+K3)","(1+AC + S + R + G)*(1 + DF)*(1+L)") -> (1+AC + S + R + G)*(1 + DF)*(1+L) | Q75: - 1
N76: (1-CP-ISS-CRPB)
J78: =CONCATENATE("Declaro para os devidos fins que, conforme legislação tributária municipal, a base de cálculo deste tipo de obra corresponde à ",$R$10*100,"%, com a respectiva alíquota de ",$R$11*100,"%.") -> Declaro para os devidos fins que, conforme legislação tributária municipal, a base de cálculo deste tipo de obra corresponde à 100%, com a respectiva alíquota de 5%.
J80: =CONCATENATE("Declaro para os devidos fins que o regime de Contribuição Previdenciária sobre a Receita Bruta adotado para elaboração do orçamento foi ",IF(DESONERACAO="Sim","COM","SEM")," Desoneração, e que esta é a alternativa mais adequada para a Administração Pública.") -> Declaro para os devidos fins que o regime de Contribuição Previdenciária sobre a Receita Bruta adotado para elaboração do orçamento foi COM Desoneração, e que esta é a alternativa mais adequada para a Administração Pública.
J82: Observações:
J85: =Import.Município -> Itatinga/SP | P85: =DADOS!$C$25 -> 2025-11-07
J86: Local | P86: Data
J89: Responsável Técnico
J90: Nome: | K90: =Import.RespOrçamento -> Bianca Oliveira da Silva
J91: CREA/CAU: | K91: 5070438158-SP
J92: ART/RRT: | K92: 2620251184146
I94: =IF($S$109=0,"","F") ->  | J94: BDI 3 | U94: =IF(COUNTIF(ORÇAMENTO!$V$15:$V$37,BDI_3.Título)=0,"",IF(OR(Import.BDI.Tipo3="(SELECIONAR)",Import.BDI.Tipo3="",U97<>"",AND($J97<>$A$145,OR(S101="",S102="",AND($J97<>$A$146,OR(S103="",S104="")),S105="",S106=""))),"Falta preencher o BDI 3","")) -> 
I95: =IF($S$109=0,"","F") -> 
J96: TIPO DE OBRA
J97: (SELECIONAR) | T97: =IF(U97="","","◄") ->  | U97: =IF(AND(OR(S109>0,COUNTIF(ORÇAMENTO!$V$15:$V$37,BDI_3.Título)>0),OR(Import.BDI.Tipo3="(SELECIONAR)",Import.BDI.Tipo3="")),"Selecione o Tipo de obra","") -> 
J99: Itens | R99: Siglas | S99: % Adotado | U99: Situação | X99: 1º Quartil | Y99: Médio | Z99: 3º Quartil
J101: =IF($J$17=$A$146,"Encargos Sociais incidentes sobre a mão de obra","Administração Central") -> Administração Central | R101: =IF($J97=$A$146,"K1","AC") -> AC | T101: =IF(AND($U$94<>"",$U$97="",R101<>"",S101=""),"◄","") ->  | U101: =IFERROR(IF(T101="◄","FALTA PREENCHER",IF(AND(OR(S101>=X101,X101="-"),OR(S101<=Z101,Z101="-")),"OK","FORA DO INTERVALO")),"-") -> - | X101: =VLOOKUP(CONCATENATE(J97,"-",R101),$C$2:$G$136,3,FALSE) ->  | Y101: =VLOOKUP(CONCATENATE(J97,"-",R101),$C$2:$G$136,4,FALSE) ->  | Z101: =VLOOKUP(CONCATENATE(J97,"-",R101),$C$2:$G$136,5,FALSE) -> 
J102: =IF($J$17=$A$146,"Administração Central da empresa ou consultoria - overhead","Seguro e Garantia") -> Seguro e Garantia | R102: =IF($J97=$A$146,"K2","SG") -> SG | T102: =IF(AND($U$94<>"",$U$97="",R102<>"",S102=""),"◄","") ->  | U102: =IFERROR(IF(T102="◄","FALTA PREENCHER",IF(AND(OR(S102>=X102,X102="-"),OR(S102<=Z102,Z102="-")),"OK","FORA DO INTERVALO")),"-") -> - | X102: =VLOOKUP(CONCATENATE(J97,"-",R102),$C$2:$G$136,3,FALSE) ->  | Y102: =VLOOKUP(CONCATENATE(J97,"-",R102),$C$2:$G$136,4,FALSE) ->  | Z102: =VLOOKUP(CONCATENATE(J97,"-",R102),$C$2:$G$136,5,FALSE) -> 
J103: Risco | R103: =IF($J97=$A$146,"","R") -> R | U103: - | X103: =VLOOKUP(CONCATENATE(J97,"-",R103),$C$2:$G$136,3,FALSE) ->  | Y103: =VLOOKUP(CONCATENATE(J97,"-",R103),$C$2:$G$136,4,FALSE) ->  | Z103: =VLOOKUP(CONCATENATE(J97,"-",R103),$C$2:$G$136,5,FALSE) -> 
J104: Despesas Financeiras | R104: =IF($J97=$A$146,"","DF") -> DF | U104: - | X104: =VLOOKUP(CONCATENATE(J97,"-",R104),$C$2:$G$136,3,FALSE) ->  | Y104: =VLOOKUP(CONCATENATE(J97,"-",R104),$C$2:$G$136,4,FALSE) ->  | Z104: =VLOOKUP(CONCATENATE(J97,"-",R104),$C$2:$G$136,5,FALSE) -> 
J105: =IF($J$17=$A$146,"Margem bruta da empresa de consultoria","Lucro") -> Lucro | R105: =IF($J97=$A$146,"K3","L") -> L | U105: - | X105: =VLOOKUP(CONCATENATE(J97,"-",R105),$C$2:$G$136,3,FALSE) ->  | Y105: =VLOOKUP(CONCATENATE(J97,"-",R105),$C$2:$G$136,4,FALSE) ->  | Z105: =VLOOKUP(CONCATENATE(J97,"-",R105),$C$2:$G$136,5,FALSE) -> 
J106: Tributos (impostos COFINS 3%, e PIS 0,65%) | R106: CP | U106: FORA DO INTERVALO | X106: =Y106 -> 0.0365 | Y106: =IF($J97=$A$145,"-",3.65%) -> 0.0365 | Z106: =Y106 -> 0.0365
J107: Tributos (ISS, variável de acordo com o município) | R107: ISS | S107: =IF(AND($J97<>$A$145,COUNTA(OFFSET(S100,1,0,6))>0),$R$11*$R$10,0) -> 0 | U107: OK | X107: 0 | Y107: 0.025 | Z107: 0.05
J108: Tributos (Contribuição Previdenciária sobre a Receita Bruta - Lei 12.546 de 14/12/2011 - Desoneração) | R108: CPRB | S108: =IF(BDI.Opcao<>"Desonerado",0,IF(AND($J97<>$A$145,COUNTA(OFFSET(S100,1,0,6))>0),IF(YEAR(Import.DataBase)<2025,4.5%,IF(YEAR(Import.DataBase)=2025,3.6%,IF(YEAR(Import.DataBase)=2026,2.7%,IF(YEAR(Import.DataBase)=2027,1.8%,0%)))),0%)) -> 0 | U108: OK | X108: =$S108 -> 0 | Y108: =$S108 -> 0 | Z108: =$S108 -> 0
J109: BDI SEM desoneração (Fórmula Acórdão TCU) | R109: BDI PAD | S109: =IF($J97=$A$145,0,ROUND((((1+S101+S102+S103)*(1+S104)*(1+S105)/(1-(S106+S107)))-1),4)) -> 0 | U109: =IFERROR(IF(AND(OR(S109>=X109,X109="-"),OR(S109<=Z109,Z109="-")),"OK","FORA DO INTERVALO"),IF(S109=0,"OK","Selecione o Tipo de obra")) -> OK | X109: =IF($J97=$A$145,0,VLOOKUP(CONCATENATE($J97,"-",$R109),$C$2:$G$136,3,FALSE)) ->  | Y109: =IF($J97=$A$145,0,VLOOKUP(CONCATENATE($J97,"-",$R109),$C$2:$G$136,4,FALSE)) ->  | Z109: =IF($J97=$A$145,0,VLOOKUP(CONCATENATE($J97,"-",$R109),$C$2:$G$136,5,FALSE)) -> 
J110: BDI COM desoneração | R110: BDI DES | S110: =IF($J97=$A$145,0,ROUND((((1+S101+S102+S103)*(1+S104)*(1+S105)/(1-(S106+S107+S108)))-1),4)) -> 0
J112: =IF(U109<>"ok","X","") ->  | K112: =IF(U109<>"ok","Anexo: Relatório Técnico Circunstanciado justificando a adoção do percentual de cada parcela do BDI.","") -> 
J114: Os valores de BDI foram calculados com o emprego da fórmula:
M115: BDI = | N115: =IF($J97=$A$146,"(1+K1+K2)*(1+K3)","(1+AC + S + R + G)*(1 + DF)*(1+L)") -> (1+AC + S + R + G)*(1 + DF)*(1+L) | Q115: - 1
N116: (1-CP-ISS-CRPB)
J118: =CONCATENATE("Declaro para os devidos fins que, conforme legislação tributária municipal, a base de cálculo deste tipo de obra corresponde à ",$R$10*100,"%, com a respectiva alíquota de ",$R$11*100,"%.") -> Declaro para os devidos fins que, conforme legislação tributária municipal, a base de cálculo deste tipo de obra corresponde à 100%, com a respectiva alíquota de 5%.
J120: =CONCATENATE("Declaro para os devidos fins que o regime de Contribuição Previdenciária sobre a Receita Bruta adotado para elaboração do orçamento foi ",IF(DESONERACAO="Sim","COM","SEM")," Desoneração, e que esta é a alternativa mais adequada para a Administração Pública.") -> Declaro para os devidos fins que o regime de Contribuição Previdenciária sobre a Receita Bruta adotado para elaboração do orçamento foi COM Desoneração, e que esta é a alternativa mais adequada para a Administração Pública.
J122: Observações:
J125: =Import.Município -> Itatinga/SP | P125: =DADOS!$C$25 -> 2025-11-07
J126: Local | P126: Data
J129: Responsável Técnico
J130: Nome: | K130: =Import.RespOrçamento -> Bianca Oliveira da Silva
J131: CREA/CAU: | K131: 5070438158-SP
J132: ART/RRT: | K132: 2620251184146
A138: (SELECIONAR)
A139: Construção e Reforma de Edifícios
A140: Construção de Praças Urbanas, Rodovias, Ferrovias e recapeamento e pavimentação de vias urbanas
A141: Construção de Redes de Abastecimento de Água, Coleta de Esgoto
A142: Construção e Manutenção de Estações e Redes de Distribuição de Energia Elétrica
A143: Obras Portuárias, Marítimas e Fluviais
A144: Fornecimento de Materiais e Equipamentos (aquisição indireta - em conjunto com licitação de obras)
A145: Fornecimento de Materiais e Equipamentos (aquisição direta)
A146: Estudos e Projetos, Planos e Gerenciamento e outros correlatos

Sheet ORÇAMENTO
R1: PO - PLANILHA ORÇAMENTÁRIA | X1: Grau de Sigilo
D2: LOTE | E2: Meta | F2: Nível 2 | G2: Nível 3 | H2: Nível 4 | I2: Serviço | R2: =IF(TIPOORCAMENTO="licitado","Orçamento Licitado","Orçamento Base para Licitação")&" - "&import.recurso -> Orçamento Base para Licitação - OGU | X2: #PUBLICO
E3: SINAPI | F3: SINAPI-I | G3: SICRO | H3: Composição | I3: Cotação
A4: Nmax | F4: BDI 1 | G4: BDI 2 | H4: BDI 3 | I4: 0 | O4: Nº OPERAÇÃO | Q4: Nº TransfereGOV | R4: PROPONENTE / TOMADOR | S4: APELIDO DO EMPREENDIMENTO
A5: =MAX($C$15:$C$37) -> 2 | F5: =IF(BDI.Opcao="DESONERADO",BDI!$S$30,BDI!$S$29) -> 0.275 | G5: =IF(BDI.Opcao="DESONERADO",BDI!$S$70,BDI!$S$69) -> 0 | H5: =IF(BDI.Opcao="DESONERADO",BDI!$S$110,BDI!$S$109) -> 0 | O5: =Import.CR -> 1100656-87 | Q5: =Import.TransfereGOV -> 9744498 | R5: =Import.Proponente -> Prefeitura de Itatinga | S5: =Import.Apelido -> Construção de unidades habitacionais no programa MCMV FNHIS sub 50. | AE5: Arredondamento
F7: RA | G7: RP | H7: CP | I7: OU | O7: LOCALIDADE SINAPI | Q7: DATA BASE | R7: =IF(TIPOORCAMENTO="Licitado","NOME DA EMPRESA","DESCRIÇÃO DO LOTE") -> DESCRIÇÃO DO LOTE | S7: =IF(TIPOORCAMENTO="Licitado","REGIME DE EXECUÇÃO","MUNICÍPIO / UF") -> MUNICÍPIO / UF | V7: =IF(TIPOORCAMENTO="Licitado","","BDI 1") -> BDI 1 | W7: =IF(TIPOORCAMENTO="Licitado","","BDI 2") -> BDI 2 | X7: =IF(TIPOORCAMENTO="Licitado","Nº CTEF","BDI 3") -> BDI 3 | AC7: =IF(COUNTIFS($L$15:$L$37,"F",$AC$15:$AC$37,"JUSTIFICAR BDI")>0,"JUSTIFICAR BDI","") ->  | AE7: Quantidade | AF7: TRUE | AJ7: QUANTIDADES: ACOMP. POR BM | AL7: PREÇO UNITÁRIO LICITADO
E8: Intervalo de procura: | F8: =IF(LEN(INFO("release"))>5,"'Referência "&Excel_BuiltIn_Database&".xlsm'#Banco.$a5:$a$65536","'[Referência "&Excel_BuiltIn_Database&".xlsm]Banco'!$a5:$a$65536") -> '[Referência 06-2025.xlsm]Banco'!$a5:$a$65536 | L8: FILTRO | O8: =IF(ISERROR(INDIRECT($F$9)),"(N/D: 'Referência "&Excel_BuiltIn_Database&".xlsm)",INDIRECT($F$9)) -> (N/D: 'Referência 06-2025.xlsm) | Q8: =TEXT(Import.DataBase,"mm-aa")&IF(DESONERACAO="Sim"," (DES.)"," (N DES.)") -> 06-25 (DES.) | R8: =IF(TIPOORCAMENTO="Licitado",Import.empresa,Import.DescLote) -> Construção de unidades habitacionais | S8: =IF(TIPOORCAMENTO="Licitado",Import.RegimeExecução,Import.Município) -> Itatinga/SP | V8: =IF(TIPOORCAMENTO="Licitado","",TEXT(F5,"0,00%")) -> 27,50% | W8: =IF(TIPOORCAMENTO="Licitado","",TEXT(G5,"0,00%")) -> 0,00% | X8: =IF(TIPOORCAMENTO="Licitado",Import.CTEF,TEXT(H5,"0,00%")) -> 0,00% | Y8: RECURSO | Z8: SGL RECURSO | AE8: Custo Unitáro | AF8: TRUE
E9: Localidade: | F9: =IF(LEN(INFO("release"))>5,"'Referência "&Excel_BuiltIn_Database&".xlsm'#Banco.$d$3","'[Referência "&Excel_BuiltIn_Database&".xlsm]Banco'!$d$3") -> '[Referência 06-2025.xlsm]Banco'!$d$3 | T9: =IF(AND(Import.TipoArredondamento="TransfereGOV",$AF$7=FALSE),"▼","") ->  | U9: =IF(AND(Import.TipoArredondamento="TransfereGOV",$AF$8=FALSE),"▼","") ->  | V9: =IF(AND(Import.TipoArredondamento="TransfereGOV",$AF$9=FALSE),"▼","") ->  | W9: =IF(AND(Import.TipoArredondamento="TransfereGOV",$AF$10=FALSE),"▼","") ->  | X9: =IF(AND(Import.TipoArredondamento="TransfereGOV",$AF$11=FALSE),"▼","") ->  | AE9: BDI | AF9: TRUE
E10: Data base: | F10: =IF(LEN(INFO("release"))>5,"'Referência "&Excel_BuiltIn_Database&".xlsm'#Banco.$B$3","'[Referência "&Excel_BuiltIn_Database&".xlsm]Banco'!$B$3") -> '[Referência 06-2025.xlsm]Banco'!$B$3 | AC10: ERRO GERAL | AE10: Preço Unitário | AF10: TRUE
F11: =IFERROR(INDIRECT(F10),"") ->  | G11: =IFERROR(TEXT(Import.DataBase,"mm/aaaa"),"") -> 06/2025 | AC11: =IF(COUNTIFS($L$15:$L$37,"F",$AC$15:$AC$37,"<>"&" ",$AC$15:$AC$37,"<>"&"JUSTIFICAR BDI")>0,"NÃO OK","OK") -> OK | AE11: Preço Total | AF11: TRUE
O12: =IF(AND(Import.TipoArredondamento="TransfereGOV",COUNTIF($AF$7:$AF$11,TRUE)<>5),"Para contratos que tramitam no Transferegov todos os valores devem ser arredondados para duas casas decimais", IF(AND($F$11<>"",$G$11<>"",$F$11<>$G$11),"O arquivo "&MID($F$10,2,SEARCH("]",$F$10)-1)&" está com a data base errada ("&F11&"). Corrija a data base antes de continuar.", IF(COUNTIF($AC$15:$AC$37,"FONTE")>0,"Falta preencher a Fonte (coluna P) na Linha "&(14+MATCH("FONTE",$AC$15:$AC$37,0)), IF(COUNTIF($AC$15:$AC$37,"CÓDIGO")>0,"Falta preencher o Código (coluna Q) na Linha "&(14+MATCH("CÓDIGO",$AC$15:$AC$37,0)), IF(COUNTIF($AC$15:$AC$37,"CÓDIGO N/ID")>0,"Código (coluna Q) não identificado na Linha "&(14+MATCH("CÓDIGO N/ID",$AC$15:$AC$37,0))&". Verifique se o código está correto ou busque outro código", IF(COUNTIF($AC$15:$AC$37,"DESCRIÇÃO")>0,"Falta preencher a Descrição (coluna R) na Linha "&(14+MATCH("DESCRIÇÃO",$AC$15:$AC$37,0)), IF(COUNTIF($AC$15:$AC$37,"UNIDADE")>0,"Falta preencher a Unidade (coluna S) na Linha "&(14+MATCH("UNIDADE",$AC$15:$AC$37,0)), IF(COUNTIF($AC$15:$AC$37,"SEM CUSTO")>0,"Falta preencher o Custo Unitário (coluna U) na Linha "&(14+MATCH("SEM CUSTO",$AC$15:$AC$37,0)), IF(COUNTIF($AC$15:$AC$37,"SEM PREÇO")>0,"Falta preencher o Preço Unitário licitado (coluna AL) na Linha "&(14+MATCH("SEM CUSTO",$AC$15:$AC$37,0)), IF(COUNTIF($AC$15:$AC$37,"BDI")>0,"Falta definir o BDI (coluna V) na Linha "&(14+MATCH("BDI",$AC$15:$AC$37,0)), IF(COUNTIF($AC$15:$AC$37,"ACIMA REF.")>0, IF(TIPOORCAMENTO="Proposto","O custo unitário (coluna U) na Linha "&(14+MATCH("ACIMA REF.",$AC$15:$AC$37,0))&" está acima do custo referencial (coluna AG)", "O preço unitário licitado (coluna AL) na Linha "&(14+MATCH("ACIMA REF.",$AC$15:$AC$37,0))&" está acima do preço referencial do edital (coluna AN)"), IF(COUNTIF($AC$15:$AC$37,"QUANT.")>0,"Falta a Quantidade do serviço na Linha "&(14+MATCH("QUANT.",$AC$15:$AC$37,0))&IF(ACOMPANHAMENTO="PLE",". Preencher na aba CÁLCULO",". Preencher na coluna AJ"), IF(COUNTIF($AC$15:$AC$37,"Código >13")>0,"O tamanho do código do serviço no TransfereGOV é limitado a 13 caracteres. Resuma o código (coluna Q) na Linha "&(14+MATCH("Código >13",$AC$15:$AC$37,0)), IF(COUNTIF($AC$15:$AC$37,"Descrição >100")>0,"O tamanho da descrição de macrosserviço no TransfereGOV é limitado a 100 caracteres. Resuma a descrição (coluna R) na Linha "&(14+MATCH("Descrição >100",$AC$15:$AC$37,0)), IF(COUNTIF($AC$15:$AC$37,"Descrição >500")>0,"O tamanho da descrição de serviço no TransfereGOV é limitado a 500 caracteres. Resuma a descrição (coluna R) na Linha "&(14+MATCH("Descrição >500",$AC$15:$AC$37,0)), IF(COUNTIF($AC$15:$AC$37,"Unid. Não Disp")>0,"Unidade não disponível na lista do TransfereGOV. Reveja a unidade (coluna S) na Linha "&(14+MATCH("Unid. Não Disp",$AC$15:$AC$37,0)), IF(AND(TIPOORCAMENTO="Proposto",LEFT($O$8,5)="(N/D:"),"Abra o arquivo Referência "&Excel_BuiltIn_Database&".xlsm",""))))))))))))))))) -> Abra o arquivo Referência 06-2025.xlsm | AA12: Valores não Arredondados | AJ12: ↓ | AL12: ↓
A13: Nível E | B13: Save Nivel | C13: Nível C | D13: Altura | E13: n1 | F13: n2 | G13: n3 | H13: n4 | I13: n5 | J13: Czero | K13: Cnível | L13: ↓ | M13: Nível | N13: Nível Corrigido | O13: Item | P13: Fonte | Q13: Código | R13: Descrição | S13: Unidade | T13: Quantidade | U13: =IF(TIPOORCAMENTO="Licitado","","Custo Unitário (sem BDI) (R$)") -> Custo Unitário (sem BDI) (R$) | V13: =IF(TIPOORCAMENTO="Licitado","","BDI (%)") -> BDI (%) | W13: Preço Unitário (com BDI) (R$) | X13: Preço Total (R$) | Y13: ↓ | Z13: ↓ | AA13: Contrapartida (R$) | AB13: Outros (R$) | AC13: Erro de Dados | AD13: Lista Crono | AE13: Concatenação Fonte-Código | AF13: BancoDesloc | AG13: Custo Unitário Referência (R$) | AH13: =IF(TIPOORCAMENTO="LICITADO","Valor BDI Edital","Valor BDI") -> Valor BDI | AJ13: Quantidade | AL13: Preço Unitário (com BDI) (R$) | AM13: Preço Total Licit. (R$) | AN13: Preço Unitário Edital (R$)
A14: =CHOOSE(1+LOG(1+2*(ORÇAMENTO.Nivel="Meta")+4*(ORÇAMENTO.Nivel="Nível 2")+8*(ORÇAMENTO.Nivel="Nível 3")+16*(ORÇAMENTO.Nivel="Nível 4")+32*(ORÇAMENTO.Nivel="Serviço"),2),0,1,2,3,4,"S") -> S | B14: =IF(OR(C14="s",C14=0),OFFSET(B14,-1,0),C14) -> Save Nivel | C14: =IF(OFFSET(C14,-1,0)="L",1,IF(OFFSET(C14,-1,0)=1,2,IF(OR(A14="s",A14=0),"S",IF(AND(OFFSET(C14,-1,0)=2,A14=4),3,IF(AND(OR(OFFSET(C14,-1,0)="s",OFFSET(C14,-1,0)=0),A14<>"s",A14>OFFSET(B14,-1,0)),OFFSET(B14,-1,0),A14))))) -> S | D14: =IF(OR(C14="S",C14=0),0,IF(ISERROR(K14),J14,SMALL(J14:K14,1))) -> 0 | E14: =IF($C14=1,OFFSET(E14,-1,0)+MAX(1,COUNTIF(QCI!$A$13:$A$24,OFFSET(ORÇAMENTO!E14,-1,0))),OFFSET(E14,-1,0)) -> n1 | F14: =IF($C14=1,0,IF($C14=2,OFFSET(F14,-1,0)+1,OFFSET(F14,-1,0))) -> n2 | G14: =IF(AND($C14<=2,$C14<>0),0,IF($C14=3,OFFSET(G14,-1,0)+1,OFFSET(G14,-1,0))) -> n3 | H14: =IF(AND($C14<=3,$C14<>0),0,IF($C14=4,OFFSET(H14,-1,0)+1,OFFSET(H14,-1,0))) -> n4 | I14: =IF(AND($C14<=4,$C14<>0),0,IF(AND($C14="S",$X14>0),OFFSET(I14,-1,0)+1,OFFSET(I14,-1,0))) -> n5 | J14: =IF(OR($C14="S",$C14=0),0,MATCH(0,OFFSET($D14,1,$C14,ROW($C$37)-ROW($C14)),0)) -> 0 | K14: =IF(OR($C14="S",$C14=0),0,MATCH(OFFSET($D14,0,$C14)+IF($C14<>1,1,COUNTIF(QCI!$A$13:$A$24,ORÇAMENTO!E14)),OFFSET($D14,1,$C14,ROW($C$37)-ROW($C14)),0)) -> 0 | L14: =IF(OR($X14>0,$C14=1,$C14=2,$C14=3,$C14=4),"F","") ->  | M14: Serviço | N14: =CHOOSE(1+LOG(1+2*(C14=1)+4*(C14=2)+8*(C14=3)+16*(C14=4)+32*(C14="S"),2),"","Meta","Nível 2","Nível 3","Nível 4","Serviço") -> Serviço | O14: =IF(OR($C14=0,$L14=""),"-",CONCATENATE(E14&".",IF(AND($A$5>=2,$C14>=2),F14&".",""),IF(AND($A$5>=3,$C14>=3),G14&".",""),IF(AND($A$5>=4,$C14>=4),H14&".",""),IF($C14="S",I14&".",""))) -> - | P14: SINAPI | R14: =IF($C14="S",REFERENCIA.Descricao,"(digite a descrição aqui)") -> (Sem Código) | S14: =REFERENCIA.Unidade -> - | T14: =OFFSET(CÁLCULO!H$15,ROW($T14)-ROW(T$15),0) -> 0 | V14: BDI 1 | W14: =IF($C14="S",ROUND(IF(TIPOORCAMENTO="Proposto",ORÇAMENTO.CustoUnitario*(1+$AH14),ORÇAMENTO.PrecoUnitarioLicitado),15-13*$AF$10),0) -> 0 | X14: =IF($C14="S",IF(OR(Import.TipoArredondamento<>"TransfereGOV",ACOMPANHAMENTO="BM"),VTOTAL1,SUM(OFFSET(CÁLCULO!$AQ$15,ROW($X14)-ROW($X$15),1):OFFSET(CÁLCULO!$BR$15,ROW($X14)-ROW($X$15),-1))),IF($C14=0,0,ROUND(SomaAgrup,15-13*$AF$11))) -> 0 | Y14: RA | Z14: =IF(AND($C14="S",$X14>0),IF(ISBLANK($Y14),"RA",LEFT($Y14,2)),"") ->  | AA14: =IF($C14="S",IF($Z14="CP",$X14,IF($Z14="RA",(($X14)*QCI!$AA$3),0)),SomaAgrup) -> 0 | AB14: =IF($C14="S",IF($Z14="OU",ROUND($X14,2),0),SomaAgrup) -> 0 | AC14: =IF($N14=""," ", IF(AND($C14<>"S",OR($R14="",$R14="(digite a descrição aqui)")),"DESCRIÇÃO", IF(AND($C14="S",OR($Q14<>"",$T14>0,$U14>0),$P14=""),"FONTE", IF(AND($C14="S",$P14<>"",OR($T14>0,$U14>0),$Q14=""),"CÓDIGO", IF(AND($C14="S",$P14<>"",$Q14<>"",$R14="(Código não identificado nas referências)"),"CÓDIGO N/ID", IF(AND($C14="S",OR($R14="",$R14="(digite a descrição aqui)"),OR($Q14<>"",$T14>0,$U14>0)),"DESCRIÇÃO", IF(AND($C14="S",$P14<>"",$Q14<>"",$S14=""),"UNIDADE", IF(AND($C14="S",$P14<>"",$Q14<>"",$U14=0),"SEM CUSTO", IF(AND(TIPOORCAMENTO="Licitado",$AL14=0,$AN14>0),"SEM PREÇO", IF(AND($C14="S",$P14<>"",$Q14<>"",$U14>0,AND($V14<>"BDI 1",$V14<>"BDI 2",$V14<>"BDI 3")),IF(ISNUMBER($V14),"JUSTIFICAR BDI","BDI"), IF(OR(AND(import.recurso="OGU",TIPOORCAMENTO="Proposto",LEFT($O$8,5)<>"(N/D:",$AG14<>"",ORÇAMENTO.CustoUnitario>$AG14),AND(TIPOORCAMENTO="LICITADO",ORÇAMENTO.PrecoUnitarioLicitado>$AN14)),"ACIMA REF.", IF(AND($C14="S",$P14<>"",$Q14<>"",$T14=0,$U14>0),"QUANT.", IF(AND(Import.TipoArredondamento="TransfereGOV",$L14="F",$C14="S",LEN($Q14)>13),"Código >13", IF(AND(Import.TipoArredondamento="TransfereGOV",$L14="F",$C14<>"S",LEN($R14)>100),"Descrição >100", IF(AND(Import.TipoArredondamento="TransfereGOV",$L14="F",$C14="S",LEN($R14)>500),"Descrição >500", IF(AND(Import.TipoArredondamento="TransfereGOV",$L14="F",$C14="S",LEFT(TRIM(UPPER($P14)),6)<>"SINAPI",ISNA(VLOOKUP(TRIM(UPPER($S14)),ListaTgov.Unidades,1,FALSE))),"Unid. Não Disp", " ")))))))))))))))) ->  | AD14: =IF(C14<=CRONO.NivelExibicao,MAX($AD$15:OFFSET(AD14,-1,0))+IF($C14<>1,1,MAX(1,COUNTIF(QCI!$A$13:$A$24,OFFSET($E14,-1,0)))),"") ->  | AE14: =IF(AND($C14="S",ORÇAMENTO.CodBarra<>""),IF(ORÇAMENTO.Fonte="",ORÇAMENTO.CodBarra,CONCATENATE(ORÇAMENTO.Fonte," ",ORÇAMENTO.CodBarra))) -> FALSE | AF14: =IF(ISERROR(ORÇAMENTO.BancoRef),"(abra o arquivo 'Referência "&Excel_BuiltIn_Database&".xlsm)",IF(OR($C14<>"S",ORÇAMENTO.CodBarra=""),"(Sem Código)",IF(ISERROR(MATCH($AE14,INDIRECT(ORÇAMENTO.BancoRef),0)),"(Código não identificado nas referências)",MATCH($AE14,INDIRECT(ORÇAMENTO.BancoRef),0)))) -> (Sem Código) | AG14: =ROUND(IF(DESONERACAO="sim",REFERENCIA.Desonerado,REFERENCIA.NaoDesonerado),2) -> 0 | AH14: =ROUND(IF(ISNUMBER(ORÇAMENTO.OpcaoBDI),ORÇAMENTO.OpcaoBDI,IF(LEFT(ORÇAMENTO.OpcaoBDI,3)="BDI",HLOOKUP(ORÇAMENTO.OpcaoBDI,$F$4:$H$5,2,FALSE),0)),15-11*$AF$9) -> 0.275 | AM14: =$X14 -> 0 | AN14: =ROUND(ORÇAMENTO.CustoUnitario*(1+$AH14),2) -> 0
A15: 0 | C15: L | D15: =COUNTA(OFFSET(D15,1,0):D$37) -> 21 | E15: 0 | L15: F | M15: =IF(TIPOORCAMENTO="LICITADO","CTEF","LOTE") -> LOTE | N15: =IF(TIPOORCAMENTO="LICITADO","CTEF","LOTE") -> LOTE | O15: =Import.DescLote -> Construção de unidades habitacionais | X15: =SUMIF(OFFSET($C15,1,0,ROW(X37)-ROW(X15)-1),"S",OFFSET(X15,1,0,ROW(X37)-ROW(X15)-1)) -> 3379712 | Z15: =IF(AND($C15="S",$X15>0),LEFT($Y15,2),"") ->  | AA15: =SUMIF(OFFSET($C15,1,0,ROW(AA37)-ROW(AA15)-1),"S",OFFSET(AA15,1,0,ROW(AA37)-ROW(AA15)-1)) -> 129712 | AB15: =SUMIF(OFFSET($C15,1,0,ROW(AB37)-ROW(AB15)-1),"S",OFFSET(AB15,1,0,ROW(AB37)-ROW(AB15)-1)) -> 0 | AM15: 3379712
A16: =CHOOSE(1+LOG(1+2*(ORÇAMENTO.Nivel="Meta")+4*(ORÇAMENTO.Nivel="Nível 2")+8*(ORÇAMENTO.Nivel="Nível 3")+16*(ORÇAMENTO.Nivel="Nível 4")+32*(ORÇAMENTO.Nivel="Serviço"),2),0,1,2,3,4,"S") -> 1 | B16: =IF(OR(C16="s",C16=0),OFFSET(B16,-1,0),C16) -> 1 | C16: =IF(OFFSET(C16,-1,0)="L",1,IF(OFFSET(C16,-1,0)=1,2,IF(OR(A16="s",A16=0),"S",IF(AND(OFFSET(C16,-1,0)=2,A16=4),3,IF(AND(OR(OFFSET(C16,-1,0)="s",OFFSET(C16,-1,0)=0),A16<>"s",A16>OFFSET(B16,-1,0)),OFFSET(B16,-1,0),A16))))) -> 1 | D16: =IF(OR(C16="S",C16=0),0,IF(ISERROR(K16),J16,SMALL(J16:K16,1))) -> 21 | E16: =IF($C16=1,OFFSET(E16,-1,0)+MAX(1,COUNTIF(QCI!$A$13:$A$24,OFFSET(ORÇAMENTO!E16,-1,0))),OFFSET(E16,-1,0)) -> 1 | F16: =IF($C16=1,0,IF($C16=2,OFFSET(F16,-1,0)+1,OFFSET(F16,-1,0))) -> 0 | G16: =IF(AND($C16<=2,$C16<>0),0,IF($C16=3,OFFSET(G16,-1,0)+1,OFFSET(G16,-1,0))) -> 0 | H16: =IF(AND($C16<=3,$C16<>0),0,IF($C16=4,OFFSET(H16,-1,0)+1,OFFSET(H16,-1,0))) -> 0 | I16: =IF(AND($C16<=4,$C16<>0),0,IF(AND($C16="S",$X16>0),OFFSET(I16,-1,0)+1,OFFSET(I16,-1,0))) -> 0 | J16: =IF(OR($C16="S",$C16=0),0,MATCH(0,OFFSET($D16,1,$C16,ROW($C$37)-ROW($C16)),0)) -> 21 | K16: =IF(OR($C16="S",$C16=0),0,MATCH(OFFSET($D16,0,$C16)+IF($C16<>1,1,COUNTIF(QCI!$A$13:$A$24,ORÇAMENTO!E16)),OFFSET($D16,1,$C16,ROW($C$37)-ROW($C16)),0)) ->  | L16: =IF(OR($X16>0,$C16=1,$C16=2,$C16=3,$C16=4),"F","") -> F | M16: Meta | N16: =CHOOSE(1+LOG(1+2*(C16=1)+4*(C16=2)+8*(C16=3)+16*(C16=4)+32*(C16="S"),2),"","Meta","Nível 2","Nível 3","Nível 4","Serviço") -> Meta | O16: =IF(OR($C16=0,$L16=""),"-",CONCATENATE(E16&".",IF(AND($A$5>=2,$C16>=2),F16&".",""),IF(AND($A$5>=3,$C16>=3),G16&".",""),IF(AND($A$5>=4,$C16>=4),H16&".",""),IF($C16="S",I16&".",""))) -> 1. | P16: SINAPI | R16: PRODUÇÃO DE UNIDADES HABITACIONAIS | S16: =REFERENCIA.Unidade -> - | T16: =OFFSET(CÁLCULO!H$15,ROW($T16)-ROW(T$15),0) -> 0 | V16: BDI 1 | W16: =IF($C16="S",ROUND(IF(TIPOORCAMENTO="Proposto",ORÇAMENTO.CustoUnitario*(1+$AH16),ORÇAMENTO.PrecoUnitarioLicitado),15-13*$AF$10),0) -> 0 | X16: =IF($C16="S",IF(OR(Import.TipoArredondamento<>"TransfereGOV",ACOMPANHAMENTO="BM"),VTOTAL1,SUM(OFFSET(CÁLCULO!$AQ$15,ROW($X16)-ROW($X$15),1):OFFSET(CÁLCULO!$BR$15,ROW($X16)-ROW($X$15),-1))),IF($C16=0,0,ROUND(SomaAgrup,15-13*$AF$11))) -> 3379712 | Y16: RA | Z16: =IF(AND($C16="S",$X16>0),IF(ISBLANK($Y16),"RA",LEFT($Y16,2)),"") ->  | AA16: =IF($C16="S",IF($Z16="CP",$X16,IF($Z16="RA",(($X16)*QCI!$AA$3),0)),SomaAgrup) -> 129712 | AB16: =IF($C16="S",IF($Z16="OU",ROUND($X16,2),0),SomaAgrup) -> 0 | AC16: =IF($N16=""," ", IF(AND($C16<>"S",OR($R16="",$R16="(digite a descrição aqui)")),"DESCRIÇÃO", IF(AND($C16="S",OR($Q16<>"",$T16>0,$U16>0),$P16=""),"FONTE", IF(AND($C16="S",$P16<>"",OR($T16>0,$U16>0),$Q16=""),"CÓDIGO", IF(AND($C16="S",$P16<>"",$Q16<>"",$R16="(Código não identificado nas referências)"),"CÓDIGO N/ID", IF(AND($C16="S",OR($R16="",$R16="(digite a descrição aqui)"),OR($Q16<>"",$T16>0,$U16>0)),"DESCRIÇÃO", IF(AND($C16="S",$P16<>"",$Q16<>"",$S16=""),"UNIDADE", IF(AND($C16="S",$P16<>"",$Q16<>"",$U16=0),"SEM CUSTO", IF(AND(TIPOORCAMENTO="Licitado",$AL16=0,$AN16>0),"SEM PREÇO", IF(AND($C16="S",$P16<>"",$Q16<>"",$U16>0,AND($V16<>"BDI 1",$V16<>"BDI 2",$V16<>"BDI 3")),IF(ISNUMBER($V16),"JUSTIFICAR BDI","BDI"), IF(OR(AND(import.recurso="OGU",TIPOORCAMENTO="Proposto",LEFT($O$8,5)<>"(N/D:",$AG16<>"",ORÇAMENTO.CustoUnitario>$AG16),AND(TIPOORCAMENTO="LICITADO",ORÇAMENTO.PrecoUnitarioLicitado>$AN16)),"ACIMA REF.", IF(AND($C16="S",$P16<>"",$Q16<>"",$T16=0,$U16>0),"QUANT.", IF(AND(Import.TipoArredondamento="TransfereGOV",$L16="F",$C16="S",LEN($Q16)>13),"Código >13", IF(AND(Import.TipoArredondamento="TransfereGOV",$L16="F",$C16<>"S",LEN($R16)>100),"Descrição >100", IF(AND(Import.TipoArredondamento="TransfereGOV",$L16="F",$C16="S",LEN($R16)>500),"Descrição >500", IF(AND(Import.TipoArredondamento="TransfereGOV",$L16="F",$C16="S",LEFT(TRIM(UPPER($P16)),6)<>"SINAPI",ISNA(VLOOKUP(TRIM(UPPER($S16)),ListaTgov.Unidades,1,FALSE))),"Unid. Não Disp", " ")))))))))))))))) ->  | AD16: =IF(C16<=CRONO.NivelExibicao,MAX($AD$15:OFFSET(AD16,-1,0))+IF($C16<>1,1,MAX(1,COUNTIF(QCI!$A$13:$A$24,OFFSET($E16,-1,0)))),"") -> 1 | AE16: =IF(AND($C16="S",ORÇAMENTO.CodBarra<>""),IF(ORÇAMENTO.Fonte="",ORÇAMENTO.CodBarra,CONCATENATE(ORÇAMENTO.Fonte," ",ORÇAMENTO.CodBarra))) -> FALSE | AF16: =IF(ISERROR(ORÇAMENTO.BancoRef),"(abra o arquivo 'Referência "&Excel_BuiltIn_Database&".xlsm)",IF(OR($C16<>"S",ORÇAMENTO.CodBarra=""),"(Sem Código)",IF(ISERROR(MATCH($AE16,INDIRECT(ORÇAMENTO.BancoRef),0)),"(Código não identificado nas referências)",MATCH($AE16,INDIRECT(ORÇAMENTO.BancoRef),0)))) -> (Sem Código) | AG16: =ROUND(IF(DESONERACAO="sim",REFERENCIA.Desonerado,REFERENCIA.NaoDesonerado),2) -> 0 | AH16: =ROUND(IF(ISNUMBER(ORÇAMENTO.OpcaoBDI),ORÇAMENTO.OpcaoBDI,IF(LEFT(ORÇAMENTO.OpcaoBDI,3)="BDI",HLOOKUP(ORÇAMENTO.OpcaoBDI,$F$4:$H$5,2,FALSE),0)),15-11*$AF$9) -> 0.275 | AM16: 3379712 | AN16: =ROUND(ORÇAMENTO.CustoUnitario*(1+$AH16),2) -> 0
A17: 2 | B17: 2 | C17: 2 | D17: 2 | E17: =IF($C17=1,OFFSET(E17,-1,0)+MAX(1,COUNTIF(QCI!$A$13:$A$24,OFFSET(ORÇAMENTO!E17,-1,0))),OFFSET(E17,-1,0)) -> 1 | F17: 1 | G17: 0 | H17: 0 | I17: 0 | J17: 20 | K17: =IF(OR($C17="S",$C17=0),0,MATCH(OFFSET($D17,0,$C17)+IF($C17<>1,1,COUNTIF(QCI!$A$13:$A$24,ORÇAMENTO!E17)),OFFSET($D17,1,$C17,ROW($C$37)-ROW($C17)),0)) -> 2 | L17: F | M17: Nível 2 | N17: Nível 2 | O17: 1.1. | P17: SINAPI | R17: Serviços preliminares | S17: =REFERENCIA.Unidade -> - | T17: =OFFSET(CÁLCULO!H$15,ROW($T17)-ROW(T$15),0) -> 0 | V17: BDI 1 | W17: =IF($C17="S",ROUND(IF(TIPOORCAMENTO="Proposto",ORÇAMENTO.CustoUnitario*(1+$AH17),ORÇAMENTO.PrecoUnitarioLicitado),15-13*$AF$10),0) -> 0 | X17: =IF($C17="S",IF(OR(Import.TipoArredondamento<>"TransfereGOV",ACOMPANHAMENTO="BM"),VTOTAL1,SUM(OFFSET(CÁLCULO!$AQ$15,ROW($X17)-ROW($X$15),1):OFFSET(CÁLCULO!$BR$15,ROW($X17)-ROW($X$15),-1))),IF($C17=0,0,ROUND(SomaAgrup,15-13*$AF$11))) -> 179885 | Y17: RA | AA17: =IF($C17="S",IF($Z17="CP",$X17,IF($Z17="RA",(($X17)*QCI!$AA$3),0)),SomaAgrup) -> 6903.914629 | AB17: =IF($C17="S",IF($Z17="OU",ROUND($X17,2),0),SomaAgrup) -> 0 | AC17: =IF($N17=""," ", IF(AND($C17<>"S",OR($R17="",$R17="(digite a descrição aqui)")),"DESCRIÇÃO", IF(AND($C17="S",OR($Q17<>"",$T17>0,$U17>0),$P17=""),"FONTE", IF(AND($C17="S",$P17<>"",OR($T17>0,$U17>0),$Q17=""),"CÓDIGO", IF(AND($C17="S",$P17<>"",$Q17<>"",$R17="(Código não identificado nas referências)"),"CÓDIGO N/ID", IF(AND($C17="S",OR($R17="",$R17="(digite a descrição aqui)"),OR($Q17<>"",$T17>0,$U17>0)),"DESCRIÇÃO", IF(AND($C17="S",$P17<>"",$Q17<>"",$S17=""),"UNIDADE", IF(AND($C17="S",$P17<>"",$Q17<>"",$U17=0),"SEM CUSTO", IF(AND(TIPOORCAMENTO="Licitado",$AL17=0,$AN17>0),"SEM PREÇO", IF(AND($C17="S",$P17<>"",$Q17<>"",$U17>0,AND($V17<>"BDI 1",$V17<>"BDI 2",$V17<>"BDI 3")),IF(ISNUMBER($V17),"JUSTIFICAR BDI","BDI"), IF(OR(AND(import.recurso="OGU",TIPOORCAMENTO="Proposto",LEFT($O$8,5)<>"(N/D:",$AG17<>"",ORÇAMENTO.CustoUnitario>$AG17),AND(TIPOORCAMENTO="LICITADO",ORÇAMENTO.PrecoUnitarioLicitado>$AN17)),"ACIMA REF.", IF(AND($C17="S",$P17<>"",$Q17<>"",$T17=0,$U17>0),"QUANT.", IF(AND(Import.TipoArredondamento="TransfereGOV",$L17="F",$C17="S",LEN($Q17)>13),"Código >13", IF(AND(Import.TipoArredondamento="TransfereGOV",$L17="F",$C17<>"S",LEN($R17)>100),"Descrição >100", IF(AND(Import.TipoArredondamento="TransfereGOV",$L17="F",$C17="S",LEN($R17)>500),"Descrição >500", IF(AND(Import.TipoArredondamento="TransfereGOV",$L17="F",$C17="S",LEFT(TRIM(UPPER($P17)),6)<>"SINAPI",ISNA(VLOOKUP(TRIM(UPPER($S17)),ListaTgov.Unidades,1,FALSE))),"Unid. Não Disp", " ")))))))))))))))) ->  | AD17: =IF(C17<=CRONO.NivelExibicao,MAX($AD$15:OFFSET(AD17,-1,0))+IF($C17<>1,1,MAX(1,COUNTIF(QCI!$A$13:$A$24,OFFSET($E17,-1,0)))),"") -> 2 | AE17: =IF(AND($C17="S",ORÇAMENTO.CodBarra<>""),IF(ORÇAMENTO.Fonte="",ORÇAMENTO.CodBarra,CONCATENATE(ORÇAMENTO.Fonte," ",ORÇAMENTO.CodBarra))) -> FALSE | AF17: =IF(ISERROR(ORÇAMENTO.BancoRef),"(abra o arquivo 'Referência "&Excel_BuiltIn_Database&".xlsm)",IF(OR($C17<>"S",ORÇAMENTO.CodBarra=""),"(Sem Código)",IF(ISERROR(MATCH($AE17,INDIRECT(ORÇAMENTO.BancoRef),0)),"(Código não identificado nas referências)",MATCH($AE17,INDIRECT(ORÇAMENTO.BancoRef),0)))) -> (Sem Código) | AG17: =ROUND(IF(DESONERACAO="sim",REFERENCIA.Desonerado,REFERENCIA.NaoDesonerado),2) -> 0 | AH17: 0.275 | AM17: 179885 | AN17: =ROUND(ORÇAMENTO.CustoUnitario*(1+$AH17),2) -> 0
A18: S | B18: 2 | C18: S | D18: 0 | E18: =IF($C18=1,OFFSET(E18,-1,0)+MAX(1,COUNTIF(QCI!$A$13:$A$24,OFFSET(ORÇAMENTO!E18,-1,0))),OFFSET(E18,-1,0)) -> 1 | F18: 1 | G18: 0 | H18: 0 | I18: 1 | J18: 0 | K18: =IF(OR($C18="S",$C18=0),0,MATCH(OFFSET($D18,0,$C18)+IF($C18<>1,1,COUNTIF(QCI!$A$13:$A$24,ORÇAMENTO!E18)),OFFSET($D18,1,$C18,ROW($C$37)-ROW($C18)),0)) -> 0 | L18: F | M18: Serviço | N18: Serviço | O18: 1.1.1. | P18: Cotação | Q18: 1 | R18: Serviços preliminares | S18: UN | T18: =OFFSET(CÁLCULO!H$15,ROW($T18)-ROW(T$15),0) -> 25 | U18: 5643.45 | V18: BDI 1 | W18: =IF($C18="S",ROUND(IF(TIPOORCAMENTO="Proposto",ORÇAMENTO.CustoUnitario*(1+$AH18),ORÇAMENTO.PrecoUnitarioLicitado),15-13*$AF$10),0) -> 7195.4 | X18: =IF($C18="S",IF(OR(Import.TipoArredondamento<>"TransfereGOV",ACOMPANHAMENTO="BM"),VTOTAL1,SUM(OFFSET(CÁLCULO!$AQ$15,ROW($X18)-ROW($X$15),1):OFFSET(CÁLCULO!$BR$15,ROW($X18)-ROW($X$15),-1))),IF($C18=0,0,ROUND(SomaAgrup,15-13*$AF$11))) -> 179885 | Y18: RA | Z18: RA | AA18: =IF($C18="S",IF($Z18="CP",$X18,IF($Z18="RA",(($X18)*QCI!$AA$3),0)),SomaAgrup) -> 6903.914629 | AB18: =IF($C18="S",IF($Z18="OU",ROUND($X18,2),0),SomaAgrup) -> 0 | AC18: =IF($N18=""," ", IF(AND($C18<>"S",OR($R18="",$R18="(digite a descrição aqui)")),"DESCRIÇÃO", IF(AND($C18="S",OR($Q18<>"",$T18>0,$U18>0),$P18=""),"FONTE", IF(AND($C18="S",$P18<>"",OR($T18>0,$U18>0),$Q18=""),"CÓDIGO", IF(AND($C18="S",$P18<>"",$Q18<>"",$R18="(Código não identificado nas referências)"),"CÓDIGO N/ID", IF(AND($C18="S",OR($R18="",$R18="(digite a descrição aqui)"),OR($Q18<>"",$T18>0,$U18>0)),"DESCRIÇÃO", IF(AND($C18="S",$P18<>"",$Q18<>"",$S18=""),"UNIDADE", IF(AND($C18="S",$P18<>"",$Q18<>"",$U18=0),"SEM CUSTO", IF(AND(TIPOORCAMENTO="Licitado",$AL18=0,$AN18>0),"SEM PREÇO", IF(AND($C18="S",$P18<>"",$Q18<>"",$U18>0,AND($V18<>"BDI 1",$V18<>"BDI 2",$V18<>"BDI 3")),IF(ISNUMBER($V18),"JUSTIFICAR BDI","BDI"), IF(OR(AND(import.recurso="OGU",TIPOORCAMENTO="Proposto",LEFT($O$8,5)<>"(N/D:",$AG18<>"",ORÇAMENTO.CustoUnitario>$AG18),AND(TIPOORCAMENTO="LICITADO",ORÇAMENTO.PrecoUnitarioLicitado>$AN18)),"ACIMA REF.", IF(AND($C18="S",$P18<>"",$Q18<>"",$T18=0,$U18>0),"QUANT.", IF(AND(Import.TipoArredondamento="TransfereGOV",$L18="F",$C18="S",LEN($Q18)>13),"Código >13", IF(AND(Import.TipoArredondamento="TransfereGOV",$L18="F",$C18<>"S",LEN($R18)>100),"Descrição >100", IF(AND(Import.TipoArredondamento="TransfereGOV",$L18="F",$C18="S",LEN($R18)>500),"Descrição >500", IF(AND(Import.TipoArredondamento="TransfereGOV",$L18="F",$C18="S",LEFT(TRIM(UPPER($P18)),6)<>"SINAPI",ISNA(VLOOKUP(TRIM(UPPER($S18)),ListaTgov.Unidades,1,FALSE))),"Unid. Não Disp", " ")))))))))))))))) ->  | AD18: =IF(C18<=CRONO.NivelExibicao,MAX($AD$15:OFFSET(AD18,-1,0))+IF($C18<>1,1,MAX(1,COUNTIF(QCI!$A$13:$A$24,OFFSET($E18,-1,0)))),"") ->  | AE18: =IF(AND($C18="S",ORÇAMENTO.CodBarra<>""),IF(ORÇAMENTO.Fonte="",ORÇAMENTO.CodBarra,CONCATENATE(ORÇAMENTO.Fonte," ",ORÇAMENTO.CodBarra))) -> Cotação 1 | AF18: =IF(ISERROR(ORÇAMENTO.BancoRef),"(abra o arquivo 'Referência "&Excel_BuiltIn_Database&".xlsm)",IF(OR($C18<>"S",ORÇAMENTO.CodBarra=""),"(Sem Código)",IF(ISERROR(MATCH($AE18,INDIRECT(ORÇAMENTO.BancoRef),0)),"(Código não identificado nas referências)",MATCH($AE18,INDIRECT(ORÇAMENTO.BancoRef),0)))) -> (Código não identificado nas referências) | AG18: =ROUND(IF(DESONERACAO="sim",REFERENCIA.Desonerado,REFERENCIA.NaoDesonerado),2) -> 0 | AH18: 0.275 | AM18: 179885 | AN18: =ROUND(ORÇAMENTO.CustoUnitario*(1+$AH18),2) -> 7195.4
A19: =CHOOSE(1+LOG(1+2*(ORÇAMENTO.Nivel="Meta")+4*(ORÇAMENTO.Nivel="Nível 2")+8*(ORÇAMENTO.Nivel="Nível 3")+16*(ORÇAMENTO.Nivel="Nível 4")+32*(ORÇAMENTO.Nivel="Serviço"),2),0,1,2,3,4,"S") -> 2 | B19: =IF(OR(C19="s",C19=0),OFFSET(B19,-1,0),C19) -> 2 | C19: =IF(OFFSET(C19,-1,0)="L",1,IF(OFFSET(C19,-1,0)=1,2,IF(OR(A19="s",A19=0),"S",IF(AND(OFFSET(C19,-1,0)=2,A19=4),3,IF(AND(OR(OFFSET(C19,-1,0)="s",OFFSET(C19,-1,0)=0),A19<>"s",A19>OFFSET(B19,-1,0)),OFFSET(B19,-1,0),A19))))) -> 2 | D19: =IF(OR(C19="S",C19=0),0,IF(ISERROR(K19),J19,SMALL(J19:K19,1))) -> 2 | E19: =IF($C19=1,OFFSET(E19,-1,0)+MAX(1,COUNTIF(QCI!$A$13:$A$24,OFFSET(ORÇAMENTO!E19,-1,0))),OFFSET(E19,-1,0)) -> 1 | F19: =IF($C19=1,0,IF($C19=2,OFFSET(F19,-1,0)+1,OFFSET(F19,-1,0))) -> 2 | G19: =IF(AND($C19<=2,$C19<>0),0,IF($C19=3,OFFSET(G19,-1,0)+1,OFFSET(G19,-1,0))) -> 0 | H19: =IF(AND($C19<=3,$C19<>0),0,IF($C19=4,OFFSET(H19,-1,0)+1,OFFSET(H19,-1,0))) -> 0 | I19: =IF(AND($C19<=4,$C19<>0),0,IF(AND($C19="S",$X19>0),OFFSET(I19,-1,0)+1,OFFSET(I19,-1,0))) -> 0 | J19: 18 | K19: =IF(OR($C19="S",$C19=0),0,MATCH(OFFSET($D19,0,$C19)+IF($C19<>1,1,COUNTIF(QCI!$A$13:$A$24,ORÇAMENTO!E19)),OFFSET($D19,1,$C19,ROW($C$37)-ROW($C19)),0)) -> 2 | L19: =IF(OR($X19>0,$C19=1,$C19=2,$C19=3,$C19=4),"F","") -> F | M19: Nível 2 | N19: =CHOOSE(1+LOG(1+2*(C19=1)+4*(C19=2)+8*(C19=3)+16*(C19=4)+32*(C19="S"),2),"","Meta","Nível 2","Nível 3","Nível 4","Serviço") -> Nível 2 | O19: =IF(OR($C19=0,$L19=""),"-",CONCATENATE(E19&".",IF(AND($A$5>=2,$C19>=2),F19&".",""),IF(AND($A$5>=3,$C19>=3),G19&".",""),IF(AND($A$5>=4,$C19>=4),H19&".",""),IF($C19="S",I19&".",""))) -> 1.2. | P19: SINAPI | R19: Administração local | S19: =REFERENCIA.Unidade -> - | T19: =OFFSET(CÁLCULO!H$15,ROW($T19)-ROW(T$15),0) -> 0 | V19: BDI 1 | W19: =IF($C19="S",ROUND(IF(TIPOORCAMENTO="Proposto",ORÇAMENTO.CustoUnitario*(1+$AH19),ORÇAMENTO.PrecoUnitarioLicitado),15-13*$AF$10),0) -> 0 | X19: =IF($C19="S",IF(OR(Import.TipoArredondamento<>"TransfereGOV",ACOMPANHAMENTO="BM"),VTOTAL1,SUM(OFFSET(CÁLCULO!$AQ$15,ROW($X19)-ROW($X$15),1):OFFSET(CÁLCULO!$BR$15,ROW($X19)-ROW($X$15),-1))),IF($C19=0,0,ROUND(SomaAgrup,15-13*$AF$11))) -> 84492.75 | Y19: RA | Z19: =IF(AND($C19="S",$X19>0),IF(ISBLANK($Y19),"RA",LEFT($Y19,2)),"") ->  | AA19: =IF($C19="S",IF($Z19="CP",$X19,IF($Z19="RA",(($X19)*QCI!$AA$3),0)),SomaAgrup) -> 3242.798081 | AB19: =IF($C19="S",IF($Z19="OU",ROUND($X19,2),0),SomaAgrup) -> 0 | AC19: =IF($N19=""," ", IF(AND($C19<>"S",OR($R19="",$R19="(digite a descrição aqui)")),"DESCRIÇÃO", IF(AND($C19="S",OR($Q19<>"",$T19>0,$U19>0),$P19=""),"FONTE", IF(AND($C19="S",$P19<>"",OR($T19>0,$U19>0),$Q19=""),"CÓDIGO", IF(AND($C19="S",$P19<>"",$Q19<>"",$R19="(Código não identificado nas referências)"),"CÓDIGO N/ID", IF(AND($C19="S",OR($R19="",$R19="(digite a descrição aqui)"),OR($Q19<>"",$T19>0,$U19>0)),"DESCRIÇÃO", IF(AND($C19="S",$P19<>"",$Q19<>"",$S19=""),"UNIDADE", IF(AND($C19="S",$P19<>"",$Q19<>"",$U19=0),"SEM CUSTO", IF(AND(TIPOORCAMENTO="Licitado",$AL19=0,$AN19>0),"SEM PREÇO", IF(AND($C19="S",$P19<>"",$Q19<>"",$U19>0,AND($V19<>"BDI 1",$V19<>"BDI 2",$V19<>"BDI 3")),IF(ISNUMBER($V19),"JUSTIFICAR BDI","BDI"), IF(OR(AND(import.recurso="OGU",TIPOORCAMENTO="Proposto",LEFT($O$8,5)<>"(N/D:",$AG19<>"",ORÇAMENTO.CustoUnitario>$AG19),AND(TIPOORCAMENTO="LICITADO",ORÇAMENTO.PrecoUnitarioLicitado>$AN19)),"ACIMA REF.", IF(AND($C19="S",$P19<>"",$Q19<>"",$T19=0,$U19>0),"QUANT.", IF(AND(Import.TipoArredondamento="TransfereGOV",$L19="F",$C19="S",LEN($Q19)>13),"Código >13", IF(AND(Import.TipoArredondamento="TransfereGOV",$L19="F",$C19<>"S",LEN($R19)>100),"Descrição >100", IF(AND(Import.TipoArredondamento="TransfereGOV",$L19="F",$C19="S",LEN($R19)>500),"Descrição >500", IF(AND(Import.TipoArredondamento="TransfereGOV",$L19="F",$C19="S",LEFT(TRIM(UPPER($P19)),6)<>"SINAPI",ISNA(VLOOKUP(TRIM(UPPER($S19)),ListaTgov.Unidades,1,FALSE))),"Unid. Não Disp", " ")))))))))))))))) ->  | AD19: =IF(C19<=CRONO.NivelExibicao,MAX($AD$15:OFFSET(AD19,-1,0))+IF($C19<>1,1,MAX(1,COUNTIF(QCI!$A$13:$A$24,OFFSET($E19,-1,0)))),"") -> 3 | AE19: =IF(AND($C19="S",ORÇAMENTO.CodBarra<>""),IF(ORÇAMENTO.Fonte="",ORÇAMENTO.CodBarra,CONCATENATE(ORÇAMENTO.Fonte," ",ORÇAMENTO.CodBarra))) -> FALSE | AF19: =IF(ISERROR(ORÇAMENTO.BancoRef),"(abra o arquivo 'Referência "&Excel_BuiltIn_Database&".xlsm)",IF(OR($C19<>"S",ORÇAMENTO.CodBarra=""),"(Sem Código)",IF(ISERROR(MATCH($AE19,INDIRECT(ORÇAMENTO.BancoRef),0)),"(Código não identificado nas referências)",MATCH($AE19,INDIRECT(ORÇAMENTO.BancoRef),0)))) -> (Sem Código) | AG19: =ROUND(IF(DESONERACAO="sim",REFERENCIA.Desonerado,REFERENCIA.NaoDesonerado),2) -> 0 | AH19: =ROUND(IF(ISNUMBER(ORÇAMENTO.OpcaoBDI),ORÇAMENTO.OpcaoBDI,IF(LEFT(ORÇAMENTO.OpcaoBDI,3)="BDI",HLOOKUP(ORÇAMENTO.OpcaoBDI,$F$4:$H$5,2,FALSE),0)),15-11*$AF$9) -> 0.275 | AM19: 84492.75 | AN19: =ROUND(ORÇAMENTO.CustoUnitario*(1+$AH19),2) -> 0
A20: S | B20: 2 | C20: S | D20: 0 | E20: =IF($C20=1,OFFSET(E20,-1,0)+MAX(1,COUNTIF(QCI!$A$13:$A$24,OFFSET(ORÇAMENTO!E20,-1,0))),OFFSET(E20,-1,0)) -> 1 | F20: 2 | G20: 0 | H20: 0 | I20: 1 | J20: 0 | K20: =IF(OR($C20="S",$C20=0),0,MATCH(OFFSET($D20,0,$C20)+IF($C20<>1,1,COUNTIF(QCI!$A$13:$A$24,ORÇAMENTO!E20)),OFFSET($D20,1,$C20,ROW($C$37)-ROW($C20)),0)) -> 0 | L20: F | M20: Serviço | N20: Serviço | O20: 1.2.1. | P20: Cotação | Q20: 2 | R20: Administração local | S20: UN | T20: =OFFSET(CÁLCULO!H$15,ROW($T20)-ROW(T$15),0) -> 25 | U20: 2650.75 | V20: BDI 1 | W20: =IF($C20="S",ROUND(IF(TIPOORCAMENTO="Proposto",ORÇAMENTO.CustoUnitario*(1+$AH20),ORÇAMENTO.PrecoUnitarioLicitado),15-13*$AF$10),0) -> 3379.71 | X20: =IF($C20="S",IF(OR(Import.TipoArredondamento<>"TransfereGOV",ACOMPANHAMENTO="BM"),VTOTAL1,SUM(OFFSET(CÁLCULO!$AQ$15,ROW($X20)-ROW($X$15),1):OFFSET(CÁLCULO!$BR$15,ROW($X20)-ROW($X$15),-1))),IF($C20=0,0,ROUND(SomaAgrup,15-13*$AF$11))) -> 84492.75 | Y20: RA | Z20: RA | AA20: =IF($C20="S",IF($Z20="CP",$X20,IF($Z20="RA",(($X20)*QCI!$AA$3),0)),SomaAgrup) -> 3242.798081 | AB20: =IF($C20="S",IF($Z20="OU",ROUND($X20,2),0),SomaAgrup) -> 0 | AC20: =IF($N20=""," ", IF(AND($C20<>"S",OR($R20="",$R20="(digite a descrição aqui)")),"DESCRIÇÃO", IF(AND($C20="S",OR($Q20<>"",$T20>0,$U20>0),$P20=""),"FONTE", IF(AND($C20="S",$P20<>"",OR($T20>0,$U20>0),$Q20=""),"CÓDIGO", IF(AND($C20="S",$P20<>"",$Q20<>"",$R20="(Código não identificado nas referências)"),"CÓDIGO N/ID", IF(AND($C20="S",OR($R20="",$R20="(digite a descrição aqui)"),OR($Q20<>"",$T20>0,$U20>0)),"DESCRIÇÃO", IF(AND($C20="S",$P20<>"",$Q20<>"",$S20=""),"UNIDADE", IF(AND($C20="S",$P20<>"",$Q20<>"",$U20=0),"SEM CUSTO", IF(AND(TIPOORCAMENTO="Licitado",$AL20=0,$AN20>0),"SEM PREÇO", IF(AND($C20="S",$P20<>"",$Q20<>"",$U20>0,AND($V20<>"BDI 1",$V20<>"BDI 2",$V20<>"BDI 3")),IF(ISNUMBER($V20),"JUSTIFICAR BDI","BDI"), IF(OR(AND(import.recurso="OGU",TIPOORCAMENTO="Proposto",LEFT($O$8,5)<>"(N/D:",$AG20<>"",ORÇAMENTO.CustoUnitario>$AG20),AND(TIPOORCAMENTO="LICITADO",ORÇAMENTO.PrecoUnitarioLicitado>$AN20)),"ACIMA REF.", IF(AND($C20="S",$P20<>"",$Q20<>"",$T20=0,$U20>0),"QUANT.", IF(AND(Import.TipoArredondamento="TransfereGOV",$L20="F",$C20="S",LEN($Q20)>13),"Código >13", IF(AND(Import.TipoArredondamento="TransfereGOV",$L20="F",$C20<>"S",LEN($R20)>100),"Descrição >100", IF(AND(Import.TipoArredondamento="TransfereGOV",$L20="F",$C20="S",LEN($R20)>500),"Descrição >500", IF(AND(Import.TipoArredondamento="TransfereGOV",$L20="F",$C20="S",LEFT(TRIM(UPPER($P20)),6)<>"SINAPI",ISNA(VLOOKUP(TRIM(UPPER($S20)),ListaTgov.Unidades,1,FALSE))),"Unid. Não Disp", " ")))))))))))))))) ->  | AD20: =IF(C20<=CRONO.NivelExibicao,MAX($AD$15:OFFSET(AD20,-1,0))+IF($C20<>1,1,MAX(1,COUNTIF(QCI!$A$13:$A$24,OFFSET($E20,-1,0)))),"") ->  | AE20: =IF(AND($C20="S",ORÇAMENTO.CodBarra<>""),IF(ORÇAMENTO.Fonte="",ORÇAMENTO.CodBarra,CONCATENATE(ORÇAMENTO.Fonte," ",ORÇAMENTO.CodBarra))) -> Cotação 2 | AF20: =IF(ISERROR(ORÇAMENTO.BancoRef),"(abra o arquivo 'Referência "&Excel_BuiltIn_Database&".xlsm)",IF(OR($C20<>"S",ORÇAMENTO.CodBarra=""),"(Sem Código)",IF(ISERROR(MATCH($AE20,INDIRECT(ORÇAMENTO.BancoRef),0)),"(Código não identificado nas referências)",MATCH($AE20,INDIRECT(ORÇAMENTO.BancoRef),0)))) -> (Código não identificado nas referências) | AG20: =ROUND(IF(DESONERACAO="sim",REFERENCIA.Desonerado,REFERENCIA.NaoDesonerado),2) -> 0 | AH20: 0.275 | AM20: 84492.75 | AN20: =ROUND(ORÇAMENTO.CustoUnitario*(1+$AH20),2) -> 3379.71
A21: =CHOOSE(1+LOG(1+2*(ORÇAMENTO.Nivel="Meta")+4*(ORÇAMENTO.Nivel="Nível 2")+8*(ORÇAMENTO.Nivel="Nível 3")+16*(ORÇAMENTO.Nivel="Nível 4")+32*(ORÇAMENTO.Nivel="Serviço"),2),0,1,2,3,4,"S") -> 2 | B21: =IF(OR(C21="s",C21=0),OFFSET(B21,-1,0),C21) -> 2 | C21: =IF(OFFSET(C21,-1,0)="L",1,IF(OFFSET(C21,-1,0)=1,2,IF(OR(A21="s",A21=0),"S",IF(AND(OFFSET(C21,-1,0)=2,A21=4),3,IF(AND(OR(OFFSET(C21,-1,0)="s",OFFSET(C21,-1,0)=0),A21<>"s",A21>OFFSET(B21,-1,0)),OFFSET(B21,-1,0),A21))))) -> 2 | D21: =IF(OR(C21="S",C21=0),0,IF(ISERROR(K21),J21,SMALL(J21:K21,1))) -> 2 | E21: =IF($C21=1,OFFSET(E21,-1,0)+MAX(1,COUNTIF(QCI!$A$13:$A$24,OFFSET(ORÇAMENTO!E21,-1,0))),OFFSET(E21,-1,0)) -> 1 | F21: =IF($C21=1,0,IF($C21=2,OFFSET(F21,-1,0)+1,OFFSET(F21,-1,0))) -> 3 | G21: =IF(AND($C21<=2,$C21<>0),0,IF($C21=3,OFFSET(G21,-1,0)+1,OFFSET(G21,-1,0))) -> 0 | H21: =IF(AND($C21<=3,$C21<>0),0,IF($C21=4,OFFSET(H21,-1,0)+1,OFFSET(H21,-1,0))) -> 0 | I21: =IF(AND($C21<=4,$C21<>0),0,IF(AND($C21="S",$X21>0),OFFSET(I21,-1,0)+1,OFFSET(I21,-1,0))) -> 0 | J21: 16 | K21: =IF(OR($C21="S",$C21=0),0,MATCH(OFFSET($D21,0,$C21)+IF($C21<>1,1,COUNTIF(QCI!$A$13:$A$24,ORÇAMENTO!E21)),OFFSET($D21,1,$C21,ROW($C$37)-ROW($C21)),0)) -> 2 | L21: =IF(OR($X21>0,$C21=1,$C21=2,$C21=3,$C21=4),"F","") -> F | M21: Nível 2 | N21: =CHOOSE(1+LOG(1+2*(C21=1)+4*(C21=2)+8*(C21=3)+16*(C21=4)+32*(C21="S"),2),"","Meta","Nível 2","Nível 3","Nível 4","Serviço") -> Nível 2 | O21: =IF(OR($C21=0,$L21=""),"-",CONCATENATE(E21&".",IF(AND($A$5>=2,$C21>=2),F21&".",""),IF(AND($A$5>=3,$C21>=3),G21&".",""),IF(AND($A$5>=4,$C21>=4),H21&".",""),IF($C21="S",I21&".",""))) -> 1.3. | P21: SINAPI | R21: Fundações | S21: =REFERENCIA.Unidade -> - | T21: =OFFSET(CÁLCULO!H$15,ROW($T21)-ROW(T$15),0) -> 0 | V21: BDI 1 | W21: =IF($C21="S",ROUND(IF(TIPOORCAMENTO="Proposto",ORÇAMENTO.CustoUnitario*(1+$AH21),ORÇAMENTO.PrecoUnitarioLicitado),15-13*$AF$10),0) -> 0 | X21: =IF($C21="S",IF(OR(Import.TipoArredondamento<>"TransfereGOV",ACOMPANHAMENTO="BM"),VTOTAL1,SUM(OFFSET(CÁLCULO!$AQ$15,ROW($X21)-ROW($X$15),1):OFFSET(CÁLCULO!$BR$15,ROW($X21)-ROW($X$15),-1))),IF($C21=0,0,ROUND(SomaAgrup,15-13*$AF$11))) -> 413930.25 | Y21: RA | Z21: =IF(AND($C21="S",$X21>0),IF(ISBLANK($Y21),"RA",LEFT($Y21,2)),"") ->  | AA21: =IF($C21="S",IF($Z21="CP",$X21,IF($Z21="RA",(($X21)*QCI!$AA$3),0)),SomaAgrup) -> 15886.47808 | AB21: =IF($C21="S",IF($Z21="OU",ROUND($X21,2),0),SomaAgrup) -> 0 | AC21: =IF($N21=""," ", IF(AND($C21<>"S",OR($R21="",$R21="(digite a descrição aqui)")),"DESCRIÇÃO", IF(AND($C21="S",OR($Q21<>"",$T21>0,$U21>0),$P21=""),"FONTE", IF(AND($C21="S",$P21<>"",OR($T21>0,$U21>0),$Q21=""),"CÓDIGO", IF(AND($C21="S",$P21<>"",$Q21<>"",$R21="(Código não identificado nas referências)"),"CÓDIGO N/ID", IF(AND($C21="S",OR($R21="",$R21="(digite a descrição aqui)"),OR($Q21<>"",$T21>0,$U21>0)),"DESCRIÇÃO", IF(AND($C21="S",$P21<>"",$Q21<>"",$S21=""),"UNIDADE", IF(AND($C21="S",$P21<>"",$Q21<>"",$U21=0),"SEM CUSTO", IF(AND(TIPOORCAMENTO="Licitado",$AL21=0,$AN21>0),"SEM PREÇO", IF(AND($C21="S",$P21<>"",$Q21<>"",$U21>0,AND($V21<>"BDI 1",$V21<>"BDI 2",$V21<>"BDI 3")),IF(ISNUMBER($V21),"JUSTIFICAR BDI","BDI"), IF(OR(AND(import.recurso="OGU",TIPOORCAMENTO="Proposto",LEFT($O$8,5)<>"(N/D:",$AG21<>"",ORÇAMENTO.CustoUnitario>$AG21),AND(TIPOORCAMENTO="LICITADO",ORÇAMENTO.PrecoUnitarioLicitado>$AN21)),"ACIMA REF.", IF(AND($C21="S",$P21<>"",$Q21<>"",$T21=0,$U21>0),"QUANT.", IF(AND(Import.TipoArredondamento="TransfereGOV",$L21="F",$C21="S",LEN($Q21)>13),"Código >13", IF(AND(Import.TipoArredondamento="TransfereGOV",$L21="F",$C21<>"S",LEN($R21)>100),"Descrição >100", IF(AND(Import.TipoArredondamento="TransfereGOV",$L21="F",$C21="S",LEN($R21)>500),"Descrição >500", IF(AND(Import.TipoArredondamento="TransfereGOV",$L21="F",$C21="S",LEFT(TRIM(UPPER($P21)),6)<>"SINAPI",ISNA(VLOOKUP(TRIM(UPPER($S21)),ListaTgov.Unidades,1,FALSE))),"Unid. Não Disp", " ")))))))))))))))) ->  | AD21: =IF(C21<=CRONO.NivelExibicao,MAX($AD$15:OFFSET(AD21,-1,0))+IF($C21<>1,1,MAX(1,COUNTIF(QCI!$A$13:$A$24,OFFSET($E21,-1,0)))),"") -> 4 | AE21: =IF(AND($C21="S",ORÇAMENTO.CodBarra<>""),IF(ORÇAMENTO.Fonte="",ORÇAMENTO.CodBarra,CONCATENATE(ORÇAMENTO.Fonte," ",ORÇAMENTO.CodBarra))) -> FALSE | AF21: =IF(ISERROR(ORÇAMENTO.BancoRef),"(abra o arquivo 'Referência "&Excel_BuiltIn_Database&".xlsm)",IF(OR($C21<>"S",ORÇAMENTO.CodBarra=""),"(Sem Código)",IF(ISERROR(MATCH($AE21,INDIRECT(ORÇAMENTO.BancoRef),0)),"(Código não identificado nas referências)",MATCH($AE21,INDIRECT(ORÇAMENTO.BancoRef),0)))) -> (Sem Código) | AG21: =ROUND(IF(DESONERACAO="sim",REFERENCIA.Desonerado,REFERENCIA.NaoDesonerado),2) -> 0 | AH21: =ROUND(IF(ISNUMBER(ORÇAMENTO.OpcaoBDI),ORÇAMENTO.OpcaoBDI,IF(LEFT(ORÇAMENTO.OpcaoBDI,3)="BDI",HLOOKUP(ORÇAMENTO.OpcaoBDI,$F$4:$H$5,2,FALSE),0)),15-11*$AF$9) -> 0.275 | AM21: 413930.25 | AN21: =ROUND(ORÇAMENTO.CustoUnitario*(1+$AH21),2) -> 0
A22: S | B22: 2 | C22: S | D22: 0 | E22: =IF($C22=1,OFFSET(E22,-1,0)+MAX(1,COUNTIF(QCI!$A$13:$A$24,OFFSET(ORÇAMENTO!E22,-1,0))),OFFSET(E22,-1,0)) -> 1 | F22: 3 | G22: 0 | H22: 0 | I22: 1 | J22: 0 | K22: =IF(OR($C22="S",$C22=0),0,MATCH(OFFSET($D22,0,$C22)+IF($C22<>1,1,COUNTIF(QCI!$A$13:$A$24,ORÇAMENTO!E22)),OFFSET($D22,1,$C22,ROW($C$37)-ROW($C22)),0)) -> 0 | L22: F | M22: Serviço | N22: Serviço | O22: 1.3.1. | P22: Cotação | Q22: 3 | R22: Fundações | S22: UN | T22: =OFFSET(CÁLCULO!H$15,ROW($T22)-ROW(T$15),0) -> 25 | U22: 12986.05 | V22: BDI 1 | W22: =IF($C22="S",ROUND(IF(TIPOORCAMENTO="Proposto",ORÇAMENTO.CustoUnitario*(1+$AH22),ORÇAMENTO.PrecoUnitarioLicitado),15-13*$AF$10),0) -> 16557.21 | X22: =IF($C22="S",IF(OR(Import.TipoArredondamento<>"TransfereGOV",ACOMPANHAMENTO="BM"),VTOTAL1,SUM(OFFSET(CÁLCULO!$AQ$15,ROW($X22)-ROW($X$15),1):OFFSET(CÁLCULO!$BR$15,ROW($X22)-ROW($X$15),-1))),IF($C22=0,0,ROUND(SomaAgrup,15-13*$AF$11))) -> 413930.25 | Y22: RA | Z22: RA | AA22: =IF($C22="S",IF($Z22="CP",$X22,IF($Z22="RA",(($X22)*QCI!$AA$3),0)),SomaAgrup) -> 15886.47808 | AB22: =IF($C22="S",IF($Z22="OU",ROUND($X22,2),0),SomaAgrup) -> 0 | AC22: =IF($N22=""," ", IF(AND($C22<>"S",OR($R22="",$R22="(digite a descrição aqui)")),"DESCRIÇÃO", IF(AND($C22="S",OR($Q22<>"",$T22>0,$U22>0),$P22=""),"FONTE", IF(AND($C22="S",$P22<>"",OR($T22>0,$U22>0),$Q22=""),"CÓDIGO", IF(AND($C22="S",$P22<>"",$Q22<>"",$R22="(Código não identificado nas referências)"),"CÓDIGO N/ID", IF(AND($C22="S",OR($R22="",$R22="(digite a descrição aqui)"),OR($Q22<>"",$T22>0,$U22>0)),"DESCRIÇÃO", IF(AND($C22="S",$P22<>"",$Q22<>"",$S22=""),"UNIDADE", IF(AND($C22="S",$P22<>"",$Q22<>"",$U22=0),"SEM CUSTO", IF(AND(TIPOORCAMENTO="Licitado",$AL22=0,$AN22>0),"SEM PREÇO", IF(AND($C22="S",$P22<>"",$Q22<>"",$U22>0,AND($V22<>"BDI 1",$V22<>"BDI 2",$V22<>"BDI 3")),IF(ISNUMBER($V22),"JUSTIFICAR BDI","BDI"), IF(OR(AND(import.recurso="OGU",TIPOORCAMENTO="Proposto",LEFT($O$8,5)<>"(N/D:",$AG22<>"",ORÇAMENTO.CustoUnitario>$AG22),AND(TIPOORCAMENTO="LICITADO",ORÇAMENTO.PrecoUnitarioLicitado>$AN22)),"ACIMA REF.", IF(AND($C22="S",$P22<>"",$Q22<>"",$T22=0,$U22>0),"QUANT.", IF(AND(Import.TipoArredondamento="TransfereGOV",$L22="F",$C22="S",LEN($Q22)>13),"Código >13", IF(AND(Import.TipoArredondamento="TransfereGOV",$L22="F",$C22<>"S",LEN($R22)>100),"Descrição >100", IF(AND(Import.TipoArredondamento="TransfereGOV",$L22="F",$C22="S",LEN($R22)>500),"Descrição >500", IF(AND(Import.TipoArredondamento="TransfereGOV",$L22="F",$C22="S",LEFT(TRIM(UPPER($P22)),6)<>"SINAPI",ISNA(VLOOKUP(TRIM(UPPER($S22)),ListaTgov.Unidades,1,FALSE))),"Unid. Não Disp", " ")))))))))))))))) ->  | AD22: =IF(C22<=CRONO.NivelExibicao,MAX($AD$15:OFFSET(AD22,-1,0))+IF($C22<>1,1,MAX(1,COUNTIF(QCI!$A$13:$A$24,OFFSET($E22,-1,0)))),"") ->  | AE22: =IF(AND($C22="S",ORÇAMENTO.CodBarra<>""),IF(ORÇAMENTO.Fonte="",ORÇAMENTO.CodBarra,CONCATENATE(ORÇAMENTO.Fonte," ",ORÇAMENTO.CodBarra))) -> Cotação 3 | AF22: =IF(ISERROR(ORÇAMENTO.BancoRef),"(abra o arquivo 'Referência "&Excel_BuiltIn_Database&".xlsm)",IF(OR($C22<>"S",ORÇAMENTO.CodBarra=""),"(Sem Código)",IF(ISERROR(MATCH($AE22,INDIRECT(ORÇAMENTO.BancoRef),0)),"(Código não identificado nas referências)",MATCH($AE22,INDIRECT(ORÇAMENTO.BancoRef),0)))) -> (Código não identificado nas referências) | AG22: =ROUND(IF(DESONERACAO="sim",REFERENCIA.Desonerado,REFERENCIA.NaoDesonerado),2) -> 0 | AH22: 0.275 | AM22: 413930.25 | AN22: =ROUND(ORÇAMENTO.CustoUnitario*(1+$AH22),2) -> 16557.21
A23: =CHOOSE(1+LOG(1+2*(ORÇAMENTO.Nivel="Meta")+4*(ORÇAMENTO.Nivel="Nível 2")+8*(ORÇAMENTO.Nivel="Nível 3")+16*(ORÇAMENTO.Nivel="Nível 4")+32*(ORÇAMENTO.Nivel="Serviço"),2),0,1,2,3,4,"S") -> 2 | B23: =IF(OR(C23="s",C23=0),OFFSET(B23,-1,0),C23) -> 2 | C23: =IF(OFFSET(C23,-1,0)="L",1,IF(OFFSET(C23,-1,0)=1,2,IF(OR(A23="s",A23=0),"S",IF(AND(OFFSET(C23,-1,0)=2,A23=4),3,IF(AND(OR(OFFSET(C23,-1,0)="s",OFFSET(C23,-1,0)=0),A23<>"s",A23>OFFSET(B23,-1,0)),OFFSET(B23,-1,0),A23))))) -> 2 | D23: =IF(OR(C23="S",C23=0),0,IF(ISERROR(K23),J23,SMALL(J23:K23,1))) -> 2 | E23: =IF($C23=1,OFFSET(E23,-1,0)+MAX(1,COUNTIF(QCI!$A$13:$A$24,OFFSET(ORÇAMENTO!E23,-1,0))),OFFSET(E23,-1,0)) -> 1 | F23: =IF($C23=1,0,IF($C23=2,OFFSET(F23,-1,0)+1,OFFSET(F23,-1,0))) -> 4 | G23: =IF(AND($C23<=2,$C23<>0),0,IF($C23=3,OFFSET(G23,-1,0)+1,OFFSET(G23,-1,0))) -> 0 | H23: =IF(AND($C23<=3,$C23<>0),0,IF($C23=4,OFFSET(H23,-1,0)+1,OFFSET(H23,-1,0))) -> 0 | I23: =IF(AND($C23<=4,$C23<>0),0,IF(AND($C23="S",$X23>0),OFFSET(I23,-1,0)+1,OFFSET(I23,-1,0))) -> 0 | J23: 14 | K23: =IF(OR($C23="S",$C23=0),0,MATCH(OFFSET($D23,0,$C23)+IF($C23<>1,1,COUNTIF(QCI!$A$13:$A$24,ORÇAMENTO!E23)),OFFSET($D23,1,$C23,ROW($C$37)-ROW($C23)),0)) -> 2 | L23: =IF(OR($X23>0,$C23=1,$C23=2,$C23=3,$C23=4),"F","") -> F | M23: Nível 2 | N23: =CHOOSE(1+LOG(1+2*(C23=1)+4*(C23=2)+8*(C23=3)+16*(C23=4)+32*(C23="S"),2),"","Meta","Nível 2","Nível 3","Nível 4","Serviço") -> Nível 2 | O23: =IF(OR($C23=0,$L23=""),"-",CONCATENATE(E23&".",IF(AND($A$5>=2,$C23>=2),F23&".",""),IF(AND($A$5>=3,$C23>=3),G23&".",""),IF(AND($A$5>=4,$C23>=4),H23&".",""),IF($C23="S",I23&".",""))) -> 1.4. | P23: SINAPI | R23: Superestrutura | S23: =REFERENCIA.Unidade -> - | T23: =OFFSET(CÁLCULO!H$15,ROW($T23)-ROW(T$15),0) -> 0 | V23: BDI 1 | W23: =IF($C23="S",ROUND(IF(TIPOORCAMENTO="Proposto",ORÇAMENTO.CustoUnitario*(1+$AH23),ORÇAMENTO.PrecoUnitarioLicitado),15-13*$AF$10),0) -> 0 | X23: =IF($C23="S",IF(OR(Import.TipoArredondamento<>"TransfereGOV",ACOMPANHAMENTO="BM"),VTOTAL1,SUM(OFFSET(CÁLCULO!$AQ$15,ROW($X23)-ROW($X$15),1):OFFSET(CÁLCULO!$BR$15,ROW($X23)-ROW($X$15),-1))),IF($C23=0,0,ROUND(SomaAgrup,15-13*$AF$11))) -> 405565.5 | Y23: RA | Z23: =IF(AND($C23="S",$X23>0),IF(ISBLANK($Y23),"RA",LEFT($Y23,2)),"") ->  | AA23: =IF($C23="S",IF($Z23="CP",$X23,IF($Z23="RA",(($X23)*QCI!$AA$3),0)),SomaAgrup) -> 15565.4423 | AB23: =IF($C23="S",IF($Z23="OU",ROUND($X23,2),0),SomaAgrup) -> 0 | AC23: =IF($N23=""," ", IF(AND($C23<>"S",OR($R23="",$R23="(digite a descrição aqui)")),"DESCRIÇÃO", IF(AND($C23="S",OR($Q23<>"",$T23>0,$U23>0),$P23=""),"FONTE", IF(AND($C23="S",$P23<>"",OR($T23>0,$U23>0),$Q23=""),"CÓDIGO", IF(AND($C23="S",$P23<>"",$Q23<>"",$R23="(Código não identificado nas referências)"),"CÓDIGO N/ID", IF(AND($C23="S",OR($R23="",$R23="(digite a descrição aqui)"),OR($Q23<>"",$T23>0,$U23>0)),"DESCRIÇÃO", IF(AND($C23="S",$P23<>"",$Q23<>"",$S23=""),"UNIDADE", IF(AND($C23="S",$P23<>"",$Q23<>"",$U23=0),"SEM CUSTO", IF(AND(TIPOORCAMENTO="Licitado",$AL23=0,$AN23>0),"SEM PREÇO", IF(AND($C23="S",$P23<>"",$Q23<>"",$U23>0,AND($V23<>"BDI 1",$V23<>"BDI 2",$V23<>"BDI 3")),IF(ISNUMBER($V23),"JUSTIFICAR BDI","BDI"), IF(OR(AND(import.recurso="OGU",TIPOORCAMENTO="Proposto",LEFT($O$8,5)<>"(N/D:",$AG23<>"",ORÇAMENTO.CustoUnitario>$AG23),AND(TIPOORCAMENTO="LICITADO",ORÇAMENTO.PrecoUnitarioLicitado>$AN23)),"ACIMA REF.", IF(AND($C23="S",$P23<>"",$Q23<>"",$T23=0,$U23>0),"QUANT.", IF(AND(Import.TipoArredondamento="TransfereGOV",$L23="F",$C23="S",LEN($Q23)>13),"Código >13", IF(AND(Import.TipoArredondamento="TransfereGOV",$L23="F",$C23<>"S",LEN($R23)>100),"Descrição >100", IF(AND(Import.TipoArredondamento="TransfereGOV",$L23="F",$C23="S",LEN($R23)>500),"Descrição >500", IF(AND(Import.TipoArredondamento="TransfereGOV",$L23="F",$C23="S",LEFT(TRIM(UPPER($P23)),6)<>"SINAPI",ISNA(VLOOKUP(TRIM(UPPER($S23)),ListaTgov.Unidades,1,FALSE))),"Unid. Não Disp", " ")))))))))))))))) ->  | AD23: =IF(C23<=CRONO.NivelExibicao,MAX($AD$15:OFFSET(AD23,-1,0))+IF($C23<>1,1,MAX(1,COUNTIF(QCI!$A$13:$A$24,OFFSET($E23,-1,0)))),"") -> 5 | AE23: =IF(AND($C23="S",ORÇAMENTO.CodBarra<>""),IF(ORÇAMENTO.Fonte="",ORÇAMENTO.CodBarra,CONCATENATE(ORÇAMENTO.Fonte," ",ORÇAMENTO.CodBarra))) -> FALSE | AF23: =IF(ISERROR(ORÇAMENTO.BancoRef),"(abra o arquivo 'Referência "&Excel_BuiltIn_Database&".xlsm)",IF(OR($C23<>"S",ORÇAMENTO.CodBarra=""),"(Sem Código)",IF(ISERROR(MATCH($AE23,INDIRECT(ORÇAMENTO.BancoRef),0)),"(Código não identificado nas referências)",MATCH($AE23,INDIRECT(ORÇAMENTO.BancoRef),0)))) -> (Sem Código) | AG23: =ROUND(IF(DESONERACAO="sim",REFERENCIA.Desonerado,REFERENCIA.NaoDesonerado),2) -> 0 | AH23: =ROUND(IF(ISNUMBER(ORÇAMENTO.OpcaoBDI),ORÇAMENTO.OpcaoBDI,IF(LEFT(ORÇAMENTO.OpcaoBDI,3)="BDI",HLOOKUP(ORÇAMENTO.OpcaoBDI,$F$4:$H$5,2,FALSE),0)),15-11*$AF$9) -> 0.275 | AM23: 405565.5 | AN23: =ROUND(ORÇAMENTO.CustoUnitario*(1+$AH23),2) -> 0
A24: S | B24: 2 | C24: S | D24: 0 | E24: =IF($C24=1,OFFSET(E24,-1,0)+MAX(1,COUNTIF(QCI!$A$13:$A$24,OFFSET(ORÇAMENTO!E24,-1,0))),OFFSET(E24,-1,0)) -> 1 | F24: 4 | G24: 0 | H24: 0 | I24: 1 | J24: 0 | K24: =IF(OR($C24="S",$C24=0),0,MATCH(OFFSET($D24,0,$C24)+IF($C24<>1,1,COUNTIF(QCI!$A$13:$A$24,ORÇAMENTO!E24)),OFFSET($D24,1,$C24,ROW($C$37)-ROW($C24)),0)) -> 0 | L24: F | M24: Serviço | N24: Serviço | O24: 1.4.1. | P24: Cotação | Q24: 4 | R24: Superestrutura | S24: UN | T24: =OFFSET(CÁLCULO!H$15,ROW($T24)-ROW(T$15),0) -> 25 | U24: 12723.62 | V24: BDI 1 | W24: =IF($C24="S",ROUND(IF(TIPOORCAMENTO="Proposto",ORÇAMENTO.CustoUnitario*(1+$AH24),ORÇAMENTO.PrecoUnitarioLicitado),15-13*$AF$10),0) -> 16222.62 | X24: =IF($C24="S",IF(OR(Import.TipoArredondamento<>"TransfereGOV",ACOMPANHAMENTO="BM"),VTOTAL1,SUM(OFFSET(CÁLCULO!$AQ$15,ROW($X24)-ROW($X$15),1):OFFSET(CÁLCULO!$BR$15,ROW($X24)-ROW($X$15),-1))),IF($C24=0,0,ROUND(SomaAgrup,15-13*$AF$11))) -> 405565.5 | Y24: RA | Z24: RA | AA24: =IF($C24="S",IF($Z24="CP",$X24,IF($Z24="RA",(($X24)*QCI!$AA$3),0)),SomaAgrup) -> 15565.4423 | AB24: =IF($C24="S",IF($Z24="OU",ROUND($X24,2),0),SomaAgrup) -> 0 | AC24: =IF($N24=""," ", IF(AND($C24<>"S",OR($R24="",$R24="(digite a descrição aqui)")),"DESCRIÇÃO", IF(AND($C24="S",OR($Q24<>"",$T24>0,$U24>0),$P24=""),"FONTE", IF(AND($C24="S",$P24<>"",OR($T24>0,$U24>0),$Q24=""),"CÓDIGO", IF(AND($C24="S",$P24<>"",$Q24<>"",$R24="(Código não identificado nas referências)"),"CÓDIGO N/ID", IF(AND($C24="S",OR($R24="",$R24="(digite a descrição aqui)"),OR($Q24<>"",$T24>0,$U24>0)),"DESCRIÇÃO", IF(AND($C24="S",$P24<>"",$Q24<>"",$S24=""),"UNIDADE", IF(AND($C24="S",$P24<>"",$Q24<>"",$U24=0),"SEM CUSTO", IF(AND(TIPOORCAMENTO="Licitado",$AL24=0,$AN24>0),"SEM PREÇO", IF(AND($C24="S",$P24<>"",$Q24<>"",$U24>0,AND($V24<>"BDI 1",$V24<>"BDI 2",$V24<>"BDI 3")),IF(ISNUMBER($V24),"JUSTIFICAR BDI","BDI"), IF(OR(AND(import.recurso="OGU",TIPOORCAMENTO="Proposto",LEFT($O$8,5)<>"(N/D:",$AG24<>"",ORÇAMENTO.CustoUnitario>$AG24),AND(TIPOORCAMENTO="LICITADO",ORÇAMENTO.PrecoUnitarioLicitado>$AN24)),"ACIMA REF.", IF(AND($C24="S",$P24<>"",$Q24<>"",$T24=0,$U24>0),"QUANT.", IF(AND(Import.TipoArredondamento="TransfereGOV",$L24="F",$C24="S",LEN($Q24)>13),"Código >13", IF(AND(Import.TipoArredondamento="TransfereGOV",$L24="F",$C24<>"S",LEN($R24)>100),"Descrição >100", IF(AND(Import.TipoArredondamento="TransfereGOV",$L24="F",$C24="S",LEN($R24)>500),"Descrição >500", IF(AND(Import.TipoArredondamento="TransfereGOV",$L24="F",$C24="S",LEFT(TRIM(UPPER($P24)),6)<>"SINAPI",ISNA(VLOOKUP(TRIM(UPPER($S24)),ListaTgov.Unidades,1,FALSE))),"Unid. Não Disp", " ")))))))))))))))) ->  | AD24: =IF(C24<=CRONO.NivelExibicao,MAX($AD$15:OFFSET(AD24,-1,0))+IF($C24<>1,1,MAX(1,COUNTIF(QCI!$A$13:$A$24,OFFSET($E24,-1,0)))),"") ->  | AE24: =IF(AND($C24="S",ORÇAMENTO.CodBarra<>""),IF(ORÇAMENTO.Fonte="",ORÇAMENTO.CodBarra,CONCATENATE(ORÇAMENTO.Fonte," ",ORÇAMENTO.CodBarra))) -> Cotação 4 | AF24: =IF(ISERROR(ORÇAMENTO.BancoRef),"(abra o arquivo 'Referência "&Excel_BuiltIn_Database&".xlsm)",IF(OR($C24<>"S",ORÇAMENTO.CodBarra=""),"(Sem Código)",IF(ISERROR(MATCH($AE24,INDIRECT(ORÇAMENTO.BancoRef),0)),"(Código não identificado nas referências)",MATCH($AE24,INDIRECT(ORÇAMENTO.BancoRef),0)))) -> (Código não identificado nas referências) | AG24: =ROUND(IF(DESONERACAO="sim",REFERENCIA.Desonerado,REFERENCIA.NaoDesonerado),2) -> 0 | AH24: 0.275 | AM24: 405565.5 | AN24: =ROUND(ORÇAMENTO.CustoUnitario*(1+$AH24),2) -> 16222.62
A25: =CHOOSE(1+LOG(1+2*(ORÇAMENTO.Nivel="Meta")+4*(ORÇAMENTO.Nivel="Nível 2")+8*(ORÇAMENTO.Nivel="Nível 3")+16*(ORÇAMENTO.Nivel="Nível 4")+32*(ORÇAMENTO.Nivel="Serviço"),2),0,1,2,3,4,"S") -> 2 | B25: =IF(OR(C25="s",C25=0),OFFSET(B25,-1,0),C25) -> 2 | C25: =IF(OFFSET(C25,-1,0)="L",1,IF(OFFSET(C25,-1,0)=1,2,IF(OR(A25="s",A25=0),"S",IF(AND(OFFSET(C25,-1,0)=2,A25=4),3,IF(AND(OR(OFFSET(C25,-1,0)="s",OFFSET(C25,-1,0)=0),A25<>"s",A25>OFFSET(B25,-1,0)),OFFSET(B25,-1,0),A25))))) -> 2 | D25: =IF(OR(C25="S",C25=0),0,IF(ISERROR(K25),J25,SMALL(J25:K25,1))) -> 2 | E25: =IF($C25=1,OFFSET(E25,-1,0)+MAX(1,COUNTIF(QCI!$A$13:$A$24,OFFSET(ORÇAMENTO!E25,-1,0))),OFFSET(E25,-1,0)) -> 1 | F25: =IF($C25=1,0,IF($C25=2,OFFSET(F25,-1,0)+1,OFFSET(F25,-1,0))) -> 5 | G25: =IF(AND($C25<=2,$C25<>0),0,IF($C25=3,OFFSET(G25,-1,0)+1,OFFSET(G25,-1,0))) -> 0 | H25: =IF(AND($C25<=3,$C25<>0),0,IF($C25=4,OFFSET(H25,-1,0)+1,OFFSET(H25,-1,0))) -> 0 | I25: =IF(AND($C25<=4,$C25<>0),0,IF(AND($C25="S",$X25>0),OFFSET(I25,-1,0)+1,OFFSET(I25,-1,0))) -> 0 | J25: 12 | K25: =IF(OR($C25="S",$C25=0),0,MATCH(OFFSET($D25,0,$C25)+IF($C25<>1,1,COUNTIF(QCI!$A$13:$A$24,ORÇAMENTO!E25)),OFFSET($D25,1,$C25,ROW($C$37)-ROW($C25)),0)) -> 2 | L25: =IF(OR($X25>0,$C25=1,$C25=2,$C25=3,$C25=4),"F","") -> F | M25: Nível 2 | N25: =CHOOSE(1+LOG(1+2*(C25=1)+4*(C25=2)+8*(C25=3)+16*(C25=4)+32*(C25="S"),2),"","Meta","Nível 2","Nível 3","Nível 4","Serviço") -> Nível 2 | O25: =IF(OR($C25=0,$L25=""),"-",CONCATENATE(E25&".",IF(AND($A$5>=2,$C25>=2),F25&".",""),IF(AND($A$5>=3,$C25>=3),G25&".",""),IF(AND($A$5>=4,$C25>=4),H25&".",""),IF($C25="S",I25&".",""))) -> 1.5. | P25: SINAPI | R25: Paredes e Painéis | S25: =REFERENCIA.Unidade -> - | T25: =OFFSET(CÁLCULO!H$15,ROW($T25)-ROW(T$15),0) -> 0 | V25: BDI 1 | W25: =IF($C25="S",ROUND(IF(TIPOORCAMENTO="Proposto",ORÇAMENTO.CustoUnitario*(1+$AH25),ORÇAMENTO.PrecoUnitarioLicitado),15-13*$AF$10),0) -> 0 | X25: =IF($C25="S",IF(OR(Import.TipoArredondamento<>"TransfereGOV",ACOMPANHAMENTO="BM"),VTOTAL1,SUM(OFFSET(CÁLCULO!$AQ$15,ROW($X25)-ROW($X$15),1):OFFSET(CÁLCULO!$BR$15,ROW($X25)-ROW($X$15),-1))),IF($C25=0,0,ROUND(SomaAgrup,15-13*$AF$11))) -> 506957 | Y25: RA | Z25: =IF(AND($C25="S",$X25>0),IF(ISBLANK($Y25),"RA",LEFT($Y25,2)),"") ->  | AA25: =IF($C25="S",IF($Z25="CP",$X25,IF($Z25="RA",(($X25)*QCI!$AA$3),0)),SomaAgrup) -> 19456.80768 | AB25: =IF($C25="S",IF($Z25="OU",ROUND($X25,2),0),SomaAgrup) -> 0 | AC25: =IF($N25=""," ", IF(AND($C25<>"S",OR($R25="",$R25="(digite a descrição aqui)")),"DESCRIÇÃO", IF(AND($C25="S",OR($Q25<>"",$T25>0,$U25>0),$P25=""),"FONTE", IF(AND($C25="S",$P25<>"",OR($T25>0,$U25>0),$Q25=""),"CÓDIGO", IF(AND($C25="S",$P25<>"",$Q25<>"",$R25="(Código não identificado nas referências)"),"CÓDIGO N/ID", IF(AND($C25="S",OR($R25="",$R25="(digite a descrição aqui)"),OR($Q25<>"",$T25>0,$U25>0)),"DESCRIÇÃO", IF(AND($C25="S",$P25<>"",$Q25<>"",$S25=""),"UNIDADE", IF(AND($C25="S",$P25<>"",$Q25<>"",$U25=0),"SEM CUSTO", IF(AND(TIPOORCAMENTO="Licitado",$AL25=0,$AN25>0),"SEM PREÇO", IF(AND($C25="S",$P25<>"",$Q25<>"",$U25>0,AND($V25<>"BDI 1",$V25<>"BDI 2",$V25<>"BDI 3")),IF(ISNUMBER($V25),"JUSTIFICAR BDI","BDI"), IF(OR(AND(import.recurso="OGU",TIPOORCAMENTO="Proposto",LEFT($O$8,5)<>"(N/D:",$AG25<>"",ORÇAMENTO.CustoUnitario>$AG25),AND(TIPOORCAMENTO="LICITADO",ORÇAMENTO.PrecoUnitarioLicitado>$AN25)),"ACIMA REF.", IF(AND($C25="S",$P25<>"",$Q25<>"",$T25=0,$U25>0),"QUANT.", IF(AND(Import.TipoArredondamento="TransfereGOV",$L25="F",$C25="S",LEN($Q25)>13),"Código >13", IF(AND(Import.TipoArredondamento="TransfereGOV",$L25="F",$C25<>"S",LEN($R25)>100),"Descrição >100", IF(AND(Import.TipoArredondamento="TransfereGOV",$L25="F",$C25="S",LEN($R25)>500),"Descrição >500", IF(AND(Import.TipoArredondamento="TransfereGOV",$L25="F",$C25="S",LEFT(TRIM(UPPER($P25)),6)<>"SINAPI",ISNA(VLOOKUP(TRIM(UPPER($S25)),ListaTgov.Unidades,1,FALSE))),"Unid. Não Disp", " ")))))))))))))))) ->  | AD25: =IF(C25<=CRONO.NivelExibicao,MAX($AD$15:OFFSET(AD25,-1,0))+IF($C25<>1,1,MAX(1,COUNTIF(QCI!$A$13:$A$24,OFFSET($E25,-1,0)))),"") -> 6 | AE25: =IF(AND($C25="S",ORÇAMENTO.CodBarra<>""),IF(ORÇAMENTO.Fonte="",ORÇAMENTO.CodBarra,CONCATENATE(ORÇAMENTO.Fonte," ",ORÇAMENTO.CodBarra))) -> FALSE | AF25: =IF(ISERROR(ORÇAMENTO.BancoRef),"(abra o arquivo 'Referência "&Excel_BuiltIn_Database&".xlsm)",IF(OR($C25<>"S",ORÇAMENTO.CodBarra=""),"(Sem Código)",IF(ISERROR(MATCH($AE25,INDIRECT(ORÇAMENTO.BancoRef),0)),"(Código não identificado nas referências)",MATCH($AE25,INDIRECT(ORÇAMENTO.BancoRef),0)))) -> (Sem Código) | AG25: =ROUND(IF(DESONERACAO="sim",REFERENCIA.Desonerado,REFERENCIA.NaoDesonerado),2) -> 0 | AH25: =ROUND(IF(ISNUMBER(ORÇAMENTO.OpcaoBDI),ORÇAMENTO.OpcaoBDI,IF(LEFT(ORÇAMENTO.OpcaoBDI,3)="BDI",HLOOKUP(ORÇAMENTO.OpcaoBDI,$F$4:$H$5,2,FALSE),0)),15-11*$AF$9) -> 0.275 | AM25: =$X25 -> 506957 | AN25: =ROUND(ORÇAMENTO.CustoUnitario*(1+$AH25),2) -> 0
A26: S | B26: 2 | C26: S | D26: 0 | E26: =IF($C26=1,OFFSET(E26,-1,0)+MAX(1,COUNTIF(QCI!$A$13:$A$24,OFFSET(ORÇAMENTO!E26,-1,0))),OFFSET(E26,-1,0)) -> 1 | F26: 5 | G26: 0 | H26: 0 | I26: 1 | J26: 0 | K26: =IF(OR($C26="S",$C26=0),0,MATCH(OFFSET($D26,0,$C26)+IF($C26<>1,1,COUNTIF(QCI!$A$13:$A$24,ORÇAMENTO!E26)),OFFSET($D26,1,$C26,ROW($C$37)-ROW($C26)),0)) -> 0 | L26: F | M26: Serviço | N26: Serviço | O26: 1.5.1. | P26: Cotação | Q26: 5 | R26: Paredes e Painéis | S26: UN | T26: =OFFSET(CÁLCULO!H$15,ROW($T26)-ROW(T$15),0) -> 25 | U26: 15904.53 | V26: BDI 1 | W26: =IF($C26="S",ROUND(IF(TIPOORCAMENTO="Proposto",ORÇAMENTO.CustoUnitario*(1+$AH26),ORÇAMENTO.PrecoUnitarioLicitado),15-13*$AF$10),0) -> 20278.28 | X26: =IF($C26="S",IF(OR(Import.TipoArredondamento<>"TransfereGOV",ACOMPANHAMENTO="BM"),VTOTAL1,SUM(OFFSET(CÁLCULO!$AQ$15,ROW($X26)-ROW($X$15),1):OFFSET(CÁLCULO!$BR$15,ROW($X26)-ROW($X$15),-1))),IF($C26=0,0,ROUND(SomaAgrup,15-13*$AF$11))) -> 506957 | Y26: RA | Z26: RA | AA26: =IF($C26="S",IF($Z26="CP",$X26,IF($Z26="RA",(($X26)*QCI!$AA$3),0)),SomaAgrup) -> 19456.80768 | AB26: =IF($C26="S",IF($Z26="OU",ROUND($X26,2),0),SomaAgrup) -> 0 | AC26: =IF($N26=""," ", IF(AND($C26<>"S",OR($R26="",$R26="(digite a descrição aqui)")),"DESCRIÇÃO", IF(AND($C26="S",OR($Q26<>"",$T26>0,$U26>0),$P26=""),"FONTE", IF(AND($C26="S",$P26<>"",OR($T26>0,$U26>0),$Q26=""),"CÓDIGO", IF(AND($C26="S",$P26<>"",$Q26<>"",$R26="(Código não identificado nas referências)"),"CÓDIGO N/ID", IF(AND($C26="S",OR($R26="",$R26="(digite a descrição aqui)"),OR($Q26<>"",$T26>0,$U26>0)),"DESCRIÇÃO", IF(AND($C26="S",$P26<>"",$Q26<>"",$S26=""),"UNIDADE", IF(AND($C26="S",$P26<>"",$Q26<>"",$U26=0),"SEM CUSTO", IF(AND(TIPOORCAMENTO="Licitado",$AL26=0,$AN26>0),"SEM PREÇO", IF(AND($C26="S",$P26<>"",$Q26<>"",$U26>0,AND($V26<>"BDI 1",$V26<>"BDI 2",$V26<>"BDI 3")),IF(ISNUMBER($V26),"JUSTIFICAR BDI","BDI"), IF(OR(AND(import.recurso="OGU",TIPOORCAMENTO="Proposto",LEFT($O$8,5)<>"(N/D:",$AG26<>"",ORÇAMENTO.CustoUnitario>$AG26),AND(TIPOORCAMENTO="LICITADO",ORÇAMENTO.PrecoUnitarioLicitado>$AN26)),"ACIMA REF.", IF(AND($C26="S",$P26<>"",$Q26<>"",$T26=0,$U26>0),"QUANT.", IF(AND(Import.TipoArredondamento="TransfereGOV",$L26="F",$C26="S",LEN($Q26)>13),"Código >13", IF(AND(Import.TipoArredondamento="TransfereGOV",$L26="F",$C26<>"S",LEN($R26)>100),"Descrição >100", IF(AND(Import.TipoArredondamento="TransfereGOV",$L26="F",$C26="S",LEN($R26)>500),"Descrição >500", IF(AND(Import.TipoArredondamento="TransfereGOV",$L26="F",$C26="S",LEFT(TRIM(UPPER($P26)),6)<>"SINAPI",ISNA(VLOOKUP(TRIM(UPPER($S26)),ListaTgov.Unidades,1,FALSE))),"Unid. Não Disp", " ")))))))))))))))) ->  | AD26: =IF(C26<=CRONO.NivelExibicao,MAX($AD$15:OFFSET(AD26,-1,0))+IF($C26<>1,1,MAX(1,COUNTIF(QCI!$A$13:$A$24,OFFSET($E26,-1,0)))),"") ->  | AE26: =IF(AND($C26="S",ORÇAMENTO.CodBarra<>""),IF(ORÇAMENTO.Fonte="",ORÇAMENTO.CodBarra,CONCATENATE(ORÇAMENTO.Fonte," ",ORÇAMENTO.CodBarra))) -> Cotação 5 | AF26: =IF(ISERROR(ORÇAMENTO.BancoRef),"(abra o arquivo 'Referência "&Excel_BuiltIn_Database&".xlsm)",IF(OR($C26<>"S",ORÇAMENTO.CodBarra=""),"(Sem Código)",IF(ISERROR(MATCH($AE26,INDIRECT(ORÇAMENTO.BancoRef),0)),"(Código não identificado nas referências)",MATCH($AE26,INDIRECT(ORÇAMENTO.BancoRef),0)))) -> (Código não identificado nas referências) | AG26: =ROUND(IF(DESONERACAO="sim",REFERENCIA.Desonerado,REFERENCIA.NaoDesonerado),2) -> 0 | AH26: 0.275 | AM26: 506957 | AN26: =ROUND(ORÇAMENTO.CustoUnitario*(1+$AH26),2) -> 20278.28
A27: =CHOOSE(1+LOG(1+2*(ORÇAMENTO.Nivel="Meta")+4*(ORÇAMENTO.Nivel="Nível 2")+8*(ORÇAMENTO.Nivel="Nível 3")+16*(ORÇAMENTO.Nivel="Nível 4")+32*(ORÇAMENTO.Nivel="Serviço"),2),0,1,2,3,4,"S") -> 2 | B27: =IF(OR(C27="s",C27=0),OFFSET(B27,-1,0),C27) -> 2 | C27: =IF(OFFSET(C27,-1,0)="L",1,IF(OFFSET(C27,-1,0)=1,2,IF(OR(A27="s",A27=0),"S",IF(AND(OFFSET(C27,-1,0)=2,A27=4),3,IF(AND(OR(OFFSET(C27,-1,0)="s",OFFSET(C27,-1,0)=0),A27<>"s",A27>OFFSET(B27,-1,0)),OFFSET(B27,-1,0),A27))))) -> 2 | D27: =IF(OR(C27="S",C27=0),0,IF(ISERROR(K27),J27,SMALL(J27:K27,1))) -> 2 | E27: =IF($C27=1,OFFSET(E27,-1,0)+MAX(1,COUNTIF(QCI!$A$13:$A$24,OFFSET(ORÇAMENTO!E27,-1,0))),OFFSET(E27,-1,0)) -> 1 | F27: =IF($C27=1,0,IF($C27=2,OFFSET(F27,-1,0)+1,OFFSET(F27,-1,0))) -> 6 | G27: =IF(AND($C27<=2,$C27<>0),0,IF($C27=3,OFFSET(G27,-1,0)+1,OFFSET(G27,-1,0))) -> 0 | H27: =IF(AND($C27<=3,$C27<>0),0,IF($C27=4,OFFSET(H27,-1,0)+1,OFFSET(H27,-1,0))) -> 0 | I27: =IF(AND($C27<=4,$C27<>0),0,IF(AND($C27="S",$X27>0),OFFSET(I27,-1,0)+1,OFFSET(I27,-1,0))) -> 0 | J27: 10 | K27: =IF(OR($C27="S",$C27=0),0,MATCH(OFFSET($D27,0,$C27)+IF($C27<>1,1,COUNTIF(QCI!$A$13:$A$24,ORÇAMENTO!E27)),OFFSET($D27,1,$C27,ROW($C$37)-ROW($C27)),0)) -> 2 | L27: =IF(OR($X27>0,$C27=1,$C27=2,$C27=3,$C27=4),"F","") -> F | M27: Nível 2 | N27: =CHOOSE(1+LOG(1+2*(C27=1)+4*(C27=2)+8*(C27=3)+16*(C27=4)+32*(C27="S"),2),"","Meta","Nível 2","Nível 3","Nível 4","Serviço") -> Nível 2 | O27: =IF(OR($C27=0,$L27=""),"-",CONCATENATE(E27&".",IF(AND($A$5>=2,$C27>=2),F27&".",""),IF(AND($A$5>=3,$C27>=3),G27&".",""),IF(AND($A$5>=4,$C27>=4),H27&".",""),IF($C27="S",I27&".",""))) -> 1.6. | P27: SINAPI | R27: Cobertura e Proteções | S27: =REFERENCIA.Unidade -> - | T27: =OFFSET(CÁLCULO!H$15,ROW($T27)-ROW(T$15),0) -> 0 | V27: BDI 1 | W27: =IF($C27="S",ROUND(IF(TIPOORCAMENTO="Proposto",ORÇAMENTO.CustoUnitario*(1+$AH27),ORÇAMENTO.PrecoUnitarioLicitado),15-13*$AF$10),0) -> 0 | X27: =IF($C27="S",IF(OR(Import.TipoArredondamento<>"TransfereGOV",ACOMPANHAMENTO="BM"),VTOTAL1,SUM(OFFSET(CÁLCULO!$AQ$15,ROW($X27)-ROW($X$15),1):OFFSET(CÁLCULO!$BR$15,ROW($X27)-ROW($X$15),-1))),IF($C27=0,0,ROUND(SomaAgrup,15-13*$AF$11))) -> 669183 | Y27: RA | Z27: =IF(AND($C27="S",$X27>0),IF(ISBLANK($Y27),"RA",LEFT($Y27,2)),"") ->  | AA27: =IF($C27="S",IF($Z27="CP",$X27,IF($Z27="RA",(($X27)*QCI!$AA$3),0)),SomaAgrup) -> 25682.97692 | AB27: =IF($C27="S",IF($Z27="OU",ROUND($X27,2),0),SomaAgrup) -> 0 | AC27: =IF($N27=""," ", IF(AND($C27<>"S",OR($R27="",$R27="(digite a descrição aqui)")),"DESCRIÇÃO", IF(AND($C27="S",OR($Q27<>"",$T27>0,$U27>0),$P27=""),"FONTE", IF(AND($C27="S",$P27<>"",OR($T27>0,$U27>0),$Q27=""),"CÓDIGO", IF(AND($C27="S",$P27<>"",$Q27<>"",$R27="(Código não identificado nas referências)"),"CÓDIGO N/ID", IF(AND($C27="S",OR($R27="",$R27="(digite a descrição aqui)"),OR($Q27<>"",$T27>0,$U27>0)),"DESCRIÇÃO", IF(AND($C27="S",$P27<>"",$Q27<>"",$S27=""),"UNIDADE", IF(AND($C27="S",$P27<>"",$Q27<>"",$U27=0),"SEM CUSTO", IF(AND(TIPOORCAMENTO="Licitado",$AL27=0,$AN27>0),"SEM PREÇO", IF(AND($C27="S",$P27<>"",$Q27<>"",$U27>0,AND($V27<>"BDI 1",$V27<>"BDI 2",$V27<>"BDI 3")),IF(ISNUMBER($V27),"JUSTIFICAR BDI","BDI"), IF(OR(AND(import.recurso="OGU",TIPOORCAMENTO="Proposto",LEFT($O$8,5)<>"(N/D:",$AG27<>"",ORÇAMENTO.CustoUnitario>$AG27),AND(TIPOORCAMENTO="LICITADO",ORÇAMENTO.PrecoUnitarioLicitado>$AN27)),"ACIMA REF.", IF(AND($C27="S",$P27<>"",$Q27<>"",$T27=0,$U27>0),"QUANT.", IF(AND(Import.TipoArredondamento="TransfereGOV",$L27="F",$C27="S",LEN($Q27)>13),"Código >13", IF(AND(Import.TipoArredondamento="TransfereGOV",$L27="F",$C27<>"S",LEN($R27)>100),"Descrição >100", IF(AND(Import.TipoArredondamento="TransfereGOV",$L27="F",$C27="S",LEN($R27)>500),"Descrição >500", IF(AND(Import.TipoArredondamento="TransfereGOV",$L27="F",$C27="S",LEFT(TRIM(UPPER($P27)),6)<>"SINAPI",ISNA(VLOOKUP(TRIM(UPPER($S27)),ListaTgov.Unidades,1,FALSE))),"Unid. Não Disp", " ")))))))))))))))) ->  | AD27: =IF(C27<=CRONO.NivelExibicao,MAX($AD$15:OFFSET(AD27,-1,0))+IF($C27<>1,1,MAX(1,COUNTIF(QCI!$A$13:$A$24,OFFSET($E27,-1,0)))),"") -> 7 | AE27: =IF(AND($C27="S",ORÇAMENTO.CodBarra<>""),IF(ORÇAMENTO.Fonte="",ORÇAMENTO.CodBarra,CONCATENATE(ORÇAMENTO.Fonte," ",ORÇAMENTO.CodBarra))) -> FALSE | AF27: =IF(ISERROR(ORÇAMENTO.BancoRef),"(abra o arquivo 'Referência "&Excel_BuiltIn_Database&".xlsm)",IF(OR($C27<>"S",ORÇAMENTO.CodBarra=""),"(Sem Código)",IF(ISERROR(MATCH($AE27,INDIRECT(ORÇAMENTO.BancoRef),0)),"(Código não identificado nas referências)",MATCH($AE27,INDIRECT(ORÇAMENTO.BancoRef),0)))) -> (Sem Código) | AG27: =ROUND(IF(DESONERACAO="sim",REFERENCIA.Desonerado,REFERENCIA.NaoDesonerado),2) -> 0 | AH27: =ROUND(IF(ISNUMBER(ORÇAMENTO.OpcaoBDI),ORÇAMENTO.OpcaoBDI,IF(LEFT(ORÇAMENTO.OpcaoBDI,3)="BDI",HLOOKUP(ORÇAMENTO.OpcaoBDI,$F$4:$H$5,2,FALSE),0)),15-11*$AF$9) -> 0.275 | AM27: =$X27 -> 669183 | AN27: =ROUND(ORÇAMENTO.CustoUnitario*(1+$AH27),2) -> 0
A28: S | B28: 2 | C28: S | D28: 0 | E28: =IF($C28=1,OFFSET(E28,-1,0)+MAX(1,COUNTIF(QCI!$A$13:$A$24,OFFSET(ORÇAMENTO!E28,-1,0))),OFFSET(E28,-1,0)) -> 1 | F28: 6 | G28: 0 | H28: 0 | I28: 1 | J28: 0 | K28: =IF(OR($C28="S",$C28=0),0,MATCH(OFFSET($D28,0,$C28)+IF($C28<>1,1,COUNTIF(QCI!$A$13:$A$24,ORÇAMENTO!E28)),OFFSET($D28,1,$C28,ROW($C$37)-ROW($C28)),0)) -> 0 | L28: F | M28: Serviço | N28: Serviço | O28: 1.6.1. | P28: Cotação | Q28: 6 | R28: Cobertura e Proteções | S28: UN | T28: =OFFSET(CÁLCULO!H$15,ROW($T28)-ROW(T$15),0) -> 25 | U28: 20993.98 | V28: BDI 1 | W28: =IF($C28="S",ROUND(IF(TIPOORCAMENTO="Proposto",ORÇAMENTO.CustoUnitario*(1+$AH28),ORÇAMENTO.PrecoUnitarioLicitado),15-13*$AF$10),0) -> 26767.32 | X28: =IF($C28="S",IF(OR(Import.TipoArredondamento<>"TransfereGOV",ACOMPANHAMENTO="BM"),VTOTAL1,SUM(OFFSET(CÁLCULO!$AQ$15,ROW($X28)-ROW($X$15),1):OFFSET(CÁLCULO!$BR$15,ROW($X28)-ROW($X$15),-1))),IF($C28=0,0,ROUND(SomaAgrup,15-13*$AF$11))) -> 669183 | Y28: RA | Z28: RA | AA28: =IF($C28="S",IF($Z28="CP",$X28,IF($Z28="RA",(($X28)*QCI!$AA$3),0)),SomaAgrup) -> 25682.97692 | AB28: =IF($C28="S",IF($Z28="OU",ROUND($X28,2),0),SomaAgrup) -> 0 | AC28: =IF($N28=""," ", IF(AND($C28<>"S",OR($R28="",$R28="(digite a descrição aqui)")),"DESCRIÇÃO", IF(AND($C28="S",OR($Q28<>"",$T28>0,$U28>0),$P28=""),"FONTE", IF(AND($C28="S",$P28<>"",OR($T28>0,$U28>0),$Q28=""),"CÓDIGO", IF(AND($C28="S",$P28<>"",$Q28<>"",$R28="(Código não identificado nas referências)"),"CÓDIGO N/ID", IF(AND($C28="S",OR($R28="",$R28="(digite a descrição aqui)"),OR($Q28<>"",$T28>0,$U28>0)),"DESCRIÇÃO", IF(AND($C28="S",$P28<>"",$Q28<>"",$S28=""),"UNIDADE", IF(AND($C28="S",$P28<>"",$Q28<>"",$U28=0),"SEM CUSTO", IF(AND(TIPOORCAMENTO="Licitado",$AL28=0,$AN28>0),"SEM PREÇO", IF(AND($C28="S",$P28<>"",$Q28<>"",$U28>0,AND($V28<>"BDI 1",$V28<>"BDI 2",$V28<>"BDI 3")),IF(ISNUMBER($V28),"JUSTIFICAR BDI","BDI"), IF(OR(AND(import.recurso="OGU",TIPOORCAMENTO="Proposto",LEFT($O$8,5)<>"(N/D:",$AG28<>"",ORÇAMENTO.CustoUnitario>$AG28),AND(TIPOORCAMENTO="LICITADO",ORÇAMENTO.PrecoUnitarioLicitado>$AN28)),"ACIMA REF.", IF(AND($C28="S",$P28<>"",$Q28<>"",$T28=0,$U28>0),"QUANT.", IF(AND(Import.TipoArredondamento="TransfereGOV",$L28="F",$C28="S",LEN($Q28)>13),"Código >13", IF(AND(Import.TipoArredondamento="TransfereGOV",$L28="F",$C28<>"S",LEN($R28)>100),"Descrição >100", IF(AND(Import.TipoArredondamento="TransfereGOV",$L28="F",$C28="S",LEN($R28)>500),"Descrição >500", IF(AND(Import.TipoArredondamento="TransfereGOV",$L28="F",$C28="S",LEFT(TRIM(UPPER($P28)),6)<>"SINAPI",ISNA(VLOOKUP(TRIM(UPPER($S28)),ListaTgov.Unidades,1,FALSE))),"Unid. Não Disp", " ")))))))))))))))) ->  | AD28: =IF(C28<=CRONO.NivelExibicao,MAX($AD$15:OFFSET(AD28,-1,0))+IF($C28<>1,1,MAX(1,COUNTIF(QCI!$A$13:$A$24,OFFSET($E28,-1,0)))),"") ->  | AE28: =IF(AND($C28="S",ORÇAMENTO.CodBarra<>""),IF(ORÇAMENTO.Fonte="",ORÇAMENTO.CodBarra,CONCATENATE(ORÇAMENTO.Fonte," ",ORÇAMENTO.CodBarra))) -> Cotação 6 | AF28: =IF(ISERROR(ORÇAMENTO.BancoRef),"(abra o arquivo 'Referência "&Excel_BuiltIn_Database&".xlsm)",IF(OR($C28<>"S",ORÇAMENTO.CodBarra=""),"(Sem Código)",IF(ISERROR(MATCH($AE28,INDIRECT(ORÇAMENTO.BancoRef),0)),"(Código não identificado nas referências)",MATCH($AE28,INDIRECT(ORÇAMENTO.BancoRef),0)))) -> (Código não identificado nas referências) | AG28: =ROUND(IF(DESONERACAO="sim",REFERENCIA.Desonerado,REFERENCIA.NaoDesonerado),2) -> 0 | AH28: 0.275 | AM28: 669183 | AN28: =ROUND(ORÇAMENTO.CustoUnitario*(1+$AH28),2) -> 26767.32
A29: =CHOOSE(1+LOG(1+2*(ORÇAMENTO.Nivel="Meta")+4*(ORÇAMENTO.Nivel="Nível 2")+8*(ORÇAMENTO.Nivel="Nível 3")+16*(ORÇAMENTO.Nivel="Nível 4")+32*(ORÇAMENTO.Nivel="Serviço"),2),0,1,2,3,4,"S") -> 2 | B29: =IF(OR(C29="s",C29=0),OFFSET(B29,-1,0),C29) -> 2 | C29: =IF(OFFSET(C29,-1,0)="L",1,IF(OFFSET(C29,-1,0)=1,2,IF(OR(A29="s",A29=0),"S",IF(AND(OFFSET(C29,-1,0)=2,A29=4),3,IF(AND(OR(OFFSET(C29,-1,0)="s",OFFSET(C29,-1,0)=0),A29<>"s",A29>OFFSET(B29,-1,0)),OFFSET(B29,-1,0),A29))))) -> 2 | D29: =IF(OR(C29="S",C29=0),0,IF(ISERROR(K29),J29,SMALL(J29:K29,1))) -> 2 | E29: =IF($C29=1,OFFSET(E29,-1,0)+MAX(1,COUNTIF(QCI!$A$13:$A$24,OFFSET(ORÇAMENTO!E29,-1,0))),OFFSET(E29,-1,0)) -> 1 | F29: =IF($C29=1,0,IF($C29=2,OFFSET(F29,-1,0)+1,OFFSET(F29,-1,0))) -> 7 | G29: =IF(AND($C29<=2,$C29<>0),0,IF($C29=3,OFFSET(G29,-1,0)+1,OFFSET(G29,-1,0))) -> 0 | H29: =IF(AND($C29<=3,$C29<>0),0,IF($C29=4,OFFSET(H29,-1,0)+1,OFFSET(H29,-1,0))) -> 0 | I29: =IF(AND($C29<=4,$C29<>0),0,IF(AND($C29="S",$X29>0),OFFSET(I29,-1,0)+1,OFFSET(I29,-1,0))) -> 0 | J29: 8 | K29: =IF(OR($C29="S",$C29=0),0,MATCH(OFFSET($D29,0,$C29)+IF($C29<>1,1,COUNTIF(QCI!$A$13:$A$24,ORÇAMENTO!E29)),OFFSET($D29,1,$C29,ROW($C$37)-ROW($C29)),0)) -> 2 | L29: =IF(OR($X29>0,$C29=1,$C29=2,$C29=3,$C29=4),"F","") -> F | M29: Nível 2 | N29: =CHOOSE(1+LOG(1+2*(C29=1)+4*(C29=2)+8*(C29=3)+16*(C29=4)+32*(C29="S"),2),"","Meta","Nível 2","Nível 3","Nível 4","Serviço") -> Nível 2 | O29: =IF(OR($C29=0,$L29=""),"-",CONCATENATE(E29&".",IF(AND($A$5>=2,$C29>=2),F29&".",""),IF(AND($A$5>=3,$C29>=3),G29&".",""),IF(AND($A$5>=4,$C29>=4),H29&".",""),IF($C29="S",I29&".",""))) -> 1.7. | P29: SINAPI | R29: Revestimentos | S29: =REFERENCIA.Unidade -> - | T29: =OFFSET(CÁLCULO!H$15,ROW($T29)-ROW(T$15),0) -> 0 | V29: BDI 1 | W29: =IF($C29="S",ROUND(IF(TIPOORCAMENTO="Proposto",ORÇAMENTO.CustoUnitario*(1+$AH29),ORÇAMENTO.PrecoUnitarioLicitado),15-13*$AF$10),0) -> 0 | X29: =IF($C29="S",IF(OR(Import.TipoArredondamento<>"TransfereGOV",ACOMPANHAMENTO="BM"),VTOTAL1,SUM(OFFSET(CÁLCULO!$AQ$15,ROW($X29)-ROW($X$15),1):OFFSET(CÁLCULO!$BR$15,ROW($X29)-ROW($X$15),-1))),IF($C29=0,0,ROUND(SomaAgrup,15-13*$AF$11))) -> 297414.75 | Y29: RA | Z29: =IF(AND($C29="S",$X29>0),IF(ISBLANK($Y29),"RA",LEFT($Y29,2)),"") ->  | AA29: =IF($C29="S",IF($Z29="CP",$X29,IF($Z29="RA",(($X29)*QCI!$AA$3),0)),SomaAgrup) -> 11414.65961 | AB29: =IF($C29="S",IF($Z29="OU",ROUND($X29,2),0),SomaAgrup) -> 0 | AC29: =IF($N29=""," ", IF(AND($C29<>"S",OR($R29="",$R29="(digite a descrição aqui)")),"DESCRIÇÃO", IF(AND($C29="S",OR($Q29<>"",$T29>0,$U29>0),$P29=""),"FONTE", IF(AND($C29="S",$P29<>"",OR($T29>0,$U29>0),$Q29=""),"CÓDIGO", IF(AND($C29="S",$P29<>"",$Q29<>"",$R29="(Código não identificado nas referências)"),"CÓDIGO N/ID", IF(AND($C29="S",OR($R29="",$R29="(digite a descrição aqui)"),OR($Q29<>"",$T29>0,$U29>0)),"DESCRIÇÃO", IF(AND($C29="S",$P29<>"",$Q29<>"",$S29=""),"UNIDADE", IF(AND($C29="S",$P29<>"",$Q29<>"",$U29=0),"SEM CUSTO", IF(AND(TIPOORCAMENTO="Licitado",$AL29=0,$AN29>0),"SEM PREÇO", IF(AND($C29="S",$P29<>"",$Q29<>"",$U29>0,AND($V29<>"BDI 1",$V29<>"BDI 2",$V29<>"BDI 3")),IF(ISNUMBER($V29),"JUSTIFICAR BDI","BDI"), IF(OR(AND(import.recurso="OGU",TIPOORCAMENTO="Proposto",LEFT($O$8,5)<>"(N/D:",$AG29<>"",ORÇAMENTO.CustoUnitario>$AG29),AND(TIPOORCAMENTO="LICITADO",ORÇAMENTO.PrecoUnitarioLicitado>$AN29)),"ACIMA REF.", IF(AND($C29="S",$P29<>"",$Q29<>"",$T29=0,$U29>0),"QUANT.", IF(AND(Import.TipoArredondamento="TransfereGOV",$L29="F",$C29="S",LEN($Q29)>13),"Código >13", IF(AND(Import.TipoArredondamento="TransfereGOV",$L29="F",$C29<>"S",LEN($R29)>100),"Descrição >100", IF(AND(Import.TipoArredondamento="TransfereGOV",$L29="F",$C29="S",LEN($R29)>500),"Descrição >500", IF(AND(Import.TipoArredondamento="TransfereGOV",$L29="F",$C29="S",LEFT(TRIM(UPPER($P29)),6)<>"SINAPI",ISNA(VLOOKUP(TRIM(UPPER($S29)),ListaTgov.Unidades,1,FALSE))),"Unid. Não Disp", " ")))))))))))))))) ->  | AD29: =IF(C29<=CRONO.NivelExibicao,MAX($AD$15:OFFSET(AD29,-1,0))+IF($C29<>1,1,MAX(1,COUNTIF(QCI!$A$13:$A$24,OFFSET($E29,-1,0)))),"") -> 8 | AE29: =IF(AND($C29="S",ORÇAMENTO.CodBarra<>""),IF(ORÇAMENTO.Fonte="",ORÇAMENTO.CodBarra,CONCATENATE(ORÇAMENTO.Fonte," ",ORÇAMENTO.CodBarra))) -> FALSE | AF29: =IF(ISERROR(ORÇAMENTO.BancoRef),"(abra o arquivo 'Referência "&Excel_BuiltIn_Database&".xlsm)",IF(OR($C29<>"S",ORÇAMENTO.CodBarra=""),"(Sem Código)",IF(ISERROR(MATCH($AE29,INDIRECT(ORÇAMENTO.BancoRef),0)),"(Código não identificado nas referências)",MATCH($AE29,INDIRECT(ORÇAMENTO.BancoRef),0)))) -> (Sem Código) | AG29: =ROUND(IF(DESONERACAO="sim",REFERENCIA.Desonerado,REFERENCIA.NaoDesonerado),2) -> 0 | AH29: =ROUND(IF(ISNUMBER(ORÇAMENTO.OpcaoBDI),ORÇAMENTO.OpcaoBDI,IF(LEFT(ORÇAMENTO.OpcaoBDI,3)="BDI",HLOOKUP(ORÇAMENTO.OpcaoBDI,$F$4:$H$5,2,FALSE),0)),15-11*$AF$9) -> 0.275 | AM29: =$X29 -> 297414.75 | AN29: =ROUND(ORÇAMENTO.CustoUnitario*(1+$AH29),2) -> 0
A30: S | B30: 2 | C30: S | D30: 0 | E30: =IF($C30=1,OFFSET(E30,-1,0)+MAX(1,COUNTIF(QCI!$A$13:$A$24,OFFSET(ORÇAMENTO!E30,-1,0))),OFFSET(E30,-1,0)) -> 1 | F30: 7 | G30: 0 | H30: 0 | I30: 1 | J30: 0 | K30: =IF(OR($C30="S",$C30=0),0,MATCH(OFFSET($D30,0,$C30)+IF($C30<>1,1,COUNTIF(QCI!$A$13:$A$24,ORÇAMENTO!E30)),OFFSET($D30,1,$C30,ROW($C$37)-ROW($C30)),0)) -> 0 | L30: F | M30: Serviço | N30: Serviço | O30: 1.7.1. | P30: Cotação | Q30: 7 | R30: Revestimentos | S30: UN | T30: =OFFSET(CÁLCULO!H$15,ROW($T30)-ROW(T$15),0) -> 25 | U30: 9330.66 | V30: BDI 1 | W30: =IF($C30="S",ROUND(IF(TIPOORCAMENTO="Proposto",ORÇAMENTO.CustoUnitario*(1+$AH30),ORÇAMENTO.PrecoUnitarioLicitado),15-13*$AF$10),0) -> 11896.59 | X30: =IF($C30="S",IF(OR(Import.TipoArredondamento<>"TransfereGOV",ACOMPANHAMENTO="BM"),VTOTAL1,SUM(OFFSET(CÁLCULO!$AQ$15,ROW($X30)-ROW($X$15),1):OFFSET(CÁLCULO!$BR$15,ROW($X30)-ROW($X$15),-1))),IF($C30=0,0,ROUND(SomaAgrup,15-13*$AF$11))) -> 297414.75 | Y30: RA | Z30: RA | AA30: =IF($C30="S",IF($Z30="CP",$X30,IF($Z30="RA",(($X30)*QCI!$AA$3),0)),SomaAgrup) -> 11414.65961 | AB30: =IF($C30="S",IF($Z30="OU",ROUND($X30,2),0),SomaAgrup) -> 0 | AC30: =IF($N30=""," ", IF(AND($C30<>"S",OR($R30="",$R30="(digite a descrição aqui)")),"DESCRIÇÃO", IF(AND($C30="S",OR($Q30<>"",$T30>0,$U30>0),$P30=""),"FONTE", IF(AND($C30="S",$P30<>"",OR($T30>0,$U30>0),$Q30=""),"CÓDIGO", IF(AND($C30="S",$P30<>"",$Q30<>"",$R30="(Código não identificado nas referências)"),"CÓDIGO N/ID", IF(AND($C30="S",OR($R30="",$R30="(digite a descrição aqui)"),OR($Q30<>"",$T30>0,$U30>0)),"DESCRIÇÃO", IF(AND($C30="S",$P30<>"",$Q30<>"",$S30=""),"UNIDADE", IF(AND($C30="S",$P30<>"",$Q30<>"",$U30=0),"SEM CUSTO", IF(AND(TIPOORCAMENTO="Licitado",$AL30=0,$AN30>0),"SEM PREÇO", IF(AND($C30="S",$P30<>"",$Q30<>"",$U30>0,AND($V30<>"BDI 1",$V30<>"BDI 2",$V30<>"BDI 3")),IF(ISNUMBER($V30),"JUSTIFICAR BDI","BDI"), IF(OR(AND(import.recurso="OGU",TIPOORCAMENTO="Proposto",LEFT($O$8,5)<>"(N/D:",$AG30<>"",ORÇAMENTO.CustoUnitario>$AG30),AND(TIPOORCAMENTO="LICITADO",ORÇAMENTO.PrecoUnitarioLicitado>$AN30)),"ACIMA REF.", IF(AND($C30="S",$P30<>"",$Q30<>"",$T30=0,$U30>0),"QUANT.", IF(AND(Import.TipoArredondamento="TransfereGOV",$L30="F",$C30="S",LEN($Q30)>13),"Código >13", IF(AND(Import.TipoArredondamento="TransfereGOV",$L30="F",$C30<>"S",LEN($R30)>100),"Descrição >100", IF(AND(Import.TipoArredondamento="TransfereGOV",$L30="F",$C30="S",LEN($R30)>500),"Descrição >500", IF(AND(Import.TipoArredondamento="TransfereGOV",$L30="F",$C30="S",LEFT(TRIM(UPPER($P30)),6)<>"SINAPI",ISNA(VLOOKUP(TRIM(UPPER($S30)),ListaTgov.Unidades,1,FALSE))),"Unid. Não Disp", " ")))))))))))))))) ->  | AD30: =IF(C30<=CRONO.NivelExibicao,MAX($AD$15:OFFSET(AD30,-1,0))+IF($C30<>1,1,MAX(1,COUNTIF(QCI!$A$13:$A$24,OFFSET($E30,-1,0)))),"") ->  | AE30: =IF(AND($C30="S",ORÇAMENTO.CodBarra<>""),IF(ORÇAMENTO.Fonte="",ORÇAMENTO.CodBarra,CONCATENATE(ORÇAMENTO.Fonte," ",ORÇAMENTO.CodBarra))) -> Cotação 7 | AF30: =IF(ISERROR(ORÇAMENTO.BancoRef),"(abra o arquivo 'Referência "&Excel_BuiltIn_Database&".xlsm)",IF(OR($C30<>"S",ORÇAMENTO.CodBarra=""),"(Sem Código)",IF(ISERROR(MATCH($AE30,INDIRECT(ORÇAMENTO.BancoRef),0)),"(Código não identificado nas referências)",MATCH($AE30,INDIRECT(ORÇAMENTO.BancoRef),0)))) -> (Código não identificado nas referências) | AG30: =ROUND(IF(DESONERACAO="sim",REFERENCIA.Desonerado,REFERENCIA.NaoDesonerado),2) -> 0 | AH30: 0.275 | AM30: 297414.75 | AN30: =ROUND(ORÇAMENTO.CustoUnitario*(1+$AH30),2) -> 11896.59
A31: =CHOOSE(1+LOG(1+2*(ORÇAMENTO.Nivel="Meta")+4*(ORÇAMENTO.Nivel="Nível 2")+8*(ORÇAMENTO.Nivel="Nível 3")+16*(ORÇAMENTO.Nivel="Nível 4")+32*(ORÇAMENTO.Nivel="Serviço"),2),0,1,2,3,4,"S") -> 2 | B31: =IF(OR(C31="s",C31=0),OFFSET(B31,-1,0),C31) -> 2 | C31: =IF(OFFSET(C31,-1,0)="L",1,IF(OFFSET(C31,-1,0)=1,2,IF(OR(A31="s",A31=0),"S",IF(AND(OFFSET(C31,-1,0)=2,A31=4),3,IF(AND(OR(OFFSET(C31,-1,0)="s",OFFSET(C31,-1,0)=0),A31<>"s",A31>OFFSET(B31,-1,0)),OFFSET(B31,-1,0),A31))))) -> 2 | D31: =IF(OR(C31="S",C31=0),0,IF(ISERROR(K31),J31,SMALL(J31:K31,1))) -> 2 | E31: =IF($C31=1,OFFSET(E31,-1,0)+MAX(1,COUNTIF(QCI!$A$13:$A$24,OFFSET(ORÇAMENTO!E31,-1,0))),OFFSET(E31,-1,0)) -> 1 | F31: =IF($C31=1,0,IF($C31=2,OFFSET(F31,-1,0)+1,OFFSET(F31,-1,0))) -> 8 | G31: =IF(AND($C31<=2,$C31<>0),0,IF($C31=3,OFFSET(G31,-1,0)+1,OFFSET(G31,-1,0))) -> 0 | H31: =IF(AND($C31<=3,$C31<>0),0,IF($C31=4,OFFSET(H31,-1,0)+1,OFFSET(H31,-1,0))) -> 0 | I31: =IF(AND($C31<=4,$C31<>0),0,IF(AND($C31="S",$X31>0),OFFSET(I31,-1,0)+1,OFFSET(I31,-1,0))) -> 0 | J31: 6 | K31: =IF(OR($C31="S",$C31=0),0,MATCH(OFFSET($D31,0,$C31)+IF($C31<>1,1,COUNTIF(QCI!$A$13:$A$24,ORÇAMENTO!E31)),OFFSET($D31,1,$C31,ROW($C$37)-ROW($C31)),0)) -> 2 | L31: =IF(OR($X31>0,$C31=1,$C31=2,$C31=3,$C31=4),"F","") -> F | M31: Nível 2 | N31: =CHOOSE(1+LOG(1+2*(C31=1)+4*(C31=2)+8*(C31=3)+16*(C31=4)+32*(C31="S"),2),"","Meta","Nível 2","Nível 3","Nível 4","Serviço") -> Nível 2 | O31: =IF(OR($C31=0,$L31=""),"-",CONCATENATE(E31&".",IF(AND($A$5>=2,$C31>=2),F31&".",""),IF(AND($A$5>=3,$C31>=3),G31&".",""),IF(AND($A$5>=4,$C31>=4),H31&".",""),IF($C31="S",I31&".",""))) -> 1.8. | P31: SINAPI | R31: Pavimentação | S31: =REFERENCIA.Unidade -> - | T31: =OFFSET(CÁLCULO!H$15,ROW($T31)-ROW(T$15),0) -> 0 | V31: BDI 1 | W31: =IF($C31="S",ROUND(IF(TIPOORCAMENTO="Proposto",ORÇAMENTO.CustoUnitario*(1+$AH31),ORÇAMENTO.PrecoUnitarioLicitado),15-13*$AF$10),0) -> 0 | X31: =IF($C31="S",IF(OR(Import.TipoArredondamento<>"TransfereGOV",ACOMPANHAMENTO="BM"),VTOTAL1,SUM(OFFSET(CÁLCULO!$AQ$15,ROW($X31)-ROW($X$15),1):OFFSET(CÁLCULO!$BR$15,ROW($X31)-ROW($X$15),-1))),IF($C31=0,0,ROUND(SomaAgrup,15-13*$AF$11))) -> 253478.25 | Y31: RA | Z31: =IF(AND($C31="S",$X31>0),IF(ISBLANK($Y31),"RA",LEFT($Y31,2)),"") ->  | AA31: =IF($C31="S",IF($Z31="CP",$X31,IF($Z31="RA",(($X31)*QCI!$AA$3),0)),SomaAgrup) -> 9728.394243 | AB31: =IF($C31="S",IF($Z31="OU",ROUND($X31,2),0),SomaAgrup) -> 0 | AC31: =IF($N31=""," ", IF(AND($C31<>"S",OR($R31="",$R31="(digite a descrição aqui)")),"DESCRIÇÃO", IF(AND($C31="S",OR($Q31<>"",$T31>0,$U31>0),$P31=""),"FONTE", IF(AND($C31="S",$P31<>"",OR($T31>0,$U31>0),$Q31=""),"CÓDIGO", IF(AND($C31="S",$P31<>"",$Q31<>"",$R31="(Código não identificado nas referências)"),"CÓDIGO N/ID", IF(AND($C31="S",OR($R31="",$R31="(digite a descrição aqui)"),OR($Q31<>"",$T31>0,$U31>0)),"DESCRIÇÃO", IF(AND($C31="S",$P31<>"",$Q31<>"",$S31=""),"UNIDADE", IF(AND($C31="S",$P31<>"",$Q31<>"",$U31=0),"SEM CUSTO", IF(AND(TIPOORCAMENTO="Licitado",$AL31=0,$AN31>0),"SEM PREÇO", IF(AND($C31="S",$P31<>"",$Q31<>"",$U31>0,AND($V31<>"BDI 1",$V31<>"BDI 2",$V31<>"BDI 3")),IF(ISNUMBER($V31),"JUSTIFICAR BDI","BDI"), IF(OR(AND(import.recurso="OGU",TIPOORCAMENTO="Proposto",LEFT($O$8,5)<>"(N/D:",$AG31<>"",ORÇAMENTO.CustoUnitario>$AG31),AND(TIPOORCAMENTO="LICITADO",ORÇAMENTO.PrecoUnitarioLicitado>$AN31)),"ACIMA REF.", IF(AND($C31="S",$P31<>"",$Q31<>"",$T31=0,$U31>0),"QUANT.", IF(AND(Import.TipoArredondamento="TransfereGOV",$L31="F",$C31="S",LEN($Q31)>13),"Código >13", IF(AND(Import.TipoArredondamento="TransfereGOV",$L31="F",$C31<>"S",LEN($R31)>100),"Descrição >100", IF(AND(Import.TipoArredondamento="TransfereGOV",$L31="F",$C31="S",LEN($R31)>500),"Descrição >500", IF(AND(Import.TipoArredondamento="TransfereGOV",$L31="F",$C31="S",LEFT(TRIM(UPPER($P31)),6)<>"SINAPI",ISNA(VLOOKUP(TRIM(UPPER($S31)),ListaTgov.Unidades,1,FALSE))),"Unid. Não Disp", " ")))))))))))))))) ->  | AD31: =IF(C31<=CRONO.NivelExibicao,MAX($AD$15:OFFSET(AD31,-1,0))+IF($C31<>1,1,MAX(1,COUNTIF(QCI!$A$13:$A$24,OFFSET($E31,-1,0)))),"") -> 9 | AE31: =IF(AND($C31="S",ORÇAMENTO.CodBarra<>""),IF(ORÇAMENTO.Fonte="",ORÇAMENTO.CodBarra,CONCATENATE(ORÇAMENTO.Fonte," ",ORÇAMENTO.CodBarra))) -> FALSE | AF31: =IF(ISERROR(ORÇAMENTO.BancoRef),"(abra o arquivo 'Referência "&Excel_BuiltIn_Database&".xlsm)",IF(OR($C31<>"S",ORÇAMENTO.CodBarra=""),"(Sem Código)",IF(ISERROR(MATCH($AE31,INDIRECT(ORÇAMENTO.BancoRef),0)),"(Código não identificado nas referências)",MATCH($AE31,INDIRECT(ORÇAMENTO.BancoRef),0)))) -> (Sem Código) | AG31: =ROUND(IF(DESONERACAO="sim",REFERENCIA.Desonerado,REFERENCIA.NaoDesonerado),2) -> 0 | AH31: =ROUND(IF(ISNUMBER(ORÇAMENTO.OpcaoBDI),ORÇAMENTO.OpcaoBDI,IF(LEFT(ORÇAMENTO.OpcaoBDI,3)="BDI",HLOOKUP(ORÇAMENTO.OpcaoBDI,$F$4:$H$5,2,FALSE),0)),15-11*$AF$9) -> 0.275 | AM31: =$X31 -> 253478.25 | AN31: =ROUND(ORÇAMENTO.CustoUnitario*(1+$AH31),2) -> 0
A32: S | B32: 2 | C32: S | D32: 0 | E32: =IF($C32=1,OFFSET(E32,-1,0)+MAX(1,COUNTIF(QCI!$A$13:$A$24,OFFSET(ORÇAMENTO!E32,-1,0))),OFFSET(E32,-1,0)) -> 1 | F32: 8 | G32: 0 | H32: 0 | I32: 1 | J32: 0 | K32: =IF(OR($C32="S",$C32=0),0,MATCH(OFFSET($D32,0,$C32)+IF($C32<>1,1,COUNTIF(QCI!$A$13:$A$24,ORÇAMENTO!E32)),OFFSET($D32,1,$C32,ROW($C$37)-ROW($C32)),0)) -> 0 | L32: F | M32: Serviço | N32: Serviço | O32: 1.8.1. | P32: Cotação | Q32: 8 | R32: Pavimentação | S32: UN | T32: =OFFSET(CÁLCULO!H$15,ROW($T32)-ROW(T$15),0) -> 25 | U32: 7952.26 | V32: BDI 1 | W32: =IF($C32="S",ROUND(IF(TIPOORCAMENTO="Proposto",ORÇAMENTO.CustoUnitario*(1+$AH32),ORÇAMENTO.PrecoUnitarioLicitado),15-13*$AF$10),0) -> 10139.13 | X32: =IF($C32="S",IF(OR(Import.TipoArredondamento<>"TransfereGOV",ACOMPANHAMENTO="BM"),VTOTAL1,SUM(OFFSET(CÁLCULO!$AQ$15,ROW($X32)-ROW($X$15),1):OFFSET(CÁLCULO!$BR$15,ROW($X32)-ROW($X$15),-1))),IF($C32=0,0,ROUND(SomaAgrup,15-13*$AF$11))) -> 253478.25 | Y32: RA | Z32: RA | AA32: =IF($C32="S",IF($Z32="CP",$X32,IF($Z32="RA",(($X32)*QCI!$AA$3),0)),SomaAgrup) -> 9728.394243 | AB32: =IF($C32="S",IF($Z32="OU",ROUND($X32,2),0),SomaAgrup) -> 0 | AC32: =IF($N32=""," ", IF(AND($C32<>"S",OR($R32="",$R32="(digite a descrição aqui)")),"DESCRIÇÃO", IF(AND($C32="S",OR($Q32<>"",$T32>0,$U32>0),$P32=""),"FONTE", IF(AND($C32="S",$P32<>"",OR($T32>0,$U32>0),$Q32=""),"CÓDIGO", IF(AND($C32="S",$P32<>"",$Q32<>"",$R32="(Código não identificado nas referências)"),"CÓDIGO N/ID", IF(AND($C32="S",OR($R32="",$R32="(digite a descrição aqui)"),OR($Q32<>"",$T32>0,$U32>0)),"DESCRIÇÃO", IF(AND($C32="S",$P32<>"",$Q32<>"",$S32=""),"UNIDADE", IF(AND($C32="S",$P32<>"",$Q32<>"",$U32=0),"SEM CUSTO", IF(AND(TIPOORCAMENTO="Licitado",$AL32=0,$AN32>0),"SEM PREÇO", IF(AND($C32="S",$P32<>"",$Q32<>"",$U32>0,AND($V32<>"BDI 1",$V32<>"BDI 2",$V32<>"BDI 3")),IF(ISNUMBER($V32),"JUSTIFICAR BDI","BDI"), IF(OR(AND(import.recurso="OGU",TIPOORCAMENTO="Proposto",LEFT($O$8,5)<>"(N/D:",$AG32<>"",ORÇAMENTO.CustoUnitario>$AG32),AND(TIPOORCAMENTO="LICITADO",ORÇAMENTO.PrecoUnitarioLicitado>$AN32)),"ACIMA REF.", IF(AND($C32="S",$P32<>"",$Q32<>"",$T32=0,$U32>0),"QUANT.", IF(AND(Import.TipoArredondamento="TransfereGOV",$L32="F",$C32="S",LEN($Q32)>13),"Código >13", IF(AND(Import.TipoArredondamento="TransfereGOV",$L32="F",$C32<>"S",LEN($R32)>100),"Descrição >100", IF(AND(Import.TipoArredondamento="TransfereGOV",$L32="F",$C32="S",LEN($R32)>500),"Descrição >500", IF(AND(Import.TipoArredondamento="TransfereGOV",$L32="F",$C32="S",LEFT(TRIM(UPPER($P32)),6)<>"SINAPI",ISNA(VLOOKUP(TRIM(UPPER($S32)),ListaTgov.Unidades,1,FALSE))),"Unid. Não Disp", " ")))))))))))))))) ->  | AD32: =IF(C32<=CRONO.NivelExibicao,MAX($AD$15:OFFSET(AD32,-1,0))+IF($C32<>1,1,MAX(1,COUNTIF(QCI!$A$13:$A$24,OFFSET($E32,-1,0)))),"") ->  | AE32: =IF(AND($C32="S",ORÇAMENTO.CodBarra<>""),IF(ORÇAMENTO.Fonte="",ORÇAMENTO.CodBarra,CONCATENATE(ORÇAMENTO.Fonte," ",ORÇAMENTO.CodBarra))) -> Cotação 8 | AF32: =IF(ISERROR(ORÇAMENTO.BancoRef),"(abra o arquivo 'Referência "&Excel_BuiltIn_Database&".xlsm)",IF(OR($C32<>"S",ORÇAMENTO.CodBarra=""),"(Sem Código)",IF(ISERROR(MATCH($AE32,INDIRECT(ORÇAMENTO.BancoRef),0)),"(Código não identificado nas referências)",MATCH($AE32,INDIRECT(ORÇAMENTO.BancoRef),0)))) -> (Código não identificado nas referências) | AG32: =ROUND(IF(DESONERACAO="sim",REFERENCIA.Desonerado,REFERENCIA.NaoDesonerado),2) -> 0 | AH32: 0.275 | AM32: 253478.25 | AN32: =ROUND(ORÇAMENTO.CustoUnitario*(1+$AH32),2) -> 10139.13
A33: =CHOOSE(1+LOG(1+2*(ORÇAMENTO.Nivel="Meta")+4*(ORÇAMENTO.Nivel="Nível 2")+8*(ORÇAMENTO.Nivel="Nível 3")+16*(ORÇAMENTO.Nivel="Nível 4")+32*(ORÇAMENTO.Nivel="Serviço"),2),0,1,2,3,4,"S") -> 2 | B33: =IF(OR(C33="s",C33=0),OFFSET(B33,-1,0),C33) -> 2 | C33: =IF(OFFSET(C33,-1,0)="L",1,IF(OFFSET(C33,-1,0)=1,2,IF(OR(A33="s",A33=0),"S",IF(AND(OFFSET(C33,-1,0)=2,A33=4),3,IF(AND(OR(OFFSET(C33,-1,0)="s",OFFSET(C33,-1,0)=0),A33<>"s",A33>OFFSET(B33,-1,0)),OFFSET(B33,-1,0),A33))))) -> 2 | D33: =IF(OR(C33="S",C33=0),0,IF(ISERROR(K33),J33,SMALL(J33:K33,1))) -> 2 | E33: =IF($C33=1,OFFSET(E33,-1,0)+MAX(1,COUNTIF(QCI!$A$13:$A$24,OFFSET(ORÇAMENTO!E33,-1,0))),OFFSET(E33,-1,0)) -> 1 | F33: =IF($C33=1,0,IF($C33=2,OFFSET(F33,-1,0)+1,OFFSET(F33,-1,0))) -> 9 | G33: =IF(AND($C33<=2,$C33<>0),0,IF($C33=3,OFFSET(G33,-1,0)+1,OFFSET(G33,-1,0))) -> 0 | H33: =IF(AND($C33<=3,$C33<>0),0,IF($C33=4,OFFSET(H33,-1,0)+1,OFFSET(H33,-1,0))) -> 0 | I33: =IF(AND($C33<=4,$C33<>0),0,IF(AND($C33="S",$X33>0),OFFSET(I33,-1,0)+1,OFFSET(I33,-1,0))) -> 0 | J33: 4 | K33: =IF(OR($C33="S",$C33=0),0,MATCH(OFFSET($D33,0,$C33)+IF($C33<>1,1,COUNTIF(QCI!$A$13:$A$24,ORÇAMENTO!E33)),OFFSET($D33,1,$C33,ROW($C$37)-ROW($C33)),0)) -> 2 | L33: =IF(OR($X33>0,$C33=1,$C33=2,$C33=3,$C33=4),"F","") -> F | M33: Nível 2 | N33: =CHOOSE(1+LOG(1+2*(C33=1)+4*(C33=2)+8*(C33=3)+16*(C33=4)+32*(C33="S"),2),"","Meta","Nível 2","Nível 3","Nível 4","Serviço") -> Nível 2 | O33: =IF(OR($C33=0,$L33=""),"-",CONCATENATE(E33&".",IF(AND($A$5>=2,$C33>=2),F33&".",""),IF(AND($A$5>=3,$C33>=3),G33&".",""),IF(AND($A$5>=4,$C33>=4),H33&".",""),IF($C33="S",I33&".",""))) -> 1.9. | P33: SINAPI | R33: Instalações | S33: =REFERENCIA.Unidade -> - | T33: =OFFSET(CÁLCULO!H$15,ROW($T33)-ROW(T$15),0) -> 0 | V33: BDI 1 | W33: =IF($C33="S",ROUND(IF(TIPOORCAMENTO="Proposto",ORÇAMENTO.CustoUnitario*(1+$AH33),ORÇAMENTO.PrecoUnitarioLicitado),15-13*$AF$10),0) -> 0 | X33: =IF($C33="S",IF(OR(Import.TipoArredondamento<>"TransfereGOV",ACOMPANHAMENTO="BM"),VTOTAL1,SUM(OFFSET(CÁLCULO!$AQ$15,ROW($X33)-ROW($X$15),1):OFFSET(CÁLCULO!$BR$15,ROW($X33)-ROW($X$15),-1))),IF($C33=0,0,ROUND(SomaAgrup,15-13*$AF$11))) -> 557652.5 | Y33: RA | Z33: =IF(AND($C33="S",$X33>0),IF(ISBLANK($Y33),"RA",LEFT($Y33,2)),"") ->  | AA33: =IF($C33="S",IF($Z33="CP",$X33,IF($Z33="RA",(($X33)*QCI!$AA$3),0)),SomaAgrup) -> 21402.48077 | AB33: =IF($C33="S",IF($Z33="OU",ROUND($X33,2),0),SomaAgrup) -> 0 | AC33: =IF($N33=""," ", IF(AND($C33<>"S",OR($R33="",$R33="(digite a descrição aqui)")),"DESCRIÇÃO", IF(AND($C33="S",OR($Q33<>"",$T33>0,$U33>0),$P33=""),"FONTE", IF(AND($C33="S",$P33<>"",OR($T33>0,$U33>0),$Q33=""),"CÓDIGO", IF(AND($C33="S",$P33<>"",$Q33<>"",$R33="(Código não identificado nas referências)"),"CÓDIGO N/ID", IF(AND($C33="S",OR($R33="",$R33="(digite a descrição aqui)"),OR($Q33<>"",$T33>0,$U33>0)),"DESCRIÇÃO", IF(AND($C33="S",$P33<>"",$Q33<>"",$S33=""),"UNIDADE", IF(AND($C33="S",$P33<>"",$Q33<>"",$U33=0),"SEM CUSTO", IF(AND(TIPOORCAMENTO="Licitado",$AL33=0,$AN33>0),"SEM PREÇO", IF(AND($C33="S",$P33<>"",$Q33<>"",$U33>0,AND($V33<>"BDI 1",$V33<>"BDI 2",$V33<>"BDI 3")),IF(ISNUMBER($V33),"JUSTIFICAR BDI","BDI"), IF(OR(AND(import.recurso="OGU",TIPOORCAMENTO="Proposto",LEFT($O$8,5)<>"(N/D:",$AG33<>"",ORÇAMENTO.CustoUnitario>$AG33),AND(TIPOORCAMENTO="LICITADO",ORÇAMENTO.PrecoUnitarioLicitado>$AN33)),"ACIMA REF.", IF(AND($C33="S",$P33<>"",$Q33<>"",$T33=0,$U33>0),"QUANT.", IF(AND(Import.TipoArredondamento="TransfereGOV",$L33="F",$C33="S",LEN($Q33)>13),"Código >13", IF(AND(Import.TipoArredondamento="TransfereGOV",$L33="F",$C33<>"S",LEN($R33)>100),"Descrição >100", IF(AND(Import.TipoArredondamento="TransfereGOV",$L33="F",$C33="S",LEN($R33)>500),"Descrição >500", IF(AND(Import.TipoArredondamento="TransfereGOV",$L33="F",$C33="S",LEFT(TRIM(UPPER($P33)),6)<>"SINAPI",ISNA(VLOOKUP(TRIM(UPPER($S33)),ListaTgov.Unidades,1,FALSE))),"Unid. Não Disp", " ")))))))))))))))) ->  | AD33: =IF(C33<=CRONO.NivelExibicao,MAX($AD$15:OFFSET(AD33,-1,0))+IF($C33<>1,1,MAX(1,COUNTIF(QCI!$A$13:$A$24,OFFSET($E33,-1,0)))),"") -> 10 | AE33: =IF(AND($C33="S",ORÇAMENTO.CodBarra<>""),IF(ORÇAMENTO.Fonte="",ORÇAMENTO.CodBarra,CONCATENATE(ORÇAMENTO.Fonte," ",ORÇAMENTO.CodBarra))) -> FALSE | AF33: =IF(ISERROR(ORÇAMENTO.BancoRef),"(abra o arquivo 'Referência "&Excel_BuiltIn_Database&".xlsm)",IF(OR($C33<>"S",ORÇAMENTO.CodBarra=""),"(Sem Código)",IF(ISERROR(MATCH($AE33,INDIRECT(ORÇAMENTO.BancoRef),0)),"(Código não identificado nas referências)",MATCH($AE33,INDIRECT(ORÇAMENTO.BancoRef),0)))) -> (Sem Código) | AG33: =ROUND(IF(DESONERACAO="sim",REFERENCIA.Desonerado,REFERENCIA.NaoDesonerado),2) -> 0 | AH33: =ROUND(IF(ISNUMBER(ORÇAMENTO.OpcaoBDI),ORÇAMENTO.OpcaoBDI,IF(LEFT(ORÇAMENTO.OpcaoBDI,3)="BDI",HLOOKUP(ORÇAMENTO.OpcaoBDI,$F$4:$H$5,2,FALSE),0)),15-11*$AF$9) -> 0.275 | AM33: =$X33 -> 557652.5 | AN33: =ROUND(ORÇAMENTO.CustoUnitario*(1+$AH33),2) -> 0
A34: S | B34: 2 | C34: S | D34: 0 | E34: =IF($C34=1,OFFSET(E34,-1,0)+MAX(1,COUNTIF(QCI!$A$13:$A$24,OFFSET(ORÇAMENTO!E34,-1,0))),OFFSET(E34,-1,0)) -> 1 | F34: 9 | G34: 0 | H34: 0 | I34: 1 | J34: 0 | K34: =IF(OR($C34="S",$C34=0),0,MATCH(OFFSET($D34,0,$C34)+IF($C34<>1,1,COUNTIF(QCI!$A$13:$A$24,ORÇAMENTO!E34)),OFFSET($D34,1,$C34,ROW($C$37)-ROW($C34)),0)) -> 0 | L34: F | M34: Serviço | N34: Serviço | O34: 1.9.1. | P34: Cotação | Q34: 9 | R34: Instalações | S34: UN | T34: =OFFSET(CÁLCULO!H$15,ROW($T34)-ROW(T$15),0) -> 25 | U34: 17494.98 | V34: BDI 1 | W34: =IF($C34="S",ROUND(IF(TIPOORCAMENTO="Proposto",ORÇAMENTO.CustoUnitario*(1+$AH34),ORÇAMENTO.PrecoUnitarioLicitado),15-13*$AF$10),0) -> 22306.1 | X34: =IF($C34="S",IF(OR(Import.TipoArredondamento<>"TransfereGOV",ACOMPANHAMENTO="BM"),VTOTAL1,SUM(OFFSET(CÁLCULO!$AQ$15,ROW($X34)-ROW($X$15),1):OFFSET(CÁLCULO!$BR$15,ROW($X34)-ROW($X$15),-1))),IF($C34=0,0,ROUND(SomaAgrup,15-13*$AF$11))) -> 557652.5 | Y34: RA | Z34: RA | AA34: =IF($C34="S",IF($Z34="CP",$X34,IF($Z34="RA",(($X34)*QCI!$AA$3),0)),SomaAgrup) -> 21402.48077 | AB34: =IF($C34="S",IF($Z34="OU",ROUND($X34,2),0),SomaAgrup) -> 0 | AC34: =IF($N34=""," ", IF(AND($C34<>"S",OR($R34="",$R34="(digite a descrição aqui)")),"DESCRIÇÃO", IF(AND($C34="S",OR($Q34<>"",$T34>0,$U34>0),$P34=""),"FONTE", IF(AND($C34="S",$P34<>"",OR($T34>0,$U34>0),$Q34=""),"CÓDIGO", IF(AND($C34="S",$P34<>"",$Q34<>"",$R34="(Código não identificado nas referências)"),"CÓDIGO N/ID", IF(AND($C34="S",OR($R34="",$R34="(digite a descrição aqui)"),OR($Q34<>"",$T34>0,$U34>0)),"DESCRIÇÃO", IF(AND($C34="S",$P34<>"",$Q34<>"",$S34=""),"UNIDADE", IF(AND($C34="S",$P34<>"",$Q34<>"",$U34=0),"SEM CUSTO", IF(AND(TIPOORCAMENTO="Licitado",$AL34=0,$AN34>0),"SEM PREÇO", IF(AND($C34="S",$P34<>"",$Q34<>"",$U34>0,AND($V34<>"BDI 1",$V34<>"BDI 2",$V34<>"BDI 3")),IF(ISNUMBER($V34),"JUSTIFICAR BDI","BDI"), IF(OR(AND(import.recurso="OGU",TIPOORCAMENTO="Proposto",LEFT($O$8,5)<>"(N/D:",$AG34<>"",ORÇAMENTO.CustoUnitario>$AG34),AND(TIPOORCAMENTO="LICITADO",ORÇAMENTO.PrecoUnitarioLicitado>$AN34)),"ACIMA REF.", IF(AND($C34="S",$P34<>"",$Q34<>"",$T34=0,$U34>0),"QUANT.", IF(AND(Import.TipoArredondamento="TransfereGOV",$L34="F",$C34="S",LEN($Q34)>13),"Código >13", IF(AND(Import.TipoArredondamento="TransfereGOV",$L34="F",$C34<>"S",LEN($R34)>100),"Descrição >100", IF(AND(Import.TipoArredondamento="TransfereGOV",$L34="F",$C34="S",LEN($R34)>500),"Descrição >500", IF(AND(Import.TipoArredondamento="TransfereGOV",$L34="F",$C34="S",LEFT(TRIM(UPPER($P34)),6)<>"SINAPI",ISNA(VLOOKUP(TRIM(UPPER($S34)),ListaTgov.Unidades,1,FALSE))),"Unid. Não Disp", " ")))))))))))))))) ->  | AD34: =IF(C34<=CRONO.NivelExibicao,MAX($AD$15:OFFSET(AD34,-1,0))+IF($C34<>1,1,MAX(1,COUNTIF(QCI!$A$13:$A$24,OFFSET($E34,-1,0)))),"") ->  | AE34: =IF(AND($C34="S",ORÇAMENTO.CodBarra<>""),IF(ORÇAMENTO.Fonte="",ORÇAMENTO.CodBarra,CONCATENATE(ORÇAMENTO.Fonte," ",ORÇAMENTO.CodBarra))) -> Cotação 9 | AF34: =IF(ISERROR(ORÇAMENTO.BancoRef),"(abra o arquivo 'Referência "&Excel_BuiltIn_Database&".xlsm)",IF(OR($C34<>"S",ORÇAMENTO.CodBarra=""),"(Sem Código)",IF(ISERROR(MATCH($AE34,INDIRECT(ORÇAMENTO.BancoRef),0)),"(Código não identificado nas referências)",MATCH($AE34,INDIRECT(ORÇAMENTO.BancoRef),0)))) -> (Código não identificado nas referências) | AG34: =ROUND(IF(DESONERACAO="sim",REFERENCIA.Desonerado,REFERENCIA.NaoDesonerado),2) -> 0 | AH34: 0.275 | AM34: 557652.5 | AN34: =ROUND(ORÇAMENTO.CustoUnitario*(1+$AH34),2) -> 22306.1
A35: =CHOOSE(1+LOG(1+2*(ORÇAMENTO.Nivel="Meta")+4*(ORÇAMENTO.Nivel="Nível 2")+8*(ORÇAMENTO.Nivel="Nível 3")+16*(ORÇAMENTO.Nivel="Nível 4")+32*(ORÇAMENTO.Nivel="Serviço"),2),0,1,2,3,4,"S") -> 2 | B35: =IF(OR(C35="s",C35=0),OFFSET(B35,-1,0),C35) -> 2 | C35: =IF(OFFSET(C35,-1,0)="L",1,IF(OFFSET(C35,-1,0)=1,2,IF(OR(A35="s",A35=0),"S",IF(AND(OFFSET(C35,-1,0)=2,A35=4),3,IF(AND(OR(OFFSET(C35,-1,0)="s",OFFSET(C35,-1,0)=0),A35<>"s",A35>OFFSET(B35,-1,0)),OFFSET(B35,-1,0),A35))))) -> 2 | D35: =IF(OR(C35="S",C35=0),0,IF(ISERROR(K35),J35,SMALL(J35:K35,1))) -> 2 | E35: =IF($C35=1,OFFSET(E35,-1,0)+MAX(1,COUNTIF(QCI!$A$13:$A$24,OFFSET(ORÇAMENTO!E35,-1,0))),OFFSET(E35,-1,0)) -> 1 | F35: =IF($C35=1,0,IF($C35=2,OFFSET(F35,-1,0)+1,OFFSET(F35,-1,0))) -> 10 | G35: =IF(AND($C35<=2,$C35<>0),0,IF($C35=3,OFFSET(G35,-1,0)+1,OFFSET(G35,-1,0))) -> 0 | H35: =IF(AND($C35<=3,$C35<>0),0,IF($C35=4,OFFSET(H35,-1,0)+1,OFFSET(H35,-1,0))) -> 0 | I35: =IF(AND($C35<=4,$C35<>0),0,IF(AND($C35="S",$X35>0),OFFSET(I35,-1,0)+1,OFFSET(I35,-1,0))) -> 0 | J35: 2 | K35: =IF(OR($C35="S",$C35=0),0,MATCH(OFFSET($D35,0,$C35)+IF($C35<>1,1,COUNTIF(QCI!$A$13:$A$24,ORÇAMENTO!E35)),OFFSET($D35,1,$C35,ROW($C$37)-ROW($C35)),0)) ->  | L35: =IF(OR($X35>0,$C35=1,$C35=2,$C35=3,$C35=4),"F","") -> F | M35: Nível 2 | N35: =CHOOSE(1+LOG(1+2*(C35=1)+4*(C35=2)+8*(C35=3)+16*(C35=4)+32*(C35="S"),2),"","Meta","Nível 2","Nível 3","Nível 4","Serviço") -> Nível 2 | O35: =IF(OR($C35=0,$L35=""),"-",CONCATENATE(E35&".",IF(AND($A$5>=2,$C35>=2),F35&".",""),IF(AND($A$5>=3,$C35>=3),G35&".",""),IF(AND($A$5>=4,$C35>=4),H35&".",""),IF($C35="S",I35&".",""))) -> 1.10. | P35: SINAPI | R35: Complementares | S35: =REFERENCIA.Unidade -> - | T35: =OFFSET(CÁLCULO!H$15,ROW($T35)-ROW(T$15),0) -> 0 | V35: BDI 1 | W35: =IF($C35="S",ROUND(IF(TIPOORCAMENTO="Proposto",ORÇAMENTO.CustoUnitario*(1+$AH35),ORÇAMENTO.PrecoUnitarioLicitado),15-13*$AF$10),0) -> 0 | X35: =IF($C35="S",IF(OR(Import.TipoArredondamento<>"TransfereGOV",ACOMPANHAMENTO="BM"),VTOTAL1,SUM(OFFSET(CÁLCULO!$AQ$15,ROW($X35)-ROW($X$15),1):OFFSET(CÁLCULO!$BR$15,ROW($X35)-ROW($X$15),-1))),IF($C35=0,0,ROUND(SomaAgrup,15-13*$AF$11))) -> 11153 | Y35: RA | Z35: =IF(AND($C35="S",$X35>0),IF(ISBLANK($Y35),"RA",LEFT($Y35,2)),"") ->  | AA35: =IF($C35="S",IF($Z35="CP",$X35,IF($Z35="RA",(($X35)*QCI!$AA$3),0)),SomaAgrup) -> 428.0476964 | AB35: =IF($C35="S",IF($Z35="OU",ROUND($X35,2),0),SomaAgrup) -> 0 | AC35: =IF($N35=""," ", IF(AND($C35<>"S",OR($R35="",$R35="(digite a descrição aqui)")),"DESCRIÇÃO", IF(AND($C35="S",OR($Q35<>"",$T35>0,$U35>0),$P35=""),"FONTE", IF(AND($C35="S",$P35<>"",OR($T35>0,$U35>0),$Q35=""),"CÓDIGO", IF(AND($C35="S",$P35<>"",$Q35<>"",$R35="(Código não identificado nas referências)"),"CÓDIGO N/ID", IF(AND($C35="S",OR($R35="",$R35="(digite a descrição aqui)"),OR($Q35<>"",$T35>0,$U35>0)),"DESCRIÇÃO", IF(AND($C35="S",$P35<>"",$Q35<>"",$S35=""),"UNIDADE", IF(AND($C35="S",$P35<>"",$Q35<>"",$U35=0),"SEM CUSTO", IF(AND(TIPOORCAMENTO="Licitado",$AL35=0,$AN35>0),"SEM PREÇO", IF(AND($C35="S",$P35<>"",$Q35<>"",$U35>0,AND($V35<>"BDI 1",$V35<>"BDI 2",$V35<>"BDI 3")),IF(ISNUMBER($V35),"JUSTIFICAR BDI","BDI"), IF(OR(AND(import.recurso="OGU",TIPOORCAMENTO="Proposto",LEFT($O$8,5)<>"(N/D:",$AG35<>"",ORÇAMENTO.CustoUnitario>$AG35),AND(TIPOORCAMENTO="LICITADO",ORÇAMENTO.PrecoUnitarioLicitado>$AN35)),"ACIMA REF.", IF(AND($C35="S",$P35<>"",$Q35<>"",$T35=0,$U35>0),"QUANT.", IF(AND(Import.TipoArredondamento="TransfereGOV",$L35="F",$C35="S",LEN($Q35)>13),"Código >13", IF(AND(Import.TipoArredondamento="TransfereGOV",$L35="F",$C35<>"S",LEN($R35)>100),"Descrição >100", IF(AND(Import.TipoArredondamento="TransfereGOV",$L35="F",$C35="S",LEN($R35)>500),"Descrição >500", IF(AND(Import.TipoArredondamento="TransfereGOV",$L35="F",$C35="S",LEFT(TRIM(UPPER($P35)),6)<>"SINAPI",ISNA(VLOOKUP(TRIM(UPPER($S35)),ListaTgov.Unidades,1,FALSE))),"Unid. Não Disp", " ")))))))))))))))) ->  | AD35: =IF(C35<=CRONO.NivelExibicao,MAX($AD$15:OFFSET(AD35,-1,0))+IF($C35<>1,1,MAX(1,COUNTIF(QCI!$A$13:$A$24,OFFSET($E35,-1,0)))),"") -> 11 | AE35: =IF(AND($C35="S",ORÇAMENTO.CodBarra<>""),IF(ORÇAMENTO.Fonte="",ORÇAMENTO.CodBarra,CONCATENATE(ORÇAMENTO.Fonte," ",ORÇAMENTO.CodBarra))) -> FALSE | AF35: =IF(ISERROR(ORÇAMENTO.BancoRef),"(abra o arquivo 'Referência "&Excel_BuiltIn_Database&".xlsm)",IF(OR($C35<>"S",ORÇAMENTO.CodBarra=""),"(Sem Código)",IF(ISERROR(MATCH($AE35,INDIRECT(ORÇAMENTO.BancoRef),0)),"(Código não identificado nas referências)",MATCH($AE35,INDIRECT(ORÇAMENTO.BancoRef),0)))) -> (Sem Código) | AG35: =ROUND(IF(DESONERACAO="sim",REFERENCIA.Desonerado,REFERENCIA.NaoDesonerado),2) -> 0 | AH35: =ROUND(IF(ISNUMBER(ORÇAMENTO.OpcaoBDI),ORÇAMENTO.OpcaoBDI,IF(LEFT(ORÇAMENTO.OpcaoBDI,3)="BDI",HLOOKUP(ORÇAMENTO.OpcaoBDI,$F$4:$H$5,2,FALSE),0)),15-11*$AF$9) -> 0.275 | AM35: =$X35 -> 11153 | AN35: =ROUND(ORÇAMENTO.CustoUnitario*(1+$AH35),2) -> 0
A36: S | B36: 2 | C36: S | D36: 0 | E36: =IF($C36=1,OFFSET(E36,-1,0)+MAX(1,COUNTIF(QCI!$A$13:$A$24,OFFSET(ORÇAMENTO!E36,-1,0))),OFFSET(E36,-1,0)) -> 1 | F36: 10 | G36: 0 | H36: 0 | I36: 1 | J36: 0 | K36: =IF(OR($C36="S",$C36=0),0,MATCH(OFFSET($D36,0,$C36)+IF($C36<>1,1,COUNTIF(QCI!$A$13:$A$24,ORÇAMENTO!E36)),OFFSET($D36,1,$C36,ROW($C$37)-ROW($C36)),0)) -> 0 | L36: F | M36: Serviço | N36: Serviço | O36: 1.10.1. | P36: Cotação | Q36: 10 | R36: Complementares | S36: UN | T36: =OFFSET(CÁLCULO!H$15,ROW($T36)-ROW(T$15),0) -> 25 | U36: 349.9 | V36: BDI 1 | W36: =IF($C36="S",ROUND(IF(TIPOORCAMENTO="Proposto",ORÇAMENTO.CustoUnitario*(1+$AH36),ORÇAMENTO.PrecoUnitarioLicitado),15-13*$AF$10),0) -> 446.12 | X36: =IF($C36="S",IF(OR(Import.TipoArredondamento<>"TransfereGOV",ACOMPANHAMENTO="BM"),VTOTAL1,SUM(OFFSET(CÁLCULO!$AQ$15,ROW($X36)-ROW($X$15),1):OFFSET(CÁLCULO!$BR$15,ROW($X36)-ROW($X$15),-1))),IF($C36=0,0,ROUND(SomaAgrup,15-13*$AF$11))) -> 11153 | Y36: RA | Z36: RA | AA36: =IF($C36="S",IF($Z36="CP",$X36,IF($Z36="RA",(($X36)*QCI!$AA$3),0)),SomaAgrup) -> 428.0476964 | AB36: =IF($C36="S",IF($Z36="OU",ROUND($X36,2),0),SomaAgrup) -> 0 | AC36: =IF($N36=""," ", IF(AND($C36<>"S",OR($R36="",$R36="(digite a descrição aqui)")),"DESCRIÇÃO", IF(AND($C36="S",OR($Q36<>"",$T36>0,$U36>0),$P36=""),"FONTE", IF(AND($C36="S",$P36<>"",OR($T36>0,$U36>0),$Q36=""),"CÓDIGO", IF(AND($C36="S",$P36<>"",$Q36<>"",$R36="(Código não identificado nas referências)"),"CÓDIGO N/ID", IF(AND($C36="S",OR($R36="",$R36="(digite a descrição aqui)"),OR($Q36<>"",$T36>0,$U36>0)),"DESCRIÇÃO", IF(AND($C36="S",$P36<>"",$Q36<>"",$S36=""),"UNIDADE", IF(AND($C36="S",$P36<>"",$Q36<>"",$U36=0),"SEM CUSTO", IF(AND(TIPOORCAMENTO="Licitado",$AL36=0,$AN36>0),"SEM PREÇO", IF(AND($C36="S",$P36<>"",$Q36<>"",$U36>0,AND($V36<>"BDI 1",$V36<>"BDI 2",$V36<>"BDI 3")),IF(ISNUMBER($V36),"JUSTIFICAR BDI","BDI"), IF(OR(AND(import.recurso="OGU",TIPOORCAMENTO="Proposto",LEFT($O$8,5)<>"(N/D:",$AG36<>"",ORÇAMENTO.CustoUnitario>$AG36),AND(TIPOORCAMENTO="LICITADO",ORÇAMENTO.PrecoUnitarioLicitado>$AN36)),"ACIMA REF.", IF(AND($C36="S",$P36<>"",$Q36<>"",$T36=0,$U36>0),"QUANT.", IF(AND(Import.TipoArredondamento="TransfereGOV",$L36="F",$C36="S",LEN($Q36)>13),"Código >13", IF(AND(Import.TipoArredondamento="TransfereGOV",$L36="F",$C36<>"S",LEN($R36)>100),"Descrição >100", IF(AND(Import.TipoArredondamento="TransfereGOV",$L36="F",$C36="S",LEN($R36)>500),"Descrição >500", IF(AND(Import.TipoArredondamento="TransfereGOV",$L36="F",$C36="S",LEFT(TRIM(UPPER($P36)),6)<>"SINAPI",ISNA(VLOOKUP(TRIM(UPPER($S36)),ListaTgov.Unidades,1,FALSE))),"Unid. Não Disp", " ")))))))))))))))) ->  | AD36: =IF(C36<=CRONO.NivelExibicao,MAX($AD$15:OFFSET(AD36,-1,0))+IF($C36<>1,1,MAX(1,COUNTIF(QCI!$A$13:$A$24,OFFSET($E36,-1,0)))),"") ->  | AE36: =IF(AND($C36="S",ORÇAMENTO.CodBarra<>""),IF(ORÇAMENTO.Fonte="",ORÇAMENTO.CodBarra,CONCATENATE(ORÇAMENTO.Fonte," ",ORÇAMENTO.CodBarra))) -> Cotação 10 | AF36: =IF(ISERROR(ORÇAMENTO.BancoRef),"(abra o arquivo 'Referência "&Excel_BuiltIn_Database&".xlsm)",IF(OR($C36<>"S",ORÇAMENTO.CodBarra=""),"(Sem Código)",IF(ISERROR(MATCH($AE36,INDIRECT(ORÇAMENTO.BancoRef),0)),"(Código não identificado nas referências)",MATCH($AE36,INDIRECT(ORÇAMENTO.BancoRef),0)))) -> (Código não identificado nas referências) | AG36: =ROUND(IF(DESONERACAO="sim",REFERENCIA.Desonerado,REFERENCIA.NaoDesonerado),2) -> 0 | AH36: 0.275 | AM36: 11153 | AN36: =ROUND(ORÇAMENTO.CustoUnitario*(1+$AH36),2) -> 446.12
A37: -1 | C37: -1 | E37: 0 | F37: 0 | G37: 0 | H37: 0 | I37: 0 | L37: F | AC37: =IF($N37=""," ", IF(AND($C37<>"S",OR($R37="",$R37="(digite a descrição aqui)")),"DESCRIÇÃO", IF(AND($C37="S",OR($Q37<>"",$T37>0,$U37>0),$P37=""),"FONTE", IF(AND($C37="S",$P37<>"",OR($T37>0,$U37>0),$Q37=""),"CÓDIGO", IF(AND($C37="S",$P37<>"",$Q37<>"",$R37="(Código não identificado nas referências)"),"CÓDIGO N/ID", IF(AND($C37="S",OR($R37="",$R37="(digite a descrição aqui)"),OR($Q37<>"",$T37>0,$U37>0)),"DESCRIÇÃO", IF(AND($C37="S",$P37<>"",$Q37<>"",$S37=""),"UNIDADE", IF(AND($C37="S",$P37<>"",$Q37<>"",$U37=0),"SEM CUSTO", IF(AND(TIPOORCAMENTO="Licitado",$AL37=0,$AN37>0),"SEM PREÇO", IF(AND($C37="S",$P37<>"",$Q37<>"",$U37>0,AND($V37<>"BDI 1",$V37<>"BDI 2",$V37<>"BDI 3")),IF(ISNUMBER($V37),"JUSTIFICAR BDI","BDI"), IF(OR(AND(import.recurso="OGU",TIPOORCAMENTO="Proposto",LEFT($O$8,5)<>"(N/D:",$AG37<>"",ORÇAMENTO.CustoUnitario>$AG37),AND(TIPOORCAMENTO="LICITADO",ORÇAMENTO.PrecoUnitarioLicitado>$AN37)),"ACIMA REF.", IF(AND($C37="S",$P37<>"",$Q37<>"",$T37=0,$U37>0),"QUANT.", IF(AND(Import.TipoArredondamento="TransfereGOV",$L37="F",$C37="S",LEN($Q37)>13),"Código >13", IF(AND(Import.TipoArredondamento="TransfereGOV",$L37="F",$C37<>"S",LEN($R37)>100),"Descrição >100", IF(AND(Import.TipoArredondamento="TransfereGOV",$L37="F",$C37="S",LEN($R37)>500),"Descrição >500", IF(AND(Import.TipoArredondamento="TransfereGOV",$L37="F",$C37="S",LEFT(TRIM(UPPER($P37)),6)<>"SINAPI",ISNA(VLOOKUP(TRIM(UPPER($S37)),ListaTgov.Unidades,1,FALSE))),"Unid. Não Disp", " ")))))))))))))))) -> 
O40: Encargos sociais: | Q40: Para elaboração deste orçamento, foram utilizados os encargos sociais do SINAPI para a Unidade da Federação indicada.
O42: Observações:
O47: =IF(AND($AF$7=FALSE,$AF$8=FALSE,$AF$9=FALSE,$AF$10=FALSE,$AF$11=FALSE),"Não foi considerado arredondamento nos valores da planilha.",CONCATENATE("Foi considerado arredondamento de duas casas decimais para ",IF($AF$7=TRUE,"Quantidade; ",""),IF($AF$8=TRUE,"Custo Unitário; ",""),IF($AF$9=TRUE,"BDI; ",""),IF($AF$10=TRUE,"Preço Unitário; ",""),IF($AF$11=TRUE,"Preço Total.",""))) -> Foi considerado arredondamento de duas casas decimais para Quantidade; Custo Unitário; BDI; Preço Unitário; Preço Total.
O48: Siglas da Composição do Investimento: RA - Rateio proporcional entre Repasse e Contrapartida; RP - 100% Repasse; CP - 100% Contrapartida; OU - 100% Outros.
O50: =Import.Município -> Itatinga/SP
O51: Local | S51: Responsável Técnico
S52: Nome: | T52: =Import.RespOrçamento -> Bianca Oliveira da Silva
O53: =DADOS!$C$25 -> 2025-11-07 | S53: CREA/CAU: | T53: 5070438158-SP
O54: Data | S54: ART/RRT: | T54: 2620251184146

Sheet EVENTOS
A1: =IF(D1="","","F") ->  | B1: =IF(OR(C1=" ",D1=""),"",CONCATENATE(C1,". ",D1)) ->  | C1: =IF(OR(ROW(C1)=ROW(EVENTOS.firstrow)+1,AND(OFFSET(C1,-1,0)<>" ",OFFSET(C1,-1,1)<>"")),OFFSET(C1,-1,0)+1," ") ->  | E1: =IF(AUTOEVENTO="Manual",ROUND(SUMPRODUCT((CÁLCULO!$M$15:$M$37=EVENTOS!$C1)*(OFFSET(CÁLCULO!$AQ$15:$AQ$37,0,E$13))),2),0) -> 0 | F1: =IF(AUTOEVENTO="Manual",ROUND(SUMPRODUCT((CÁLCULO!$M$15:$M$37=EVENTOS!$C1)*(OFFSET(CÁLCULO!$AQ$15,0,1):OFFSET(CÁLCULO!$BR$37,0,-1))),2),0) -> 0 | G1: =IF(AND(D1=0,F1>0),"NOME", IF(AND(D1<>0,$F$14>0,F1=0),"VALOR", IF(AND(Import.TipoArredondamento="TransfereGOV",$A1="F",LEN(D1)>100),"Nome >100",""))) ->  | H1: =IF(AUTOEVENTO="Manual",ROUND(SUMPRODUCT((CÁLCULO!$M$15:$M$37=EVENTOS!$C1)*(OFFSET(CÁLCULO!$AQ$15:$AQ$37,0,H$13))),2),0) -> 0 | I1: =IF(AUTOEVENTO="Manual",ROUND(SUMPRODUCT((CÁLCULO!$M$15:$M$37=EVENTOS!$C1)*(OFFSET(CÁLCULO!$AQ$15:$AQ$37,0,I$13))),2),0) -> 0 | J1: =IF(AUTOEVENTO="Manual",ROUND(SUMPRODUCT((CÁLCULO!$M$15:$M$37=EVENTOS!$C1)*(OFFSET(CÁLCULO!$AQ$15:$AQ$37,0,J$13))),2),0) -> 0 | K1: =IF(AUTOEVENTO="Manual",ROUND(SUMPRODUCT((CÁLCULO!$M$15:$M$37=EVENTOS!$C1)*(OFFSET(CÁLCULO!$AQ$15:$AQ$37,0,K$13))),2),0) -> 0 | L1: =IF(AUTOEVENTO="Manual",ROUND(SUMPRODUCT((CÁLCULO!$M$15:$M$37=EVENTOS!$C1)*(OFFSET(CÁLCULO!$AQ$15:$AQ$37,0,L$13))),2),0) -> 0 | M1: =IF(AUTOEVENTO="Manual",ROUND(SUMPRODUCT((CÁLCULO!$M$15:$M$37=EVENTOS!$C1)*(OFFSET(CÁLCULO!$AQ$15:$AQ$37,0,M$13))),2),0) -> 0 | N1: =IF(AUTOEVENTO="Manual",ROUND(SUMPRODUCT((CÁLCULO!$M$15:$M$37=EVENTOS!$C1)*(OFFSET(CÁLCULO!$AQ$15:$AQ$37,0,N$13))),2),0) -> 0 | O1: =IF(AUTOEVENTO="Manual",ROUND(SUMPRODUCT((CÁLCULO!$M$15:$M$37=EVENTOS!$C1)*(OFFSET(CÁLCULO!$AQ$15:$AQ$37,0,O$13))),2),0) -> 0 | P1: =IF(AUTOEVENTO="Manual",ROUND(SUMPRODUCT((CÁLCULO!$M$15:$M$37=EVENTOS!$C1)*(OFFSET(CÁLCULO!$AQ$15:$AQ$37,0,P$13))),2),0) -> 0 | Q1: =IF(AUTOEVENTO="Manual",ROUND(SUMPRODUCT((CÁLCULO!$M$15:$M$37=EVENTOS!$C1)*(OFFSET(CÁLCULO!$AQ$15:$AQ$37,0,Q$13))),2),0) -> 0 | R1: =IF(AUTOEVENTO="Manual",ROUND(SUMPRODUCT((CÁLCULO!$M$15:$M$37=EVENTOS!$C1)*(OFFSET(CÁLCULO!$AQ$15:$AQ$37,0,R$13))),2),0) -> 0 | S1: =IF(AUTOEVENTO="Manual",ROUND(SUMPRODUCT((CÁLCULO!$M$15:$M$37=EVENTOS!$C1)*(OFFSET(CÁLCULO!$AQ$15:$AQ$37,0,S$13))),2),0) -> 0 | T1: =IF(AUTOEVENTO="Manual",ROUND(SUMPRODUCT((CÁLCULO!$M$15:$M$37=EVENTOS!$C1)*(OFFSET(CÁLCULO!$AQ$15:$AQ$37,0,T$13))),2),0) -> 0 | U1: =IF(AUTOEVENTO="Manual",ROUND(SUMPRODUCT((CÁLCULO!$M$15:$M$37=EVENTOS!$C1)*(OFFSET(CÁLCULO!$AQ$15:$AQ$37,0,U$13))),2),0) -> 0 | V1: =IF(AUTOEVENTO="Manual",ROUND(SUMPRODUCT((CÁLCULO!$M$15:$M$37=EVENTOS!$C1)*(OFFSET(CÁLCULO!$AQ$15:$AQ$37,0,V$13))),2),0) -> 0 | W1: =IF(AUTOEVENTO="Manual",ROUND(SUMPRODUCT((CÁLCULO!$M$15:$M$37=EVENTOS!$C1)*(OFFSET(CÁLCULO!$AQ$15:$AQ$37,0,W$13))),2),0) -> 0 | X1: =IF(AUTOEVENTO="Manual",ROUND(SUMPRODUCT((CÁLCULO!$M$15:$M$37=EVENTOS!$C1)*(OFFSET(CÁLCULO!$AQ$15:$AQ$37,0,X$13))),2),0) -> 0 | Y1: =IF(AUTOEVENTO="Manual",ROUND(SUMPRODUCT((CÁLCULO!$M$15:$M$37=EVENTOS!$C1)*(OFFSET(CÁLCULO!$AQ$15:$AQ$37,0,Y$13))),2),0) -> 0 | Z1: =IF(AUTOEVENTO="Manual",ROUND(SUMPRODUCT((CÁLCULO!$M$15:$M$37=EVENTOS!$C1)*(OFFSET(CÁLCULO!$AQ$15:$AQ$37,0,Z$13))),2),0) -> 0 | AA1: =IF(AUTOEVENTO="Manual",ROUND(SUMPRODUCT((CÁLCULO!$M$15:$M$37=EVENTOS!$C1)*(OFFSET(CÁLCULO!$AQ$15:$AQ$37,0,AA$13))),2),0) -> 0 | AB1: =IF(AUTOEVENTO="Manual",ROUND(SUMPRODUCT((CÁLCULO!$M$15:$M$37=EVENTOS!$C1)*(OFFSET(CÁLCULO!$AQ$15:$AQ$37,0,AB$13))),2),0) -> 0 | AC1: =IF(AUTOEVENTO="Manual",ROUND(SUMPRODUCT((CÁLCULO!$M$15:$M$37=EVENTOS!$C1)*(OFFSET(CÁLCULO!$AQ$15:$AQ$37,0,AC$13))),2),0) -> 0 | AD1: =IF(AUTOEVENTO="Manual",ROUND(SUMPRODUCT((CÁLCULO!$M$15:$M$37=EVENTOS!$C1)*(OFFSET(CÁLCULO!$AQ$15:$AQ$37,0,AD$13))),2),0) -> 0 | AE1: =IF(AUTOEVENTO="Manual",ROUND(SUMPRODUCT((CÁLCULO!$M$15:$M$37=EVENTOS!$C1)*(OFFSET(CÁLCULO!$AQ$15:$AQ$37,0,AE$13))),2),0) -> 0 | AF1: =IF(AUTOEVENTO="Manual",ROUND(SUMPRODUCT((CÁLCULO!$M$15:$M$37=EVENTOS!$C1)*(OFFSET(CÁLCULO!$AQ$15:$AQ$37,0,AF$13))),2),0) -> 0 | AG1: =IF(AUTOEVENTO="Manual",ROUND(SUMPRODUCT((CÁLCULO!$M$15:$M$37=EVENTOS!$C1)*(OFFSET(CÁLCULO!$AQ$15:$AQ$37,0,AG$13))),2),0) -> 0 | AH1: =IF(AUTOEVENTO="Manual",ROUND(SUMPRODUCT((CÁLCULO!$M$15:$M$37=EVENTOS!$C1)*(OFFSET(CÁLCULO!$AQ$15:$AQ$37,0,AH$13))),2),0) -> 0 | AI1: =IF(AUTOEVENTO="Manual",ROUND(SUMPRODUCT((CÁLCULO!$M$15:$M$37=EVENTOS!$C1)*(OFFSET(CÁLCULO!$AQ$15:$AQ$37,0,AI$13))),2),0) -> 0
F2: AGRUPADORES DE EVENTOS | O2: Grau de Sigilo #PUBLICO | Y2: Grau de Sigilo #PUBLICO | AI2: Grau de Sigilo #PUBLICO
C4: PROPONENTE / TOMADOR | F4: APELIDO EMPREENDIMENTO | N4: Nº OPERAÇÃO | O4: Nº TransfereGOV | P4: APELIDO EMPREENDIMENTO | X4: Nº OPERAÇÃO | Y4: Nº TransfereGOV | Z4: APELIDO EMPREENDIMENTO | AH4: Nº OPERAÇÃO | AI4: Nº TransfereGOV
C5: =Import.Proponente -> Prefeitura de Itatinga | F5: =Import.Apelido -> Construção de unidades habitacionais no programa MCMV FNHIS sub 50. | N5: =Import.CR -> 1100656-87 | O5: =Import.SICONV -> 9744498 | P5: =Import.Apelido -> Construção de unidades habitacionais no programa MCMV FNHIS sub 50. | X5: =Import.CR -> 1100656-87 | Y5: =Import.SICONV -> 9744498 | Z5: =Import.Apelido -> Construção de unidades habitacionais no programa MCMV FNHIS sub 50. | AH5: =Import.CR -> 1100656-87 | AI5: =Import.SICONV -> 9744498
B6: Automática, conforme os agrupadores Nível 2 do Orçamento | C6: 1. Selecione abaixo a forma de definição dos agrupadores de eventos: | F6: =IF(AUTOEVENTO="MANUAL", IF(COUNTIF($G$15:$G$26,"NOME")>0,"Falta preencher o nome do Título do Evento nº "&INDEX($C$15:$C$26,MATCH("NOME",$G$15:$G$26,0)), IF(COUNTIF($G$15:$G$26,"VALOR")>0,"Falta atribuir serviços ao Evento nº "&INDEX($C$15:$C$26,MATCH("VALOR",$G$15:$G$26,0))&". Corrigir a atribuição dos eventos na aba CÁLCULO. Ou excluir linhas dos eventos não utilizados.", IF(ROUND($F$14,2)<>ROUND(ORÇAMENTO!$X$15,2),"O valor total dos Eventos é diferente do valor total do Orçamento. Corrigir a atribuição dos eventos na aba CÁLCULO", IF(COUNTIF($G$15:$G$26,"Nome >100")>0,"O tamanho do Título do Evento no TransfereGOV é limitado a 100 caracteres. Resuma o nome do Título do Evento nº "&INDEX($C$15:$C$26,MATCH("Nome >100",$G$15:$G$26,0)),"")))),"") -> 
B7: Automática, conforme os agrupadores Nível 3 do Orçamento
B8: Automática, conforme os agrupadores Nível 4 do Orçamento | C8: Automática, conforme os agrupadores Nível 2 do Orçamento | F8: =IF(ACOMPANHAMENTO="BM","", IF(Import.Eventos.Nível="","◄ Selecione a forma de definição dos agrupadores de eventos", IF(Import.Eventos.Nível="","◄ Selecione a forma de definição dos agrupadores de eventos",""))) -> 
B9: Definir Manualmente
C10: =COUNTIF($C$15:$C$26,">0")-1 -> 0 | E10: =OFFSET(CÁLCULO!$P$12,0,EVENTOS!E$13) -> UH1 | H10: =OFFSET(CÁLCULO!$P$12,0,EVENTOS!H$13) -> UH1 | I10: =OFFSET(CÁLCULO!$P$12,0,EVENTOS!I$13) -> UH2 | J10: =OFFSET(CÁLCULO!$P$12,0,EVENTOS!J$13) -> UH3 | K10: =OFFSET(CÁLCULO!$P$12,0,EVENTOS!K$13) -> UH4 | L10: =OFFSET(CÁLCULO!$P$12,0,EVENTOS!L$13) -> UH5 | M10: =OFFSET(CÁLCULO!$P$12,0,EVENTOS!M$13) -> UH6 | N10: =OFFSET(CÁLCULO!$P$12,0,EVENTOS!N$13) -> UH7 | O10: =OFFSET(CÁLCULO!$P$12,0,EVENTOS!O$13) -> UH8 | P10: =OFFSET(CÁLCULO!$P$12,0,EVENTOS!P$13) -> UH9 | Q10: =OFFSET(CÁLCULO!$P$12,0,EVENTOS!Q$13) -> UH10 | R10: =OFFSET(CÁLCULO!$P$12,0,EVENTOS!R$13) -> UH11 | S10: =OFFSET(CÁLCULO!$P$12,0,EVENTOS!S$13) -> UH12 | T10: =OFFSET(CÁLCULO!$P$12,0,EVENTOS!T$13) -> UH13 | U10: =OFFSET(CÁLCULO!$P$12,0,EVENTOS!U$13) -> UH14 | V10: =OFFSET(CÁLCULO!$P$12,0,EVENTOS!V$13) -> UH15 | W10: =OFFSET(CÁLCULO!$P$12,0,EVENTOS!W$13) -> UH16 | X10: =OFFSET(CÁLCULO!$P$12,0,EVENTOS!X$13) -> UH17 | Y10: =OFFSET(CÁLCULO!$P$12,0,EVENTOS!Y$13) -> UH18 | Z10: =OFFSET(CÁLCULO!$P$12,0,EVENTOS!Z$13) -> UH19 | AA10: =OFFSET(CÁLCULO!$P$12,0,EVENTOS!AA$13) -> UH20 | AB10: =OFFSET(CÁLCULO!$P$12,0,EVENTOS!AB$13) -> UH21 | AC10: =OFFSET(CÁLCULO!$P$12,0,EVENTOS!AC$13) -> UH22 | AD10: =OFFSET(CÁLCULO!$P$12,0,EVENTOS!AD$13) -> UH23 | AE10: =OFFSET(CÁLCULO!$P$12,0,EVENTOS!AE$13) -> UH24 | AF10: =OFFSET(CÁLCULO!$P$12,0,EVENTOS!AF$13) -> UH25 | AG10: =OFFSET(CÁLCULO!$P$12,0,EVENTOS!AG$13) -> . | AH10: =OFFSET(CÁLCULO!$P$12,0,EVENTOS!AH$13) -> . | AI10: =OFFSET(CÁLCULO!$P$12,0,EVENTOS!AI$13) -> .
A11: FILTRO | C11: =IF(ACOMPANHAMENTO="BM","Foi selecionado na aba 'MENU' o acompanhamento por BM. Não há necessidade de definição de Eventos.",IF(AND(Import.Eventos.Nível<>"Definir Manualmente",Import.Eventos.Nível<>""),"Foi selecionada a forma automática de definição dos agrupadores de eventos.","")) -> Foi selecionada a forma automática de definição dos agrupadores de eventos.
A12: ↓
C13: Nº do Evento | D13: Título do Evento | E13: =IF(NOT(ISNUMBER(OFFSET(E13,0,-1))),1,IF(OR(OFFSET(E13,0,-1)=0,OFFSET(E13,0,-1)+1>CÁLCULO.FrentesPreenchidas),0,OFFSET(E13,0,-1)+1)) -> 1 | F13: Valor Total dos Eventos (R$) | H13: =IF(NOT(ISNUMBER(OFFSET(H13,0,-1))),1,IF(OR(OFFSET(H13,0,-1)=0,OFFSET(H13,0,-1)+1>CÁLCULO.FrentesPreenchidas),0,OFFSET(H13,0,-1)+1)) -> 1 | I13: 2 | J13: 3 | K13: 4 | L13: 5 | M13: 6 | N13: 7 | O13: 8 | P13: 9 | Q13: 10 | R13: 11 | S13: 12 | T13: 13 | U13: 14 | V13: 15 | W13: 16 | X13: 17 | Y13: 18 | Z13: 19 | AA13: 20 | AB13: 21 | AC13: 22 | AD13: 23 | AE13: 24 | AF13: 25 | AG13: 0 | AH13: 0 | AI13: 0
A14: F | D14: Total: | E14: =SUM(E$15:E$26) -> 0 | F14: =SUM(F$15:F$26) -> 0 | H14: =SUM(H$15:H$26) -> 0 | I14: 0 | J14: 0 | K14: 0 | L14: 0 | M14: 0 | N14: 0 | O14: 0 | P14: 0 | Q14: 0 | R14: 0 | S14: 0 | T14: 0 | U14: 0 | V14: 0 | W14: 0 | X14: 0 | Y14: 0 | Z14: 0 | AA14: 0 | AB14: 0 | AC14: 0 | AD14: 0 | AE14: 0 | AF14: 0 | AG14: 0 | AH14: 0 | AI14: 0
A15: =IF(D15="","","F") ->  | B15: =IF(OR(C15=" ",D15=""),"",CONCATENATE(C15,". ",D15)) ->  | C15: =IF(AdmLocal="Automática",1,0) -> 0 | D15: =IF(C15=1,"Administração Local","") ->  | E15: =IF($F$15=0,0,IF(E13=1,$F$15-SUM($I$15:$AJ$15),ROUND(SUM(OFFSET(E15,1,0):OFFSET(E$26,-1,0))/SUM(OFFSET($F15,1,0):OFFSET($F$26,-1,0))*$F$15,2))) -> 0 | F15: =IF($C$15=0,0,ROUND(SUMPRODUCT((CÁLCULO!$M$15:$M$37=EVENTOS!$C15)*(ORÇAMENTO!$X$15:'ORÇAMENTO'!$X$37)),2)) -> 0 | H15: =IF($F$15=0,0,IF(H13=1,$F$15-SUM($I$15:$AJ$15),ROUND(SUM(OFFSET(H15,1,0):OFFSET(H$26,-1,0))/SUM(OFFSET($F15,1,0):OFFSET($F$26,-1,0))*$F$15,2))) -> 0 | I15: =IF($F$15=0,0,IF(I13=1,$F$15-SUM($I$15:$AJ$15),ROUND(SUM(OFFSET(I15,1,0):OFFSET(I$26,-1,0))/SUM(OFFSET($F15,1,0):OFFSET($F$26,-1,0))*$F$15,2))) -> 0 | J15: =IF($F$15=0,0,IF(J13=1,$F$15-SUM($I$15:$AJ$15),ROUND(SUM(OFFSET(J15,1,0):OFFSET(J$26,-1,0))/SUM(OFFSET($F15,1,0):OFFSET($F$26,-1,0))*$F$15,2))) -> 0 | K15: =IF($F$15=0,0,IF(K13=1,$F$15-SUM($I$15:$AJ$15),ROUND(SUM(OFFSET(K15,1,0):OFFSET(K$26,-1,0))/SUM(OFFSET($F15,1,0):OFFSET($F$26,-1,0))*$F$15,2))) -> 0 | L15: =IF($F$15=0,0,IF(L13=1,$F$15-SUM($I$15:$AJ$15),ROUND(SUM(OFFSET(L15,1,0):OFFSET(L$26,-1,0))/SUM(OFFSET($F15,1,0):OFFSET($F$26,-1,0))*$F$15,2))) -> 0 | M15: =IF($F$15=0,0,IF(M13=1,$F$15-SUM($I$15:$AJ$15),ROUND(SUM(OFFSET(M15,1,0):OFFSET(M$26,-1,0))/SUM(OFFSET($F15,1,0):OFFSET($F$26,-1,0))*$F$15,2))) -> 0 | N15: =IF($F$15=0,0,IF(N13=1,$F$15-SUM($I$15:$AJ$15),ROUND(SUM(OFFSET(N15,1,0):OFFSET(N$26,-1,0))/SUM(OFFSET($F15,1,0):OFFSET($F$26,-1,0))*$F$15,2))) -> 0 | O15: =IF($F$15=0,0,IF(O13=1,$F$15-SUM($I$15:$AJ$15),ROUND(SUM(OFFSET(O15,1,0):OFFSET(O$26,-1,0))/SUM(OFFSET($F15,1,0):OFFSET($F$26,-1,0))*$F$15,2))) -> 0 | P15: =IF($F$15=0,0,IF(P13=1,$F$15-SUM($I$15:$AJ$15),ROUND(SUM(OFFSET(P15,1,0):OFFSET(P$26,-1,0))/SUM(OFFSET($F15,1,0):OFFSET($F$26,-1,0))*$F$15,2))) -> 0 | Q15: =IF($F$15=0,0,IF(Q13=1,$F$15-SUM($I$15:$AJ$15),ROUND(SUM(OFFSET(Q15,1,0):OFFSET(Q$26,-1,0))/SUM(OFFSET($F15,1,0):OFFSET($F$26,-1,0))*$F$15,2))) -> 0 | R15: =IF($F$15=0,0,IF(R13=1,$F$15-SUM($I$15:$AJ$15),ROUND(SUM(OFFSET(R15,1,0):OFFSET(R$26,-1,0))/SUM(OFFSET($F15,1,0):OFFSET($F$26,-1,0))*$F$15,2))) -> 0 | S15: =IF($F$15=0,0,IF(S13=1,$F$15-SUM($I$15:$AJ$15),ROUND(SUM(OFFSET(S15,1,0):OFFSET(S$26,-1,0))/SUM(OFFSET($F15,1,0):OFFSET($F$26,-1,0))*$F$15,2))) -> 0 | T15: =IF($F$15=0,0,IF(T13=1,$F$15-SUM($I$15:$AJ$15),ROUND(SUM(OFFSET(T15,1,0):OFFSET(T$26,-1,0))/SUM(OFFSET($F15,1,0):OFFSET($F$26,-1,0))*$F$15,2))) -> 0 | U15: =IF($F$15=0,0,IF(U13=1,$F$15-SUM($I$15:$AJ$15),ROUND(SUM(OFFSET(U15,1,0):OFFSET(U$26,-1,0))/SUM(OFFSET($F15,1,0):OFFSET($F$26,-1,0))*$F$15,2))) -> 0 | V15: =IF($F$15=0,0,IF(V13=1,$F$15-SUM($I$15:$AJ$15),ROUND(SUM(OFFSET(V15,1,0):OFFSET(V$26,-1,0))/SUM(OFFSET($F15,1,0):OFFSET($F$26,-1,0))*$F$15,2))) -> 0 | W15: =IF($F$15=0,0,IF(W13=1,$F$15-SUM($I$15:$AJ$15),ROUND(SUM(OFFSET(W15,1,0):OFFSET(W$26,-1,0))/SUM(OFFSET($F15,1,0):OFFSET($F$26,-1,0))*$F$15,2))) -> 0 | X15: =IF($F$15=0,0,IF(X13=1,$F$15-SUM($I$15:$AJ$15),ROUND(SUM(OFFSET(X15,1,0):OFFSET(X$26,-1,0))/SUM(OFFSET($F15,1,0):OFFSET($F$26,-1,0))*$F$15,2))) -> 0 | Y15: =IF($F$15=0,0,IF(Y13=1,$F$15-SUM($I$15:$AJ$15),ROUND(SUM(OFFSET(Y15,1,0):OFFSET(Y$26,-1,0))/SUM(OFFSET($F15,1,0):OFFSET($F$26,-1,0))*$F$15,2))) -> 0 | Z15: =IF($F$15=0,0,IF(Z13=1,$F$15-SUM($I$15:$AJ$15),ROUND(SUM(OFFSET(Z15,1,0):OFFSET(Z$26,-1,0))/SUM(OFFSET($F15,1,0):OFFSET($F$26,-1,0))*$F$15,2))) -> 0 | AA15: =IF($F$15=0,0,IF(AA13=1,$F$15-SUM($I$15:$AJ$15),ROUND(SUM(OFFSET(AA15,1,0):OFFSET(AA$26,-1,0))/SUM(OFFSET($F15,1,0):OFFSET($F$26,-1,0))*$F$15,2))) -> 0 | AB15: =IF($F$15=0,0,IF(AB13=1,$F$15-SUM($I$15:$AJ$15),ROUND(SUM(OFFSET(AB15,1,0):OFFSET(AB$26,-1,0))/SUM(OFFSET($F15,1,0):OFFSET($F$26,-1,0))*$F$15,2))) -> 0 | AC15: =IF($F$15=0,0,IF(AC13=1,$F$15-SUM($I$15:$AJ$15),ROUND(SUM(OFFSET(AC15,1,0):OFFSET(AC$26,-1,0))/SUM(OFFSET($F15,1,0):OFFSET($F$26,-1,0))*$F$15,2))) -> 0 | AD15: =IF($F$15=0,0,IF(AD13=1,$F$15-SUM($I$15:$AJ$15),ROUND(SUM(OFFSET(AD15,1,0):OFFSET(AD$26,-1,0))/SUM(OFFSET($F15,1,0):OFFSET($F$26,-1,0))*$F$15,2))) -> 0 | AE15: =IF($F$15=0,0,IF(AE13=1,$F$15-SUM($I$15:$AJ$15),ROUND(SUM(OFFSET(AE15,1,0):OFFSET(AE$26,-1,0))/SUM(OFFSET($F15,1,0):OFFSET($F$26,-1,0))*$F$15,2))) -> 0 | AF15: =IF($F$15=0,0,IF(AF13=1,$F$15-SUM($I$15:$AJ$15),ROUND(SUM(OFFSET(AF15,1,0):OFFSET(AF$26,-1,0))/SUM(OFFSET($F15,1,0):OFFSET($F$26,-1,0))*$F$15,2))) -> 0 | AG15: =IF($F$15=0,0,IF(AG13=1,$F$15-SUM($I$15:$AJ$15),ROUND(SUM(OFFSET(AG15,1,0):OFFSET(AG$26,-1,0))/SUM(OFFSET($F15,1,0):OFFSET($F$26,-1,0))*$F$15,2))) -> 0 | AH15: =IF($F$15=0,0,IF(AH13=1,$F$15-SUM($I$15:$AJ$15),ROUND(SUM(OFFSET(AH15,1,0):OFFSET(AH$26,-1,0))/SUM(OFFSET($F15,1,0):OFFSET($F$26,-1,0))*$F$15,2))) -> 0 | AI15: =IF($F$15=0,0,IF(AI13=1,$F$15-SUM($I$15:$AJ$15),ROUND(SUM(OFFSET(AI15,1,0):OFFSET(AI$26,-1,0))/SUM(OFFSET($F15,1,0):OFFSET($F$26,-1,0))*$F$15,2))) -> 0
B16: =IF(OR(C16=" ",D16=""),"",CONCATENATE(C16,". ",D16)) ->  | C16: =IF(OR(ROW(C16)=ROW(EVENTOS.firstrow)+1,AND(OFFSET(C16,-1,0)<>" ",OFFSET(C16,-1,1)<>"")),OFFSET(C16,-1,0)+1," ") -> 1 | E16: =IF(AUTOEVENTO="Manual",ROUND(SUMPRODUCT((CÁLCULO!$M$15:$M$37=EVENTOS!$C16)*(OFFSET(CÁLCULO!$AQ$15:$AQ$37,0,E$13))),2),0) -> 0 | F16: =IF(AUTOEVENTO="Manual",ROUND(SUMPRODUCT((CÁLCULO!$M$15:$M$37=EVENTOS!$C16)*(OFFSET(CÁLCULO!$AQ$15,0,1):OFFSET(CÁLCULO!$BR$37,0,-1))),2),0) -> 0 | G16: =IF(AND(D16=0,F16>0),"NOME", IF(AND(D16<>0,$F$14>0,F16=0),"VALOR", IF(AND(Import.TipoArredondamento="TransfereGOV",$A16="F",LEN(D16)>100),"Nome >100",""))) ->  | H16: =IF(AUTOEVENTO="Manual",ROUND(SUMPRODUCT((CÁLCULO!$M$15:$M$37=EVENTOS!$C16)*(OFFSET(CÁLCULO!$AQ$15:$AQ$37,0,H$13))),2),0) -> 0 | I16: =IF(AUTOEVENTO="Manual",ROUND(SUMPRODUCT((CÁLCULO!$M$15:$M$37=EVENTOS!$C16)*(OFFSET(CÁLCULO!$AQ$15:$AQ$37,0,I$13))),2),0) -> 0 | J16: =IF(AUTOEVENTO="Manual",ROUND(SUMPRODUCT((CÁLCULO!$M$15:$M$37=EVENTOS!$C16)*(OFFSET(CÁLCULO!$AQ$15:$AQ$37,0,J$13))),2),0) -> 0 | K16: =IF(AUTOEVENTO="Manual",ROUND(SUMPRODUCT((CÁLCULO!$M$15:$M$37=EVENTOS!$C16)*(OFFSET(CÁLCULO!$AQ$15:$AQ$37,0,K$13))),2),0) -> 0 | L16: =IF(AUTOEVENTO="Manual",ROUND(SUMPRODUCT((CÁLCULO!$M$15:$M$37=EVENTOS!$C16)*(OFFSET(CÁLCULO!$AQ$15:$AQ$37,0,L$13))),2),0) -> 0 | M16: =IF(AUTOEVENTO="Manual",ROUND(SUMPRODUCT((CÁLCULO!$M$15:$M$37=EVENTOS!$C16)*(OFFSET(CÁLCULO!$AQ$15:$AQ$37,0,M$13))),2),0) -> 0 | N16: =IF(AUTOEVENTO="Manual",ROUND(SUMPRODUCT((CÁLCULO!$M$15:$M$37=EVENTOS!$C16)*(OFFSET(CÁLCULO!$AQ$15:$AQ$37,0,N$13))),2),0) -> 0 | O16: =IF(AUTOEVENTO="Manual",ROUND(SUMPRODUCT((CÁLCULO!$M$15:$M$37=EVENTOS!$C16)*(OFFSET(CÁLCULO!$AQ$15:$AQ$37,0,O$13))),2),0) -> 0 | P16: =IF(AUTOEVENTO="Manual",ROUND(SUMPRODUCT((CÁLCULO!$M$15:$M$37=EVENTOS!$C16)*(OFFSET(CÁLCULO!$AQ$15:$AQ$37,0,P$13))),2),0) -> 0 | Q16: =IF(AUTOEVENTO="Manual",ROUND(SUMPRODUCT((CÁLCULO!$M$15:$M$37=EVENTOS!$C16)*(OFFSET(CÁLCULO!$AQ$15:$AQ$37,0,Q$13))),2),0) -> 0 | R16: =IF(AUTOEVENTO="Manual",ROUND(SUMPRODUCT((CÁLCULO!$M$15:$M$37=EVENTOS!$C16)*(OFFSET(CÁLCULO!$AQ$15:$AQ$37,0,R$13))),2),0) -> 0 | S16: =IF(AUTOEVENTO="Manual",ROUND(SUMPRODUCT((CÁLCULO!$M$15:$M$37=EVENTOS!$C16)*(OFFSET(CÁLCULO!$AQ$15:$AQ$37,0,S$13))),2),0) -> 0 | T16: =IF(AUTOEVENTO="Manual",ROUND(SUMPRODUCT((CÁLCULO!$M$15:$M$37=EVENTOS!$C16)*(OFFSET(CÁLCULO!$AQ$15:$AQ$37,0,T$13))),2),0) -> 0 | U16: =IF(AUTOEVENTO="Manual",ROUND(SUMPRODUCT((CÁLCULO!$M$15:$M$37=EVENTOS!$C16)*(OFFSET(CÁLCULO!$AQ$15:$AQ$37,0,U$13))),2),0) -> 0 | V16: =IF(AUTOEVENTO="Manual",ROUND(SUMPRODUCT((CÁLCULO!$M$15:$M$37=EVENTOS!$C16)*(OFFSET(CÁLCULO!$AQ$15:$AQ$37,0,V$13))),2),0) -> 0 | W16: =IF(AUTOEVENTO="Manual",ROUND(SUMPRODUCT((CÁLCULO!$M$15:$M$37=EVENTOS!$C16)*(OFFSET(CÁLCULO!$AQ$15:$AQ$37,0,W$13))),2),0) -> 0 | X16: =IF(AUTOEVENTO="Manual",ROUND(SUMPRODUCT((CÁLCULO!$M$15:$M$37=EVENTOS!$C16)*(OFFSET(CÁLCULO!$AQ$15:$AQ$37,0,X$13))),2),0) -> 0 | Y16: =IF(AUTOEVENTO="Manual",ROUND(SUMPRODUCT((CÁLCULO!$M$15:$M$37=EVENTOS!$C16)*(OFFSET(CÁLCULO!$AQ$15:$AQ$37,0,Y$13))),2),0) -> 0 | Z16: =IF(AUTOEVENTO="Manual",ROUND(SUMPRODUCT((CÁLCULO!$M$15:$M$37=EVENTOS!$C16)*(OFFSET(CÁLCULO!$AQ$15:$AQ$37,0,Z$13))),2),0) -> 0 | AA16: =IF(AUTOEVENTO="Manual",ROUND(SUMPRODUCT((CÁLCULO!$M$15:$M$37=EVENTOS!$C16)*(OFFSET(CÁLCULO!$AQ$15:$AQ$37,0,AA$13))),2),0) -> 0 | AB16: =IF(AUTOEVENTO="Manual",ROUND(SUMPRODUCT((CÁLCULO!$M$15:$M$37=EVENTOS!$C16)*(OFFSET(CÁLCULO!$AQ$15:$AQ$37,0,AB$13))),2),0) -> 0 | AC16: =IF(AUTOEVENTO="Manual",ROUND(SUMPRODUCT((CÁLCULO!$M$15:$M$37=EVENTOS!$C16)*(OFFSET(CÁLCULO!$AQ$15:$AQ$37,0,AC$13))),2),0) -> 0 | AD16: =IF(AUTOEVENTO="Manual",ROUND(SUMPRODUCT((CÁLCULO!$M$15:$M$37=EVENTOS!$C16)*(OFFSET(CÁLCULO!$AQ$15:$AQ$37,0,AD$13))),2),0) -> 0 | AE16: =IF(AUTOEVENTO="Manual",ROUND(SUMPRODUCT((CÁLCULO!$M$15:$M$37=EVENTOS!$C16)*(OFFSET(CÁLCULO!$AQ$15:$AQ$37,0,AE$13))),2),0) -> 0 | AF16: =IF(AUTOEVENTO="Manual",ROUND(SUMPRODUCT((CÁLCULO!$M$15:$M$37=EVENTOS!$C16)*(OFFSET(CÁLCULO!$AQ$15:$AQ$37,0,AF$13))),2),0) -> 0 | AG16: =IF(AUTOEVENTO="Manual",ROUND(SUMPRODUCT((CÁLCULO!$M$15:$M$37=EVENTOS!$C16)*(OFFSET(CÁLCULO!$AQ$15:$AQ$37,0,AG$13))),2),0) -> 0 | AH16: =IF(AUTOEVENTO="Manual",ROUND(SUMPRODUCT((CÁLCULO!$M$15:$M$37=EVENTOS!$C16)*(OFFSET(CÁLCULO!$AQ$15:$AQ$37,0,AH$13))),2),0) -> 0 | AI16: =IF(AUTOEVENTO="Manual",ROUND(SUMPRODUCT((CÁLCULO!$M$15:$M$37=EVENTOS!$C16)*(OFFSET(CÁLCULO!$AQ$15:$AQ$37,0,AI$13))),2),0) -> 0
C17: =IF(OR(ROW(C17)=ROW(EVENTOS.firstrow)+1,AND(OFFSET(C17,-1,0)<>" ",OFFSET(C17,-1,1)<>"")),OFFSET(C17,-1,0)+1," ") ->  | E17: =IF(AUTOEVENTO="Manual",ROUND(SUMPRODUCT((CÁLCULO!$M$15:$M$37=EVENTOS!$C17)*(OFFSET(CÁLCULO!$AQ$15:$AQ$37,0,E$13))),2),0) -> 0 | F17: =IF(AUTOEVENTO="Manual",ROUND(SUMPRODUCT((CÁLCULO!$M$15:$M$37=EVENTOS!$C17)*(OFFSET(CÁLCULO!$AQ$15,0,1):OFFSET(CÁLCULO!$BR$37,0,-1))),2),0) -> 0 | H17: =IF(AUTOEVENTO="Manual",ROUND(SUMPRODUCT((CÁLCULO!$M$15:$M$37=EVENTOS!$C17)*(OFFSET(CÁLCULO!$AQ$15:$AQ$37,0,H$13))),2),0) -> 0 | I17: =IF(AUTOEVENTO="Manual",ROUND(SUMPRODUCT((CÁLCULO!$M$15:$M$37=EVENTOS!$C17)*(OFFSET(CÁLCULO!$AQ$15:$AQ$37,0,I$13))),2),0) -> 0 | J17: =IF(AUTOEVENTO="Manual",ROUND(SUMPRODUCT((CÁLCULO!$M$15:$M$37=EVENTOS!$C17)*(OFFSET(CÁLCULO!$AQ$15:$AQ$37,0,J$13))),2),0) -> 0 | K17: =IF(AUTOEVENTO="Manual",ROUND(SUMPRODUCT((CÁLCULO!$M$15:$M$37=EVENTOS!$C17)*(OFFSET(CÁLCULO!$AQ$15:$AQ$37,0,K$13))),2),0) -> 0 | L17: =IF(AUTOEVENTO="Manual",ROUND(SUMPRODUCT((CÁLCULO!$M$15:$M$37=EVENTOS!$C17)*(OFFSET(CÁLCULO!$AQ$15:$AQ$37,0,L$13))),2),0) -> 0 | M17: =IF(AUTOEVENTO="Manual",ROUND(SUMPRODUCT((CÁLCULO!$M$15:$M$37=EVENTOS!$C17)*(OFFSET(CÁLCULO!$AQ$15:$AQ$37,0,M$13))),2),0) -> 0 | N17: =IF(AUTOEVENTO="Manual",ROUND(SUMPRODUCT((CÁLCULO!$M$15:$M$37=EVENTOS!$C17)*(OFFSET(CÁLCULO!$AQ$15:$AQ$37,0,N$13))),2),0) -> 0 | O17: =IF(AUTOEVENTO="Manual",ROUND(SUMPRODUCT((CÁLCULO!$M$15:$M$37=EVENTOS!$C17)*(OFFSET(CÁLCULO!$AQ$15:$AQ$37,0,O$13))),2),0) -> 0 | P17: =IF(AUTOEVENTO="Manual",ROUND(SUMPRODUCT((CÁLCULO!$M$15:$M$37=EVENTOS!$C17)*(OFFSET(CÁLCULO!$AQ$15:$AQ$37,0,P$13))),2),0) -> 0 | Q17: =IF(AUTOEVENTO="Manual",ROUND(SUMPRODUCT((CÁLCULO!$M$15:$M$37=EVENTOS!$C17)*(OFFSET(CÁLCULO!$AQ$15:$AQ$37,0,Q$13))),2),0) -> 0 | R17: =IF(AUTOEVENTO="Manual",ROUND(SUMPRODUCT((CÁLCULO!$M$15:$M$37=EVENTOS!$C17)*(OFFSET(CÁLCULO!$AQ$15:$AQ$37,0,R$13))),2),0) -> 0 | S17: =IF(AUTOEVENTO="Manual",ROUND(SUMPRODUCT((CÁLCULO!$M$15:$M$37=EVENTOS!$C17)*(OFFSET(CÁLCULO!$AQ$15:$AQ$37,0,S$13))),2),0) -> 0 | T17: =IF(AUTOEVENTO="Manual",ROUND(SUMPRODUCT((CÁLCULO!$M$15:$M$37=EVENTOS!$C17)*(OFFSET(CÁLCULO!$AQ$15:$AQ$37,0,T$13))),2),0) -> 0 | U17: =IF(AUTOEVENTO="Manual",ROUND(SUMPRODUCT((CÁLCULO!$M$15:$M$37=EVENTOS!$C17)*(OFFSET(CÁLCULO!$AQ$15:$AQ$37,0,U$13))),2),0) -> 0 | V17: =IF(AUTOEVENTO="Manual",ROUND(SUMPRODUCT((CÁLCULO!$M$15:$M$37=EVENTOS!$C17)*(OFFSET(CÁLCULO!$AQ$15:$AQ$37,0,V$13))),2),0) -> 0 | W17: =IF(AUTOEVENTO="Manual",ROUND(SUMPRODUCT((CÁLCULO!$M$15:$M$37=EVENTOS!$C17)*(OFFSET(CÁLCULO!$AQ$15:$AQ$37,0,W$13))),2),0) -> 0 | X17: =IF(AUTOEVENTO="Manual",ROUND(SUMPRODUCT((CÁLCULO!$M$15:$M$37=EVENTOS!$C17)*(OFFSET(CÁLCULO!$AQ$15:$AQ$37,0,X$13))),2),0) -> 0 | Y17: =IF(AUTOEVENTO="Manual",ROUND(SUMPRODUCT((CÁLCULO!$M$15:$M$37=EVENTOS!$C17)*(OFFSET(CÁLCULO!$AQ$15:$AQ$37,0,Y$13))),2),0) -> 0 | Z17: =IF(AUTOEVENTO="Manual",ROUND(SUMPRODUCT((CÁLCULO!$M$15:$M$37=EVENTOS!$C17)*(OFFSET(CÁLCULO!$AQ$15:$AQ$37,0,Z$13))),2),0) -> 0 | AA17: =IF(AUTOEVENTO="Manual",ROUND(SUMPRODUCT((CÁLCULO!$M$15:$M$37=EVENTOS!$C17)*(OFFSET(CÁLCULO!$AQ$15:$AQ$37,0,AA$13))),2),0) -> 0 | AB17: =IF(AUTOEVENTO="Manual",ROUND(SUMPRODUCT((CÁLCULO!$M$15:$M$37=EVENTOS!$C17)*(OFFSET(CÁLCULO!$AQ$15:$AQ$37,0,AB$13))),2),0) -> 0 | AC17: =IF(AUTOEVENTO="Manual",ROUND(SUMPRODUCT((CÁLCULO!$M$15:$M$37=EVENTOS!$C17)*(OFFSET(CÁLCULO!$AQ$15:$AQ$37,0,AC$13))),2),0) -> 0 | AD17: =IF(AUTOEVENTO="Manual",ROUND(SUMPRODUCT((CÁLCULO!$M$15:$M$37=EVENTOS!$C17)*(OFFSET(CÁLCULO!$AQ$15:$AQ$37,0,AD$13))),2),0) -> 0 | AE17: =IF(AUTOEVENTO="Manual",ROUND(SUMPRODUCT((CÁLCULO!$M$15:$M$37=EVENTOS!$C17)*(OFFSET(CÁLCULO!$AQ$15:$AQ$37,0,AE$13))),2),0) -> 0 | AF17: =IF(AUTOEVENTO="Manual",ROUND(SUMPRODUCT((CÁLCULO!$M$15:$M$37=EVENTOS!$C17)*(OFFSET(CÁLCULO!$AQ$15:$AQ$37,0,AF$13))),2),0) -> 0 | AG17: =IF(AUTOEVENTO="Manual",ROUND(SUMPRODUCT((CÁLCULO!$M$15:$M$37=EVENTOS!$C17)*(OFFSET(CÁLCULO!$AQ$15:$AQ$37,0,AG$13))),2),0) -> 0 | AH17: =IF(AUTOEVENTO="Manual",ROUND(SUMPRODUCT((CÁLCULO!$M$15:$M$37=EVENTOS!$C17)*(OFFSET(CÁLCULO!$AQ$15:$AQ$37,0,AH$13))),2),0) -> 0 | AI17: =IF(AUTOEVENTO="Manual",ROUND(SUMPRODUCT((CÁLCULO!$M$15:$M$37=EVENTOS!$C17)*(OFFSET(CÁLCULO!$AQ$15:$AQ$37,0,AI$13))),2),0) -> 0
C18: =IF(OR(ROW(C18)=ROW(EVENTOS.firstrow)+1,AND(OFFSET(C18,-1,0)<>" ",OFFSET(C18,-1,1)<>"")),OFFSET(C18,-1,0)+1," ") ->  | E18: =IF(AUTOEVENTO="Manual",ROUND(SUMPRODUCT((CÁLCULO!$M$15:$M$37=EVENTOS!$C18)*(OFFSET(CÁLCULO!$AQ$15:$AQ$37,0,E$13))),2),0) -> 0 | F18: =IF(AUTOEVENTO="Manual",ROUND(SUMPRODUCT((CÁLCULO!$M$15:$M$37=EVENTOS!$C18)*(OFFSET(CÁLCULO!$AQ$15,0,1):OFFSET(CÁLCULO!$BR$37,0,-1))),2),0) -> 0 | H18: =IF(AUTOEVENTO="Manual",ROUND(SUMPRODUCT((CÁLCULO!$M$15:$M$37=EVENTOS!$C18)*(OFFSET(CÁLCULO!$AQ$15:$AQ$37,0,H$13))),2),0) -> 0 | I18: =IF(AUTOEVENTO="Manual",ROUND(SUMPRODUCT((CÁLCULO!$M$15:$M$37=EVENTOS!$C18)*(OFFSET(CÁLCULO!$AQ$15:$AQ$37,0,I$13))),2),0) -> 0 | J18: =IF(AUTOEVENTO="Manual",ROUND(SUMPRODUCT((CÁLCULO!$M$15:$M$37=EVENTOS!$C18)*(OFFSET(CÁLCULO!$AQ$15:$AQ$37,0,J$13))),2),0) -> 0 | K18: =IF(AUTOEVENTO="Manual",ROUND(SUMPRODUCT((CÁLCULO!$M$15:$M$37=EVENTOS!$C18)*(OFFSET(CÁLCULO!$AQ$15:$AQ$37,0,K$13))),2),0) -> 0 | L18: =IF(AUTOEVENTO="Manual",ROUND(SUMPRODUCT((CÁLCULO!$M$15:$M$37=EVENTOS!$C18)*(OFFSET(CÁLCULO!$AQ$15:$AQ$37,0,L$13))),2),0) -> 0 | M18: =IF(AUTOEVENTO="Manual",ROUND(SUMPRODUCT((CÁLCULO!$M$15:$M$37=EVENTOS!$C18)*(OFFSET(CÁLCULO!$AQ$15:$AQ$37,0,M$13))),2),0) -> 0 | N18: =IF(AUTOEVENTO="Manual",ROUND(SUMPRODUCT((CÁLCULO!$M$15:$M$37=EVENTOS!$C18)*(OFFSET(CÁLCULO!$AQ$15:$AQ$37,0,N$13))),2),0) -> 0 | O18: =IF(AUTOEVENTO="Manual",ROUND(SUMPRODUCT((CÁLCULO!$M$15:$M$37=EVENTOS!$C18)*(OFFSET(CÁLCULO!$AQ$15:$AQ$37,0,O$13))),2),0) -> 0 | P18: =IF(AUTOEVENTO="Manual",ROUND(SUMPRODUCT((CÁLCULO!$M$15:$M$37=EVENTOS!$C18)*(OFFSET(CÁLCULO!$AQ$15:$AQ$37,0,P$13))),2),0) -> 0 | Q18: =IF(AUTOEVENTO="Manual",ROUND(SUMPRODUCT((CÁLCULO!$M$15:$M$37=EVENTOS!$C18)*(OFFSET(CÁLCULO!$AQ$15:$AQ$37,0,Q$13))),2),0) -> 0 | R18: =IF(AUTOEVENTO="Manual",ROUND(SUMPRODUCT((CÁLCULO!$M$15:$M$37=EVENTOS!$C18)*(OFFSET(CÁLCULO!$AQ$15:$AQ$37,0,R$13))),2),0) -> 0 | S18: =IF(AUTOEVENTO="Manual",ROUND(SUMPRODUCT((CÁLCULO!$M$15:$M$37=EVENTOS!$C18)*(OFFSET(CÁLCULO!$AQ$15:$AQ$37,0,S$13))),2),0) -> 0 | T18: =IF(AUTOEVENTO="Manual",ROUND(SUMPRODUCT((CÁLCULO!$M$15:$M$37=EVENTOS!$C18)*(OFFSET(CÁLCULO!$AQ$15:$AQ$37,0,T$13))),2),0) -> 0 | U18: =IF(AUTOEVENTO="Manual",ROUND(SUMPRODUCT((CÁLCULO!$M$15:$M$37=EVENTOS!$C18)*(OFFSET(CÁLCULO!$AQ$15:$AQ$37,0,U$13))),2),0) -> 0 | V18: =IF(AUTOEVENTO="Manual",ROUND(SUMPRODUCT((CÁLCULO!$M$15:$M$37=EVENTOS!$C18)*(OFFSET(CÁLCULO!$AQ$15:$AQ$37,0,V$13))),2),0) -> 0 | W18: =IF(AUTOEVENTO="Manual",ROUND(SUMPRODUCT((CÁLCULO!$M$15:$M$37=EVENTOS!$C18)*(OFFSET(CÁLCULO!$AQ$15:$AQ$37,0,W$13))),2),0) -> 0 | X18: =IF(AUTOEVENTO="Manual",ROUND(SUMPRODUCT((CÁLCULO!$M$15:$M$37=EVENTOS!$C18)*(OFFSET(CÁLCULO!$AQ$15:$AQ$37,0,X$13))),2),0) -> 0 | Y18: =IF(AUTOEVENTO="Manual",ROUND(SUMPRODUCT((CÁLCULO!$M$15:$M$37=EVENTOS!$C18)*(OFFSET(CÁLCULO!$AQ$15:$AQ$37,0,Y$13))),2),0) -> 0 | Z18: =IF(AUTOEVENTO="Manual",ROUND(SUMPRODUCT((CÁLCULO!$M$15:$M$37=EVENTOS!$C18)*(OFFSET(CÁLCULO!$AQ$15:$AQ$37,0,Z$13))),2),0) -> 0 | AA18: =IF(AUTOEVENTO="Manual",ROUND(SUMPRODUCT((CÁLCULO!$M$15:$M$37=EVENTOS!$C18)*(OFFSET(CÁLCULO!$AQ$15:$AQ$37,0,AA$13))),2),0) -> 0 | AB18: =IF(AUTOEVENTO="Manual",ROUND(SUMPRODUCT((CÁLCULO!$M$15:$M$37=EVENTOS!$C18)*(OFFSET(CÁLCULO!$AQ$15:$AQ$37,0,AB$13))),2),0) -> 0 | AC18: =IF(AUTOEVENTO="Manual",ROUND(SUMPRODUCT((CÁLCULO!$M$15:$M$37=EVENTOS!$C18)*(OFFSET(CÁLCULO!$AQ$15:$AQ$37,0,AC$13))),2),0) -> 0 | AD18: =IF(AUTOEVENTO="Manual",ROUND(SUMPRODUCT((CÁLCULO!$M$15:$M$37=EVENTOS!$C18)*(OFFSET(CÁLCULO!$AQ$15:$AQ$37,0,AD$13))),2),0) -> 0 | AE18: =IF(AUTOEVENTO="Manual",ROUND(SUMPRODUCT((CÁLCULO!$M$15:$M$37=EVENTOS!$C18)*(OFFSET(CÁLCULO!$AQ$15:$AQ$37,0,AE$13))),2),0) -> 0 | AF18: =IF(AUTOEVENTO="Manual",ROUND(SUMPRODUCT((CÁLCULO!$M$15:$M$37=EVENTOS!$C18)*(OFFSET(CÁLCULO!$AQ$15:$AQ$37,0,AF$13))),2),0) -> 0 | AG18: =IF(AUTOEVENTO="Manual",ROUND(SUMPRODUCT((CÁLCULO!$M$15:$M$37=EVENTOS!$C18)*(OFFSET(CÁLCULO!$AQ$15:$AQ$37,0,AG$13))),2),0) -> 0 | AH18: =IF(AUTOEVENTO="Manual",ROUND(SUMPRODUCT((CÁLCULO!$M$15:$M$37=EVENTOS!$C18)*(OFFSET(CÁLCULO!$AQ$15:$AQ$37,0,AH$13))),2),0) -> 0 | AI18: =IF(AUTOEVENTO="Manual",ROUND(SUMPRODUCT((CÁLCULO!$M$15:$M$37=EVENTOS!$C18)*(OFFSET(CÁLCULO!$AQ$15:$AQ$37,0,AI$13))),2),0) -> 0
C19: =IF(OR(ROW(C19)=ROW(EVENTOS.firstrow)+1,AND(OFFSET(C19,-1,0)<>" ",OFFSET(C19,-1,1)<>"")),OFFSET(C19,-1,0)+1," ") ->  | E19: =IF(AUTOEVENTO="Manual",ROUND(SUMPRODUCT((CÁLCULO!$M$15:$M$37=EVENTOS!$C19)*(OFFSET(CÁLCULO!$AQ$15:$AQ$37,0,E$13))),2),0) -> 0 | F19: =IF(AUTOEVENTO="Manual",ROUND(SUMPRODUCT((CÁLCULO!$M$15:$M$37=EVENTOS!$C19)*(OFFSET(CÁLCULO!$AQ$15,0,1):OFFSET(CÁLCULO!$BR$37,0,-1))),2),0) -> 0 | H19: =IF(AUTOEVENTO="Manual",ROUND(SUMPRODUCT((CÁLCULO!$M$15:$M$37=EVENTOS!$C19)*(OFFSET(CÁLCULO!$AQ$15:$AQ$37,0,H$13))),2),0) -> 0 | I19: =IF(AUTOEVENTO="Manual",ROUND(SUMPRODUCT((CÁLCULO!$M$15:$M$37=EVENTOS!$C19)*(OFFSET(CÁLCULO!$AQ$15:$AQ$37,0,I$13))),2),0) -> 0 | J19: =IF(AUTOEVENTO="Manual",ROUND(SUMPRODUCT((CÁLCULO!$M$15:$M$37=EVENTOS!$C19)*(OFFSET(CÁLCULO!$AQ$15:$AQ$37,0,J$13))),2),0) -> 0 | K19: =IF(AUTOEVENTO="Manual",ROUND(SUMPRODUCT((CÁLCULO!$M$15:$M$37=EVENTOS!$C19)*(OFFSET(CÁLCULO!$AQ$15:$AQ$37,0,K$13))),2),0) -> 0 | L19: =IF(AUTOEVENTO="Manual",ROUND(SUMPRODUCT((CÁLCULO!$M$15:$M$37=EVENTOS!$C19)*(OFFSET(CÁLCULO!$AQ$15:$AQ$37,0,L$13))),2),0) -> 0 | M19: =IF(AUTOEVENTO="Manual",ROUND(SUMPRODUCT((CÁLCULO!$M$15:$M$37=EVENTOS!$C19)*(OFFSET(CÁLCULO!$AQ$15:$AQ$37,0,M$13))),2),0) -> 0 | N19: =IF(AUTOEVENTO="Manual",ROUND(SUMPRODUCT((CÁLCULO!$M$15:$M$37=EVENTOS!$C19)*(OFFSET(CÁLCULO!$AQ$15:$AQ$37,0,N$13))),2),0) -> 0 | O19: =IF(AUTOEVENTO="Manual",ROUND(SUMPRODUCT((CÁLCULO!$M$15:$M$37=EVENTOS!$C19)*(OFFSET(CÁLCULO!$AQ$15:$AQ$37,0,O$13))),2),0) -> 0 | P19: =IF(AUTOEVENTO="Manual",ROUND(SUMPRODUCT((CÁLCULO!$M$15:$M$37=EVENTOS!$C19)*(OFFSET(CÁLCULO!$AQ$15:$AQ$37,0,P$13))),2),0) -> 0 | Q19: =IF(AUTOEVENTO="Manual",ROUND(SUMPRODUCT((CÁLCULO!$M$15:$M$37=EVENTOS!$C19)*(OFFSET(CÁLCULO!$AQ$15:$AQ$37,0,Q$13))),2),0) -> 0 | R19: =IF(AUTOEVENTO="Manual",ROUND(SUMPRODUCT((CÁLCULO!$M$15:$M$37=EVENTOS!$C19)*(OFFSET(CÁLCULO!$AQ$15:$AQ$37,0,R$13))),2),0) -> 0 | S19: =IF(AUTOEVENTO="Manual",ROUND(SUMPRODUCT((CÁLCULO!$M$15:$M$37=EVENTOS!$C19)*(OFFSET(CÁLCULO!$AQ$15:$AQ$37,0,S$13))),2),0) -> 0 | T19: =IF(AUTOEVENTO="Manual",ROUND(SUMPRODUCT((CÁLCULO!$M$15:$M$37=EVENTOS!$C19)*(OFFSET(CÁLCULO!$AQ$15:$AQ$37,0,T$13))),2),0) -> 0 | U19: =IF(AUTOEVENTO="Manual",ROUND(SUMPRODUCT((CÁLCULO!$M$15:$M$37=EVENTOS!$C19)*(OFFSET(CÁLCULO!$AQ$15:$AQ$37,0,U$13))),2),0) -> 0 | V19: =IF(AUTOEVENTO="Manual",ROUND(SUMPRODUCT((CÁLCULO!$M$15:$M$37=EVENTOS!$C19)*(OFFSET(CÁLCULO!$AQ$15:$AQ$37,0,V$13))),2),0) -> 0 | W19: =IF(AUTOEVENTO="Manual",ROUND(SUMPRODUCT((CÁLCULO!$M$15:$M$37=EVENTOS!$C19)*(OFFSET(CÁLCULO!$AQ$15:$AQ$37,0,W$13))),2),0) -> 0 | X19: =IF(AUTOEVENTO="Manual",ROUND(SUMPRODUCT((CÁLCULO!$M$15:$M$37=EVENTOS!$C19)*(OFFSET(CÁLCULO!$AQ$15:$AQ$37,0,X$13))),2),0) -> 0 | Y19: =IF(AUTOEVENTO="Manual",ROUND(SUMPRODUCT((CÁLCULO!$M$15:$M$37=EVENTOS!$C19)*(OFFSET(CÁLCULO!$AQ$15:$AQ$37,0,Y$13))),2),0) -> 0 | Z19: =IF(AUTOEVENTO="Manual",ROUND(SUMPRODUCT((CÁLCULO!$M$15:$M$37=EVENTOS!$C19)*(OFFSET(CÁLCULO!$AQ$15:$AQ$37,0,Z$13))),2),0) -> 0 | AA19: =IF(AUTOEVENTO="Manual",ROUND(SUMPRODUCT((CÁLCULO!$M$15:$M$37=EVENTOS!$C19)*(OFFSET(CÁLCULO!$AQ$15:$AQ$37,0,AA$13))),2),0) -> 0 | AB19: =IF(AUTOEVENTO="Manual",ROUND(SUMPRODUCT((CÁLCULO!$M$15:$M$37=EVENTOS!$C19)*(OFFSET(CÁLCULO!$AQ$15:$AQ$37,0,AB$13))),2),0) -> 0 | AC19: =IF(AUTOEVENTO="Manual",ROUND(SUMPRODUCT((CÁLCULO!$M$15:$M$37=EVENTOS!$C19)*(OFFSET(CÁLCULO!$AQ$15:$AQ$37,0,AC$13))),2),0) -> 0 | AD19: =IF(AUTOEVENTO="Manual",ROUND(SUMPRODUCT((CÁLCULO!$M$15:$M$37=EVENTOS!$C19)*(OFFSET(CÁLCULO!$AQ$15:$AQ$37,0,AD$13))),2),0) -> 0 | AE19: =IF(AUTOEVENTO="Manual",ROUND(SUMPRODUCT((CÁLCULO!$M$15:$M$37=EVENTOS!$C19)*(OFFSET(CÁLCULO!$AQ$15:$AQ$37,0,AE$13))),2),0) -> 0 | AF19: =IF(AUTOEVENTO="Manual",ROUND(SUMPRODUCT((CÁLCULO!$M$15:$M$37=EVENTOS!$C19)*(OFFSET(CÁLCULO!$AQ$15:$AQ$37,0,AF$13))),2),0) -> 0 | AG19: =IF(AUTOEVENTO="Manual",ROUND(SUMPRODUCT((CÁLCULO!$M$15:$M$37=EVENTOS!$C19)*(OFFSET(CÁLCULO!$AQ$15:$AQ$37,0,AG$13))),2),0) -> 0 | AH19: =IF(AUTOEVENTO="Manual",ROUND(SUMPRODUCT((CÁLCULO!$M$15:$M$37=EVENTOS!$C19)*(OFFSET(CÁLCULO!$AQ$15:$AQ$37,0,AH$13))),2),0) -> 0 | AI19: =IF(AUTOEVENTO="Manual",ROUND(SUMPRODUCT((CÁLCULO!$M$15:$M$37=EVENTOS!$C19)*(OFFSET(CÁLCULO!$AQ$15:$AQ$37,0,AI$13))),2),0) -> 0
C20: =IF(OR(ROW(C20)=ROW(EVENTOS.firstrow)+1,AND(OFFSET(C20,-1,0)<>" ",OFFSET(C20,-1,1)<>"")),OFFSET(C20,-1,0)+1," ") ->  | E20: =IF(AUTOEVENTO="Manual",ROUND(SUMPRODUCT((CÁLCULO!$M$15:$M$37=EVENTOS!$C20)*(OFFSET(CÁLCULO!$AQ$15:$AQ$37,0,E$13))),2),0) -> 0 | F20: =IF(AUTOEVENTO="Manual",ROUND(SUMPRODUCT((CÁLCULO!$M$15:$M$37=EVENTOS!$C20)*(OFFSET(CÁLCULO!$AQ$15,0,1):OFFSET(CÁLCULO!$BR$37,0,-1))),2),0) -> 0 | H20: =IF(AUTOEVENTO="Manual",ROUND(SUMPRODUCT((CÁLCULO!$M$15:$M$37=EVENTOS!$C20)*(OFFSET(CÁLCULO!$AQ$15:$AQ$37,0,H$13))),2),0) -> 0 | I20: =IF(AUTOEVENTO="Manual",ROUND(SUMPRODUCT((CÁLCULO!$M$15:$M$37=EVENTOS!$C20)*(OFFSET(CÁLCULO!$AQ$15:$AQ$37,0,I$13))),2),0) -> 0 | J20: =IF(AUTOEVENTO="Manual",ROUND(SUMPRODUCT((CÁLCULO!$M$15:$M$37=EVENTOS!$C20)*(OFFSET(CÁLCULO!$AQ$15:$AQ$37,0,J$13))),2),0) -> 0 | K20: =IF(AUTOEVENTO="Manual",ROUND(SUMPRODUCT((CÁLCULO!$M$15:$M$37=EVENTOS!$C20)*(OFFSET(CÁLCULO!$AQ$15:$AQ$37,0,K$13))),2),0) -> 0 | L20: =IF(AUTOEVENTO="Manual",ROUND(SUMPRODUCT((CÁLCULO!$M$15:$M$37=EVENTOS!$C20)*(OFFSET(CÁLCULO!$AQ$15:$AQ$37,0,L$13))),2),0) -> 0 | M20: =IF(AUTOEVENTO="Manual",ROUND(SUMPRODUCT((CÁLCULO!$M$15:$M$37=EVENTOS!$C20)*(OFFSET(CÁLCULO!$AQ$15:$AQ$37,0,M$13))),2),0) -> 0 | N20: =IF(AUTOEVENTO="Manual",ROUND(SUMPRODUCT((CÁLCULO!$M$15:$M$37=EVENTOS!$C20)*(OFFSET(CÁLCULO!$AQ$15:$AQ$37,0,N$13))),2),0) -> 0 | O20: =IF(AUTOEVENTO="Manual",ROUND(SUMPRODUCT((CÁLCULO!$M$15:$M$37=EVENTOS!$C20)*(OFFSET(CÁLCULO!$AQ$15:$AQ$37,0,O$13))),2),0) -> 0 | P20: =IF(AUTOEVENTO="Manual",ROUND(SUMPRODUCT((CÁLCULO!$M$15:$M$37=EVENTOS!$C20)*(OFFSET(CÁLCULO!$AQ$15:$AQ$37,0,P$13))),2),0) -> 0 | Q20: =IF(AUTOEVENTO="Manual",ROUND(SUMPRODUCT((CÁLCULO!$M$15:$M$37=EVENTOS!$C20)*(OFFSET(CÁLCULO!$AQ$15:$AQ$37,0,Q$13))),2),0) -> 0 | R20: =IF(AUTOEVENTO="Manual",ROUND(SUMPRODUCT((CÁLCULO!$M$15:$M$37=EVENTOS!$C20)*(OFFSET(CÁLCULO!$AQ$15:$AQ$37,0,R$13))),2),0) -> 0 | S20: =IF(AUTOEVENTO="Manual",ROUND(SUMPRODUCT((CÁLCULO!$M$15:$M$37=EVENTOS!$C20)*(OFFSET(CÁLCULO!$AQ$15:$AQ$37,0,S$13))),2),0) -> 0 | T20: =IF(AUTOEVENTO="Manual",ROUND(SUMPRODUCT((CÁLCULO!$M$15:$M$37=EVENTOS!$C20)*(OFFSET(CÁLCULO!$AQ$15:$AQ$37,0,T$13))),2),0) -> 0 | U20: =IF(AUTOEVENTO="Manual",ROUND(SUMPRODUCT((CÁLCULO!$M$15:$M$37=EVENTOS!$C20)*(OFFSET(CÁLCULO!$AQ$15:$AQ$37,0,U$13))),2),0) -> 0 | V20: =IF(AUTOEVENTO="Manual",ROUND(SUMPRODUCT((CÁLCULO!$M$15:$M$37=EVENTOS!$C20)*(OFFSET(CÁLCULO!$AQ$15:$AQ$37,0,V$13))),2),0) -> 0 | W20: =IF(AUTOEVENTO="Manual",ROUND(SUMPRODUCT((CÁLCULO!$M$15:$M$37=EVENTOS!$C20)*(OFFSET(CÁLCULO!$AQ$15:$AQ$37,0,W$13))),2),0) -> 0 | X20: =IF(AUTOEVENTO="Manual",ROUND(SUMPRODUCT((CÁLCULO!$M$15:$M$37=EVENTOS!$C20)*(OFFSET(CÁLCULO!$AQ$15:$AQ$37,0,X$13))),2),0) -> 0 | Y20: =IF(AUTOEVENTO="Manual",ROUND(SUMPRODUCT((CÁLCULO!$M$15:$M$37=EVENTOS!$C20)*(OFFSET(CÁLCULO!$AQ$15:$AQ$37,0,Y$13))),2),0) -> 0 | Z20: =IF(AUTOEVENTO="Manual",ROUND(SUMPRODUCT((CÁLCULO!$M$15:$M$37=EVENTOS!$C20)*(OFFSET(CÁLCULO!$AQ$15:$AQ$37,0,Z$13))),2),0) -> 0 | AA20: =IF(AUTOEVENTO="Manual",ROUND(SUMPRODUCT((CÁLCULO!$M$15:$M$37=EVENTOS!$C20)*(OFFSET(CÁLCULO!$AQ$15:$AQ$37,0,AA$13))),2),0) -> 0 | AB20: =IF(AUTOEVENTO="Manual",ROUND(SUMPRODUCT((CÁLCULO!$M$15:$M$37=EVENTOS!$C20)*(OFFSET(CÁLCULO!$AQ$15:$AQ$37,0,AB$13))),2),0) -> 0 | AC20: =IF(AUTOEVENTO="Manual",ROUND(SUMPRODUCT((CÁLCULO!$M$15:$M$37=EVENTOS!$C20)*(OFFSET(CÁLCULO!$AQ$15:$AQ$37,0,AC$13))),2),0) -> 0 | AD20: =IF(AUTOEVENTO="Manual",ROUND(SUMPRODUCT((CÁLCULO!$M$15:$M$37=EVENTOS!$C20)*(OFFSET(CÁLCULO!$AQ$15:$AQ$37,0,AD$13))),2),0) -> 0 | AE20: =IF(AUTOEVENTO="Manual",ROUND(SUMPRODUCT((CÁLCULO!$M$15:$M$37=EVENTOS!$C20)*(OFFSET(CÁLCULO!$AQ$15:$AQ$37,0,AE$13))),2),0) -> 0 | AF20: =IF(AUTOEVENTO="Manual",ROUND(SUMPRODUCT((CÁLCULO!$M$15:$M$37=EVENTOS!$C20)*(OFFSET(CÁLCULO!$AQ$15:$AQ$37,0,AF$13))),2),0) -> 0 | AG20: =IF(AUTOEVENTO="Manual",ROUND(SUMPRODUCT((CÁLCULO!$M$15:$M$37=EVENTOS!$C20)*(OFFSET(CÁLCULO!$AQ$15:$AQ$37,0,AG$13))),2),0) -> 0 | AH20: =IF(AUTOEVENTO="Manual",ROUND(SUMPRODUCT((CÁLCULO!$M$15:$M$37=EVENTOS!$C20)*(OFFSET(CÁLCULO!$AQ$15:$AQ$37,0,AH$13))),2),0) -> 0 | AI20: =IF(AUTOEVENTO="Manual",ROUND(SUMPRODUCT((CÁLCULO!$M$15:$M$37=EVENTOS!$C20)*(OFFSET(CÁLCULO!$AQ$15:$AQ$37,0,AI$13))),2),0) -> 0
C21: =IF(OR(ROW(C21)=ROW(EVENTOS.firstrow)+1,AND(OFFSET(C21,-1,0)<>" ",OFFSET(C21,-1,1)<>"")),OFFSET(C21,-1,0)+1," ") ->  | E21: =IF(AUTOEVENTO="Manual",ROUND(SUMPRODUCT((CÁLCULO!$M$15:$M$37=EVENTOS!$C21)*(OFFSET(CÁLCULO!$AQ$15:$AQ$37,0,E$13))),2),0) -> 0 | F21: =IF(AUTOEVENTO="Manual",ROUND(SUMPRODUCT((CÁLCULO!$M$15:$M$37=EVENTOS!$C21)*(OFFSET(CÁLCULO!$AQ$15,0,1):OFFSET(CÁLCULO!$BR$37,0,-1))),2),0) -> 0 | H21: =IF(AUTOEVENTO="Manual",ROUND(SUMPRODUCT((CÁLCULO!$M$15:$M$37=EVENTOS!$C21)*(OFFSET(CÁLCULO!$AQ$15:$AQ$37,0,H$13))),2),0) -> 0 | I21: =IF(AUTOEVENTO="Manual",ROUND(SUMPRODUCT((CÁLCULO!$M$15:$M$37=EVENTOS!$C21)*(OFFSET(CÁLCULO!$AQ$15:$AQ$37,0,I$13))),2),0) -> 0 | J21: =IF(AUTOEVENTO="Manual",ROUND(SUMPRODUCT((CÁLCULO!$M$15:$M$37=EVENTOS!$C21)*(OFFSET(CÁLCULO!$AQ$15:$AQ$37,0,J$13))),2),0) -> 0 | K21: =IF(AUTOEVENTO="Manual",ROUND(SUMPRODUCT((CÁLCULO!$M$15:$M$37=EVENTOS!$C21)*(OFFSET(CÁLCULO!$AQ$15:$AQ$37,0,K$13))),2),0) -> 0 | L21: =IF(AUTOEVENTO="Manual",ROUND(SUMPRODUCT((CÁLCULO!$M$15:$M$37=EVENTOS!$C21)*(OFFSET(CÁLCULO!$AQ$15:$AQ$37,0,L$13))),2),0) -> 0 | M21: =IF(AUTOEVENTO="Manual",ROUND(SUMPRODUCT((CÁLCULO!$M$15:$M$37=EVENTOS!$C21)*(OFFSET(CÁLCULO!$AQ$15:$AQ$37,0,M$13))),2),0) -> 0 | N21: =IF(AUTOEVENTO="Manual",ROUND(SUMPRODUCT((CÁLCULO!$M$15:$M$37=EVENTOS!$C21)*(OFFSET(CÁLCULO!$AQ$15:$AQ$37,0,N$13))),2),0) -> 0 | O21: =IF(AUTOEVENTO="Manual",ROUND(SUMPRODUCT((CÁLCULO!$M$15:$M$37=EVENTOS!$C21)*(OFFSET(CÁLCULO!$AQ$15:$AQ$37,0,O$13))),2),0) -> 0 | P21: =IF(AUTOEVENTO="Manual",ROUND(SUMPRODUCT((CÁLCULO!$M$15:$M$37=EVENTOS!$C21)*(OFFSET(CÁLCULO!$AQ$15:$AQ$37,0,P$13))),2),0) -> 0 | Q21: =IF(AUTOEVENTO="Manual",ROUND(SUMPRODUCT((CÁLCULO!$M$15:$M$37=EVENTOS!$C21)*(OFFSET(CÁLCULO!$AQ$15:$AQ$37,0,Q$13))),2),0) -> 0 | R21: =IF(AUTOEVENTO="Manual",ROUND(SUMPRODUCT((CÁLCULO!$M$15:$M$37=EVENTOS!$C21)*(OFFSET(CÁLCULO!$AQ$15:$AQ$37,0,R$13))),2),0) -> 0 | S21: =IF(AUTOEVENTO="Manual",ROUND(SUMPRODUCT((CÁLCULO!$M$15:$M$37=EVENTOS!$C21)*(OFFSET(CÁLCULO!$AQ$15:$AQ$37,0,S$13))),2),0) -> 0 | T21: =IF(AUTOEVENTO="Manual",ROUND(SUMPRODUCT((CÁLCULO!$M$15:$M$37=EVENTOS!$C21)*(OFFSET(CÁLCULO!$AQ$15:$AQ$37,0,T$13))),2),0) -> 0 | U21: =IF(AUTOEVENTO="Manual",ROUND(SUMPRODUCT((CÁLCULO!$M$15:$M$37=EVENTOS!$C21)*(OFFSET(CÁLCULO!$AQ$15:$AQ$37,0,U$13))),2),0) -> 0 | V21: =IF(AUTOEVENTO="Manual",ROUND(SUMPRODUCT((CÁLCULO!$M$15:$M$37=EVENTOS!$C21)*(OFFSET(CÁLCULO!$AQ$15:$AQ$37,0,V$13))),2),0) -> 0 | W21: =IF(AUTOEVENTO="Manual",ROUND(SUMPRODUCT((CÁLCULO!$M$15:$M$37=EVENTOS!$C21)*(OFFSET(CÁLCULO!$AQ$15:$AQ$37,0,W$13))),2),0) -> 0 | X21: =IF(AUTOEVENTO="Manual",ROUND(SUMPRODUCT((CÁLCULO!$M$15:$M$37=EVENTOS!$C21)*(OFFSET(CÁLCULO!$AQ$15:$AQ$37,0,X$13))),2),0) -> 0 | Y21: =IF(AUTOEVENTO="Manual",ROUND(SUMPRODUCT((CÁLCULO!$M$15:$M$37=EVENTOS!$C21)*(OFFSET(CÁLCULO!$AQ$15:$AQ$37,0,Y$13))),2),0) -> 0 | Z21: =IF(AUTOEVENTO="Manual",ROUND(SUMPRODUCT((CÁLCULO!$M$15:$M$37=EVENTOS!$C21)*(OFFSET(CÁLCULO!$AQ$15:$AQ$37,0,Z$13))),2),0) -> 0 | AA21: =IF(AUTOEVENTO="Manual",ROUND(SUMPRODUCT((CÁLCULO!$M$15:$M$37=EVENTOS!$C21)*(OFFSET(CÁLCULO!$AQ$15:$AQ$37,0,AA$13))),2),0) -> 0 | AB21: =IF(AUTOEVENTO="Manual",ROUND(SUMPRODUCT((CÁLCULO!$M$15:$M$37=EVENTOS!$C21)*(OFFSET(CÁLCULO!$AQ$15:$AQ$37,0,AB$13))),2),0) -> 0 | AC21: =IF(AUTOEVENTO="Manual",ROUND(SUMPRODUCT((CÁLCULO!$M$15:$M$37=EVENTOS!$C21)*(OFFSET(CÁLCULO!$AQ$15:$AQ$37,0,AC$13))),2),0) -> 0 | AD21: =IF(AUTOEVENTO="Manual",ROUND(SUMPRODUCT((CÁLCULO!$M$15:$M$37=EVENTOS!$C21)*(OFFSET(CÁLCULO!$AQ$15:$AQ$37,0,AD$13))),2),0) -> 0 | AE21: =IF(AUTOEVENTO="Manual",ROUND(SUMPRODUCT((CÁLCULO!$M$15:$M$37=EVENTOS!$C21)*(OFFSET(CÁLCULO!$AQ$15:$AQ$37,0,AE$13))),2),0) -> 0 | AF21: =IF(AUTOEVENTO="Manual",ROUND(SUMPRODUCT((CÁLCULO!$M$15:$M$37=EVENTOS!$C21)*(OFFSET(CÁLCULO!$AQ$15:$AQ$37,0,AF$13))),2),0) -> 0 | AG21: =IF(AUTOEVENTO="Manual",ROUND(SUMPRODUCT((CÁLCULO!$M$15:$M$37=EVENTOS!$C21)*(OFFSET(CÁLCULO!$AQ$15:$AQ$37,0,AG$13))),2),0) -> 0 | AH21: =IF(AUTOEVENTO="Manual",ROUND(SUMPRODUCT((CÁLCULO!$M$15:$M$37=EVENTOS!$C21)*(OFFSET(CÁLCULO!$AQ$15:$AQ$37,0,AH$13))),2),0) -> 0 | AI21: =IF(AUTOEVENTO="Manual",ROUND(SUMPRODUCT((CÁLCULO!$M$15:$M$37=EVENTOS!$C21)*(OFFSET(CÁLCULO!$AQ$15:$AQ$37,0,AI$13))),2),0) -> 0
C22: =IF(OR(ROW(C22)=ROW(EVENTOS.firstrow)+1,AND(OFFSET(C22,-1,0)<>" ",OFFSET(C22,-1,1)<>"")),OFFSET(C22,-1,0)+1," ") ->  | E22: =IF(AUTOEVENTO="Manual",ROUND(SUMPRODUCT((CÁLCULO!$M$15:$M$37=EVENTOS!$C22)*(OFFSET(CÁLCULO!$AQ$15:$AQ$37,0,E$13))),2),0) -> 0 | F22: =IF(AUTOEVENTO="Manual",ROUND(SUMPRODUCT((CÁLCULO!$M$15:$M$37=EVENTOS!$C22)*(OFFSET(CÁLCULO!$AQ$15,0,1):OFFSET(CÁLCULO!$BR$37,0,-1))),2),0) -> 0 | H22: =IF(AUTOEVENTO="Manual",ROUND(SUMPRODUCT((CÁLCULO!$M$15:$M$37=EVENTOS!$C22)*(OFFSET(CÁLCULO!$AQ$15:$AQ$37,0,H$13))),2),0) -> 0 | I22: =IF(AUTOEVENTO="Manual",ROUND(SUMPRODUCT((CÁLCULO!$M$15:$M$37=EVENTOS!$C22)*(OFFSET(CÁLCULO!$AQ$15:$AQ$37,0,I$13))),2),0) -> 0 | J22: =IF(AUTOEVENTO="Manual",ROUND(SUMPRODUCT((CÁLCULO!$M$15:$M$37=EVENTOS!$C22)*(OFFSET(CÁLCULO!$AQ$15:$AQ$37,0,J$13))),2),0) -> 0 | K22: =IF(AUTOEVENTO="Manual",ROUND(SUMPRODUCT((CÁLCULO!$M$15:$M$37=EVENTOS!$C22)*(OFFSET(CÁLCULO!$AQ$15:$AQ$37,0,K$13))),2),0) -> 0 | L22: =IF(AUTOEVENTO="Manual",ROUND(SUMPRODUCT((CÁLCULO!$M$15:$M$37=EVENTOS!$C22)*(OFFSET(CÁLCULO!$AQ$15:$AQ$37,0,L$13))),2),0) -> 0 | M22: =IF(AUTOEVENTO="Manual",ROUND(SUMPRODUCT((CÁLCULO!$M$15:$M$37=EVENTOS!$C22)*(OFFSET(CÁLCULO!$AQ$15:$AQ$37,0,M$13))),2),0) -> 0 | N22: =IF(AUTOEVENTO="Manual",ROUND(SUMPRODUCT((CÁLCULO!$M$15:$M$37=EVENTOS!$C22)*(OFFSET(CÁLCULO!$AQ$15:$AQ$37,0,N$13))),2),0) -> 0 | O22: =IF(AUTOEVENTO="Manual",ROUND(SUMPRODUCT((CÁLCULO!$M$15:$M$37=EVENTOS!$C22)*(OFFSET(CÁLCULO!$AQ$15:$AQ$37,0,O$13))),2),0) -> 0 | P22: =IF(AUTOEVENTO="Manual",ROUND(SUMPRODUCT((CÁLCULO!$M$15:$M$37=EVENTOS!$C22)*(OFFSET(CÁLCULO!$AQ$15:$AQ$37,0,P$13))),2),0) -> 0 | Q22: =IF(AUTOEVENTO="Manual",ROUND(SUMPRODUCT((CÁLCULO!$M$15:$M$37=EVENTOS!$C22)*(OFFSET(CÁLCULO!$AQ$15:$AQ$37,0,Q$13))),2),0) -> 0 | R22: =IF(AUTOEVENTO="Manual",ROUND(SUMPRODUCT((CÁLCULO!$M$15:$M$37=EVENTOS!$C22)*(OFFSET(CÁLCULO!$AQ$15:$AQ$37,0,R$13))),2),0) -> 0 | S22: =IF(AUTOEVENTO="Manual",ROUND(SUMPRODUCT((CÁLCULO!$M$15:$M$37=EVENTOS!$C22)*(OFFSET(CÁLCULO!$AQ$15:$AQ$37,0,S$13))),2),0) -> 0 | T22: =IF(AUTOEVENTO="Manual",ROUND(SUMPRODUCT((CÁLCULO!$M$15:$M$37=EVENTOS!$C22)*(OFFSET(CÁLCULO!$AQ$15:$AQ$37,0,T$13))),2),0) -> 0 | U22: =IF(AUTOEVENTO="Manual",ROUND(SUMPRODUCT((CÁLCULO!$M$15:$M$37=EVENTOS!$C22)*(OFFSET(CÁLCULO!$AQ$15:$AQ$37,0,U$13))),2),0) -> 0 | V22: =IF(AUTOEVENTO="Manual",ROUND(SUMPRODUCT((CÁLCULO!$M$15:$M$37=EVENTOS!$C22)*(OFFSET(CÁLCULO!$AQ$15:$AQ$37,0,V$13))),2),0) -> 0 | W22: =IF(AUTOEVENTO="Manual",ROUND(SUMPRODUCT((CÁLCULO!$M$15:$M$37=EVENTOS!$C22)*(OFFSET(CÁLCULO!$AQ$15:$AQ$37,0,W$13))),2),0) -> 0 | X22: =IF(AUTOEVENTO="Manual",ROUND(SUMPRODUCT((CÁLCULO!$M$15:$M$37=EVENTOS!$C22)*(OFFSET(CÁLCULO!$AQ$15:$AQ$37,0,X$13))),2),0) -> 0 | Y22: =IF(AUTOEVENTO="Manual",ROUND(SUMPRODUCT((CÁLCULO!$M$15:$M$37=EVENTOS!$C22)*(OFFSET(CÁLCULO!$AQ$15:$AQ$37,0,Y$13))),2),0) -> 0 | Z22: =IF(AUTOEVENTO="Manual",ROUND(SUMPRODUCT((CÁLCULO!$M$15:$M$37=EVENTOS!$C22)*(OFFSET(CÁLCULO!$AQ$15:$AQ$37,0,Z$13))),2),0) -> 0 | AA22: =IF(AUTOEVENTO="Manual",ROUND(SUMPRODUCT((CÁLCULO!$M$15:$M$37=EVENTOS!$C22)*(OFFSET(CÁLCULO!$AQ$15:$AQ$37,0,AA$13))),2),0) -> 0 | AB22: =IF(AUTOEVENTO="Manual",ROUND(SUMPRODUCT((CÁLCULO!$M$15:$M$37=EVENTOS!$C22)*(OFFSET(CÁLCULO!$AQ$15:$AQ$37,0,AB$13))),2),0) -> 0 | AC22: =IF(AUTOEVENTO="Manual",ROUND(SUMPRODUCT((CÁLCULO!$M$15:$M$37=EVENTOS!$C22)*(OFFSET(CÁLCULO!$AQ$15:$AQ$37,0,AC$13))),2),0) -> 0 | AD22: =IF(AUTOEVENTO="Manual",ROUND(SUMPRODUCT((CÁLCULO!$M$15:$M$37=EVENTOS!$C22)*(OFFSET(CÁLCULO!$AQ$15:$AQ$37,0,AD$13))),2),0) -> 0 | AE22: =IF(AUTOEVENTO="Manual",ROUND(SUMPRODUCT((CÁLCULO!$M$15:$M$37=EVENTOS!$C22)*(OFFSET(CÁLCULO!$AQ$15:$AQ$37,0,AE$13))),2),0) -> 0 | AF22: =IF(AUTOEVENTO="Manual",ROUND(SUMPRODUCT((CÁLCULO!$M$15:$M$37=EVENTOS!$C22)*(OFFSET(CÁLCULO!$AQ$15:$AQ$37,0,AF$13))),2),0) -> 0 | AG22: =IF(AUTOEVENTO="Manual",ROUND(SUMPRODUCT((CÁLCULO!$M$15:$M$37=EVENTOS!$C22)*(OFFSET(CÁLCULO!$AQ$15:$AQ$37,0,AG$13))),2),0) -> 0 | AH22: =IF(AUTOEVENTO="Manual",ROUND(SUMPRODUCT((CÁLCULO!$M$15:$M$37=EVENTOS!$C22)*(OFFSET(CÁLCULO!$AQ$15:$AQ$37,0,AH$13))),2),0) -> 0 | AI22: =IF(AUTOEVENTO="Manual",ROUND(SUMPRODUCT((CÁLCULO!$M$15:$M$37=EVENTOS!$C22)*(OFFSET(CÁLCULO!$AQ$15:$AQ$37,0,AI$13))),2),0) -> 0
C23: =IF(OR(ROW(C23)=ROW(EVENTOS.firstrow)+1,AND(OFFSET(C23,-1,0)<>" ",OFFSET(C23,-1,1)<>"")),OFFSET(C23,-1,0)+1," ") ->  | E23: =IF(AUTOEVENTO="Manual",ROUND(SUMPRODUCT((CÁLCULO!$M$15:$M$37=EVENTOS!$C23)*(OFFSET(CÁLCULO!$AQ$15:$AQ$37,0,E$13))),2),0) -> 0 | F23: =IF(AUTOEVENTO="Manual",ROUND(SUMPRODUCT((CÁLCULO!$M$15:$M$37=EVENTOS!$C23)*(OFFSET(CÁLCULO!$AQ$15,0,1):OFFSET(CÁLCULO!$BR$37,0,-1))),2),0) -> 0 | H23: =IF(AUTOEVENTO="Manual",ROUND(SUMPRODUCT((CÁLCULO!$M$15:$M$37=EVENTOS!$C23)*(OFFSET(CÁLCULO!$AQ$15:$AQ$37,0,H$13))),2),0) -> 0 | I23: =IF(AUTOEVENTO="Manual",ROUND(SUMPRODUCT((CÁLCULO!$M$15:$M$37=EVENTOS!$C23)*(OFFSET(CÁLCULO!$AQ$15:$AQ$37,0,I$13))),2),0) -> 0 | J23: =IF(AUTOEVENTO="Manual",ROUND(SUMPRODUCT((CÁLCULO!$M$15:$M$37=EVENTOS!$C23)*(OFFSET(CÁLCULO!$AQ$15:$AQ$37,0,J$13))),2),0) -> 0 | K23: =IF(AUTOEVENTO="Manual",ROUND(SUMPRODUCT((CÁLCULO!$M$15:$M$37=EVENTOS!$C23)*(OFFSET(CÁLCULO!$AQ$15:$AQ$37,0,K$13))),2),0) -> 0 | L23: =IF(AUTOEVENTO="Manual",ROUND(SUMPRODUCT((CÁLCULO!$M$15:$M$37=EVENTOS!$C23)*(OFFSET(CÁLCULO!$AQ$15:$AQ$37,0,L$13))),2),0) -> 0 | M23: =IF(AUTOEVENTO="Manual",ROUND(SUMPRODUCT((CÁLCULO!$M$15:$M$37=EVENTOS!$C23)*(OFFSET(CÁLCULO!$AQ$15:$AQ$37,0,M$13))),2),0) -> 0 | N23: =IF(AUTOEVENTO="Manual",ROUND(SUMPRODUCT((CÁLCULO!$M$15:$M$37=EVENTOS!$C23)*(OFFSET(CÁLCULO!$AQ$15:$AQ$37,0,N$13))),2),0) -> 0 | O23: =IF(AUTOEVENTO="Manual",ROUND(SUMPRODUCT((CÁLCULO!$M$15:$M$37=EVENTOS!$C23)*(OFFSET(CÁLCULO!$AQ$15:$AQ$37,0,O$13))),2),0) -> 0 | P23: =IF(AUTOEVENTO="Manual",ROUND(SUMPRODUCT((CÁLCULO!$M$15:$M$37=EVENTOS!$C23)*(OFFSET(CÁLCULO!$AQ$15:$AQ$37,0,P$13))),2),0) -> 0 | Q23: =IF(AUTOEVENTO="Manual",ROUND(SUMPRODUCT((CÁLCULO!$M$15:$M$37=EVENTOS!$C23)*(OFFSET(CÁLCULO!$AQ$15:$AQ$37,0,Q$13))),2),0) -> 0 | R23: =IF(AUTOEVENTO="Manual",ROUND(SUMPRODUCT((CÁLCULO!$M$15:$M$37=EVENTOS!$C23)*(OFFSET(CÁLCULO!$AQ$15:$AQ$37,0,R$13))),2),0) -> 0 | S23: =IF(AUTOEVENTO="Manual",ROUND(SUMPRODUCT((CÁLCULO!$M$15:$M$37=EVENTOS!$C23)*(OFFSET(CÁLCULO!$AQ$15:$AQ$37,0,S$13))),2),0) -> 0 | T23: =IF(AUTOEVENTO="Manual",ROUND(SUMPRODUCT((CÁLCULO!$M$15:$M$37=EVENTOS!$C23)*(OFFSET(CÁLCULO!$AQ$15:$AQ$37,0,T$13))),2),0) -> 0 | U23: =IF(AUTOEVENTO="Manual",ROUND(SUMPRODUCT((CÁLCULO!$M$15:$M$37=EVENTOS!$C23)*(OFFSET(CÁLCULO!$AQ$15:$AQ$37,0,U$13))),2),0) -> 0 | V23: =IF(AUTOEVENTO="Manual",ROUND(SUMPRODUCT((CÁLCULO!$M$15:$M$37=EVENTOS!$C23)*(OFFSET(CÁLCULO!$AQ$15:$AQ$37,0,V$13))),2),0) -> 0 | W23: =IF(AUTOEVENTO="Manual",ROUND(SUMPRODUCT((CÁLCULO!$M$15:$M$37=EVENTOS!$C23)*(OFFSET(CÁLCULO!$AQ$15:$AQ$37,0,W$13))),2),0) -> 0 | X23: =IF(AUTOEVENTO="Manual",ROUND(SUMPRODUCT((CÁLCULO!$M$15:$M$37=EVENTOS!$C23)*(OFFSET(CÁLCULO!$AQ$15:$AQ$37,0,X$13))),2),0) -> 0 | Y23: =IF(AUTOEVENTO="Manual",ROUND(SUMPRODUCT((CÁLCULO!$M$15:$M$37=EVENTOS!$C23)*(OFFSET(CÁLCULO!$AQ$15:$AQ$37,0,Y$13))),2),0) -> 0 | Z23: =IF(AUTOEVENTO="Manual",ROUND(SUMPRODUCT((CÁLCULO!$M$15:$M$37=EVENTOS!$C23)*(OFFSET(CÁLCULO!$AQ$15:$AQ$37,0,Z$13))),2),0) -> 0 | AA23: =IF(AUTOEVENTO="Manual",ROUND(SUMPRODUCT((CÁLCULO!$M$15:$M$37=EVENTOS!$C23)*(OFFSET(CÁLCULO!$AQ$15:$AQ$37,0,AA$13))),2),0) -> 0 | AB23: =IF(AUTOEVENTO="Manual",ROUND(SUMPRODUCT((CÁLCULO!$M$15:$M$37=EVENTOS!$C23)*(OFFSET(CÁLCULO!$AQ$15:$AQ$37,0,AB$13))),2),0) -> 0 | AC23: =IF(AUTOEVENTO="Manual",ROUND(SUMPRODUCT((CÁLCULO!$M$15:$M$37=EVENTOS!$C23)*(OFFSET(CÁLCULO!$AQ$15:$AQ$37,0,AC$13))),2),0) -> 0 | AD23: =IF(AUTOEVENTO="Manual",ROUND(SUMPRODUCT((CÁLCULO!$M$15:$M$37=EVENTOS!$C23)*(OFFSET(CÁLCULO!$AQ$15:$AQ$37,0,AD$13))),2),0) -> 0 | AE23: =IF(AUTOEVENTO="Manual",ROUND(SUMPRODUCT((CÁLCULO!$M$15:$M$37=EVENTOS!$C23)*(OFFSET(CÁLCULO!$AQ$15:$AQ$37,0,AE$13))),2),0) -> 0 | AF23: =IF(AUTOEVENTO="Manual",ROUND(SUMPRODUCT((CÁLCULO!$M$15:$M$37=EVENTOS!$C23)*(OFFSET(CÁLCULO!$AQ$15:$AQ$37,0,AF$13))),2),0) -> 0 | AG23: =IF(AUTOEVENTO="Manual",ROUND(SUMPRODUCT((CÁLCULO!$M$15:$M$37=EVENTOS!$C23)*(OFFSET(CÁLCULO!$AQ$15:$AQ$37,0,AG$13))),2),0) -> 0 | AH23: =IF(AUTOEVENTO="Manual",ROUND(SUMPRODUCT((CÁLCULO!$M$15:$M$37=EVENTOS!$C23)*(OFFSET(CÁLCULO!$AQ$15:$AQ$37,0,AH$13))),2),0) -> 0 | AI23: =IF(AUTOEVENTO="Manual",ROUND(SUMPRODUCT((CÁLCULO!$M$15:$M$37=EVENTOS!$C23)*(OFFSET(CÁLCULO!$AQ$15:$AQ$37,0,AI$13))),2),0) -> 0
C24: =IF(OR(ROW(C24)=ROW(EVENTOS.firstrow)+1,AND(OFFSET(C24,-1,0)<>" ",OFFSET(C24,-1,1)<>"")),OFFSET(C24,-1,0)+1," ") ->  | E24: =IF(AUTOEVENTO="Manual",ROUND(SUMPRODUCT((CÁLCULO!$M$15:$M$37=EVENTOS!$C24)*(OFFSET(CÁLCULO!$AQ$15:$AQ$37,0,E$13))),2),0) -> 0 | F24: =IF(AUTOEVENTO="Manual",ROUND(SUMPRODUCT((CÁLCULO!$M$15:$M$37=EVENTOS!$C24)*(OFFSET(CÁLCULO!$AQ$15,0,1):OFFSET(CÁLCULO!$BR$37,0,-1))),2),0) -> 0 | H24: =IF(AUTOEVENTO="Manual",ROUND(SUMPRODUCT((CÁLCULO!$M$15:$M$37=EVENTOS!$C24)*(OFFSET(CÁLCULO!$AQ$15:$AQ$37,0,H$13))),2),0) -> 0 | I24: =IF(AUTOEVENTO="Manual",ROUND(SUMPRODUCT((CÁLCULO!$M$15:$M$37=EVENTOS!$C24)*(OFFSET(CÁLCULO!$AQ$15:$AQ$37,0,I$13))),2),0) -> 0 | J24: =IF(AUTOEVENTO="Manual",ROUND(SUMPRODUCT((CÁLCULO!$M$15:$M$37=EVENTOS!$C24)*(OFFSET(CÁLCULO!$AQ$15:$AQ$37,0,J$13))),2),0) -> 0 | K24: =IF(AUTOEVENTO="Manual",ROUND(SUMPRODUCT((CÁLCULO!$M$15:$M$37=EVENTOS!$C24)*(OFFSET(CÁLCULO!$AQ$15:$AQ$37,0,K$13))),2),0) -> 0 | L24: =IF(AUTOEVENTO="Manual",ROUND(SUMPRODUCT((CÁLCULO!$M$15:$M$37=EVENTOS!$C24)*(OFFSET(CÁLCULO!$AQ$15:$AQ$37,0,L$13))),2),0) -> 0 | M24: =IF(AUTOEVENTO="Manual",ROUND(SUMPRODUCT((CÁLCULO!$M$15:$M$37=EVENTOS!$C24)*(OFFSET(CÁLCULO!$AQ$15:$AQ$37,0,M$13))),2),0) -> 0 | N24: =IF(AUTOEVENTO="Manual",ROUND(SUMPRODUCT((CÁLCULO!$M$15:$M$37=EVENTOS!$C24)*(OFFSET(CÁLCULO!$AQ$15:$AQ$37,0,N$13))),2),0) -> 0 | O24: =IF(AUTOEVENTO="Manual",ROUND(SUMPRODUCT((CÁLCULO!$M$15:$M$37=EVENTOS!$C24)*(OFFSET(CÁLCULO!$AQ$15:$AQ$37,0,O$13))),2),0) -> 0 | P24: =IF(AUTOEVENTO="Manual",ROUND(SUMPRODUCT((CÁLCULO!$M$15:$M$37=EVENTOS!$C24)*(OFFSET(CÁLCULO!$AQ$15:$AQ$37,0,P$13))),2),0) -> 0 | Q24: =IF(AUTOEVENTO="Manual",ROUND(SUMPRODUCT((CÁLCULO!$M$15:$M$37=EVENTOS!$C24)*(OFFSET(CÁLCULO!$AQ$15:$AQ$37,0,Q$13))),2),0) -> 0 | R24: =IF(AUTOEVENTO="Manual",ROUND(SUMPRODUCT((CÁLCULO!$M$15:$M$37=EVENTOS!$C24)*(OFFSET(CÁLCULO!$AQ$15:$AQ$37,0,R$13))),2),0) -> 0 | S24: =IF(AUTOEVENTO="Manual",ROUND(SUMPRODUCT((CÁLCULO!$M$15:$M$37=EVENTOS!$C24)*(OFFSET(CÁLCULO!$AQ$15:$AQ$37,0,S$13))),2),0) -> 0 | T24: =IF(AUTOEVENTO="Manual",ROUND(SUMPRODUCT((CÁLCULO!$M$15:$M$37=EVENTOS!$C24)*(OFFSET(CÁLCULO!$AQ$15:$AQ$37,0,T$13))),2),0) -> 0 | U24: =IF(AUTOEVENTO="Manual",ROUND(SUMPRODUCT((CÁLCULO!$M$15:$M$37=EVENTOS!$C24)*(OFFSET(CÁLCULO!$AQ$15:$AQ$37,0,U$13))),2),0) -> 0 | V24: =IF(AUTOEVENTO="Manual",ROUND(SUMPRODUCT((CÁLCULO!$M$15:$M$37=EVENTOS!$C24)*(OFFSET(CÁLCULO!$AQ$15:$AQ$37,0,V$13))),2),0) -> 0 | W24: =IF(AUTOEVENTO="Manual",ROUND(SUMPRODUCT((CÁLCULO!$M$15:$M$37=EVENTOS!$C24)*(OFFSET(CÁLCULO!$AQ$15:$AQ$37,0,W$13))),2),0) -> 0 | X24: =IF(AUTOEVENTO="Manual",ROUND(SUMPRODUCT((CÁLCULO!$M$15:$M$37=EVENTOS!$C24)*(OFFSET(CÁLCULO!$AQ$15:$AQ$37,0,X$13))),2),0) -> 0 | Y24: =IF(AUTOEVENTO="Manual",ROUND(SUMPRODUCT((CÁLCULO!$M$15:$M$37=EVENTOS!$C24)*(OFFSET(CÁLCULO!$AQ$15:$AQ$37,0,Y$13))),2),0) -> 0 | Z24: =IF(AUTOEVENTO="Manual",ROUND(SUMPRODUCT((CÁLCULO!$M$15:$M$37=EVENTOS!$C24)*(OFFSET(CÁLCULO!$AQ$15:$AQ$37,0,Z$13))),2),0) -> 0 | AA24: =IF(AUTOEVENTO="Manual",ROUND(SUMPRODUCT((CÁLCULO!$M$15:$M$37=EVENTOS!$C24)*(OFFSET(CÁLCULO!$AQ$15:$AQ$37,0,AA$13))),2),0) -> 0 | AB24: =IF(AUTOEVENTO="Manual",ROUND(SUMPRODUCT((CÁLCULO!$M$15:$M$37=EVENTOS!$C24)*(OFFSET(CÁLCULO!$AQ$15:$AQ$37,0,AB$13))),2),0) -> 0 | AC24: =IF(AUTOEVENTO="Manual",ROUND(SUMPRODUCT((CÁLCULO!$M$15:$M$37=EVENTOS!$C24)*(OFFSET(CÁLCULO!$AQ$15:$AQ$37,0,AC$13))),2),0) -> 0 | AD24: =IF(AUTOEVENTO="Manual",ROUND(SUMPRODUCT((CÁLCULO!$M$15:$M$37=EVENTOS!$C24)*(OFFSET(CÁLCULO!$AQ$15:$AQ$37,0,AD$13))),2),0) -> 0 | AE24: =IF(AUTOEVENTO="Manual",ROUND(SUMPRODUCT((CÁLCULO!$M$15:$M$37=EVENTOS!$C24)*(OFFSET(CÁLCULO!$AQ$15:$AQ$37,0,AE$13))),2),0) -> 0 | AF24: =IF(AUTOEVENTO="Manual",ROUND(SUMPRODUCT((CÁLCULO!$M$15:$M$37=EVENTOS!$C24)*(OFFSET(CÁLCULO!$AQ$15:$AQ$37,0,AF$13))),2),0) -> 0 | AG24: =IF(AUTOEVENTO="Manual",ROUND(SUMPRODUCT((CÁLCULO!$M$15:$M$37=EVENTOS!$C24)*(OFFSET(CÁLCULO!$AQ$15:$AQ$37,0,AG$13))),2),0) -> 0 | AH24: =IF(AUTOEVENTO="Manual",ROUND(SUMPRODUCT((CÁLCULO!$M$15:$M$37=EVENTOS!$C24)*(OFFSET(CÁLCULO!$AQ$15:$AQ$37,0,AH$13))),2),0) -> 0 | AI24: =IF(AUTOEVENTO="Manual",ROUND(SUMPRODUCT((CÁLCULO!$M$15:$M$37=EVENTOS!$C24)*(OFFSET(CÁLCULO!$AQ$15:$AQ$37,0,AI$13))),2),0) -> 0
C25: =IF(OR(ROW(C25)=ROW(EVENTOS.firstrow)+1,AND(OFFSET(C25,-1,0)<>" ",OFFSET(C25,-1,1)<>"")),OFFSET(C25,-1,0)+1," ") ->  | E25: =IF(AUTOEVENTO="Manual",ROUND(SUMPRODUCT((CÁLCULO!$M$15:$M$37=EVENTOS!$C25)*(OFFSET(CÁLCULO!$AQ$15:$AQ$37,0,E$13))),2),0) -> 0 | F25: =IF(AUTOEVENTO="Manual",ROUND(SUMPRODUCT((CÁLCULO!$M$15:$M$37=EVENTOS!$C25)*(OFFSET(CÁLCULO!$AQ$15,0,1):OFFSET(CÁLCULO!$BR$37,0,-1))),2),0) -> 0 | H25: =IF(AUTOEVENTO="Manual",ROUND(SUMPRODUCT((CÁLCULO!$M$15:$M$37=EVENTOS!$C25)*(OFFSET(CÁLCULO!$AQ$15:$AQ$37,0,H$13))),2),0) -> 0 | I25: =IF(AUTOEVENTO="Manual",ROUND(SUMPRODUCT((CÁLCULO!$M$15:$M$37=EVENTOS!$C25)*(OFFSET(CÁLCULO!$AQ$15:$AQ$37,0,I$13))),2),0) -> 0 | J25: =IF(AUTOEVENTO="Manual",ROUND(SUMPRODUCT((CÁLCULO!$M$15:$M$37=EVENTOS!$C25)*(OFFSET(CÁLCULO!$AQ$15:$AQ$37,0,J$13))),2),0) -> 0 | K25: =IF(AUTOEVENTO="Manual",ROUND(SUMPRODUCT((CÁLCULO!$M$15:$M$37=EVENTOS!$C25)*(OFFSET(CÁLCULO!$AQ$15:$AQ$37,0,K$13))),2),0) -> 0 | L25: =IF(AUTOEVENTO="Manual",ROUND(SUMPRODUCT((CÁLCULO!$M$15:$M$37=EVENTOS!$C25)*(OFFSET(CÁLCULO!$AQ$15:$AQ$37,0,L$13))),2),0) -> 0 | M25: =IF(AUTOEVENTO="Manual",ROUND(SUMPRODUCT((CÁLCULO!$M$15:$M$37=EVENTOS!$C25)*(OFFSET(CÁLCULO!$AQ$15:$AQ$37,0,M$13))),2),0) -> 0 | N25: =IF(AUTOEVENTO="Manual",ROUND(SUMPRODUCT((CÁLCULO!$M$15:$M$37=EVENTOS!$C25)*(OFFSET(CÁLCULO!$AQ$15:$AQ$37,0,N$13))),2),0) -> 0 | O25: =IF(AUTOEVENTO="Manual",ROUND(SUMPRODUCT((CÁLCULO!$M$15:$M$37=EVENTOS!$C25)*(OFFSET(CÁLCULO!$AQ$15:$AQ$37,0,O$13))),2),0) -> 0 | P25: =IF(AUTOEVENTO="Manual",ROUND(SUMPRODUCT((CÁLCULO!$M$15:$M$37=EVENTOS!$C25)*(OFFSET(CÁLCULO!$AQ$15:$AQ$37,0,P$13))),2),0) -> 0 | Q25: =IF(AUTOEVENTO="Manual",ROUND(SUMPRODUCT((CÁLCULO!$M$15:$M$37=EVENTOS!$C25)*(OFFSET(CÁLCULO!$AQ$15:$AQ$37,0,Q$13))),2),0) -> 0 | R25: =IF(AUTOEVENTO="Manual",ROUND(SUMPRODUCT((CÁLCULO!$M$15:$M$37=EVENTOS!$C25)*(OFFSET(CÁLCULO!$AQ$15:$AQ$37,0,R$13))),2),0) -> 0 | S25: =IF(AUTOEVENTO="Manual",ROUND(SUMPRODUCT((CÁLCULO!$M$15:$M$37=EVENTOS!$C25)*(OFFSET(CÁLCULO!$AQ$15:$AQ$37,0,S$13))),2),0) -> 0 | T25: =IF(AUTOEVENTO="Manual",ROUND(SUMPRODUCT((CÁLCULO!$M$15:$M$37=EVENTOS!$C25)*(OFFSET(CÁLCULO!$AQ$15:$AQ$37,0,T$13))),2),0) -> 0 | U25: =IF(AUTOEVENTO="Manual",ROUND(SUMPRODUCT((CÁLCULO!$M$15:$M$37=EVENTOS!$C25)*(OFFSET(CÁLCULO!$AQ$15:$AQ$37,0,U$13))),2),0) -> 0 | V25: =IF(AUTOEVENTO="Manual",ROUND(SUMPRODUCT((CÁLCULO!$M$15:$M$37=EVENTOS!$C25)*(OFFSET(CÁLCULO!$AQ$15:$AQ$37,0,V$13))),2),0) -> 0 | W25: =IF(AUTOEVENTO="Manual",ROUND(SUMPRODUCT((CÁLCULO!$M$15:$M$37=EVENTOS!$C25)*(OFFSET(CÁLCULO!$AQ$15:$AQ$37,0,W$13))),2),0) -> 0 | X25: =IF(AUTOEVENTO="Manual",ROUND(SUMPRODUCT((CÁLCULO!$M$15:$M$37=EVENTOS!$C25)*(OFFSET(CÁLCULO!$AQ$15:$AQ$37,0,X$13))),2),0) -> 0 | Y25: =IF(AUTOEVENTO="Manual",ROUND(SUMPRODUCT((CÁLCULO!$M$15:$M$37=EVENTOS!$C25)*(OFFSET(CÁLCULO!$AQ$15:$AQ$37,0,Y$13))),2),0) -> 0 | Z25: =IF(AUTOEVENTO="Manual",ROUND(SUMPRODUCT((CÁLCULO!$M$15:$M$37=EVENTOS!$C25)*(OFFSET(CÁLCULO!$AQ$15:$AQ$37,0,Z$13))),2),0) -> 0 | AA25: =IF(AUTOEVENTO="Manual",ROUND(SUMPRODUCT((CÁLCULO!$M$15:$M$37=EVENTOS!$C25)*(OFFSET(CÁLCULO!$AQ$15:$AQ$37,0,AA$13))),2),0) -> 0 | AB25: =IF(AUTOEVENTO="Manual",ROUND(SUMPRODUCT((CÁLCULO!$M$15:$M$37=EVENTOS!$C25)*(OFFSET(CÁLCULO!$AQ$15:$AQ$37,0,AB$13))),2),0) -> 0 | AC25: =IF(AUTOEVENTO="Manual",ROUND(SUMPRODUCT((CÁLCULO!$M$15:$M$37=EVENTOS!$C25)*(OFFSET(CÁLCULO!$AQ$15:$AQ$37,0,AC$13))),2),0) -> 0 | AD25: =IF(AUTOEVENTO="Manual",ROUND(SUMPRODUCT((CÁLCULO!$M$15:$M$37=EVENTOS!$C25)*(OFFSET(CÁLCULO!$AQ$15:$AQ$37,0,AD$13))),2),0) -> 0 | AE25: =IF(AUTOEVENTO="Manual",ROUND(SUMPRODUCT((CÁLCULO!$M$15:$M$37=EVENTOS!$C25)*(OFFSET(CÁLCULO!$AQ$15:$AQ$37,0,AE$13))),2),0) -> 0 | AF25: =IF(AUTOEVENTO="Manual",ROUND(SUMPRODUCT((CÁLCULO!$M$15:$M$37=EVENTOS!$C25)*(OFFSET(CÁLCULO!$AQ$15:$AQ$37,0,AF$13))),2),0) -> 0 | AG25: =IF(AUTOEVENTO="Manual",ROUND(SUMPRODUCT((CÁLCULO!$M$15:$M$37=EVENTOS!$C25)*(OFFSET(CÁLCULO!$AQ$15:$AQ$37,0,AG$13))),2),0) -> 0 | AH25: =IF(AUTOEVENTO="Manual",ROUND(SUMPRODUCT((CÁLCULO!$M$15:$M$37=EVENTOS!$C25)*(OFFSET(CÁLCULO!$AQ$15:$AQ$37,0,AH$13))),2),0) -> 0 | AI25: =IF(AUTOEVENTO="Manual",ROUND(SUMPRODUCT((CÁLCULO!$M$15:$M$37=EVENTOS!$C25)*(OFFSET(CÁLCULO!$AQ$15:$AQ$37,0,AI$13))),2),0) -> 0
A26: F
A27: F
A28: F
A29: F | D29: =Import.Município -> Itatinga/SP
A30: F | D30: Local | L30: Responsável Técnico | V30: Responsável Técnico | AF30: Responsável Técnico
A31: F | L31: =OFFSET(Import.RespOrçamento,0,-1) & " " & Import.RespOrçamento -> Nome: Bianca Oliveira da Silva | V31: =OFFSET(Import.RespOrçamento,0,-1) & " " & Import.RespOrçamento -> Nome: Bianca Oliveira da Silva | AF31: =OFFSET(Import.RespOrçamento,0,-1) & " " & Import.RespOrçamento -> Nome: Bianca Oliveira da Silva
A32: F | D32: =DADOS!$C$25 -> 2025-11-07 | L32: CREA/CAU: 5070438158-SP | V32: CREA/CAU: 5070438158-SP | AF32: CREA/CAU: 5070438158-SP
A33: F | D33: Data | L33: ART/RRT: 2620251184146 | V33: ART/RRT: 2620251184146 | AF33: ART/RRT: 2620251184146

Sheet CÁLCULO
M1: =SUM(OFFSET(CÁLCULO!$P$1,0,1):OFFSET(CÁLCULO!$AQ$1,0,-1)) -> 25 | O1: =IF(OR(ACOMPANHAMENTO="BM",N1=0,O12=""),0,1) -> 0 | P1: . | Q1: =IF(OR(ACOMPANHAMENTO="BM",P1=0,Q12=""),0,1) -> 1 | R1: =IF(OR(ACOMPANHAMENTO="BM",Q1=0,R12=""),0,1) -> 1 | S1: =IF(OR(ACOMPANHAMENTO="BM",R1=0,S12=""),0,1) -> 1 | T1: =IF(OR(ACOMPANHAMENTO="BM",S1=0,T12=""),0,1) -> 1 | U1: =IF(OR(ACOMPANHAMENTO="BM",T1=0,U12=""),0,1) -> 1 | V1: =IF(OR(ACOMPANHAMENTO="BM",U1=0,V12=""),0,1) -> 1 | W1: =IF(OR(ACOMPANHAMENTO="BM",V1=0,W12=""),0,1) -> 1 | X1: =IF(OR(ACOMPANHAMENTO="BM",W1=0,X12=""),0,1) -> 1 | Y1: =IF(OR(ACOMPANHAMENTO="BM",X1=0,Y12=""),0,1) -> 1 | Z1: =IF(OR(ACOMPANHAMENTO="BM",Y1=0,Z12=""),0,1) -> 1 | AA1: =IF(OR(ACOMPANHAMENTO="BM",Z1=0,AA12=""),0,1) -> 1 | AB1: =IF(OR(ACOMPANHAMENTO="BM",AA1=0,AB12=""),0,1) -> 1 | AC1: =IF(OR(ACOMPANHAMENTO="BM",AB1=0,AC12=""),0,1) -> 1 | AD1: =IF(OR(ACOMPANHAMENTO="BM",AC1=0,AD12=""),0,1) -> 1 | AE1: =IF(OR(ACOMPANHAMENTO="BM",AD1=0,AE12=""),0,1) -> 1 | AF1: =IF(OR(ACOMPANHAMENTO="BM",AE1=0,AF12=""),0,1) -> 1 | AG1: =IF(OR(ACOMPANHAMENTO="BM",AF1=0,AG12=""),0,1) -> 1 | AH1: =IF(OR(ACOMPANHAMENTO="BM",AG1=0,AH12=""),0,1) -> 1 | AI1: =IF(OR(ACOMPANHAMENTO="BM",AH1=0,AI12=""),0,1) -> 1 | AJ1: =IF(OR(ACOMPANHAMENTO="BM",AI1=0,AJ12=""),0,1) -> 1 | AK1: =IF(OR(ACOMPANHAMENTO="BM",AJ1=0,AK12=""),0,1) -> 1 | AL1: =IF(OR(ACOMPANHAMENTO="BM",AK1=0,AL12=""),0,1) -> 1 | AM1: =IF(OR(ACOMPANHAMENTO="BM",AL1=0,AM12=""),0,1) -> 1 | AN1: =IF(OR(ACOMPANHAMENTO="BM",AM1=0,AN12=""),0,1) -> 1 | AO1: =IF(OR(ACOMPANHAMENTO="BM",AN1=0,AO12=""),0,1) -> 1 | AP1: =IF(OR(ACOMPANHAMENTO="BM",AO1=0,AP12=""),0,1) -> 0 | AR1: Preços dos serviços por frente | BS1: Mês do cronograma | CT1: Número da Medição
F6: =IF(ACOMPANHAMENTO="BM","MEMÓRIA DE CÁLCULO","PLQ - PLANILHA DE LEVANTAMENTO DE QUANTIDADES") -> PLQ - PLANILHA DE LEVANTAMENTO DE QUANTIDADES | Q6: Grau de Sigilo | Y6: Grau de Sigilo | AG6: Grau de Sigilo | AO6: Grau de Sigilo
F7: =IF(ACOMPANHAMENTO="BM","","Memória de Cálculo")&" - "&import.recurso -> Memória de Cálculo - OGU | Q7: #PUBLICO | Y7: #PUBLICO | AG7: #PUBLICO | AO7: #PUBLICO
E9: APELIDO DO EMPREENDIMENTO | G9: Nº TransfereGOV | I9: Nº OPERAÇÃO | K9: PROPONENTE / TOMADOR | S9: Nº OPERAÇÃO | U9: PROPONENTE / TOMADOR | AA9: Nº OPERAÇÃO | AC9: PROPONENTE / TOMADOR | AI9: Nº OPERAÇÃO | AK9: PROPONENTE / TOMADOR
A10: AdmLocal | E10: =Import.Apelido -> Construção de unidades habitacionais no programa MCMV FNHIS sub 50. | G10: =Import.TransfereGOV -> 9744498 | I10: =Import.CR -> 1100656-87 | K10: =Import.Proponente -> Prefeitura de Itatinga | S10: =Import.CR -> 1100656-87 | U10: =Import.Proponente -> Prefeitura de Itatinga | AA10: =Import.CR -> 1100656-87 | AC10: =Import.Proponente -> Prefeitura de Itatinga | AI10: =Import.CR -> 1100656-87 | AK10: =Import.Proponente -> Prefeitura de Itatinga
A11: =IF(AND(Import.TipoArredondamento="Tradicional",AUTOEVENTO="Manual"),"Automática",IF(CRONOPLE!$B$8="","Sem Adm","Manual")) -> Manual | F11: =IF(AND(ACOMPANHAMENTO="PLE",ISERROR(AUTOEVENTO)),"Selecione a forma de definição dos agrupadores de eventos na aba EVENTOS", IF(AND(ACOMPANHAMENTO="PLE",CÁLCULO.FrentesPreenchidas=0),"Preencher os nomes das Frentes de Obra", IF(COUNTIF($J$15:$J$37,"►E")>0,"Não pode haver serviços sem agrupador de eventos", IF(COUNTIF($P$11:$AQ$11,"▼")>0,"Não pode haver frentes de obra sem quantidades", IF(COUNTIF($P$11:$AQ$11,"Nome >100")>0,"Nome da frente de obra com mais de 100 caracteres",""))))) ->  | N11: =IF(OR(COUNTIF($J$15:$J$37,"►E")>0,COUNTIF($J$15:$J$37,"►Q")>0),"", IF(COUNTIF($J$15:$J$37,"►S")>0,"Preencha as quantidades com no máximo duas casas decimais", IF(COUNTIF($P$11:$AQ$11,"▼")>0,"Falta preencher a frente de obra nº " & HLOOKUP("▼",$P$11:$AQ$13,3,FALSE), IF(COUNTIF($P$11:$AQ$11,"Nome >100")>0,"Resuma o nome da frente de obra nº " & HLOOKUP("Nome >100",$P$11:$AQ$13,3,FALSE),"")))) ->  | O11: =IF(AND(O1=1,O15=0),"▼",IF(AND(O1=1,LEN(O12)>100),"Nome >100","")) ->  | Q11: =IF(AND(Q1=1,Q15=0),"▼",IF(AND(Q1=1,LEN(Q12)>100),"Nome >100","")) ->  | AA11: =IF(AND(AA1=1,AA15=0),"▼",IF(AND(AA1=1,LEN(AA12)>100),"Nome >100","")) ->  | AI11: =IF(AND(AI1=1,AI15=0),"▼",IF(AND(AI1=1,LEN(AI12)>100),"Nome >100","")) -> 
A12: =IF(Import.Eventos.Nível="Definir Manualmente","Manual",MATCH(Import.Eventos.Nível,EVENTOS!$B$6:$B$9,0)+1) -> 2 | B12: Empty | C12: FILTRO | I12: =IF(AND(ACOMPANHAMENTO="PLE",CÁLCULO.FrentesPreenchidas=0),"", IF(COUNTIF($J$15:$J$37,"►E")>0,"Falta Definir o Agrupador de Evento na linha "&MATCH("►E",$J$15:$J$37,0)+ROW($J$14), IF(COUNTIF($J$15:$J$37,"►Q")>0,"Falta preencher a quantidade do serviço na linha "&MATCH("►Q",$J$15:$J$37,0)+ROW($J$14), IF(COUNTIF($J$15:$J$37,"►S")>0,"Verifique as quantidades preenchidas na linha "&MATCH("►S",$J$15:$J$37,0)+ROW($J$14), IF(AND(COUNTIF($P$11:$AQ$11,"▼")=0,COUNTIF($J$15:$J$37,"◄")>0),"Falta Preencher o Memorial de Cálculo na linha "&MATCH("◄",$J$15:$J$37,0)+ROW($J$14),""))))) ->  | J12: . | K12: Nº AGRUPADOR DE EVENTOS | L12: . | M12: =IF(ACOMPANHAMENTO="BM",0,MAX($M$15:$M$37)) -> 10 | N12: =IF(AND(ACOMPANHAMENTO="PLE",CÁLCULO.FrentesPreenchidas=0),"Preencher os nomes das Frentes de Obra ►","FRENTES DE OBRA:") -> FRENTES DE OBRA: | P12: . | Q12: UH1 | R12: UH2 | S12: UH3 | T12: UH4 | U12: UH5 | V12: UH6 | W12: UH7 | X12: UH8 | Y12: UH9 | Z12: UH10 | AA12: UH11 | AB12: UH12 | AC12: UH13 | AD12: UH14 | AE12: UH15 | AF12: UH16 | AG12: UH17 | AH12: UH18 | AI12: UH19 | AJ12: UH20 | AK12: UH21 | AL12: UH22 | AM12: UH23 | AN12: UH24 | AO12: UH25 | AQ12: . | AR12: =IF(OFFSET($P$1,0,AR$13)=0,0,OFFSET($P$12,0,AR$13)) -> UH1 | AS12: =IF(OFFSET($P$1,0,AS$13)=0,0,OFFSET($P$12,0,AS$13)) -> UH2 | AT12: UH3 | AU12: UH4 | AV12: UH5 | AW12: UH6 | AX12: UH7 | AY12: UH8 | AZ12: UH9 | BA12: UH10 | BB12: UH11 | BC12: UH12 | BD12: UH13 | BE12: UH14 | BF12: UH15 | BG12: UH16 | BH12: UH17 | BI12: UH18 | BJ12: UH19 | BK12: UH20 | BL12: UH21 | BM12: UH22 | BN12: UH23 | BO12: UH24 | BP12: UH25 | BQ12: 0 | BS12: =IF(OFFSET($P$1,0,BS$13)=0,0,OFFSET($P$12,0,BS$13)) -> UH1 | BT12: UH2 | BU12: UH3 | BV12: UH4 | BW12: UH5 | BX12: UH6 | BY12: UH7 | BZ12: UH8 | CA12: UH9 | CB12: UH10 | CC12: UH11 | CD12: UH12 | CE12: UH13 | CF12: UH14 | CG12: UH15 | CH12: UH16 | CI12: UH17 | CJ12: UH18 | CK12: UH19 | CL12: UH20 | CM12: UH21 | CN12: UH22 | CO12: UH23 | CP12: UH24 | CQ12: UH25 | CR12: 0 | CT12: UH1 | CU12: UH2 | CV12: UH3 | CW12: UH4 | CX12: UH5 | CY12: UH6 | CZ12: UH7 | DA12: UH8 | DB12: UH9 | DC12: UH10 | DD12: UH11 | DE12: UH12 | DF12: UH13 | DG12: UH14 | DH12: UH15 | DI12: UH16 | DJ12: UH17 | DK12: UH18 | DL12: UH19 | DM12: UH20 | DN12: UH21 | DO12: UH22 | DP12: UH23 | DQ12: UH24 | DR12: UH25 | DS12: 0
A13: AUTOEVENTO | B13: Empty | C13: ↓ | D13: Nível | E13: Item | F13: Descrição | G13: Unidade | H13: Quantidade | I13: Memória de Cálculo | K13: Nº | M13: # Evento | N13: Agrupador de Eventos | O13: =OFFSET(O13,0,-1)+1 ->  | Q13: =OFFSET(Q13,0,-1)+1 -> 1 | R13: 2 | S13: 3 | T13: 4 | U13: 5 | V13: 6 | W13: 7 | X13: 8 | Y13: 9 | Z13: 10 | AA13: 11 | AB13: 12 | AC13: 13 | AD13: 14 | AE13: 15 | AF13: 16 | AG13: 17 | AH13: 18 | AI13: 19 | AJ13: 20 | AK13: 21 | AL13: 22 | AM13: 23 | AN13: 24 | AO13: 25 | AP13: 26 | AR13: =OFFSET(AR13,0,-1)+1 -> 1 | AS13: 2 | AT13: 3 | AU13: 4 | AV13: 5 | AW13: 6 | AX13: 7 | AY13: 8 | AZ13: 9 | BA13: 10 | BB13: 11 | BC13: 12 | BD13: 13 | BE13: 14 | BF13: 15 | BG13: 16 | BH13: 17 | BI13: 18 | BJ13: 19 | BK13: 20 | BL13: 21 | BM13: 22 | BN13: 23 | BO13: 24 | BP13: 25 | BQ13: 26 | BS13: 1 | BT13: 2 | BU13: 3 | BV13: 4 | BW13: 5 | BX13: 6 | BY13: 7 | BZ13: 8 | CA13: 9 | CB13: 10 | CC13: 11 | CD13: 12 | CE13: 13 | CF13: 14 | CG13: 15 | CH13: 16 | CI13: 17 | CJ13: 18 | CK13: 19 | CL13: 20 | CM13: 21 | CN13: 22 | CO13: 23 | CP13: 24 | CQ13: 25 | CR13: 26 | CT13: 1 | CU13: 2 | CV13: 3 | CW13: 4 | CX13: 5 | CY13: 6 | CZ13: 7 | DA13: 8 | DB13: 9 | DC13: 10 | DD13: 11 | DE13: 12 | DF13: 13 | DG13: 14 | DH13: 15 | DI13: 16 | DJ13: 17 | DK13: 18 | DL13: 19 | DM13: =OFFSET(DM13,0,-1)+1 -> 20 | DN13: 21 | DO13: 22 | DP13: 23 | DQ13: 24 | DR13: 25 | DS13: 26
A14: =IFERROR(IF(AUTOEVENTO="Manual",IF(K14<>"",MIN(VALUE(LEFT(K14,FIND(".",K14)-1)),COUNTA(EVENTOS.Lista)),0),IF(OR($B14>AUTOEVENTO,$B14="S",$B14=0),SUBSTITUTE(OFFSET($A14,-1,0),IF($D14="Serviço",".",""),""),$L14&".")),0) -> 1. | B14: =OFFSET(ORÇAMENTO!C$15,$L14,0) -> 1 | C14: =OFFSET(ORÇAMENTO!L$15,$L14,0) -> F | D14: =OFFSET(ORÇAMENTO!N$15,$L14,0) -> Meta | E14: =OFFSET(ORÇAMENTO!O$15,$L14,0) -> 1. | F14: =OFFSET(ORÇAMENTO!R$15,$L14,0) -> PRODUÇÃO DE UNIDADES HABITACIONAIS | G14: =IF($D14<>"Serviço","",OFFSET(ORÇAMENTO!S$15,$L14,0)) ->  | H14: =IF($D14<>"Serviço",0,IF(ACOMPANHAMENTO="BM",ROUND(OFFSET(ORÇAMENTO!AJ$15,$L14,0),15-13*ORÇAMENTO!$AF$7),IF(IFERROR(CÁLCULO.FrentesPreenchidas,0)=0,0,SUM(ROUND(OFFSET($P14,0,1,1,CÁLCULO.FrentesPreenchidas),15-13*ORÇAMENTO!$AF$7))))) -> 0 | J14: =IF(OR(B14<>"S",CÁLCULO.FrentesPreenchidas=0),"",IF(AND(ACOMPANHAMENTO="PLE",AUTOEVENTO="Manual",OR(H14>0,ORÇAMENTO!AC14="QUANT."),OR(K14="",M14=0,N14="")),"►E",IF(AND(ACOMPANHAMENTO="PLE",ORÇAMENTO!AC14="QUANT."),"►Q",IF(AND(ACOMPANHAMENTO="PLE",H14<>SUMPRODUCT(($Q$1:$AQ$1=1)*ROUND(Q14:AQ14,15))),"►S",IF(AND(COUNTIF($P$11:$AQ$11,"▼")=0,H14>0,I14=""),"◄M",""))))) ->  | L14: =OFFSET(L14,-1,0)+1 -> 1 | M14: =IF($D14<>"Serviço","", IF(AUTOEVENTO="manual",$A14, IF(ISERROR(MATCH($A14,$A$15:OFFSET($A14,-1,0),0)),MAX($M$15:OFFSET(M14,-1,0))+1, INDEX($M$15:OFFSET(M14,-1,0),MATCH($A14,$A$15:OFFSET($A14,-1,0),0))))) ->  | N14: =IF($D14<>"Serviço","", IF(AUTOEVENTO="Manual", IF($A14=0,"<-- defina o número do agrupador", OFFSET(EVENTOS!$D$15,$A14-$A$15,0)), OFFSET($F$15,$A14,0))) ->  | AR14: =IF(AND($D14="Serviço",AR$12<>0,$H14>0,OR(AUTOEVENTO<>"manual",$M14<>$A$15)), IF(Import.TipoArredondamento<>"TransfereGOV", ROUND(OFFSET($P14,0,AR$13),15-13*ORÇAMENTO!$AF$7)/$H14*OFFSET(ORÇAMENTO!$X$15,ROW(AR14)-ROW(AR$15),0), ROUND(ROUND(OFFSET($P14,0,AR$13),15-13*ORÇAMENTO!$AF$7)*OFFSET(ORÇAMENTO!$W$15,ROW(AR14)-ROW(AR$15),0),15-13*ORÇAMENTO!$AF$11)), 0) -> 0 | AS14: =IF(AND($D14="Serviço",AS$12<>0,$H14>0,OR(AUTOEVENTO<>"manual",$M14<>$A$15)), IF(Import.TipoArredondamento<>"TransfereGOV", ROUND(OFFSET($P14,0,AS$13),15-13*ORÇAMENTO!$AF$7)/$H14*OFFSET(ORÇAMENTO!$X$15,ROW(AS14)-ROW(AS$15),0), ROUND(ROUND(OFFSET($P14,0,AS$13),15-13*ORÇAMENTO!$AF$7)*OFFSET(ORÇAMENTO!$W$15,ROW(AS14)-ROW(AS$15),0),15-13*ORÇAMENTO!$AF$11)), 0) -> 0 | AT14: =IF(AND($D14="Serviço",AT$12<>0,$H14>0,OR(AUTOEVENTO<>"manual",$M14<>$A$15)), IF(Import.TipoArredondamento<>"TransfereGOV", ROUND(OFFSET($P14,0,AT$13),15-13*ORÇAMENTO!$AF$7)/$H14*OFFSET(ORÇAMENTO!$X$15,ROW(AT14)-ROW(AT$15),0), ROUND(ROUND(OFFSET($P14,0,AT$13),15-13*ORÇAMENTO!$AF$7)*OFFSET(ORÇAMENTO!$W$15,ROW(AT14)-ROW(AT$15),0),15-13*ORÇAMENTO!$AF$11)), 0) -> 0 | AU14: =IF(AND($D14="Serviço",AU$12<>0,$H14>0,OR(AUTOEVENTO<>"manual",$M14<>$A$15)), IF(Import.TipoArredondamento<>"TransfereGOV", ROUND(OFFSET($P14,0,AU$13),15-13*ORÇAMENTO!$AF$7)/$H14*OFFSET(ORÇAMENTO!$X$15,ROW(AU14)-ROW(AU$15),0), ROUND(ROUND(OFFSET($P14,0,AU$13),15-13*ORÇAMENTO!$AF$7)*OFFSET(ORÇAMENTO!$W$15,ROW(AU14)-ROW(AU$15),0),15-13*ORÇAMENTO!$AF$11)), 0) -> 0 | AV14: =IF(AND($D14="Serviço",AV$12<>0,$H14>0,OR(AUTOEVENTO<>"manual",$M14<>$A$15)), IF(Import.TipoArredondamento<>"TransfereGOV", ROUND(OFFSET($P14,0,AV$13),15-13*ORÇAMENTO!$AF$7)/$H14*OFFSET(ORÇAMENTO!$X$15,ROW(AV14)-ROW(AV$15),0), ROUND(ROUND(OFFSET($P14,0,AV$13),15-13*ORÇAMENTO!$AF$7)*OFFSET(ORÇAMENTO!$W$15,ROW(AV14)-ROW(AV$15),0),15-13*ORÇAMENTO!$AF$11)), 0) -> 0 | AW14: =IF(AND($D14="Serviço",AW$12<>0,$H14>0,OR(AUTOEVENTO<>"manual",$M14<>$A$15)), IF(Import.TipoArredondamento<>"TransfereGOV", ROUND(OFFSET($P14,0,AW$13),15-13*ORÇAMENTO!$AF$7)/$H14*OFFSET(ORÇAMENTO!$X$15,ROW(AW14)-ROW(AW$15),0), ROUND(ROUND(OFFSET($P14,0,AW$13),15-13*ORÇAMENTO!$AF$7)*OFFSET(ORÇAMENTO!$W$15,ROW(AW14)-ROW(AW$15),0),15-13*ORÇAMENTO!$AF$11)), 0) -> 0 | AX14: =IF(AND($D14="Serviço",AX$12<>0,$H14>0,OR(AUTOEVENTO<>"manual",$M14<>$A$15)), IF(Import.TipoArredondamento<>"TransfereGOV", ROUND(OFFSET($P14,0,AX$13),15-13*ORÇAMENTO!$AF$7)/$H14*OFFSET(ORÇAMENTO!$X$15,ROW(AX14)-ROW(AX$15),0), ROUND(ROUND(OFFSET($P14,0,AX$13),15-13*ORÇAMENTO!$AF$7)*OFFSET(ORÇAMENTO!$W$15,ROW(AX14)-ROW(AX$15),0),15-13*ORÇAMENTO!$AF$11)), 0) -> 0 | AY14: =IF(AND($D14="Serviço",AY$12<>0,$H14>0,OR(AUTOEVENTO<>"manual",$M14<>$A$15)), IF(Import.TipoArredondamento<>"TransfereGOV", ROUND(OFFSET($P14,0,AY$13),15-13*ORÇAMENTO!$AF$7)/$H14*OFFSET(ORÇAMENTO!$X$15,ROW(AY14)-ROW(AY$15),0), ROUND(ROUND(OFFSET($P14,0,AY$13),15-13*ORÇAMENTO!$AF$7)*OFFSET(ORÇAMENTO!$W$15,ROW(AY14)-ROW(AY$15),0),15-13*ORÇAMENTO!$AF$11)), 0) -> 0 | AZ14: =IF(AND($D14="Serviço",AZ$12<>0,$H14>0,OR(AUTOEVENTO<>"manual",$M14<>$A$15)), IF(Import.TipoArredondamento<>"TransfereGOV", ROUND(OFFSET($P14,0,AZ$13),15-13*ORÇAMENTO!$AF$7)/$H14*OFFSET(ORÇAMENTO!$X$15,ROW(AZ14)-ROW(AZ$15),0), ROUND(ROUND(OFFSET($P14,0,AZ$13),15-13*ORÇAMENTO!$AF$7)*OFFSET(ORÇAMENTO!$W$15,ROW(AZ14)-ROW(AZ$15),0),15-13*ORÇAMENTO!$AF$11)), 0) -> 0 | BA14: =IF(AND($D14="Serviço",BA$12<>0,$H14>0,OR(AUTOEVENTO<>"manual",$M14<>$A$15)), IF(Import.TipoArredondamento<>"TransfereGOV", ROUND(OFFSET($P14,0,BA$13),15-13*ORÇAMENTO!$AF$7)/$H14*OFFSET(ORÇAMENTO!$X$15,ROW(BA14)-ROW(BA$15),0), ROUND(ROUND(OFFSET($P14,0,BA$13),15-13*ORÇAMENTO!$AF$7)*OFFSET(ORÇAMENTO!$W$15,ROW(BA14)-ROW(BA$15),0),15-13*ORÇAMENTO!$AF$11)), 0) -> 0 | BB14: =IF(AND($D14="Serviço",BB$12<>0,$H14>0,OR(AUTOEVENTO<>"manual",$M14<>$A$15)), IF(Import.TipoArredondamento<>"TransfereGOV", ROUND(OFFSET($P14,0,BB$13),15-13*ORÇAMENTO!$AF$7)/$H14*OFFSET(ORÇAMENTO!$X$15,ROW(BB14)-ROW(BB$15),0), ROUND(ROUND(OFFSET($P14,0,BB$13),15-13*ORÇAMENTO!$AF$7)*OFFSET(ORÇAMENTO!$W$15,ROW(BB14)-ROW(BB$15),0),15-13*ORÇAMENTO!$AF$11)), 0) -> 0 | BC14: =IF(AND($D14="Serviço",BC$12<>0,$H14>0,OR(AUTOEVENTO<>"manual",$M14<>$A$15)), IF(Import.TipoArredondamento<>"TransfereGOV", ROUND(OFFSET($P14,0,BC$13),15-13*ORÇAMENTO!$AF$7)/$H14*OFFSET(ORÇAMENTO!$X$15,ROW(BC14)-ROW(BC$15),0), ROUND(ROUND(OFFSET($P14,0,BC$13),15-13*ORÇAMENTO!$AF$7)*OFFSET(ORÇAMENTO!$W$15,ROW(BC14)-ROW(BC$15),0),15-13*ORÇAMENTO!$AF$11)), 0) -> 0 | BD14: =IF(AND($D14="Serviço",BD$12<>0,$H14>0,OR(AUTOEVENTO<>"manual",$M14<>$A$15)), IF(Import.TipoArredondamento<>"TransfereGOV", ROUND(OFFSET($P14,0,BD$13),15-13*ORÇAMENTO!$AF$7)/$H14*OFFSET(ORÇAMENTO!$X$15,ROW(BD14)-ROW(BD$15),0), ROUND(ROUND(OFFSET($P14,0,BD$13),15-13*ORÇAMENTO!$AF$7)*OFFSET(ORÇAMENTO!$W$15,ROW(BD14)-ROW(BD$15),0),15-13*ORÇAMENTO!$AF$11)), 0) -> 0 | BE14: =IF(AND($D14="Serviço",BE$12<>0,$H14>0,OR(AUTOEVENTO<>"manual",$M14<>$A$15)), IF(Import.TipoArredondamento<>"TransfereGOV", ROUND(OFFSET($P14,0,BE$13),15-13*ORÇAMENTO!$AF$7)/$H14*OFFSET(ORÇAMENTO!$X$15,ROW(BE14)-ROW(BE$15),0), ROUND(ROUND(OFFSET($P14,0,BE$13),15-13*ORÇAMENTO!$AF$7)*OFFSET(ORÇAMENTO!$W$15,ROW(BE14)-ROW(BE$15),0),15-13*ORÇAMENTO!$AF$11)), 0) -> 0 | BF14: =IF(AND($D14="Serviço",BF$12<>0,$H14>0,OR(AUTOEVENTO<>"manual",$M14<>$A$15)), IF(Import.TipoArredondamento<>"TransfereGOV", ROUND(OFFSET($P14,0,BF$13),15-13*ORÇAMENTO!$AF$7)/$H14*OFFSET(ORÇAMENTO!$X$15,ROW(BF14)-ROW(BF$15),0), ROUND(ROUND(OFFSET($P14,0,BF$13),15-13*ORÇAMENTO!$AF$7)*OFFSET(ORÇAMENTO!$W$15,ROW(BF14)-ROW(BF$15),0),15-13*ORÇAMENTO!$AF$11)), 0) -> 0 | BG14: =IF(AND($D14="Serviço",BG$12<>0,$H14>0,OR(AUTOEVENTO<>"manual",$M14<>$A$15)), IF(Import.TipoArredondamento<>"TransfereGOV", ROUND(OFFSET($P14,0,BG$13),15-13*ORÇAMENTO!$AF$7)/$H14*OFFSET(ORÇAMENTO!$X$15,ROW(BG14)-ROW(BG$15),0), ROUND(ROUND(OFFSET($P14,0,BG$13),15-13*ORÇAMENTO!$AF$7)*OFFSET(ORÇAMENTO!$W$15,ROW(BG14)-ROW(BG$15),0),15-13*ORÇAMENTO!$AF$11)), 0) -> 0 | BH14: =IF(AND($D14="Serviço",BH$12<>0,$H14>0,OR(AUTOEVENTO<>"manual",$M14<>$A$15)), IF(Import.TipoArredondamento<>"TransfereGOV", ROUND(OFFSET($P14,0,BH$13),15-13*ORÇAMENTO!$AF$7)/$H14*OFFSET(ORÇAMENTO!$X$15,ROW(BH14)-ROW(BH$15),0), ROUND(ROUND(OFFSET($P14,0,BH$13),15-13*ORÇAMENTO!$AF$7)*OFFSET(ORÇAMENTO!$W$15,ROW(BH14)-ROW(BH$15),0),15-13*ORÇAMENTO!$AF$11)), 0) -> 0 | BI14: =IF(AND($D14="Serviço",BI$12<>0,$H14>0,OR(AUTOEVENTO<>"manual",$M14<>$A$15)), IF(Import.TipoArredondamento<>"TransfereGOV", ROUND(OFFSET($P14,0,BI$13),15-13*ORÇAMENTO!$AF$7)/$H14*OFFSET(ORÇAMENTO!$X$15,ROW(BI14)-ROW(BI$15),0), ROUND(ROUND(OFFSET($P14,0,BI$13),15-13*ORÇAMENTO!$AF$7)*OFFSET(ORÇAMENTO!$W$15,ROW(BI14)-ROW(BI$15),0),15-13*ORÇAMENTO!$AF$11)), 0) -> 0 | BJ14: =IF(AND($D14="Serviço",BJ$12<>0,$H14>0,OR(AUTOEVENTO<>"manual",$M14<>$A$15)), IF(Import.TipoArredondamento<>"TransfereGOV", ROUND(OFFSET($P14,0,BJ$13),15-13*ORÇAMENTO!$AF$7)/$H14*OFFSET(ORÇAMENTO!$X$15,ROW(BJ14)-ROW(BJ$15),0), ROUND(ROUND(OFFSET($P14,0,BJ$13),15-13*ORÇAMENTO!$AF$7)*OFFSET(ORÇAMENTO!$W$15,ROW(BJ14)-ROW(BJ$15),0),15-13*ORÇAMENTO!$AF$11)), 0) -> 0 | BK14: =IF(AND($D14="Serviço",BK$12<>0,$H14>0,OR(AUTOEVENTO<>"manual",$M14<>$A$15)), IF(Import.TipoArredondamento<>"TransfereGOV", ROUND(OFFSET($P14,0,BK$13),15-13*ORÇAMENTO!$AF$7)/$H14*OFFSET(ORÇAMENTO!$X$15,ROW(BK14)-ROW(BK$15),0), ROUND(ROUND(OFFSET($P14,0,BK$13),15-13*ORÇAMENTO!$AF$7)*OFFSET(ORÇAMENTO!$W$15,ROW(BK14)-ROW(BK$15),0),15-13*ORÇAMENTO!$AF$11)), 0) -> 0 | BL14: =IF(AND($D14="Serviço",BL$12<>0,$H14>0,OR(AUTOEVENTO<>"manual",$M14<>$A$15)), IF(Import.TipoArredondamento<>"TransfereGOV", ROUND(OFFSET($P14,0,BL$13),15-13*ORÇAMENTO!$AF$7)/$H14*OFFSET(ORÇAMENTO!$X$15,ROW(BL14)-ROW(BL$15),0), ROUND(ROUND(OFFSET($P14,0,BL$13),15-13*ORÇAMENTO!$AF$7)*OFFSET(ORÇAMENTO!$W$15,ROW(BL14)-ROW(BL$15),0),15-13*ORÇAMENTO!$AF$11)), 0) -> 0 | BM14: =IF(AND($D14="Serviço",BM$12<>0,$H14>0,OR(AUTOEVENTO<>"manual",$M14<>$A$15)), IF(Import.TipoArredondamento<>"TransfereGOV", ROUND(OFFSET($P14,0,BM$13),15-13*ORÇAMENTO!$AF$7)/$H14*OFFSET(ORÇAMENTO!$X$15,ROW(BM14)-ROW(BM$15),0), ROUND(ROUND(OFFSET($P14,0,BM$13),15-13*ORÇAMENTO!$AF$7)*OFFSET(ORÇAMENTO!$W$15,ROW(BM14)-ROW(BM$15),0),15-13*ORÇAMENTO!$AF$11)), 0) -> 0 | BN14: =IF(AND($D14="Serviço",BN$12<>0,$H14>0,OR(AUTOEVENTO<>"manual",$M14<>$A$15)), IF(Import.TipoArredondamento<>"TransfereGOV", ROUND(OFFSET($P14,0,BN$13),15-13*ORÇAMENTO!$AF$7)/$H14*OFFSET(ORÇAMENTO!$X$15,ROW(BN14)-ROW(BN$15),0), ROUND(ROUND(OFFSET($P14,0,BN$13),15-13*ORÇAMENTO!$AF$7)*OFFSET(ORÇAMENTO!$W$15,ROW(BN14)-ROW(BN$15),0),15-13*ORÇAMENTO!$AF$11)), 0) -> 0 | BO14: =IF(AND($D14="Serviço",BO$12<>0,$H14>0,OR(AUTOEVENTO<>"manual",$M14<>$A$15)), IF(Import.TipoArredondamento<>"TransfereGOV", ROUND(OFFSET($P14,0,BO$13),15-13*ORÇAMENTO!$AF$7)/$H14*OFFSET(ORÇAMENTO!$X$15,ROW(BO14)-ROW(BO$15),0), ROUND(ROUND(OFFSET($P14,0,BO$13),15-13*ORÇAMENTO!$AF$7)*OFFSET(ORÇAMENTO!$W$15,ROW(BO14)-ROW(BO$15),0),15-13*ORÇAMENTO!$AF$11)), 0) -> 0 | BP14: =IF(AND($D14="Serviço",BP$12<>0,$H14>0,OR(AUTOEVENTO<>"manual",$M14<>$A$15)), IF(Import.TipoArredondamento<>"TransfereGOV", ROUND(OFFSET($P14,0,BP$13),15-13*ORÇAMENTO!$AF$7)/$H14*OFFSET(ORÇAMENTO!$X$15,ROW(BP14)-ROW(BP$15),0), ROUND(ROUND(OFFSET($P14,0,BP$13),15-13*ORÇAMENTO!$AF$7)*OFFSET(ORÇAMENTO!$W$15,ROW(BP14)-ROW(BP$15),0),15-13*ORÇAMENTO!$AF$11)), 0) -> 0 | BQ14: =IF(AND($D14="Serviço",BQ$12<>0,$H14>0,OR(AUTOEVENTO<>"manual",$M14<>$A$15)), IF(Import.TipoArredondamento<>"TransfereGOV", ROUND(OFFSET($P14,0,BQ$13),15-13*ORÇAMENTO!$AF$7)/$H14*OFFSET(ORÇAMENTO!$X$15,ROW(BQ14)-ROW(BQ$15),0), ROUND(ROUND(OFFSET($P14,0,BQ$13),15-13*ORÇAMENTO!$AF$7)*OFFSET(ORÇAMENTO!$W$15,ROW(BQ14)-ROW(BQ$15),0),15-13*ORÇAMENTO!$AF$11)), 0) -> 0 | BS14: =IF(OR($D14<>"Serviço",AND(AUTOEVENTO="Manual",$M14=$A$15)),0, IF(OFFSET(CRONOPLE!$F$15,$M14-$A$15,BS$13)=0,10^12,OFFSET(CRONOPLE!$F$15,$M14-$A$15,BS$13))) -> 0 | BT14: =IF(OR($D14<>"Serviço",AND(AUTOEVENTO="Manual",$M14=$A$15)),0, IF(OFFSET(CRONOPLE!$F$15,$M14-$A$15,BT$13)=0,10^12,OFFSET(CRONOPLE!$F$15,$M14-$A$15,BT$13))) -> 0 | BU14: =IF(OR($D14<>"Serviço",AND(AUTOEVENTO="Manual",$M14=$A$15)),0, IF(OFFSET(CRONOPLE!$F$15,$M14-$A$15,BU$13)=0,10^12,OFFSET(CRONOPLE!$F$15,$M14-$A$15,BU$13))) -> 0 | BV14: =IF(OR($D14<>"Serviço",AND(AUTOEVENTO="Manual",$M14=$A$15)),0, IF(OFFSET(CRONOPLE!$F$15,$M14-$A$15,BV$13)=0,10^12,OFFSET(CRONOPLE!$F$15,$M14-$A$15,BV$13))) -> 0 | BW14: =IF(OR($D14<>"Serviço",AND(AUTOEVENTO="Manual",$M14=$A$15)),0, IF(OFFSET(CRONOPLE!$F$15,$M14-$A$15,BW$13)=0,10^12,OFFSET(CRONOPLE!$F$15,$M14-$A$15,BW$13))) -> 0 | BX14: =IF(OR($D14<>"Serviço",AND(AUTOEVENTO="Manual",$M14=$A$15)),0, IF(OFFSET(CRONOPLE!$F$15,$M14-$A$15,BX$13)=0,10^12,OFFSET(CRONOPLE!$F$15,$M14-$A$15,BX$13))) -> 0 | BY14: =IF(OR($D14<>"Serviço",AND(AUTOEVENTO="Manual",$M14=$A$15)),0, IF(OFFSET(CRONOPLE!$F$15,$M14-$A$15,BY$13)=0,10^12,OFFSET(CRONOPLE!$F$15,$M14-$A$15,BY$13))) -> 0 | BZ14: =IF(OR($D14<>"Serviço",AND(AUTOEVENTO="Manual",$M14=$A$15)),0, IF(OFFSET(CRONOPLE!$F$15,$M14-$A$15,BZ$13)=0,10^12,OFFSET(CRONOPLE!$F$15,$M14-$A$15,BZ$13))) -> 0 | CA14: =IF(OR($D14<>"Serviço",AND(AUTOEVENTO="Manual",$M14=$A$15)),0, IF(OFFSET(CRONOPLE!$F$15,$M14-$A$15,CA$13)=0,10^12,OFFSET(CRONOPLE!$F$15,$M14-$A$15,CA$13))) -> 0 | CB14: =IF(OR($D14<>"Serviço",AND(AUTOEVENTO="Manual",$M14=$A$15)),0, IF(OFFSET(CRONOPLE!$F$15,$M14-$A$15,CB$13)=0,10^12,OFFSET(CRONOPLE!$F$15,$M14-$A$15,CB$13))) -> 0 | CC14: =IF(OR($D14<>"Serviço",AND(AUTOEVENTO="Manual",$M14=$A$15)),0, IF(OFFSET(CRONOPLE!$F$15,$M14-$A$15,CC$13)=0,10^12,OFFSET(CRONOPLE!$F$15,$M14-$A$15,CC$13))) -> 0 | CD14: =IF(OR($D14<>"Serviço",AND(AUTOEVENTO="Manual",$M14=$A$15)),0, IF(OFFSET(CRONOPLE!$F$15,$M14-$A$15,CD$13)=0,10^12,OFFSET(CRONOPLE!$F$15,$M14-$A$15,CD$13))) -> 0 | CE14: =IF(OR($D14<>"Serviço",AND(AUTOEVENTO="Manual",$M14=$A$15)),0, IF(OFFSET(CRONOPLE!$F$15,$M14-$A$15,CE$13)=0,10^12,OFFSET(CRONOPLE!$F$15,$M14-$A$15,CE$13))) -> 0 | CF14: =IF(OR($D14<>"Serviço",AND(AUTOEVENTO="Manual",$M14=$A$15)),0, IF(OFFSET(CRONOPLE!$F$15,$M14-$A$15,CF$13)=0,10^12,OFFSET(CRONOPLE!$F$15,$M14-$A$15,CF$13))) -> 0 | CG14: =IF(OR($D14<>"Serviço",AND(AUTOEVENTO="Manual",$M14=$A$15)),0, IF(OFFSET(CRONOPLE!$F$15,$M14-$A$15,CG$13)=0,10^12,OFFSET(CRONOPLE!$F$15,$M14-$A$15,CG$13))) -> 0 | CH14: =IF(OR($D14<>"Serviço",AND(AUTOEVENTO="Manual",$M14=$A$15)),0, IF(OFFSET(CRONOPLE!$F$15,$M14-$A$15,CH$13)=0,10^12,OFFSET(CRONOPLE!$F$15,$M14-$A$15,CH$13))) -> 0 | CI14: =IF(OR($D14<>"Serviço",AND(AUTOEVENTO="Manual",$M14=$A$15)),0, IF(OFFSET(CRONOPLE!$F$15,$M14-$A$15,CI$13)=0,10^12,OFFSET(CRONOPLE!$F$15,$M14-$A$15,CI$13))) -> 0 | CJ14: =IF(OR($D14<>"Serviço",AND(AUTOEVENTO="Manual",$M14=$A$15)),0, IF(OFFSET(CRONOPLE!$F$15,$M14-$A$15,CJ$13)=0,10^12,OFFSET(CRONOPLE!$F$15,$M14-$A$15,CJ$13))) -> 0 | CK14: =IF(OR($D14<>"Serviço",AND(AUTOEVENTO="Manual",$M14=$A$15)),0, IF(OFFSET(CRONOPLE!$F$15,$M14-$A$15,CK$13)=0,10^12,OFFSET(CRONOPLE!$F$15,$M14-$A$15,CK$13))) -> 0 | CL14: =IF(OR($D14<>"Serviço",AND(AUTOEVENTO="Manual",$M14=$A$15)),0, IF(OFFSET(CRONOPLE!$F$15,$M14-$A$15,CL$13)=0,10^12,OFFSET(CRONOPLE!$F$15,$M14-$A$15,CL$13))) -> 0 | CM14: =IF(OR($D14<>"Serviço",AND(AUTOEVENTO="Manual",$M14=$A$15)),0, IF(OFFSET(CRONOPLE!$F$15,$M14-$A$15,CM$13)=0,10^12,OFFSET(CRONOPLE!$F$15,$M14-$A$15,CM$13))) -> 0 | CN14: =IF(OR($D14<>"Serviço",AND(AUTOEVENTO="Manual",$M14=$A$15)),0, IF(OFFSET(CRONOPLE!$F$15,$M14-$A$15,CN$13)=0,10^12,OFFSET(CRONOPLE!$F$15,$M14-$A$15,CN$13))) -> 0 | CO14: =IF(OR($D14<>"Serviço",AND(AUTOEVENTO="Manual",$M14=$A$15)),0, IF(OFFSET(CRONOPLE!$F$15,$M14-$A$15,CO$13)=0,10^12,OFFSET(CRONOPLE!$F$15,$M14-$A$15,CO$13))) -> 0 | CP14: =IF(OR($D14<>"Serviço",AND(AUTOEVENTO="Manual",$M14=$A$15)),0, IF(OFFSET(CRONOPLE!$F$15,$M14-$A$15,CP$13)=0,10^12,OFFSET(CRONOPLE!$F$15,$M14-$A$15,CP$13))) -> 0 | CQ14: =IF(OR($D14<>"Serviço",AND(AUTOEVENTO="Manual",$M14=$A$15)),0, IF(OFFSET(CRONOPLE!$F$15,$M14-$A$15,CQ$13)=0,10^12,OFFSET(CRONOPLE!$F$15,$M14-$A$15,CQ$13))) -> 0 | CR14: =IF(OR($D14<>"Serviço",AND(AUTOEVENTO="Manual",$M14=$A$15)),0, IF(OFFSET(CRONOPLE!$F$15,$M14-$A$15,CR$13)=0,10^12,OFFSET(CRONOPLE!$F$15,$M14-$A$15,CR$13))) -> 0 | CT14: =IF(OR($D14<>"Serviço",AND(AUTOEVENTO="Manual",$M14=$A$15),$M14>(ROW(PLE.lastrow)-ROW(PLE.firstrow))),0, IF(OFFSET(PLE!$G$15,$M14-$A$15,CT$13)="",10^12,OFFSET(PLE!$G$15,$M14-$A$15,CT$13))) -> 0 | CU14: =IF(OR($D14<>"Serviço",AND(AUTOEVENTO="Manual",$M14=$A$15),$M14>(ROW(PLE.lastrow)-ROW(PLE.firstrow))),0, IF(OFFSET(PLE!$G$15,$M14-$A$15,CU$13)="",10^12,OFFSET(PLE!$G$15,$M14-$A$15,CU$13))) -> 0 | CV14: =IF(OR($D14<>"Serviço",AND(AUTOEVENTO="Manual",$M14=$A$15),$M14>(ROW(PLE.lastrow)-ROW(PLE.firstrow))),0, IF(OFFSET(PLE!$G$15,$M14-$A$15,CV$13)="",10^12,OFFSET(PLE!$G$15,$M14-$A$15,CV$13))) -> 0 | CW14: =IF(OR($D14<>"Serviço",AND(AUTOEVENTO="Manual",$M14=$A$15),$M14>(ROW(PLE.lastrow)-ROW(PLE.firstrow))),0, IF(OFFSET(PLE!$G$15,$M14-$A$15,CW$13)="",10^12,OFFSET(PLE!$G$15,$M14-$A$15,CW$13))) -> 0 | CX14: =IF(OR($D14<>"Serviço",AND(AUTOEVENTO="Manual",$M14=$A$15),$M14>(ROW(PLE.lastrow)-ROW(PLE.firstrow))),0, IF(OFFSET(PLE!$G$15,$M14-$A$15,CX$13)="",10^12,OFFSET(PLE!$G$15,$M14-$A$15,CX$13))) -> 0 | CY14: =IF(OR($D14<>"Serviço",AND(AUTOEVENTO="Manual",$M14=$A$15),$M14>(ROW(PLE.lastrow)-ROW(PLE.firstrow))),0, IF(OFFSET(PLE!$G$15,$M14-$A$15,CY$13)="",10^12,OFFSET(PLE!$G$15,$M14-$A$15,CY$13))) -> 0 | CZ14: =IF(OR($D14<>"Serviço",AND(AUTOEVENTO="Manual",$M14=$A$15),$M14>(ROW(PLE.lastrow)-ROW(PLE.firstrow))),0, IF(OFFSET(PLE!$G$15,$M14-$A$15,CZ$13)="",10^12,OFFSET(PLE!$G$15,$M14-$A$15,CZ$13))) -> 0 | DA14: =IF(OR($D14<>"Serviço",AND(AUTOEVENTO="Manual",$M14=$A$15),$M14>(ROW(PLE.lastrow)-ROW(PLE.firstrow))),0, IF(OFFSET(PLE!$G$15,$M14-$A$15,DA$13)="",10^12,OFFSET(PLE!$G$15,$M14-$A$15,DA$13))) -> 0 | DB14: =IF(OR($D14<>"Serviço",AND(AUTOEVENTO="Manual",$M14=$A$15),$M14>(ROW(PLE.lastrow)-ROW(PLE.firstrow))),0, IF(OFFSET(PLE!$G$15,$M14-$A$15,DB$13)="",10^12,OFFSET(PLE!$G$15,$M14-$A$15,DB$13))) -> 0 | DC14: =IF(OR($D14<>"Serviço",AND(AUTOEVENTO="Manual",$M14=$A$15),$M14>(ROW(PLE.lastrow)-ROW(PLE.firstrow))),0, IF(OFFSET(PLE!$G$15,$M14-$A$15,DC$13)="",10^12,OFFSET(PLE!$G$15,$M14-$A$15,DC$13))) -> 0 | DD14: =IF(OR($D14<>"Serviço",AND(AUTOEVENTO="Manual",$M14=$A$15),$M14>(ROW(PLE.lastrow)-ROW(PLE.firstrow))),0, IF(OFFSET(PLE!$G$15,$M14-$A$15,DD$13)="",10^12,OFFSET(PLE!$G$15,$M14-$A$15,DD$13))) -> 0 | DE14: =IF(OR($D14<>"Serviço",AND(AUTOEVENTO="Manual",$M14=$A$15),$M14>(ROW(PLE.lastrow)-ROW(PLE.firstrow))),0, IF(OFFSET(PLE!$G$15,$M14-$A$15,DE$13)="",10^12,OFFSET(PLE!$G$15,$M14-$A$15,DE$13))) -> 0 | DF14: =IF(OR($D14<>"Serviço",AND(AUTOEVENTO="Manual",$M14=$A$15),$M14>(ROW(PLE.lastrow)-ROW(PLE.firstrow))),0, IF(OFFSET(PLE!$G$15,$M14-$A$15,DF$13)="",10^12,OFFSET(PLE!$G$15,$M14-$A$15,DF$13))) -> 0 | DG14: =IF(OR($D14<>"Serviço",AND(AUTOEVENTO="Manual",$M14=$A$15),$M14>(ROW(PLE.lastrow)-ROW(PLE.firstrow))),0, IF(OFFSET(PLE!$G$15,$M14-$A$15,DG$13)="",10^12,OFFSET(PLE!$G$15,$M14-$A$15,DG$13))) -> 0 | DH14: =IF(OR($D14<>"Serviço",AND(AUTOEVENTO="Manual",$M14=$A$15),$M14>(ROW(PLE.lastrow)-ROW(PLE.firstrow))),0, IF(OFFSET(PLE!$G$15,$M14-$A$15,DH$13)="",10^12,OFFSET(PLE!$G$15,$M14-$A$15,DH$13))) -> 0 | DI14: =IF(OR($D14<>"Serviço",AND(AUTOEVENTO="Manual",$M14=$A$15),$M14>(ROW(PLE.lastrow)-ROW(PLE.firstrow))),0, IF(OFFSET(PLE!$G$15,$M14-$A$15,DI$13)="",10^12,OFFSET(PLE!$G$15,$M14-$A$15,DI$13))) -> 0 | DJ14: =IF(OR($D14<>"Serviço",AND(AUTOEVENTO="Manual",$M14=$A$15),$M14>(ROW(PLE.lastrow)-ROW(PLE.firstrow))),0, IF(OFFSET(PLE!$G$15,$M14-$A$15,DJ$13)="",10^12,OFFSET(PLE!$G$15,$M14-$A$15,DJ$13))) -> 0 | DK14: =IF(OR($D14<>"Serviço",AND(AUTOEVENTO="Manual",$M14=$A$15),$M14>(ROW(PLE.lastrow)-ROW(PLE.firstrow))),0, IF(OFFSET(PLE!$G$15,$M14-$A$15,DK$13)="",10^12,OFFSET(PLE!$G$15,$M14-$A$15,DK$13))) -> 0 | DL14: =IF(OR($D14<>"Serviço",AND(AUTOEVENTO="Manual",$M14=$A$15),$M14>(ROW(PLE.lastrow)-ROW(PLE.firstrow))),0, IF(OFFSET(PLE!$G$15,$M14-$A$15,DL$13)="",10^12,OFFSET(PLE!$G$15,$M14-$A$15,DL$13))) -> 0 | DM14: =IF(OR($D14<>"Serviço",AND(AUTOEVENTO="Manual",$M14=$A$15),$M14>(ROW(PLE.lastrow)-ROW(PLE.firstrow))),0, IF(OFFSET(PLE!$G$15,$M14-$A$15,DM$13)="",10^12,OFFSET(PLE!$G$15,$M14-$A$15,DM$13))) -> 0 | DN14: =IF(OR($D14<>"Serviço",AND(AUTOEVENTO="Manual",$M14=$A$15),$M14>(ROW(PLE.lastrow)-ROW(PLE.firstrow))),0, IF(OFFSET(PLE!$G$15,$M14-$A$15,DN$13)="",10^12,OFFSET(PLE!$G$15,$M14-$A$15,DN$13))) -> 0 | DO14: =IF(OR($D14<>"Serviço",AND(AUTOEVENTO="Manual",$M14=$A$15),$M14>(ROW(PLE.lastrow)-ROW(PLE.firstrow))),0, IF(OFFSET(PLE!$G$15,$M14-$A$15,DO$13)="",10^12,OFFSET(PLE!$G$15,$M14-$A$15,DO$13))) -> 0 | DP14: =IF(OR($D14<>"Serviço",AND(AUTOEVENTO="Manual",$M14=$A$15),$M14>(ROW(PLE.lastrow)-ROW(PLE.firstrow))),0, IF(OFFSET(PLE!$G$15,$M14-$A$15,DP$13)="",10^12,OFFSET(PLE!$G$15,$M14-$A$15,DP$13))) -> 0 | DQ14: =IF(OR($D14<>"Serviço",AND(AUTOEVENTO="Manual",$M14=$A$15),$M14>(ROW(PLE.lastrow)-ROW(PLE.firstrow))),0, IF(OFFSET(PLE!$G$15,$M14-$A$15,DQ$13)="",10^12,OFFSET(PLE!$G$15,$M14-$A$15,DQ$13))) -> 0 | DR14: =IF(OR($D14<>"Serviço",AND(AUTOEVENTO="Manual",$M14=$A$15),$M14>(ROW(PLE.lastrow)-ROW(PLE.firstrow))),0, IF(OFFSET(PLE!$G$15,$M14-$A$15,DR$13)="",10^12,OFFSET(PLE!$G$15,$M14-$A$15,DR$13))) -> 0 | DS14: =IF(OR($D14<>"Serviço",AND(AUTOEVENTO="Manual",$M14=$A$15),$M14>(ROW(PLE.lastrow)-ROW(PLE.firstrow))),0, IF(OFFSET(PLE!$G$15,$M14-$A$15,DS$13)="",10^12,OFFSET(PLE!$G$15,$M14-$A$15,DS$13))) -> 0
A15: =IF(AdmLocal="Automática",1,0) -> 0 | B15: =OFFSET(ORÇAMENTO!C$15,ROW(B15)-ROW(B$15),0) -> L | C15: =OFFSET(ORÇAMENTO!L$15,ROW(C15)-ROW(C$15),0) -> F | D15: =IF(TIPOORCAMENTO="LICITADO","CTEF","LOTE") -> LOTE | E15: =Import.DescLote -> Construção de unidades habitacionais | L15: 0 | M15: 0 | N15: TOTAL FINANC. POR FRENTE (R$): | O15: =OFFSET($AQ$15,0,O$13) ->  | Q15: =OFFSET($AQ$15,0,Q$13) -> 135188.48 | R15: 135188.48 | S15: 135188.48 | T15: 135188.48 | U15: 135188.48 | V15: 135188.48 | W15: 135188.48 | X15: 135188.48 | Y15: 135188.48 | Z15: 135188.48 | AA15: =OFFSET($AQ$15,0,AA$13) -> 135188.48 | AB15: 135188.48 | AC15: 135188.48 | AD15: 135188.48 | AE15: 135188.48 | AF15: 135188.48 | AG15: 135188.48 | AH15: 135188.48 | AI15: 135188.48 | AJ15: 135188.48 | AK15: 135188.48 | AL15: 135188.48 | AM15: 135188.48 | AN15: 135188.48 | AO15: 135188.48 | AP15: 0 | AR15: =ROUND(SUM(OFFSET(AR$15,1,0):AR$37),2) -> 135188.48 | AS15: =SUM(OFFSET(AS$15,1,0):AS$37) -> 135188.48 | AT15: =SUM(OFFSET(AT$15,1,0):AT$37) -> 135188.48 | AU15: =SUM(OFFSET(AU$15,1,0):AU$37) -> 135188.48 | AV15: =SUM(OFFSET(AV$15,1,0):AV$37) -> 135188.48 | AW15: =SUM(OFFSET(AW$15,1,0):AW$37) -> 135188.48 | AX15: =SUM(OFFSET(AX$15,1,0):AX$37) -> 135188.48 | AY15: =SUM(OFFSET(AY$15,1,0):AY$37) -> 135188.48 | AZ15: =SUM(OFFSET(AZ$15,1,0):AZ$37) -> 135188.48 | BA15: =SUM(OFFSET(BA$15,1,0):BA$37) -> 135188.48 | BB15: =SUM(OFFSET(BB$15,1,0):BB$37) -> 135188.48 | BC15: =SUM(OFFSET(BC$15,1,0):BC$37) -> 135188.48 | BD15: =SUM(OFFSET(BD$15,1,0):BD$37) -> 135188.48 | BE15: =SUM(OFFSET(BE$15,1,0):BE$37) -> 135188.48 | BF15: =SUM(OFFSET(BF$15,1,0):BF$37) -> 135188.48 | BG15: =SUM(OFFSET(BG$15,1,0):BG$37) -> 135188.48 | BH15: =SUM(OFFSET(BH$15,1,0):BH$37) -> 135188.48 | BI15: =SUM(OFFSET(BI$15,1,0):BI$37) -> 135188.48 | BJ15: =SUM(OFFSET(BJ$15,1,0):BJ$37) -> 135188.48 | BK15: =SUM(OFFSET(BK$15,1,0):BK$37) -> 135188.48 | BL15: =SUM(OFFSET(BL$15,1,0):BL$37) -> 135188.48 | BM15: =SUM(OFFSET(BM$15,1,0):BM$37) -> 135188.48 | BN15: =SUM(OFFSET(BN$15,1,0):BN$37) -> 135188.48 | BO15: =SUM(OFFSET(BO$15,1,0):BO$37) -> 135188.48 | BP15: =SUM(OFFSET(BP$15,1,0):BP$37) -> 135188.48 | BQ15: =SUM(OFFSET(BQ$15,1,0):BQ$37) -> 0 | BS15: =10^12 -> 1000000000000 | BT15: =10^12 -> 1000000000000 | BU15: 1000000000000 | BV15: 1000000000000 | BW15: 1000000000000 | BX15: 1000000000000 | BY15: 1000000000000 | BZ15: 1000000000000 | CA15: 1000000000000 | CB15: 1000000000000 | CC15: 1000000000000 | CD15: 1000000000000 | CE15: 1000000000000 | CF15: 1000000000000 | CG15: 1000000000000 | CH15: 1000000000000 | CI15: 1000000000000 | CJ15: 1000000000000 | CK15: 1000000000000 | CL15: 1000000000000 | CM15: 1000000000000 | CN15: 1000000000000 | CO15: 1000000000000 | CP15: 1000000000000 | CQ15: 1000000000000 | CR15: 1000000000000 | CT15: =10^12 -> 1000000000000 | CU15: 1000000000000 | CV15: 1000000000000 | CW15: 1000000000000 | CX15: 1000000000000 | CY15: 1000000000000 | CZ15: 1000000000000 | DA15: 1000000000000 | DB15: 1000000000000 | DC15: 1000000000000 | DD15: 1000000000000 | DE15: 1000000000000 | DF15: 1000000000000 | DG15: 1000000000000 | DH15: 1000000000000 | DI15: 1000000000000 | DJ15: 1000000000000 | DK15: 1000000000000 | DL15: 1000000000000 | DM15: 1000000000000 | DN15: 1000000000000 | DO15: 1000000000000 | DP15: 1000000000000 | DQ15: 1000000000000 | DR15: 1000000000000 | DS15: 1000000000000
A16: =IFERROR(IF(AUTOEVENTO="Manual",IF(K16<>"",MIN(VALUE(LEFT(K16,FIND(".",K16)-1)),COUNTA(EVENTOS.Lista)),0),IF(OR($B16>AUTOEVENTO,$B16="S",$B16=0),SUBSTITUTE(OFFSET($A16,-1,0),IF($D16="Serviço",".",""),""),$L16&".")),0) -> 1. | B16: =OFFSET(ORÇAMENTO!C$15,$L16,0) -> 1 | C16: =OFFSET(ORÇAMENTO!L$15,$L16,0) -> F | D16: =OFFSET(ORÇAMENTO!N$15,$L16,0) -> Meta | E16: =OFFSET(ORÇAMENTO!O$15,$L16,0) -> 1. | F16: =OFFSET(ORÇAMENTO!R$15,$L16,0) -> PRODUÇÃO DE UNIDADES HABITACIONAIS | G16: =IF($D16<>"Serviço","",OFFSET(ORÇAMENTO!S$15,$L16,0)) ->  | H16: =IF($D16<>"Serviço",0,IF(ACOMPANHAMENTO="BM",ROUND(OFFSET(ORÇAMENTO!AJ$15,$L16,0),15-13*ORÇAMENTO!$AF$7),IF(IFERROR(CÁLCULO.FrentesPreenchidas,0)=0,0,SUM(ROUND(OFFSET($P16,0,1,1,CÁLCULO.FrentesPreenchidas),15-13*ORÇAMENTO!$AF$7))))) -> 0 | J16: =IF(OR(B16<>"S",CÁLCULO.FrentesPreenchidas=0),"",IF(AND(ACOMPANHAMENTO="PLE",AUTOEVENTO="Manual",OR(H16>0,ORÇAMENTO!AC16="QUANT."),OR(K16="",M16=0,N16="")),"►E",IF(AND(ACOMPANHAMENTO="PLE",ORÇAMENTO!AC16="QUANT."),"►Q",IF(AND(ACOMPANHAMENTO="PLE",H16<>SUMPRODUCT(($Q$1:$AQ$1=1)*ROUND(Q16:AQ16,15))),"►S",IF(AND(COUNTIF($P$11:$AQ$11,"▼")=0,H16>0,I16=""),"◄M",""))))) ->  | L16: =OFFSET(L16,-1,0)+1 -> 1 | M16: =IF($D16<>"Serviço","", IF(AUTOEVENTO="manual",$A16, IF(ISERROR(MATCH($A16,$A$15:OFFSET($A16,-1,0),0)),MAX($M$15:OFFSET(M16,-1,0))+1, INDEX($M$15:OFFSET(M16,-1,0),MATCH($A16,$A$15:OFFSET($A16,-1,0),0))))) ->  | N16: =IF($D16<>"Serviço","", IF(AUTOEVENTO="Manual", IF($A16=0,"<-- defina o número do agrupador", OFFSET(EVENTOS!$D$15,$A16-$A$15,0)), OFFSET($F$15,$A16,0))) ->  | AR16: =IF(AND($D16="Serviço",AR$12<>0,$H16>0,OR(AUTOEVENTO<>"manual",$M16<>$A$15)), IF(Import.TipoArredondamento<>"TransfereGOV", ROUND(OFFSET($P16,0,AR$13),15-13*ORÇAMENTO!$AF$7)/$H16*OFFSET(ORÇAMENTO!$X$15,ROW(AR16)-ROW(AR$15),0), ROUND(ROUND(OFFSET($P16,0,AR$13),15-13*ORÇAMENTO!$AF$7)*OFFSET(ORÇAMENTO!$W$15,ROW(AR16)-ROW(AR$15),0),15-13*ORÇAMENTO!$AF$11)), 0) -> 0 | AS16: =IF(AND($D16="Serviço",AS$12<>0,$H16>0,OR(AUTOEVENTO<>"manual",$M16<>$A$15)), IF(Import.TipoArredondamento<>"TransfereGOV", ROUND(OFFSET($P16,0,AS$13),15-13*ORÇAMENTO!$AF$7)/$H16*OFFSET(ORÇAMENTO!$X$15,ROW(AS16)-ROW(AS$15),0), ROUND(ROUND(OFFSET($P16,0,AS$13),15-13*ORÇAMENTO!$AF$7)*OFFSET(ORÇAMENTO!$W$15,ROW(AS16)-ROW(AS$15),0),15-13*ORÇAMENTO!$AF$11)), 0) -> 0 | AT16: =IF(AND($D16="Serviço",AT$12<>0,$H16>0,OR(AUTOEVENTO<>"manual",$M16<>$A$15)), IF(Import.TipoArredondamento<>"TransfereGOV", ROUND(OFFSET($P16,0,AT$13),15-13*ORÇAMENTO!$AF$7)/$H16*OFFSET(ORÇAMENTO!$X$15,ROW(AT16)-ROW(AT$15),0), ROUND(ROUND(OFFSET($P16,0,AT$13),15-13*ORÇAMENTO!$AF$7)*OFFSET(ORÇAMENTO!$W$15,ROW(AT16)-ROW(AT$15),0),15-13*ORÇAMENTO!$AF$11)), 0) -> 0 | AU16: =IF(AND($D16="Serviço",AU$12<>0,$H16>0,OR(AUTOEVENTO<>"manual",$M16<>$A$15)), IF(Import.TipoArredondamento<>"TransfereGOV", ROUND(OFFSET($P16,0,AU$13),15-13*ORÇAMENTO!$AF$7)/$H16*OFFSET(ORÇAMENTO!$X$15,ROW(AU16)-ROW(AU$15),0), ROUND(ROUND(OFFSET($P16,0,AU$13),15-13*ORÇAMENTO!$AF$7)*OFFSET(ORÇAMENTO!$W$15,ROW(AU16)-ROW(AU$15),0),15-13*ORÇAMENTO!$AF$11)), 0) -> 0 | AV16: =IF(AND($D16="Serviço",AV$12<>0,$H16>0,OR(AUTOEVENTO<>"manual",$M16<>$A$15)), IF(Import.TipoArredondamento<>"TransfereGOV", ROUND(OFFSET($P16,0,AV$13),15-13*ORÇAMENTO!$AF$7)/$H16*OFFSET(ORÇAMENTO!$X$15,ROW(AV16)-ROW(AV$15),0), ROUND(ROUND(OFFSET($P16,0,AV$13),15-13*ORÇAMENTO!$AF$7)*OFFSET(ORÇAMENTO!$W$15,ROW(AV16)-ROW(AV$15),0),15-13*ORÇAMENTO!$AF$11)), 0) -> 0 | AW16: =IF(AND($D16="Serviço",AW$12<>0,$H16>0,OR(AUTOEVENTO<>"manual",$M16<>$A$15)), IF(Import.TipoArredondamento<>"TransfereGOV", ROUND(OFFSET($P16,0,AW$13),15-13*ORÇAMENTO!$AF$7)/$H16*OFFSET(ORÇAMENTO!$X$15,ROW(AW16)-ROW(AW$15),0), ROUND(ROUND(OFFSET($P16,0,AW$13),15-13*ORÇAMENTO!$AF$7)*OFFSET(ORÇAMENTO!$W$15,ROW(AW16)-ROW(AW$15),0),15-13*ORÇAMENTO!$AF$11)), 0) -> 0 | AX16: =IF(AND($D16="Serviço",AX$12<>0,$H16>0,OR(AUTOEVENTO<>"manual",$M16<>$A$15)), IF(Import.TipoArredondamento<>"TransfereGOV", ROUND(OFFSET($P16,0,AX$13),15-13*ORÇAMENTO!$AF$7)/$H16*OFFSET(ORÇAMENTO!$X$15,ROW(AX16)-ROW(AX$15),0), ROUND(ROUND(OFFSET($P16,0,AX$13),15-13*ORÇAMENTO!$AF$7)*OFFSET(ORÇAMENTO!$W$15,ROW(AX16)-ROW(AX$15),0),15-13*ORÇAMENTO!$AF$11)), 0) -> 0 | AY16: =IF(AND($D16="Serviço",AY$12<>0,$H16>0,OR(AUTOEVENTO<>"manual",$M16<>$A$15)), IF(Import.TipoArredondamento<>"TransfereGOV", ROUND(OFFSET($P16,0,AY$13),15-13*ORÇAMENTO!$AF$7)/$H16*OFFSET(ORÇAMENTO!$X$15,ROW(AY16)-ROW(AY$15),0), ROUND(ROUND(OFFSET($P16,0,AY$13),15-13*ORÇAMENTO!$AF$7)*OFFSET(ORÇAMENTO!$W$15,ROW(AY16)-ROW(AY$15),0),15-13*ORÇAMENTO!$AF$11)), 0) -> 0 | AZ16: =IF(AND($D16="Serviço",AZ$12<>0,$H16>0,OR(AUTOEVENTO<>"manual",$M16<>$A$15)), IF(Import.TipoArredondamento<>"TransfereGOV", ROUND(OFFSET($P16,0,AZ$13),15-13*ORÇAMENTO!$AF$7)/$H16*OFFSET(ORÇAMENTO!$X$15,ROW(AZ16)-ROW(AZ$15),0), ROUND(ROUND(OFFSET($P16,0,AZ$13),15-13*ORÇAMENTO!$AF$7)*OFFSET(ORÇAMENTO!$W$15,ROW(AZ16)-ROW(AZ$15),0),15-13*ORÇAMENTO!$AF$11)), 0) -> 0 | BA16: =IF(AND($D16="Serviço",BA$12<>0,$H16>0,OR(AUTOEVENTO<>"manual",$M16<>$A$15)), IF(Import.TipoArredondamento<>"TransfereGOV", ROUND(OFFSET($P16,0,BA$13),15-13*ORÇAMENTO!$AF$7)/$H16*OFFSET(ORÇAMENTO!$X$15,ROW(BA16)-ROW(BA$15),0), ROUND(ROUND(OFFSET($P16,0,BA$13),15-13*ORÇAMENTO!$AF$7)*OFFSET(ORÇAMENTO!$W$15,ROW(BA16)-ROW(BA$15),0),15-13*ORÇAMENTO!$AF$11)), 0) -> 0 | BB16: =IF(AND($D16="Serviço",BB$12<>0,$H16>0,OR(AUTOEVENTO<>"manual",$M16<>$A$15)), IF(Import.TipoArredondamento<>"TransfereGOV", ROUND(OFFSET($P16,0,BB$13),15-13*ORÇAMENTO!$AF$7)/$H16*OFFSET(ORÇAMENTO!$X$15,ROW(BB16)-ROW(BB$15),0), ROUND(ROUND(OFFSET($P16,0,BB$13),15-13*ORÇAMENTO!$AF$7)*OFFSET(ORÇAMENTO!$W$15,ROW(BB16)-ROW(BB$15),0),15-13*ORÇAMENTO!$AF$11)), 0) -> 0 | BC16: =IF(AND($D16="Serviço",BC$12<>0,$H16>0,OR(AUTOEVENTO<>"manual",$M16<>$A$15)), IF(Import.TipoArredondamento<>"TransfereGOV", ROUND(OFFSET($P16,0,BC$13),15-13*ORÇAMENTO!$AF$7)/$H16*OFFSET(ORÇAMENTO!$X$15,ROW(BC16)-ROW(BC$15),0), ROUND(ROUND(OFFSET($P16,0,BC$13),15-13*ORÇAMENTO!$AF$7)*OFFSET(ORÇAMENTO!$W$15,ROW(BC16)-ROW(BC$15),0),15-13*ORÇAMENTO!$AF$11)), 0) -> 0 | BD16: =IF(AND($D16="Serviço",BD$12<>0,$H16>0,OR(AUTOEVENTO<>"manual",$M16<>$A$15)), IF(Import.TipoArredondamento<>"TransfereGOV", ROUND(OFFSET($P16,0,BD$13),15-13*ORÇAMENTO!$AF$7)/$H16*OFFSET(ORÇAMENTO!$X$15,ROW(BD16)-ROW(BD$15),0), ROUND(ROUND(OFFSET($P16,0,BD$13),15-13*ORÇAMENTO!$AF$7)*OFFSET(ORÇAMENTO!$W$15,ROW(BD16)-ROW(BD$15),0),15-13*ORÇAMENTO!$AF$11)), 0) -> 0 | BE16: =IF(AND($D16="Serviço",BE$12<>0,$H16>0,OR(AUTOEVENTO<>"manual",$M16<>$A$15)), IF(Import.TipoArredondamento<>"TransfereGOV", ROUND(OFFSET($P16,0,BE$13),15-13*ORÇAMENTO!$AF$7)/$H16*OFFSET(ORÇAMENTO!$X$15,ROW(BE16)-ROW(BE$15),0), ROUND(ROUND(OFFSET($P16,0,BE$13),15-13*ORÇAMENTO!$AF$7)*OFFSET(ORÇAMENTO!$W$15,ROW(BE16)-ROW(BE$15),0),15-13*ORÇAMENTO!$AF$11)), 0) -> 0 | BF16: =IF(AND($D16="Serviço",BF$12<>0,$H16>0,OR(AUTOEVENTO<>"manual",$M16<>$A$15)), IF(Import.TipoArredondamento<>"TransfereGOV", ROUND(OFFSET($P16,0,BF$13),15-13*ORÇAMENTO!$AF$7)/$H16*OFFSET(ORÇAMENTO!$X$15,ROW(BF16)-ROW(BF$15),0), ROUND(ROUND(OFFSET($P16,0,BF$13),15-13*ORÇAMENTO!$AF$7)*OFFSET(ORÇAMENTO!$W$15,ROW(BF16)-ROW(BF$15),0),15-13*ORÇAMENTO!$AF$11)), 0) -> 0 | BG16: =IF(AND($D16="Serviço",BG$12<>0,$H16>0,OR(AUTOEVENTO<>"manual",$M16<>$A$15)), IF(Import.TipoArredondamento<>"TransfereGOV", ROUND(OFFSET($P16,0,BG$13),15-13*ORÇAMENTO!$AF$7)/$H16*OFFSET(ORÇAMENTO!$X$15,ROW(BG16)-ROW(BG$15),0), ROUND(ROUND(OFFSET($P16,0,BG$13),15-13*ORÇAMENTO!$AF$7)*OFFSET(ORÇAMENTO!$W$15,ROW(BG16)-ROW(BG$15),0),15-13*ORÇAMENTO!$AF$11)), 0) -> 0 | BH16: =IF(AND($D16="Serviço",BH$12<>0,$H16>0,OR(AUTOEVENTO<>"manual",$M16<>$A$15)), IF(Import.TipoArredondamento<>"TransfereGOV", ROUND(OFFSET($P16,0,BH$13),15-13*ORÇAMENTO!$AF$7)/$H16*OFFSET(ORÇAMENTO!$X$15,ROW(BH16)-ROW(BH$15),0), ROUND(ROUND(OFFSET($P16,0,BH$13),15-13*ORÇAMENTO!$AF$7)*OFFSET(ORÇAMENTO!$W$15,ROW(BH16)-ROW(BH$15),0),15-13*ORÇAMENTO!$AF$11)), 0) -> 0 | BI16: =IF(AND($D16="Serviço",BI$12<>0,$H16>0,OR(AUTOEVENTO<>"manual",$M16<>$A$15)), IF(Import.TipoArredondamento<>"TransfereGOV", ROUND(OFFSET($P16,0,BI$13),15-13*ORÇAMENTO!$AF$7)/$H16*OFFSET(ORÇAMENTO!$X$15,ROW(BI16)-ROW(BI$15),0), ROUND(ROUND(OFFSET($P16,0,BI$13),15-13*ORÇAMENTO!$AF$7)*OFFSET(ORÇAMENTO!$W$15,ROW(BI16)-ROW(BI$15),0),15-13*ORÇAMENTO!$AF$11)), 0) -> 0 | BJ16: =IF(AND($D16="Serviço",BJ$12<>0,$H16>0,OR(AUTOEVENTO<>"manual",$M16<>$A$15)), IF(Import.TipoArredondamento<>"TransfereGOV", ROUND(OFFSET($P16,0,BJ$13),15-13*ORÇAMENTO!$AF$7)/$H16*OFFSET(ORÇAMENTO!$X$15,ROW(BJ16)-ROW(BJ$15),0), ROUND(ROUND(OFFSET($P16,0,BJ$13),15-13*ORÇAMENTO!$AF$7)*OFFSET(ORÇAMENTO!$W$15,ROW(BJ16)-ROW(BJ$15),0),15-13*ORÇAMENTO!$AF$11)), 0) -> 0 | BK16: =IF(AND($D16="Serviço",BK$12<>0,$H16>0,OR(AUTOEVENTO<>"manual",$M16<>$A$15)), IF(Import.TipoArredondamento<>"TransfereGOV", ROUND(OFFSET($P16,0,BK$13),15-13*ORÇAMENTO!$AF$7)/$H16*OFFSET(ORÇAMENTO!$X$15,ROW(BK16)-ROW(BK$15),0), ROUND(ROUND(OFFSET($P16,0,BK$13),15-13*ORÇAMENTO!$AF$7)*OFFSET(ORÇAMENTO!$W$15,ROW(BK16)-ROW(BK$15),0),15-13*ORÇAMENTO!$AF$11)), 0) -> 0 | BL16: =IF(AND($D16="Serviço",BL$12<>0,$H16>0,OR(AUTOEVENTO<>"manual",$M16<>$A$15)), IF(Import.TipoArredondamento<>"TransfereGOV", ROUND(OFFSET($P16,0,BL$13),15-13*ORÇAMENTO!$AF$7)/$H16*OFFSET(ORÇAMENTO!$X$15,ROW(BL16)-ROW(BL$15),0), ROUND(ROUND(OFFSET($P16,0,BL$13),15-13*ORÇAMENTO!$AF$7)*OFFSET(ORÇAMENTO!$W$15,ROW(BL16)-ROW(BL$15),0),15-13*ORÇAMENTO!$AF$11)), 0) -> 0 | BM16: =IF(AND($D16="Serviço",BM$12<>0,$H16>0,OR(AUTOEVENTO<>"manual",$M16<>$A$15)), IF(Import.TipoArredondamento<>"TransfereGOV", ROUND(OFFSET($P16,0,BM$13),15-13*ORÇAMENTO!$AF$7)/$H16*OFFSET(ORÇAMENTO!$X$15,ROW(BM16)-ROW(BM$15),0), ROUND(ROUND(OFFSET($P16,0,BM$13),15-13*ORÇAMENTO!$AF$7)*OFFSET(ORÇAMENTO!$W$15,ROW(BM16)-ROW(BM$15),0),15-13*ORÇAMENTO!$AF$11)), 0) -> 0 | BN16: =IF(AND($D16="Serviço",BN$12<>0,$H16>0,OR(AUTOEVENTO<>"manual",$M16<>$A$15)), IF(Import.TipoArredondamento<>"TransfereGOV", ROUND(OFFSET($P16,0,BN$13),15-13*ORÇAMENTO!$AF$7)/$H16*OFFSET(ORÇAMENTO!$X$15,ROW(BN16)-ROW(BN$15),0), ROUND(ROUND(OFFSET($P16,0,BN$13),15-13*ORÇAMENTO!$AF$7)*OFFSET(ORÇAMENTO!$W$15,ROW(BN16)-ROW(BN$15),0),15-13*ORÇAMENTO!$AF$11)), 0) -> 0 | BO16: =IF(AND($D16="Serviço",BO$12<>0,$H16>0,OR(AUTOEVENTO<>"manual",$M16<>$A$15)), IF(Import.TipoArredondamento<>"TransfereGOV", ROUND(OFFSET($P16,0,BO$13),15-13*ORÇAMENTO!$AF$7)/$H16*OFFSET(ORÇAMENTO!$X$15,ROW(BO16)-ROW(BO$15),0), ROUND(ROUND(OFFSET($P16,0,BO$13),15-13*ORÇAMENTO!$AF$7)*OFFSET(ORÇAMENTO!$W$15,ROW(BO16)-ROW(BO$15),0),15-13*ORÇAMENTO!$AF$11)), 0) -> 0 | BP16: =IF(AND($D16="Serviço",BP$12<>0,$H16>0,OR(AUTOEVENTO<>"manual",$M16<>$A$15)), IF(Import.TipoArredondamento<>"TransfereGOV", ROUND(OFFSET($P16,0,BP$13),15-13*ORÇAMENTO!$AF$7)/$H16*OFFSET(ORÇAMENTO!$X$15,ROW(BP16)-ROW(BP$15),0), ROUND(ROUND(OFFSET($P16,0,BP$13),15-13*ORÇAMENTO!$AF$7)*OFFSET(ORÇAMENTO!$W$15,ROW(BP16)-ROW(BP$15),0),15-13*ORÇAMENTO!$AF$11)), 0) -> 0 | BQ16: =IF(AND($D16="Serviço",BQ$12<>0,$H16>0,OR(AUTOEVENTO<>"manual",$M16<>$A$15)), IF(Import.TipoArredondamento<>"TransfereGOV", ROUND(OFFSET($P16,0,BQ$13),15-13*ORÇAMENTO!$AF$7)/$H16*OFFSET(ORÇAMENTO!$X$15,ROW(BQ16)-ROW(BQ$15),0), ROUND(ROUND(OFFSET($P16,0,BQ$13),15-13*ORÇAMENTO!$AF$7)*OFFSET(ORÇAMENTO!$W$15,ROW(BQ16)-ROW(BQ$15),0),15-13*ORÇAMENTO!$AF$11)), 0) -> 0 | BS16: =IF(OR($D16<>"Serviço",AND(AUTOEVENTO="Manual",$M16=$A$15)),0, IF(OFFSET(CRONOPLE!$F$15,$M16-$A$15,BS$13)=0,10^12,OFFSET(CRONOPLE!$F$15,$M16-$A$15,BS$13))) -> 0 | BT16: =IF(OR($D16<>"Serviço",AND(AUTOEVENTO="Manual",$M16=$A$15)),0, IF(OFFSET(CRONOPLE!$F$15,$M16-$A$15,BT$13)=0,10^12,OFFSET(CRONOPLE!$F$15,$M16-$A$15,BT$13))) -> 0 | BU16: =IF(OR($D16<>"Serviço",AND(AUTOEVENTO="Manual",$M16=$A$15)),0, IF(OFFSET(CRONOPLE!$F$15,$M16-$A$15,BU$13)=0,10^12,OFFSET(CRONOPLE!$F$15,$M16-$A$15,BU$13))) -> 0 | BV16: =IF(OR($D16<>"Serviço",AND(AUTOEVENTO="Manual",$M16=$A$15)),0, IF(OFFSET(CRONOPLE!$F$15,$M16-$A$15,BV$13)=0,10^12,OFFSET(CRONOPLE!$F$15,$M16-$A$15,BV$13))) -> 0 | BW16: =IF(OR($D16<>"Serviço",AND(AUTOEVENTO="Manual",$M16=$A$15)),0, IF(OFFSET(CRONOPLE!$F$15,$M16-$A$15,BW$13)=0,10^12,OFFSET(CRONOPLE!$F$15,$M16-$A$15,BW$13))) -> 0 | BX16: =IF(OR($D16<>"Serviço",AND(AUTOEVENTO="Manual",$M16=$A$15)),0, IF(OFFSET(CRONOPLE!$F$15,$M16-$A$15,BX$13)=0,10^12,OFFSET(CRONOPLE!$F$15,$M16-$A$15,BX$13))) -> 0 | BY16: =IF(OR($D16<>"Serviço",AND(AUTOEVENTO="Manual",$M16=$A$15)),0, IF(OFFSET(CRONOPLE!$F$15,$M16-$A$15,BY$13)=0,10^12,OFFSET(CRONOPLE!$F$15,$M16-$A$15,BY$13))) -> 0 | BZ16: =IF(OR($D16<>"Serviço",AND(AUTOEVENTO="Manual",$M16=$A$15)),0, IF(OFFSET(CRONOPLE!$F$15,$M16-$A$15,BZ$13)=0,10^12,OFFSET(CRONOPLE!$F$15,$M16-$A$15,BZ$13))) -> 0 | CA16: =IF(OR($D16<>"Serviço",AND(AUTOEVENTO="Manual",$M16=$A$15)),0, IF(OFFSET(CRONOPLE!$F$15,$M16-$A$15,CA$13)=0,10^12,OFFSET(CRONOPLE!$F$15,$M16-$A$15,CA$13))) -> 0 | CB16: =IF(OR($D16<>"Serviço",AND(AUTOEVENTO="Manual",$M16=$A$15)),0, IF(OFFSET(CRONOPLE!$F$15,$M16-$A$15,CB$13)=0,10^12,OFFSET(CRONOPLE!$F$15,$M16-$A$15,CB$13))) -> 0 | CC16: =IF(OR($D16<>"Serviço",AND(AUTOEVENTO="Manual",$M16=$A$15)),0, IF(OFFSET(CRONOPLE!$F$15,$M16-$A$15,CC$13)=0,10^12,OFFSET(CRONOPLE!$F$15,$M16-$A$15,CC$13))) -> 0 | CD16: =IF(OR($D16<>"Serviço",AND(AUTOEVENTO="Manual",$M16=$A$15)),0, IF(OFFSET(CRONOPLE!$F$15,$M16-$A$15,CD$13)=0,10^12,OFFSET(CRONOPLE!$F$15,$M16-$A$15,CD$13))) -> 0 | CE16: =IF(OR($D16<>"Serviço",AND(AUTOEVENTO="Manual",$M16=$A$15)),0, IF(OFFSET(CRONOPLE!$F$15,$M16-$A$15,CE$13)=0,10^12,OFFSET(CRONOPLE!$F$15,$M16-$A$15,CE$13))) -> 0 | CF16: =IF(OR($D16<>"Serviço",AND(AUTOEVENTO="Manual",$M16=$A$15)),0, IF(OFFSET(CRONOPLE!$F$15,$M16-$A$15,CF$13)=0,10^12,OFFSET(CRONOPLE!$F$15,$M16-$A$15,CF$13))) -> 0 | CG16: =IF(OR($D16<>"Serviço",AND(AUTOEVENTO="Manual",$M16=$A$15)),0, IF(OFFSET(CRONOPLE!$F$15,$M16-$A$15,CG$13)=0,10^12,OFFSET(CRONOPLE!$F$15,$M16-$A$15,CG$13))) -> 0 | CH16: =IF(OR($D16<>"Serviço",AND(AUTOEVENTO="Manual",$M16=$A$15)),0, IF(OFFSET(CRONOPLE!$F$15,$M16-$A$15,CH$13)=0,10^12,OFFSET(CRONOPLE!$F$15,$M16-$A$15,CH$13))) -> 0 | CI16: =IF(OR($D16<>"Serviço",AND(AUTOEVENTO="Manual",$M16=$A$15)),0, IF(OFFSET(CRONOPLE!$F$15,$M16-$A$15,CI$13)=0,10^12,OFFSET(CRONOPLE!$F$15,$M16-$A$15,CI$13))) -> 0 | CJ16: =IF(OR($D16<>"Serviço",AND(AUTOEVENTO="Manual",$M16=$A$15)),0, IF(OFFSET(CRONOPLE!$F$15,$M16-$A$15,CJ$13)=0,10^12,OFFSET(CRONOPLE!$F$15,$M16-$A$15,CJ$13))) -> 0 | CK16: =IF(OR($D16<>"Serviço",AND(AUTOEVENTO="Manual",$M16=$A$15)),0, IF(OFFSET(CRONOPLE!$F$15,$M16-$A$15,CK$13)=0,10^12,OFFSET(CRONOPLE!$F$15,$M16-$A$15,CK$13))) -> 0 | CL16: =IF(OR($D16<>"Serviço",AND(AUTOEVENTO="Manual",$M16=$A$15)),0, IF(OFFSET(CRONOPLE!$F$15,$M16-$A$15,CL$13)=0,10^12,OFFSET(CRONOPLE!$F$15,$M16-$A$15,CL$13))) -> 0 | CM16: =IF(OR($D16<>"Serviço",AND(AUTOEVENTO="Manual",$M16=$A$15)),0, IF(OFFSET(CRONOPLE!$F$15,$M16-$A$15,CM$13)=0,10^12,OFFSET(CRONOPLE!$F$15,$M16-$A$15,CM$13))) -> 0 | CN16: =IF(OR($D16<>"Serviço",AND(AUTOEVENTO="Manual",$M16=$A$15)),0, IF(OFFSET(CRONOPLE!$F$15,$M16-$A$15,CN$13)=0,10^12,OFFSET(CRONOPLE!$F$15,$M16-$A$15,CN$13))) -> 0 | CO16: =IF(OR($D16<>"Serviço",AND(AUTOEVENTO="Manual",$M16=$A$15)),0, IF(OFFSET(CRONOPLE!$F$15,$M16-$A$15,CO$13)=0,10^12,OFFSET(CRONOPLE!$F$15,$M16-$A$15,CO$13))) -> 0 | CP16: =IF(OR($D16<>"Serviço",AND(AUTOEVENTO="Manual",$M16=$A$15)),0, IF(OFFSET(CRONOPLE!$F$15,$M16-$A$15,CP$13)=0,10^12,OFFSET(CRONOPLE!$F$15,$M16-$A$15,CP$13))) -> 0 | CQ16: =IF(OR($D16<>"Serviço",AND(AUTOEVENTO="Manual",$M16=$A$15)),0, IF(OFFSET(CRONOPLE!$F$15,$M16-$A$15,CQ$13)=0,10^12,OFFSET(CRONOPLE!$F$15,$M16-$A$15,CQ$13))) -> 0 | CR16: =IF(OR($D16<>"Serviço",AND(AUTOEVENTO="Manual",$M16=$A$15)),0, IF(OFFSET(CRONOPLE!$F$15,$M16-$A$15,CR$13)=0,10^12,OFFSET(CRONOPLE!$F$15,$M16-$A$15,CR$13))) -> 0 | CT16: =IF(OR($D16<>"Serviço",AND(AUTOEVENTO="Manual",$M16=$A$15),$M16>(ROW(PLE.lastrow)-ROW(PLE.firstrow))),0, IF(OFFSET(PLE!$G$15,$M16-$A$15,CT$13)="",10^12,OFFSET(PLE!$G$15,$M16-$A$15,CT$13))) -> 0 | CU16: =IF(OR($D16<>"Serviço",AND(AUTOEVENTO="Manual",$M16=$A$15),$M16>(ROW(PLE.lastrow)-ROW(PLE.firstrow))),0, IF(OFFSET(PLE!$G$15,$M16-$A$15,CU$13)="",10^12,OFFSET(PLE!$G$15,$M16-$A$15,CU$13))) -> 0 | CV16: =IF(OR($D16<>"Serviço",AND(AUTOEVENTO="Manual",$M16=$A$15),$M16>(ROW(PLE.lastrow)-ROW(PLE.firstrow))),0, IF(OFFSET(PLE!$G$15,$M16-$A$15,CV$13)="",10^12,OFFSET(PLE!$G$15,$M16-$A$15,CV$13))) -> 0 | CW16: =IF(OR($D16<>"Serviço",AND(AUTOEVENTO="Manual",$M16=$A$15),$M16>(ROW(PLE.lastrow)-ROW(PLE.firstrow))),0, IF(OFFSET(PLE!$G$15,$M16-$A$15,CW$13)="",10^12,OFFSET(PLE!$G$15,$M16-$A$15,CW$13))) -> 0 | CX16: =IF(OR($D16<>"Serviço",AND(AUTOEVENTO="Manual",$M16=$A$15),$M16>(ROW(PLE.lastrow)-ROW(PLE.firstrow))),0, IF(OFFSET(PLE!$G$15,$M16-$A$15,CX$13)="",10^12,OFFSET(PLE!$G$15,$M16-$A$15,CX$13))) -> 0 | CY16: =IF(OR($D16<>"Serviço",AND(AUTOEVENTO="Manual",$M16=$A$15),$M16>(ROW(PLE.lastrow)-ROW(PLE.firstrow))),0, IF(OFFSET(PLE!$G$15,$M16-$A$15,CY$13)="",10^12,OFFSET(PLE!$G$15,$M16-$A$15,CY$13))) -> 0 | CZ16: =IF(OR($D16<>"Serviço",AND(AUTOEVENTO="Manual",$M16=$A$15),$M16>(ROW(PLE.lastrow)-ROW(PLE.firstrow))),0, IF(OFFSET(PLE!$G$15,$M16-$A$15,CZ$13)="",10^12,OFFSET(PLE!$G$15,$M16-$A$15,CZ$13))) -> 0 | DA16: =IF(OR($D16<>"Serviço",AND(AUTOEVENTO="Manual",$M16=$A$15),$M16>(ROW(PLE.lastrow)-ROW(PLE.firstrow))),0, IF(OFFSET(PLE!$G$15,$M16-$A$15,DA$13)="",10^12,OFFSET(PLE!$G$15,$M16-$A$15,DA$13))) -> 0 | DB16: =IF(OR($D16<>"Serviço",AND(AUTOEVENTO="Manual",$M16=$A$15),$M16>(ROW(PLE.lastrow)-ROW(PLE.firstrow))),0, IF(OFFSET(PLE!$G$15,$M16-$A$15,DB$13)="",10^12,OFFSET(PLE!$G$15,$M16-$A$15,DB$13))) -> 0 | DC16: =IF(OR($D16<>"Serviço",AND(AUTOEVENTO="Manual",$M16=$A$15),$M16>(ROW(PLE.lastrow)-ROW(PLE.firstrow))),0, IF(OFFSET(PLE!$G$15,$M16-$A$15,DC$13)="",10^12,OFFSET(PLE!$G$15,$M16-$A$15,DC$13))) -> 0 | DD16: =IF(OR($D16<>"Serviço",AND(AUTOEVENTO="Manual",$M16=$A$15),$M16>(ROW(PLE.lastrow)-ROW(PLE.firstrow))),0, IF(OFFSET(PLE!$G$15,$M16-$A$15,DD$13)="",10^12,OFFSET(PLE!$G$15,$M16-$A$15,DD$13))) -> 0 | DE16: =IF(OR($D16<>"Serviço",AND(AUTOEVENTO="Manual",$M16=$A$15),$M16>(ROW(PLE.lastrow)-ROW(PLE.firstrow))),0, IF(OFFSET(PLE!$G$15,$M16-$A$15,DE$13)="",10^12,OFFSET(PLE!$G$15,$M16-$A$15,DE$13))) -> 0 | DF16: =IF(OR($D16<>"Serviço",AND(AUTOEVENTO="Manual",$M16=$A$15),$M16>(ROW(PLE.lastrow)-ROW(PLE.firstrow))),0, IF(OFFSET(PLE!$G$15,$M16-$A$15,DF$13)="",10^12,OFFSET(PLE!$G$15,$M16-$A$15,DF$13))) -> 0 | DG16: =IF(OR($D16<>"Serviço",AND(AUTOEVENTO="Manual",$M16=$A$15),$M16>(ROW(PLE.lastrow)-ROW(PLE.firstrow))),0, IF(OFFSET(PLE!$G$15,$M16-$A$15,DG$13)="",10^12,OFFSET(PLE!$G$15,$M16-$A$15,DG$13))) -> 0 | DH16: =IF(OR($D16<>"Serviço",AND(AUTOEVENTO="Manual",$M16=$A$15),$M16>(ROW(PLE.lastrow)-ROW(PLE.firstrow))),0, IF(OFFSET(PLE!$G$15,$M16-$A$15,DH$13)="",10^12,OFFSET(PLE!$G$15,$M16-$A$15,DH$13))) -> 0 | DI16: =IF(OR($D16<>"Serviço",AND(AUTOEVENTO="Manual",$M16=$A$15),$M16>(ROW(PLE.lastrow)-ROW(PLE.firstrow))),0, IF(OFFSET(PLE!$G$15,$M16-$A$15,DI$13)="",10^12,OFFSET(PLE!$G$15,$M16-$A$15,DI$13))) -> 0 | DJ16: =IF(OR($D16<>"Serviço",AND(AUTOEVENTO="Manual",$M16=$A$15),$M16>(ROW(PLE.lastrow)-ROW(PLE.firstrow))),0, IF(OFFSET(PLE!$G$15,$M16-$A$15,DJ$13)="",10^12,OFFSET(PLE!$G$15,$M16-$A$15,DJ$13))) -> 0 | DK16: =IF(OR($D16<>"Serviço",AND(AUTOEVENTO="Manual",$M16=$A$15),$M16>(ROW(PLE.lastrow)-ROW(PLE.firstrow))),0, IF(OFFSET(PLE!$G$15,$M16-$A$15,DK$13)="",10^12,OFFSET(PLE!$G$15,$M16-$A$15,DK$13))) -> 0 | DL16: =IF(OR($D16<>"Serviço",AND(AUTOEVENTO="Manual",$M16=$A$15),$M16>(ROW(PLE.lastrow)-ROW(PLE.firstrow))),0, IF(OFFSET(PLE!$G$15,$M16-$A$15,DL$13)="",10^12,OFFSET(PLE!$G$15,$M16-$A$15,DL$13))) -> 0 | DM16: =IF(OR($D16<>"Serviço",AND(AUTOEVENTO="Manual",$M16=$A$15),$M16>(ROW(PLE.lastrow)-ROW(PLE.firstrow))),0, IF(OFFSET(PLE!$G$15,$M16-$A$15,DM$13)="",10^12,OFFSET(PLE!$G$15,$M16-$A$15,DM$13))) -> 0 | DN16: =IF(OR($D16<>"Serviço",AND(AUTOEVENTO="Manual",$M16=$A$15),$M16>(ROW(PLE.lastrow)-ROW(PLE.firstrow))),0, IF(OFFSET(PLE!$G$15,$M16-$A$15,DN$13)="",10^12,OFFSET(PLE!$G$15,$M16-$A$15,DN$13))) -> 0 | DO16: =IF(OR($D16<>"Serviço",AND(AUTOEVENTO="Manual",$M16=$A$15),$M16>(ROW(PLE.lastrow)-ROW(PLE.firstrow))),0, IF(OFFSET(PLE!$G$15,$M16-$A$15,DO$13)="",10^12,OFFSET(PLE!$G$15,$M16-$A$15,DO$13))) -> 0 | DP16: =IF(OR($D16<>"Serviço",AND(AUTOEVENTO="Manual",$M16=$A$15),$M16>(ROW(PLE.lastrow)-ROW(PLE.firstrow))),0, IF(OFFSET(PLE!$G$15,$M16-$A$15,DP$13)="",10^12,OFFSET(PLE!$G$15,$M16-$A$15,DP$13))) -> 0 | DQ16: =IF(OR($D16<>"Serviço",AND(AUTOEVENTO="Manual",$M16=$A$15),$M16>(ROW(PLE.lastrow)-ROW(PLE.firstrow))),0, IF(OFFSET(PLE!$G$15,$M16-$A$15,DQ$13)="",10^12,OFFSET(PLE!$G$15,$M16-$A$15,DQ$13))) -> 0 | DR16: =IF(OR($D16<>"Serviço",AND(AUTOEVENTO="Manual",$M16=$A$15),$M16>(ROW(PLE.lastrow)-ROW(PLE.firstrow))),0, IF(OFFSET(PLE!$G$15,$M16-$A$15,DR$13)="",10^12,OFFSET(PLE!$G$15,$M16-$A$15,DR$13))) -> 0 | DS16: =IF(OR($D16<>"Serviço",AND(AUTOEVENTO="Manual",$M16=$A$15),$M16>(ROW(PLE.lastrow)-ROW(PLE.firstrow))),0, IF(OFFSET(PLE!$G$15,$M16-$A$15,DS$13)="",10^12,OFFSET(PLE!$G$15,$M16-$A$15,DS$13))) -> 0
A17: 2. | B17: =OFFSET(ORÇAMENTO!C$15,$L17,0) -> 2 | C17: =OFFSET(ORÇAMENTO!L$15,$L17,0) -> F | D17: =OFFSET(ORÇAMENTO!N$15,$L17,0) -> Nível 2 | E17: =OFFSET(ORÇAMENTO!O$15,$L17,0) -> 1.1. | F17: =OFFSET(ORÇAMENTO!R$15,$L17,0) -> Serviços preliminares | G17: =IF($D17<>"Serviço","",OFFSET(ORÇAMENTO!S$15,$L17,0)) ->  | H17: =IF($D17<>"Serviço",0,IF(ACOMPANHAMENTO="BM",ROUND(OFFSET(ORÇAMENTO!AJ$15,$L17,0),15-13*ORÇAMENTO!$AF$7),IF(IFERROR(CÁLCULO.FrentesPreenchidas,0)=0,0,SUM(ROUND(OFFSET($P17,0,1,1,CÁLCULO.FrentesPreenchidas),15-13*ORÇAMENTO!$AF$7))))) -> 0 | J17: =IF(OR(B17<>"S",CÁLCULO.FrentesPreenchidas=0),"",IF(AND(ACOMPANHAMENTO="PLE",AUTOEVENTO="Manual",OR(H17>0,ORÇAMENTO!AC17="QUANT."),OR(K17="",M17=0,N17="")),"►E",IF(AND(ACOMPANHAMENTO="PLE",ORÇAMENTO!AC17="QUANT."),"►Q",IF(AND(ACOMPANHAMENTO="PLE",H17<>SUMPRODUCT(($Q$1:$AQ$1=1)*ROUND(Q17:AQ17,15))),"►S",IF(AND(COUNTIF($P$11:$AQ$11,"▼")=0,H17>0,I17=""),"◄M",""))))) ->  | L17: 2 | M17: =IF($D17<>"Serviço","", IF(AUTOEVENTO="manual",$A17, IF(ISERROR(MATCH($A17,$A$15:OFFSET($A17,-1,0),0)),MAX($M$15:OFFSET(M17,-1,0))+1, INDEX($M$15:OFFSET(M17,-1,0),MATCH($A17,$A$15:OFFSET($A17,-1,0),0))))) ->  | N17: =IF($D17<>"Serviço","", IF(AUTOEVENTO="Manual", IF($A17=0,"<-- defina o número do agrupador", OFFSET(EVENTOS!$D$15,$A17-$A$15,0)), OFFSET($F$15,$A17,0))) ->  | AR17: =IF(AND($D17="Serviço",AR$12<>0,$H17>0,OR(AUTOEVENTO<>"manual",$M17<>$A$15)), IF(Import.TipoArredondamento<>"TransfereGOV", ROUND(OFFSET($P17,0,AR$13),15-13*ORÇAMENTO!$AF$7)/$H17*OFFSET(ORÇAMENTO!$X$15,ROW(AR17)-ROW(AR$15),0), ROUND(ROUND(OFFSET($P17,0,AR$13),15-13*ORÇAMENTO!$AF$7)*OFFSET(ORÇAMENTO!$W$15,ROW(AR17)-ROW(AR$15),0),15-13*ORÇAMENTO!$AF$11)), 0) -> 0 | AS17: =IF(AND($D17="Serviço",AS$12<>0,$H17>0,OR(AUTOEVENTO<>"manual",$M17<>$A$15)), IF(Import.TipoArredondamento<>"TransfereGOV", ROUND(OFFSET($P17,0,AS$13),15-13*ORÇAMENTO!$AF$7)/$H17*OFFSET(ORÇAMENTO!$X$15,ROW(AS17)-ROW(AS$15),0), ROUND(ROUND(OFFSET($P17,0,AS$13),15-13*ORÇAMENTO!$AF$7)*OFFSET(ORÇAMENTO!$W$15,ROW(AS17)-ROW(AS$15),0),15-13*ORÇAMENTO!$AF$11)), 0) -> 0 | AT17: =IF(AND($D17="Serviço",AT$12<>0,$H17>0,OR(AUTOEVENTO<>"manual",$M17<>$A$15)), IF(Import.TipoArredondamento<>"TransfereGOV", ROUND(OFFSET($P17,0,AT$13),15-13*ORÇAMENTO!$AF$7)/$H17*OFFSET(ORÇAMENTO!$X$15,ROW(AT17)-ROW(AT$15),0), ROUND(ROUND(OFFSET($P17,0,AT$13),15-13*ORÇAMENTO!$AF$7)*OFFSET(ORÇAMENTO!$W$15,ROW(AT17)-ROW(AT$15),0),15-13*ORÇAMENTO!$AF$11)), 0) -> 0 | AU17: =IF(AND($D17="Serviço",AU$12<>0,$H17>0,OR(AUTOEVENTO<>"manual",$M17<>$A$15)), IF(Import.TipoArredondamento<>"TransfereGOV", ROUND(OFFSET($P17,0,AU$13),15-13*ORÇAMENTO!$AF$7)/$H17*OFFSET(ORÇAMENTO!$X$15,ROW(AU17)-ROW(AU$15),0), ROUND(ROUND(OFFSET($P17,0,AU$13),15-13*ORÇAMENTO!$AF$7)*OFFSET(ORÇAMENTO!$W$15,ROW(AU17)-ROW(AU$15),0),15-13*ORÇAMENTO!$AF$11)), 0) -> 0 | AV17: =IF(AND($D17="Serviço",AV$12<>0,$H17>0,OR(AUTOEVENTO<>"manual",$M17<>$A$15)), IF(Import.TipoArredondamento<>"TransfereGOV", ROUND(OFFSET($P17,0,AV$13),15-13*ORÇAMENTO!$AF$7)/$H17*OFFSET(ORÇAMENTO!$X$15,ROW(AV17)-ROW(AV$15),0), ROUND(ROUND(OFFSET($P17,0,AV$13),15-13*ORÇAMENTO!$AF$7)*OFFSET(ORÇAMENTO!$W$15,ROW(AV17)-ROW(AV$15),0),15-13*ORÇAMENTO!$AF$11)), 0) -> 0 | AW17: =IF(AND($D17="Serviço",AW$12<>0,$H17>0,OR(AUTOEVENTO<>"manual",$M17<>$A$15)), IF(Import.TipoArredondamento<>"TransfereGOV", ROUND(OFFSET($P17,0,AW$13),15-13*ORÇAMENTO!$AF$7)/$H17*OFFSET(ORÇAMENTO!$X$15,ROW(AW17)-ROW(AW$15),0), ROUND(ROUND(OFFSET($P17,0,AW$13),15-13*ORÇAMENTO!$AF$7)*OFFSET(ORÇAMENTO!$W$15,ROW(AW17)-ROW(AW$15),0),15-13*ORÇAMENTO!$AF$11)), 0) -> 0 | AX17: =IF(AND($D17="Serviço",AX$12<>0,$H17>0,OR(AUTOEVENTO<>"manual",$M17<>$A$15)), IF(Import.TipoArredondamento<>"TransfereGOV", ROUND(OFFSET($P17,0,AX$13),15-13*ORÇAMENTO!$AF$7)/$H17*OFFSET(ORÇAMENTO!$X$15,ROW(AX17)-ROW(AX$15),0), ROUND(ROUND(OFFSET($P17,0,AX$13),15-13*ORÇAMENTO!$AF$7)*OFFSET(ORÇAMENTO!$W$15,ROW(AX17)-ROW(AX$15),0),15-13*ORÇAMENTO!$AF$11)), 0) -> 0 | AY17: =IF(AND($D17="Serviço",AY$12<>0,$H17>0,OR(AUTOEVENTO<>"manual",$M17<>$A$15)), IF(Import.TipoArredondamento<>"TransfereGOV", ROUND(OFFSET($P17,0,AY$13),15-13*ORÇAMENTO!$AF$7)/$H17*OFFSET(ORÇAMENTO!$X$15,ROW(AY17)-ROW(AY$15),0), ROUND(ROUND(OFFSET($P17,0,AY$13),15-13*ORÇAMENTO!$AF$7)*OFFSET(ORÇAMENTO!$W$15,ROW(AY17)-ROW(AY$15),0),15-13*ORÇAMENTO!$AF$11)), 0) -> 0 | AZ17: =IF(AND($D17="Serviço",AZ$12<>0,$H17>0,OR(AUTOEVENTO<>"manual",$M17<>$A$15)), IF(Import.TipoArredondamento<>"TransfereGOV", ROUND(OFFSET($P17,0,AZ$13),15-13*ORÇAMENTO!$AF$7)/$H17*OFFSET(ORÇAMENTO!$X$15,ROW(AZ17)-ROW(AZ$15),0), ROUND(ROUND(OFFSET($P17,0,AZ$13),15-13*ORÇAMENTO!$AF$7)*OFFSET(ORÇAMENTO!$W$15,ROW(AZ17)-ROW(AZ$15),0),15-13*ORÇAMENTO!$AF$11)), 0) -> 0 | BA17: =IF(AND($D17="Serviço",BA$12<>0,$H17>0,OR(AUTOEVENTO<>"manual",$M17<>$A$15)), IF(Import.TipoArredondamento<>"TransfereGOV", ROUND(OFFSET($P17,0,BA$13),15-13*ORÇAMENTO!$AF$7)/$H17*OFFSET(ORÇAMENTO!$X$15,ROW(BA17)-ROW(BA$15),0), ROUND(ROUND(OFFSET($P17,0,BA$13),15-13*ORÇAMENTO!$AF$7)*OFFSET(ORÇAMENTO!$W$15,ROW(BA17)-ROW(BA$15),0),15-13*ORÇAMENTO!$AF$11)), 0) -> 0 | BB17: =IF(AND($D17="Serviço",BB$12<>0,$H17>0,OR(AUTOEVENTO<>"manual",$M17<>$A$15)), IF(Import.TipoArredondamento<>"TransfereGOV", ROUND(OFFSET($P17,0,BB$13),15-13*ORÇAMENTO!$AF$7)/$H17*OFFSET(ORÇAMENTO!$X$15,ROW(BB17)-ROW(BB$15),0), ROUND(ROUND(OFFSET($P17,0,BB$13),15-13*ORÇAMENTO!$AF$7)*OFFSET(ORÇAMENTO!$W$15,ROW(BB17)-ROW(BB$15),0),15-13*ORÇAMENTO!$AF$11)), 0) -> 0 | BC17: =IF(AND($D17="Serviço",BC$12<>0,$H17>0,OR(AUTOEVENTO<>"manual",$M17<>$A$15)), IF(Import.TipoArredondamento<>"TransfereGOV", ROUND(OFFSET($P17,0,BC$13),15-13*ORÇAMENTO!$AF$7)/$H17*OFFSET(ORÇAMENTO!$X$15,ROW(BC17)-ROW(BC$15),0), ROUND(ROUND(OFFSET($P17,0,BC$13),15-13*ORÇAMENTO!$AF$7)*OFFSET(ORÇAMENTO!$W$15,ROW(BC17)-ROW(BC$15),0),15-13*ORÇAMENTO!$AF$11)), 0) -> 0 | BD17: =IF(AND($D17="Serviço",BD$12<>0,$H17>0,OR(AUTOEVENTO<>"manual",$M17<>$A$15)), IF(Import.TipoArredondamento<>"TransfereGOV", ROUND(OFFSET($P17,0,BD$13),15-13*ORÇAMENTO!$AF$7)/$H17*OFFSET(ORÇAMENTO!$X$15,ROW(BD17)-ROW(BD$15),0), ROUND(ROUND(OFFSET($P17,0,BD$13),15-13*ORÇAMENTO!$AF$7)*OFFSET(ORÇAMENTO!$W$15,ROW(BD17)-ROW(BD$15),0),15-13*ORÇAMENTO!$AF$11)), 0) -> 0 | BE17: =IF(AND($D17="Serviço",BE$12<>0,$H17>0,OR(AUTOEVENTO<>"manual",$M17<>$A$15)), IF(Import.TipoArredondamento<>"TransfereGOV", ROUND(OFFSET($P17,0,BE$13),15-13*ORÇAMENTO!$AF$7)/$H17*OFFSET(ORÇAMENTO!$X$15,ROW(BE17)-ROW(BE$15),0), ROUND(ROUND(OFFSET($P17,0,BE$13),15-13*ORÇAMENTO!$AF$7)*OFFSET(ORÇAMENTO!$W$15,ROW(BE17)-ROW(BE$15),0),15-13*ORÇAMENTO!$AF$11)), 0) -> 0 | BF17: =IF(AND($D17="Serviço",BF$12<>0,$H17>0,OR(AUTOEVENTO<>"manual",$M17<>$A$15)), IF(Import.TipoArredondamento<>"TransfereGOV", ROUND(OFFSET($P17,0,BF$13),15-13*ORÇAMENTO!$AF$7)/$H17*OFFSET(ORÇAMENTO!$X$15,ROW(BF17)-ROW(BF$15),0), ROUND(ROUND(OFFSET($P17,0,BF$13),15-13*ORÇAMENTO!$AF$7)*OFFSET(ORÇAMENTO!$W$15,ROW(BF17)-ROW(BF$15),0),15-13*ORÇAMENTO!$AF$11)), 0) -> 0 | BG17: =IF(AND($D17="Serviço",BG$12<>0,$H17>0,OR(AUTOEVENTO<>"manual",$M17<>$A$15)), IF(Import.TipoArredondamento<>"TransfereGOV", ROUND(OFFSET($P17,0,BG$13),15-13*ORÇAMENTO!$AF$7)/$H17*OFFSET(ORÇAMENTO!$X$15,ROW(BG17)-ROW(BG$15),0), ROUND(ROUND(OFFSET($P17,0,BG$13),15-13*ORÇAMENTO!$AF$7)*OFFSET(ORÇAMENTO!$W$15,ROW(BG17)-ROW(BG$15),0),15-13*ORÇAMENTO!$AF$11)), 0) -> 0 | BH17: =IF(AND($D17="Serviço",BH$12<>0,$H17>0,OR(AUTOEVENTO<>"manual",$M17<>$A$15)), IF(Import.TipoArredondamento<>"TransfereGOV", ROUND(OFFSET($P17,0,BH$13),15-13*ORÇAMENTO!$AF$7)/$H17*OFFSET(ORÇAMENTO!$X$15,ROW(BH17)-ROW(BH$15),0), ROUND(ROUND(OFFSET($P17,0,BH$13),15-13*ORÇAMENTO!$AF$7)*OFFSET(ORÇAMENTO!$W$15,ROW(BH17)-ROW(BH$15),0),15-13*ORÇAMENTO!$AF$11)), 0) -> 0 | BI17: =IF(AND($D17="Serviço",BI$12<>0,$H17>0,OR(AUTOEVENTO<>"manual",$M17<>$A$15)), IF(Import.TipoArredondamento<>"TransfereGOV", ROUND(OFFSET($P17,0,BI$13),15-13*ORÇAMENTO!$AF$7)/$H17*OFFSET(ORÇAMENTO!$X$15,ROW(BI17)-ROW(BI$15),0), ROUND(ROUND(OFFSET($P17,0,BI$13),15-13*ORÇAMENTO!$AF$7)*OFFSET(ORÇAMENTO!$W$15,ROW(BI17)-ROW(BI$15),0),15-13*ORÇAMENTO!$AF$11)), 0) -> 0 | BJ17: =IF(AND($D17="Serviço",BJ$12<>0,$H17>0,OR(AUTOEVENTO<>"manual",$M17<>$A$15)), IF(Import.TipoArredondamento<>"TransfereGOV", ROUND(OFFSET($P17,0,BJ$13),15-13*ORÇAMENTO!$AF$7)/$H17*OFFSET(ORÇAMENTO!$X$15,ROW(BJ17)-ROW(BJ$15),0), ROUND(ROUND(OFFSET($P17,0,BJ$13),15-13*ORÇAMENTO!$AF$7)*OFFSET(ORÇAMENTO!$W$15,ROW(BJ17)-ROW(BJ$15),0),15-13*ORÇAMENTO!$AF$11)), 0) -> 0 | BK17: =IF(AND($D17="Serviço",BK$12<>0,$H17>0,OR(AUTOEVENTO<>"manual",$M17<>$A$15)), IF(Import.TipoArredondamento<>"TransfereGOV", ROUND(OFFSET($P17,0,BK$13),15-13*ORÇAMENTO!$AF$7)/$H17*OFFSET(ORÇAMENTO!$X$15,ROW(BK17)-ROW(BK$15),0), ROUND(ROUND(OFFSET($P17,0,BK$13),15-13*ORÇAMENTO!$AF$7)*OFFSET(ORÇAMENTO!$W$15,ROW(BK17)-ROW(BK$15),0),15-13*ORÇAMENTO!$AF$11)), 0) -> 0 | BL17: =IF(AND($D17="Serviço",BL$12<>0,$H17>0,OR(AUTOEVENTO<>"manual",$M17<>$A$15)), IF(Import.TipoArredondamento<>"TransfereGOV", ROUND(OFFSET($P17,0,BL$13),15-13*ORÇAMENTO!$AF$7)/$H17*OFFSET(ORÇAMENTO!$X$15,ROW(BL17)-ROW(BL$15),0), ROUND(ROUND(OFFSET($P17,0,BL$13),15-13*ORÇAMENTO!$AF$7)*OFFSET(ORÇAMENTO!$W$15,ROW(BL17)-ROW(BL$15),0),15-13*ORÇAMENTO!$AF$11)), 0) -> 0 | BM17: =IF(AND($D17="Serviço",BM$12<>0,$H17>0,OR(AUTOEVENTO<>"manual",$M17<>$A$15)), IF(Import.TipoArredondamento<>"TransfereGOV", ROUND(OFFSET($P17,0,BM$13),15-13*ORÇAMENTO!$AF$7)/$H17*OFFSET(ORÇAMENTO!$X$15,ROW(BM17)-ROW(BM$15),0), ROUND(ROUND(OFFSET($P17,0,BM$13),15-13*ORÇAMENTO!$AF$7)*OFFSET(ORÇAMENTO!$W$15,ROW(BM17)-ROW(BM$15),0),15-13*ORÇAMENTO!$AF$11)), 0) -> 0 | BN17: =IF(AND($D17="Serviço",BN$12<>0,$H17>0,OR(AUTOEVENTO<>"manual",$M17<>$A$15)), IF(Import.TipoArredondamento<>"TransfereGOV", ROUND(OFFSET($P17,0,BN$13),15-13*ORÇAMENTO!$AF$7)/$H17*OFFSET(ORÇAMENTO!$X$15,ROW(BN17)-ROW(BN$15),0), ROUND(ROUND(OFFSET($P17,0,BN$13),15-13*ORÇAMENTO!$AF$7)*OFFSET(ORÇAMENTO!$W$15,ROW(BN17)-ROW(BN$15),0),15-13*ORÇAMENTO!$AF$11)), 0) -> 0 | BO17: =IF(AND($D17="Serviço",BO$12<>0,$H17>0,OR(AUTOEVENTO<>"manual",$M17<>$A$15)), IF(Import.TipoArredondamento<>"TransfereGOV", ROUND(OFFSET($P17,0,BO$13),15-13*ORÇAMENTO!$AF$7)/$H17*OFFSET(ORÇAMENTO!$X$15,ROW(BO17)-ROW(BO$15),0), ROUND(ROUND(OFFSET($P17,0,BO$13),15-13*ORÇAMENTO!$AF$7)*OFFSET(ORÇAMENTO!$W$15,ROW(BO17)-ROW(BO$15),0),15-13*ORÇAMENTO!$AF$11)), 0) -> 0 | BP17: =IF(AND($D17="Serviço",BP$12<>0,$H17>0,OR(AUTOEVENTO<>"manual",$M17<>$A$15)), IF(Import.TipoArredondamento<>"TransfereGOV", ROUND(OFFSET($P17,0,BP$13),15-13*ORÇAMENTO!$AF$7)/$H17*OFFSET(ORÇAMENTO!$X$15,ROW(BP17)-ROW(BP$15),0), ROUND(ROUND(OFFSET($P17,0,BP$13),15-13*ORÇAMENTO!$AF$7)*OFFSET(ORÇAMENTO!$W$15,ROW(BP17)-ROW(BP$15),0),15-13*ORÇAMENTO!$AF$11)), 0) -> 0 | BQ17: =IF(AND($D17="Serviço",BQ$12<>0,$H17>0,OR(AUTOEVENTO<>"manual",$M17<>$A$15)), IF(Import.TipoArredondamento<>"TransfereGOV", ROUND(OFFSET($P17,0,BQ$13),15-13*ORÇAMENTO!$AF$7)/$H17*OFFSET(ORÇAMENTO!$X$15,ROW(BQ17)-ROW(BQ$15),0), ROUND(ROUND(OFFSET($P17,0,BQ$13),15-13*ORÇAMENTO!$AF$7)*OFFSET(ORÇAMENTO!$W$15,ROW(BQ17)-ROW(BQ$15),0),15-13*ORÇAMENTO!$AF$11)), 0) -> 0 | BS17: =IF(OR($D17<>"Serviço",AND(AUTOEVENTO="Manual",$M17=$A$15)),0, IF(OFFSET(CRONOPLE!$F$15,$M17-$A$15,BS$13)=0,10^12,OFFSET(CRONOPLE!$F$15,$M17-$A$15,BS$13))) -> 0 | BT17: =IF(OR($D17<>"Serviço",AND(AUTOEVENTO="Manual",$M17=$A$15)),0, IF(OFFSET(CRONOPLE!$F$15,$M17-$A$15,BT$13)=0,10^12,OFFSET(CRONOPLE!$F$15,$M17-$A$15,BT$13))) -> 0 | BU17: =IF(OR($D17<>"Serviço",AND(AUTOEVENTO="Manual",$M17=$A$15)),0, IF(OFFSET(CRONOPLE!$F$15,$M17-$A$15,BU$13)=0,10^12,OFFSET(CRONOPLE!$F$15,$M17-$A$15,BU$13))) -> 0 | BV17: =IF(OR($D17<>"Serviço",AND(AUTOEVENTO="Manual",$M17=$A$15)),0, IF(OFFSET(CRONOPLE!$F$15,$M17-$A$15,BV$13)=0,10^12,OFFSET(CRONOPLE!$F$15,$M17-$A$15,BV$13))) -> 0 | BW17: =IF(OR($D17<>"Serviço",AND(AUTOEVENTO="Manual",$M17=$A$15)),0, IF(OFFSET(CRONOPLE!$F$15,$M17-$A$15,BW$13)=0,10^12,OFFSET(CRONOPLE!$F$15,$M17-$A$15,BW$13))) -> 0 | BX17: =IF(OR($D17<>"Serviço",AND(AUTOEVENTO="Manual",$M17=$A$15)),0, IF(OFFSET(CRONOPLE!$F$15,$M17-$A$15,BX$13)=0,10^12,OFFSET(CRONOPLE!$F$15,$M17-$A$15,BX$13))) -> 0 | BY17: =IF(OR($D17<>"Serviço",AND(AUTOEVENTO="Manual",$M17=$A$15)),0, IF(OFFSET(CRONOPLE!$F$15,$M17-$A$15,BY$13)=0,10^12,OFFSET(CRONOPLE!$F$15,$M17-$A$15,BY$13))) -> 0 | BZ17: =IF(OR($D17<>"Serviço",AND(AUTOEVENTO="Manual",$M17=$A$15)),0, IF(OFFSET(CRONOPLE!$F$15,$M17-$A$15,BZ$13)=0,10^12,OFFSET(CRONOPLE!$F$15,$M17-$A$15,BZ$13))) -> 0 | CA17: =IF(OR($D17<>"Serviço",AND(AUTOEVENTO="Manual",$M17=$A$15)),0, IF(OFFSET(CRONOPLE!$F$15,$M17-$A$15,CA$13)=0,10^12,OFFSET(CRONOPLE!$F$15,$M17-$A$15,CA$13))) -> 0 | CB17: =IF(OR($D17<>"Serviço",AND(AUTOEVENTO="Manual",$M17=$A$15)),0, IF(OFFSET(CRONOPLE!$F$15,$M17-$A$15,CB$13)=0,10^12,OFFSET(CRONOPLE!$F$15,$M17-$A$15,CB$13))) -> 0 | CC17: =IF(OR($D17<>"Serviço",AND(AUTOEVENTO="Manual",$M17=$A$15)),0, IF(OFFSET(CRONOPLE!$F$15,$M17-$A$15,CC$13)=0,10^12,OFFSET(CRONOPLE!$F$15,$M17-$A$15,CC$13))) -> 0 | CD17: =IF(OR($D17<>"Serviço",AND(AUTOEVENTO="Manual",$M17=$A$15)),0, IF(OFFSET(CRONOPLE!$F$15,$M17-$A$15,CD$13)=0,10^12,OFFSET(CRONOPLE!$F$15,$M17-$A$15,CD$13))) -> 0 | CE17: =IF(OR($D17<>"Serviço",AND(AUTOEVENTO="Manual",$M17=$A$15)),0, IF(OFFSET(CRONOPLE!$F$15,$M17-$A$15,CE$13)=0,10^12,OFFSET(CRONOPLE!$F$15,$M17-$A$15,CE$13))) -> 0 | CF17: =IF(OR($D17<>"Serviço",AND(AUTOEVENTO="Manual",$M17=$A$15)),0, IF(OFFSET(CRONOPLE!$F$15,$M17-$A$15,CF$13)=0,10^12,OFFSET(CRONOPLE!$F$15,$M17-$A$15,CF$13))) -> 0 | CG17: =IF(OR($D17<>"Serviço",AND(AUTOEVENTO="Manual",$M17=$A$15)),0, IF(OFFSET(CRONOPLE!$F$15,$M17-$A$15,CG$13)=0,10^12,OFFSET(CRONOPLE!$F$15,$M17-$A$15,CG$13))) -> 0 | CH17: =IF(OR($D17<>"Serviço",AND(AUTOEVENTO="Manual",$M17=$A$15)),0, IF(OFFSET(CRONOPLE!$F$15,$M17-$A$15,CH$13)=0,10^12,OFFSET(CRONOPLE!$F$15,$M17-$A$15,CH$13))) -> 0 | CI17: =IF(OR($D17<>"Serviço",AND(AUTOEVENTO="Manual",$M17=$A$15)),0, IF(OFFSET(CRONOPLE!$F$15,$M17-$A$15,CI$13)=0,10^12,OFFSET(CRONOPLE!$F$15,$M17-$A$15,CI$13))) -> 0 | CJ17: =IF(OR($D17<>"Serviço",AND(AUTOEVENTO="Manual",$M17=$A$15)),0, IF(OFFSET(CRONOPLE!$F$15,$M17-$A$15,CJ$13)=0,10^12,OFFSET(CRONOPLE!$F$15,$M17-$A$15,CJ$13))) -> 0 | CK17: =IF(OR($D17<>"Serviço",AND(AUTOEVENTO="Manual",$M17=$A$15)),0, IF(OFFSET(CRONOPLE!$F$15,$M17-$A$15,CK$13)=0,10^12,OFFSET(CRONOPLE!$F$15,$M17-$A$15,CK$13))) -> 0 | CL17: =IF(OR($D17<>"Serviço",AND(AUTOEVENTO="Manual",$M17=$A$15)),0, IF(OFFSET(CRONOPLE!$F$15,$M17-$A$15,CL$13)=0,10^12,OFFSET(CRONOPLE!$F$15,$M17-$A$15,CL$13))) -> 0 | CM17: =IF(OR($D17<>"Serviço",AND(AUTOEVENTO="Manual",$M17=$A$15)),0, IF(OFFSET(CRONOPLE!$F$15,$M17-$A$15,CM$13)=0,10^12,OFFSET(CRONOPLE!$F$15,$M17-$A$15,CM$13))) -> 0 | CN17: =IF(OR($D17<>"Serviço",AND(AUTOEVENTO="Manual",$M17=$A$15)),0, IF(OFFSET(CRONOPLE!$F$15,$M17-$A$15,CN$13)=0,10^12,OFFSET(CRONOPLE!$F$15,$M17-$A$15,CN$13))) -> 0 | CO17: =IF(OR($D17<>"Serviço",AND(AUTOEVENTO="Manual",$M17=$A$15)),0, IF(OFFSET(CRONOPLE!$F$15,$M17-$A$15,CO$13)=0,10^12,OFFSET(CRONOPLE!$F$15,$M17-$A$15,CO$13))) -> 0 | CP17: =IF(OR($D17<>"Serviço",AND(AUTOEVENTO="Manual",$M17=$A$15)),0, IF(OFFSET(CRONOPLE!$F$15,$M17-$A$15,CP$13)=0,10^12,OFFSET(CRONOPLE!$F$15,$M17-$A$15,CP$13))) -> 0 | CQ17: =IF(OR($D17<>"Serviço",AND(AUTOEVENTO="Manual",$M17=$A$15)),0, IF(OFFSET(CRONOPLE!$F$15,$M17-$A$15,CQ$13)=0,10^12,OFFSET(CRONOPLE!$F$15,$M17-$A$15,CQ$13))) -> 0 | CR17: =IF(OR($D17<>"Serviço",AND(AUTOEVENTO="Manual",$M17=$A$15)),0, IF(OFFSET(CRONOPLE!$F$15,$M17-$A$15,CR$13)=0,10^12,OFFSET(CRONOPLE!$F$15,$M17-$A$15,CR$13))) -> 0 | CT17: =IF(OR($D17<>"Serviço",AND(AUTOEVENTO="Manual",$M17=$A$15),$M17>(ROW(PLE.lastrow)-ROW(PLE.firstrow))),0, IF(OFFSET(PLE!$G$15,$M17-$A$15,CT$13)="",10^12,OFFSET(PLE!$G$15,$M17-$A$15,CT$13))) -> 0 | CU17: =IF(OR($D17<>"Serviço",AND(AUTOEVENTO="Manual",$M17=$A$15),$M17>(ROW(PLE.lastrow)-ROW(PLE.firstrow))),0, IF(OFFSET(PLE!$G$15,$M17-$A$15,CU$13)="",10^12,OFFSET(PLE!$G$15,$M17-$A$15,CU$13))) -> 0 | CV17: =IF(OR($D17<>"Serviço",AND(AUTOEVENTO="Manual",$M17=$A$15),$M17>(ROW(PLE.lastrow)-ROW(PLE.firstrow))),0, IF(OFFSET(PLE!$G$15,$M17-$A$15,CV$13)="",10^12,OFFSET(PLE!$G$15,$M17-$A$15,CV$13))) -> 0 | CW17: =IF(OR($D17<>"Serviço",AND(AUTOEVENTO="Manual",$M17=$A$15),$M17>(ROW(PLE.lastrow)-ROW(PLE.firstrow))),0, IF(OFFSET(PLE!$G$15,$M17-$A$15,CW$13)="",10^12,OFFSET(PLE!$G$15,$M17-$A$15,CW$13))) -> 0 | CX17: =IF(OR($D17<>"Serviço",AND(AUTOEVENTO="Manual",$M17=$A$15),$M17>(ROW(PLE.lastrow)-ROW(PLE.firstrow))),0, IF(OFFSET(PLE!$G$15,$M17-$A$15,CX$13)="",10^12,OFFSET(PLE!$G$15,$M17-$A$15,CX$13))) -> 0 | CY17: =IF(OR($D17<>"Serviço",AND(AUTOEVENTO="Manual",$M17=$A$15),$M17>(ROW(PLE.lastrow)-ROW(PLE.firstrow))),0, IF(OFFSET(PLE!$G$15,$M17-$A$15,CY$13)="",10^12,OFFSET(PLE!$G$15,$M17-$A$15,CY$13))) -> 0 | CZ17: =IF(OR($D17<>"Serviço",AND(AUTOEVENTO="Manual",$M17=$A$15),$M17>(ROW(PLE.lastrow)-ROW(PLE.firstrow))),0, IF(OFFSET(PLE!$G$15,$M17-$A$15,CZ$13)="",10^12,OFFSET(PLE!$G$15,$M17-$A$15,CZ$13))) -> 0 | DA17: =IF(OR($D17<>"Serviço",AND(AUTOEVENTO="Manual",$M17=$A$15),$M17>(ROW(PLE.lastrow)-ROW(PLE.firstrow))),0, IF(OFFSET(PLE!$G$15,$M17-$A$15,DA$13)="",10^12,OFFSET(PLE!$G$15,$M17-$A$15,DA$13))) -> 0 | DB17: =IF(OR($D17<>"Serviço",AND(AUTOEVENTO="Manual",$M17=$A$15),$M17>(ROW(PLE.lastrow)-ROW(PLE.firstrow))),0, IF(OFFSET(PLE!$G$15,$M17-$A$15,DB$13)="",10^12,OFFSET(PLE!$G$15,$M17-$A$15,DB$13))) -> 0 | DC17: =IF(OR($D17<>"Serviço",AND(AUTOEVENTO="Manual",$M17=$A$15),$M17>(ROW(PLE.lastrow)-ROW(PLE.firstrow))),0, IF(OFFSET(PLE!$G$15,$M17-$A$15,DC$13)="",10^12,OFFSET(PLE!$G$15,$M17-$A$15,DC$13))) -> 0 | DD17: =IF(OR($D17<>"Serviço",AND(AUTOEVENTO="Manual",$M17=$A$15),$M17>(ROW(PLE.lastrow)-ROW(PLE.firstrow))),0, IF(OFFSET(PLE!$G$15,$M17-$A$15,DD$13)="",10^12,OFFSET(PLE!$G$15,$M17-$A$15,DD$13))) -> 0 | DE17: =IF(OR($D17<>"Serviço",AND(AUTOEVENTO="Manual",$M17=$A$15),$M17>(ROW(PLE.lastrow)-ROW(PLE.firstrow))),0, IF(OFFSET(PLE!$G$15,$M17-$A$15,DE$13)="",10^12,OFFSET(PLE!$G$15,$M17-$A$15,DE$13))) -> 0 | DF17: =IF(OR($D17<>"Serviço",AND(AUTOEVENTO="Manual",$M17=$A$15),$M17>(ROW(PLE.lastrow)-ROW(PLE.firstrow))),0, IF(OFFSET(PLE!$G$15,$M17-$A$15,DF$13)="",10^12,OFFSET(PLE!$G$15,$M17-$A$15,DF$13))) -> 0 | DG17: =IF(OR($D17<>"Serviço",AND(AUTOEVENTO="Manual",$M17=$A$15),$M17>(ROW(PLE.lastrow)-ROW(PLE.firstrow))),0, IF(OFFSET(PLE!$G$15,$M17-$A$15,DG$13)="",10^12,OFFSET(PLE!$G$15,$M17-$A$15,DG$13))) -> 0 | DH17: =IF(OR($D17<>"Serviço",AND(AUTOEVENTO="Manual",$M17=$A$15),$M17>(ROW(PLE.lastrow)-ROW(PLE.firstrow))),0, IF(OFFSET(PLE!$G$15,$M17-$A$15,DH$13)="",10^12,OFFSET(PLE!$G$15,$M17-$A$15,DH$13))) -> 0 | DI17: =IF(OR($D17<>"Serviço",AND(AUTOEVENTO="Manual",$M17=$A$15),$M17>(ROW(PLE.lastrow)-ROW(PLE.firstrow))),0, IF(OFFSET(PLE!$G$15,$M17-$A$15,DI$13)="",10^12,OFFSET(PLE!$G$15,$M17-$A$15,DI$13))) -> 0 | DJ17: =IF(OR($D17<>"Serviço",AND(AUTOEVENTO="Manual",$M17=$A$15),$M17>(ROW(PLE.lastrow)-ROW(PLE.firstrow))),0, IF(OFFSET(PLE!$G$15,$M17-$A$15,DJ$13)="",10^12,OFFSET(PLE!$G$15,$M17-$A$15,DJ$13))) -> 0 | DK17: =IF(OR($D17<>"Serviço",AND(AUTOEVENTO="Manual",$M17=$A$15),$M17>(ROW(PLE.lastrow)-ROW(PLE.firstrow))),0, IF(OFFSET(PLE!$G$15,$M17-$A$15,DK$13)="",10^12,OFFSET(PLE!$G$15,$M17-$A$15,DK$13))) -> 0 | DL17: =IF(OR($D17<>"Serviço",AND(AUTOEVENTO="Manual",$M17=$A$15),$M17>(ROW(PLE.lastrow)-ROW(PLE.firstrow))),0, IF(OFFSET(PLE!$G$15,$M17-$A$15,DL$13)="",10^12,OFFSET(PLE!$G$15,$M17-$A$15,DL$13))) -> 0 | DM17: =IF(OR($D17<>"Serviço",AND(AUTOEVENTO="Manual",$M17=$A$15),$M17>(ROW(PLE.lastrow)-ROW(PLE.firstrow))),0, IF(OFFSET(PLE!$G$15,$M17-$A$15,DM$13)="",10^12,OFFSET(PLE!$G$15,$M17-$A$15,DM$13))) -> 0 | DN17: =IF(OR($D17<>"Serviço",AND(AUTOEVENTO="Manual",$M17=$A$15),$M17>(ROW(PLE.lastrow)-ROW(PLE.firstrow))),0, IF(OFFSET(PLE!$G$15,$M17-$A$15,DN$13)="",10^12,OFFSET(PLE!$G$15,$M17-$A$15,DN$13))) -> 0 | DO17: =IF(OR($D17<>"Serviço",AND(AUTOEVENTO="Manual",$M17=$A$15),$M17>(ROW(PLE.lastrow)-ROW(PLE.firstrow))),0, IF(OFFSET(PLE!$G$15,$M17-$A$15,DO$13)="",10^12,OFFSET(PLE!$G$15,$M17-$A$15,DO$13))) -> 0 | DP17: =IF(OR($D17<>"Serviço",AND(AUTOEVENTO="Manual",$M17=$A$15),$M17>(ROW(PLE.lastrow)-ROW(PLE.firstrow))),0, IF(OFFSET(PLE!$G$15,$M17-$A$15,DP$13)="",10^12,OFFSET(PLE!$G$15,$M17-$A$15,DP$13))) -> 0 | DQ17: =IF(OR($D17<>"Serviço",AND(AUTOEVENTO="Manual",$M17=$A$15),$M17>(ROW(PLE.lastrow)-ROW(PLE.firstrow))),0, IF(OFFSET(PLE!$G$15,$M17-$A$15,DQ$13)="",10^12,OFFSET(PLE!$G$15,$M17-$A$15,DQ$13))) -> 0 | DR17: =IF(OR($D17<>"Serviço",AND(AUTOEVENTO="Manual",$M17=$A$15),$M17>(ROW(PLE.lastrow)-ROW(PLE.firstrow))),0, IF(OFFSET(PLE!$G$15,$M17-$A$15,DR$13)="",10^12,OFFSET(PLE!$G$15,$M17-$A$15,DR$13))) -> 0 | DS17: =IF(OR($D17<>"Serviço",AND(AUTOEVENTO="Manual",$M17=$A$15),$M17>(ROW(PLE.lastrow)-ROW(PLE.firstrow))),0, IF(OFFSET(PLE!$G$15,$M17-$A$15,DS$13)="",10^12,OFFSET(PLE!$G$15,$M17-$A$15,DS$13))) -> 0
